Workbook

Sheet START

Sheet Instructions
D2: 2020
X4: Yes
X5: No
W7: Type of Entities Range:
X8: Parent Municipality
X9: Consolidated Information
W17: MTREF Range: | X17: 2008
X18: 2009
X19: 2010
X20: 2011
X21: 2012
X22: 2013
X23: 2014
X24: 2015
X25: 2016
X26: 2017
X27: 2018
X28: 2019
X29: 2020
X30: 2021
X31: 2022
W33: MTREF Linked: | X33: 12
W34: MTREF: | X34: =INDEX(X17:X31,X33,1) -> 2019
W36: Fin Year: | X36: =MTREF&"/"&RIGHT(MTREF,2)+1 -> 2019/20

Sheet Template names (hidden)
A1: Common sheet headings
A2: Head1 | B2: =HLOOKUP(MTREF,Headings,2) -> 2017/18 | C2: Prior year -1
A3: Head1A | B3: =HLOOKUP(MTREF,Headings,3) -> 2016/17 | C3: Prior year -2
A4: Head1B | B4: =HLOOKUP(MTREF,Headings,4) -> 2015/16 | C4: Prior year -3
A5: Head2 | B5: =HLOOKUP(MTREF,Headings,5) -> Current Year 2018/19 | C5: Year in which budget is being prepared
A6: Head2A | B6: =HLOOKUP(MTREF,Headings,6) -> 2018/19 | C6: Year in which budget is being prepared
A7: Head3 | B7: =HLOOKUP(MTREF,Headings,7) -> 2019/20 Medium Term Revenue & Expenditure Framework | C7: MTREF name
A8: Head4 | B8: LTFS | C8: Long term financial strategy
A9: Head5 | B9: Audited Outcome
A10: Head5A | B10: Outcome
A11: Head5B | B11: Pre-audit outcome
A12: Head6 | B12: Original Budget
A13: Head7 | B13: Adjusted Budget
A14: Head8 | B14: Full Year Forecast
A15: Head9 | B15: =HLOOKUP(MTREF,Headings,8) -> Budget Year 2019/20 | C15: 1st year of MTREF | D15: Year1
A16: Head10 | B16: =HLOOKUP(MTREF,Headings,9) -> Budget Year +1 2020/21 | C16: 2nd year of MTREF | D16: Year2
A17: Head11 | B17: =HLOOKUP(MTREF,Headings,10) -> Budget Year +2 2021/22 | C17: 3rd year of MTREF | D17: Year3
A18: Head12 | B18: =HLOOKUP(MTREF,Headings,11) -> Forecast 2022/23 | C18: 1st yr of long term forecast | D18: Year4
A19: Head13 | B19: =HLOOKUP(MTREF,Headings,12) -> Forecast 2023/24 | C19: Next yr of long term forecast | D19: Year5
A20: Head14 | B20: =HLOOKUP(MTREF,Headings,13) -> Forecast 2024/25 | C20: Next yr of long term forecast | D20: Year6
A21: Head15 | B21: =HLOOKUP(MTREF,Headings,14) -> Forecast 2025/26 | C21: Next yr of long term forecast | D21: Year7
A22: Head16 | B22: =HLOOKUP(MTREF,Headings,15) -> Forecast 2026/27 | C22: Next yr of long term forecast | D22: Year8
A23: Head17 | B23: =HLOOKUP(MTREF,Headings,16) -> Forecast 2027/28 | C23: Next yr of long term forecast | D23: Year9
A24: Head18 | B24: =HLOOKUP(MTREF,Headings,17) -> Forecast 2028/29 | C24: Next yr of long term forecast | D24: Year10
A25: Head19 | B25: =HLOOKUP(MTREF,Headings,18) -> Forecast 2029/30 | C25: Next yr of long term forecast | D25: Year11
A26: Head20 | B26: =HLOOKUP(MTREF,Headings,19) -> Forecast 2030/31 | C26: Next yr of long term forecast | D26: Year12
A27: Head21 | B27: =HLOOKUP(MTREF,Headings,20) -> Forecast 2031/32 | C27: Next yr of long term forecast | D27: Year13
A28: Head22 | B28: =HLOOKUP(MTREF,Headings,21) -> Forecast 2032/33 | C28: Next yr of long term forecast | D28: Year14
A29: Head23 | B29: =HLOOKUP(MTREF,Headings,22) -> Forecast 2033/34 | C29: Next yr of long term forecast | D29: Year15
A30: Head24 | B30: Description
A31: Head25
A32: Head26 | B32: Vote Description
A33: Head27 | B33: Ref
A34: Head27a | B34: References
A35: Head28 | B35: Surplus/(Deficit) for the year | D35: Result
A36: Head29 | B36: =HLOOKUP(MTREF,Headings,23) -> Annual target 2019/20
A37: Head30 | B37: =HLOOKUP(MTREF,Headings,24) -> Revised target 2019/20
A38: Head31 | B38: Quarter ended 30 September
A39: Head32 | B39: Quarter ended 31 December
A40: Head33 | B40: Quarter ended 31 March
A41: Head34 | B41: Quarter ended 30 June
A42: Head35 | B42: Variance explanation
A43: Head36 | B43: YTD Actual 31 Dec
A44: Head37 | B44: YTD Budget 31 Dec
A45: Head38 | B45: Monthly actual
A46: Head39 | B46: YTD actual
A47: Head40 | B47: YTD budget
A48: Head41 | B48: YTD variance
A49: Head42 | B49: Surplus/ (Deficit) for the yr/period
A50: Head43 | B50: =Head3&" Summary" -> 2019/20 Medium Term Revenue & Expenditure Framework Summary
A51: Head44 | B51: 2001 Census
A52: Head45 | B52: 2011 Census
A53: Head46 | B53: - Adjustments Budget - January 2007
A54: Head47 | B54: Previous target year to complete
A55: Head48 | B55: Present value
A56: Head49
A57: Head50 | B57: Other Adjusts.
A58: Head51 | B58: Accum. Funds
A59: Head52 | B59: Multi-year capital
A60: Head53 | B60: Unfore. Unavoid.
A61: Head54 | B61: Prior Adjusted
A62: Head55 | B62: Nat. or Prov. Govt
A63: Head56 | B63: Total Adjusts.
A64: SFPerf1 | B64: Budgeted Financial Performance
A65: SFPerf2 | B65: Forecast Financial Performance
A66: SFPos1 | B66: Budgeted Financial Position
A67: SFPos2 | B67: Forecast Financial Position
A68: Cash1 | B68: Budget Cash Flow
A69: Cash2 | B69: Forecast Cash Flow
A70: RandM | B70: Expenditure includes repairs & maintenance of R'000
A71: Depart1 | B71: Department 1 - | D71: DEP1
A72: Depart2 | B72: Department 2 - | D72: DEP2
A73: Depart3 | B73: Department 3 - | D73: DEP3
A74: Depart4 | B74: Department 4 - | D74: DEP4
A75: Depart5 | B75: Department 5 - | D75: DEP5
A76: Depart6 | B76: Department 6 - | D76: DEP6
A77: Depart7 | B77: Department 7 - | D77: DEP7
A78: Depart8 | B78: Department 8 - | D78: DEP8
A79: Depart9 | B79: Department 9 - | D79: DEP9
A80: Depart10 | B80: Department 10 - | D80: DEP10
A81: Depart11 | B81: Department 11 - | D81: DEP11
A82: Depart12 | B82: Department 12 - | D82: DEP12
A83: Depart13 | B83: Department 13 - | D83: DEP13
A84: Depart14 | B84: Department 14 - | D84: DEP14
A87: Base year of forecast column selection names
A88: Choose | B88: ACT
B89: APP
B90: ADJ
A92: Standard nomenclature
A93: Muni | B93: ='Lookup and lists'!B28 -> LIM332 Greater Letaba
A94: Municipal Entities | B94: 2 | C94: Type of report: | D94: 2
A95: =IF((MuniEntities=1)*(MuniType=2),"YES","NO") -> NO | B95: Does this municipality have entities (consolidated budget and entity budgets required)? YES/NO
A96: Entity 1 | B96: (Pty) Ltd Example 1 - Municipal entity - | D96: Ent1
A97: Entity 2 | B97: (Pty) Ltd Example 2 - Municipal entity - | D97: Ent2
A98: Entity 3 | B98: Municipal Entity Example 3 | D98: Ent3
A99: Budget approval tables | C99: Chart x-ref | D99: Sch/Tab/Ch | E99: Alternative for municipalities without entities | F99: Alternative for municipalities without entities
B100: =IF(Consolques="YES",E100,F100) -> Table A1 Budget Summary | D100: Table A1 | E100: =D100&"Consolidated Budget Summary" -> Table A1 Consolidated Budget Summary | F100: =D100&"Budget Summary" -> Table A1 Budget Summary
B101: Table A2 Budgeted Financial Performance (revenue and expenditure by functional classification) | C101: Charts 5, 6 | D101: Table A2 | E101: =D101&"Consolidated Budgeted Financial Performance (revenue and expenditure by functional classification)" -> Table A2 Consolidated Budgeted Financial Performance (revenue and expenditure by functional classification) | F101: =D101&"Budgeted Financial Performance (revenue and expenditure by functional classification)" -> Table A2 Budgeted Financial Performance (revenue and expenditure by functional classification)
B102: Table A3 Budgeted Financial Performance (revenue and expenditure by municipal vote) | D102: Table A3 | E102: =D102&"Consolidated Budgeted Financial Performance (revenue and expenditure by municipal vote)" -> Table A3 Consolidated Budgeted Financial Performance (revenue and expenditure by municipal vote) | F102: =D102&"Budgeted Financial Performance (revenue and expenditure by municipal vote)" -> Table A3 Budgeted Financial Performance (revenue and expenditure by municipal vote)
B103: Table A4 Budgeted Financial Performance (revenue and expenditure) | C103: Charts 1, 2, 3, 4 | D103: Table A4 | E103: =D103&"Consolidated Budgeted Financial Performance (revenue and expenditure)" -> Table A4 Consolidated Budgeted Financial Performance (revenue and expenditure) | F103: =D103&"Budgeted Financial Performance (revenue and expenditure)" -> Table A4 Budgeted Financial Performance (revenue and expenditure)
B104: Table A5 Budgeted Capital Expenditure by vote, functional classification and funding | C104: Charts 7, 8, 9, 10, 20 | D104: Table A5 | E104: =D104&"Consolidated Budgeted Capital Expenditure by vote, functional classification and funding" -> Table A5 Consolidated Budgeted Capital Expenditure by vote, functional classification and funding | F104: =D104&"Budgeted Capital Expenditure by vote, functional classification and funding" -> Table A5 Budgeted Capital Expenditure by vote, functional classification and funding
B105: Table A6 Budgeted Financial Position | D105: Table A6 | E105: =D105&"Consolidated Budgeted Financial Position" -> Table A6 Consolidated Budgeted Financial Position | F105: =D105&"Budgeted Financial Position" -> Table A6 Budgeted Financial Position
B106: Table A7 Budgeted Cash Flows | D106: Table A7 | E106: =D106&"Consolidated Budgeted Cash Flows" -> Table A7 Consolidated Budgeted Cash Flows | F106: =D106&"Budgeted Cash Flows" -> Table A7 Budgeted Cash Flows
B107: Table A8 Cash backed reserves/accumulated surplus reconciliation | D107: Table A8 | E107: =D107&"Consolidated Cash backed reserves/accumulated surplus reconciliation" -> Table A8 Consolidated Cash backed reserves/accumulated surplus reconciliation | F107: =D107&"Cash backed reserves/accumulated surplus reconciliation" -> Table A8 Cash backed reserves/accumulated surplus reconciliation
B108: Table A9 Asset Management | D108: Table A9 | E108: =D108&"Consolidated Asset Management" -> Table A9 Consolidated Asset Management | F108: =D108&"Asset Management" -> Table A9 Asset Management
B109: Table A10 Basic service delivery measurement | D109: Table A10 | E109: =D109&"Consolidated basic service delivery measurement" -> Table A10 Consolidated basic service delivery measurement | F109: =D109&"Basic service delivery measurement" -> Table A10 Basic service delivery measurement
A110: Supportinging Tables to the Budget Approval Tables | C110: =$C$99 -> Chart x-ref | D110: =$D$99 -> Sch/Tab/Ch
A111: Supporting Table SA1 | B111: =A111&" Supportinging detail to 'Budgeted Financial Performance'" -> Supporting Table SA1 Supportinging detail to 'Budgeted Financial Performance'
A112: Supporting Table SA2 | B112: =IF(Consolques="YES",E112,F112) -> Supporting Table SA2 Matrix Financial Performance Budget (revenue source/expenditure type and dept.) | E112: =A112&"Consolidated Matrix Financial Performance Budget (revenue source/expenditure type & dept.)" -> Supporting Table SA2 Consolidated Matrix Financial Performance Budget (revenue source/expenditure type & dept.) | F112: =A112&"Matrix Financial Performance Budget (revenue source/expenditure type and dept.)" -> Supporting Table SA2 Matrix Financial Performance Budget (revenue source/expenditure type and dept.)
A113: Supporting Table SA3 | B113: =A113&"Supportinging detail to 'Budgeted Financial Position'" -> Supporting Table SA3 Supportinging detail to 'Budgeted Financial Position'
A114: Supporting Table SA4 | B114: =A114&"Reconciliation of IDP strategic objectives and budget (revenue)" -> Supporting Table SA4 Reconciliation of IDP strategic objectives and budget (revenue) | C114: Chart 11
A115: Supporting Table SA5 | B115: =A115&"Reconciliation of IDP strategic objectives and budget (operating expenditure)" -> Supporting Table SA5 Reconciliation of IDP strategic objectives and budget (operating expenditure) | C115: Chart 12
A116: Supporting Table SA6 | B116: =A116&"Reconciliation of IDP strategic objectives and budget (capital expenditure)" -> Supporting Table SA6 Reconciliation of IDP strategic objectives and budget (capital expenditure) | C116: Chart 13
A117: Supporting Table SA7 | B117: =A117&" Measureable performance objectives" -> Supporting Table SA7 Measureable performance objectives
A118: Supporting Table SA8 | B118: =A118&" Performance indicators and benchmarks" -> Supporting Table SA8 Performance indicators and benchmarks | C118: Chts 15-19
A119: Supporting Table SA9 | B119: =A119&" Social, economic and demographic statistics and assumptions" -> Supporting Table SA9 Social, economic and demographic statistics and assumptions
A120: Supporting Table SA10 | B120: =A120&" Funding measurement" -> Supporting Table SA10 Funding measurement | C120: Chart 14
A121: Supporting Table SA11 | B121: =A121&" Property rates summary" -> Supporting Table SA11 Property rates summary
A122: Supporting Table SA12a | B122: =A122&" Property rates by category (current year)" -> Supporting Table SA12a Property rates by category (current year)
A123: Supporting Table SA12b | B123: =A123&" Property rates by category (budget year)" -> Supporting Table SA12b Property rates by category (budget year)
A124: Supporting Table SA13a | B124: =A124&" Service Tariffs by category" -> Supporting Table SA13a Service Tariffs by category
A125: Supporting Table SA13b | B125: =A125&" Service Tariffs by category - explanatory" -> Supporting Table SA13b Service Tariffs by category - explanatory
A126: Supporting Table SA14 | B126: =A126&" Household bills" -> Supporting Table SA14 Household bills
A127: Supporting Table SA15 | B127: =A127&" Investment particulars by type" -> Supporting Table SA15 Investment particulars by type
A128: Supporting Table SA16 | B128: =A128&" Investment particulars by maturity" -> Supporting Table SA16 Investment particulars by maturity
A129: Supporting Table SA17 | B129: =A129&" Borrowing" -> Supporting Table SA17 Borrowing
A130: Supporting Table SA18 | B130: =A130&" Transfers and grant receipts" -> Supporting Table SA18 Transfers and grant receipts
A131: Supporting Table SA19 | B131: =A131&" Expenditure on transfers and grant programme" -> Supporting Table SA19 Expenditure on transfers and grant programme
A132: Supporting Table SA20 | B132: =A132&" Reconciliation of transfers, grant receipts and unspent funds" -> Supporting Table SA20 Reconciliation of transfers, grant receipts and unspent funds
A133: Supporting Table SA21 | B133: =A133&" Transfers and grants made by the municipality" -> Supporting Table SA21 Transfers and grants made by the municipality
A134: Supporting Table SA22 | B134: =A134&" Summary councillor and staff benefits" -> Supporting Table SA22 Summary councillor and staff benefits
A135: Supporting Table SA23 | B135: =A135&" Salaries, allowances & benefits (political office bearers/councillors/senior managers)" -> Supporting Table SA23 Salaries, allowances & benefits (political office bearers/councillors/senior managers)
A136: Supporting Table SA24 | B136: =A136&" Summary of personnel numbers" -> Supporting Table SA24 Summary of personnel numbers
A137: Supporting Table SA25 | B137: =IF(Consolques="YES",E137,F137) -> Supporting Table SA25 Budgeted monthly revenue and expenditure | E137: =A137&" Consolidated budgeted monthly revenue and expenditure" -> Supporting Table SA25 Consolidated budgeted monthly revenue and expenditure | F137: =A137&" Budgeted monthly revenue and expenditure" -> Supporting Table SA25 Budgeted monthly revenue and expenditure
A138: Supporting Table SA26 | B138: Supporting Table SA26 Budgeted monthly revenue and expenditure (municipal vote) | E138: =A138&" Consolidated budgeted monthly revenue and expenditure (municipal vote)" -> Supporting Table SA26 Consolidated budgeted monthly revenue and expenditure (municipal vote) | F138: =A138&" Budgeted monthly revenue and expenditure (municipal vote)" -> Supporting Table SA26 Budgeted monthly revenue and expenditure (municipal vote)
A139: Supporting Table SA27 | B139: Supporting Table SA27 Budgeted monthly revenue and expenditure (functional classification) | E139: =A139&" Consolidated budgeted monthly revenue and expenditure (functional classification)" -> Supporting Table SA27 Consolidated budgeted monthly revenue and expenditure (functional classification) | F139: =A139&" Budgeted monthly revenue and expenditure (functional classification)" -> Supporting Table SA27 Budgeted monthly revenue and expenditure (functional classification)
A140: Supporting Table SA28 | B140: Supporting Table SA28 Budgeted monthly capital expenditure (municipal vote) | E140: =A140&" Consolidated budgeted monthly capital expenditure (municipal vote)" -> Supporting Table SA28 Consolidated budgeted monthly capital expenditure (municipal vote) | F140: =A140&" Budgeted monthly capital expenditure (municipal vote)" -> Supporting Table SA28 Budgeted monthly capital expenditure (municipal vote)
A141: Supporting Table SA29 | B141: Supporting Table SA29 Budgeted monthly capital expenditure (functional classification) | E141: =A141&" Consolidated budgeted monthly capital expenditure (functional classification)" -> Supporting Table SA29 Consolidated budgeted monthly capital expenditure (functional classification) | F141: =A141&" Budgeted monthly capital expenditure (functional classification)" -> Supporting Table SA29 Budgeted monthly capital expenditure (functional classification)
A142: Supporting Table SA30 | B142: Supporting Table SA30 Budgeted monthly cash flow | E142: =A142&" Consolidated budgeted monthly cash flow" -> Supporting Table SA30 Consolidated budgeted monthly cash flow | F142: =A142&" Budgeted monthly cash flow" -> Supporting Table SA30 Budgeted monthly cash flow
A143: Supporting Table SA31 | B143: NOT REQUIRED - municipality does not have entities | E143: =A143&" Aggregated entity budget" -> Supporting Table SA31 Aggregated entity budget | F143: NOT REQUIRED - municipality does not have entities
A144: Supporting Table SA32 | B144: =A144&" List of external mechanisms" -> Supporting Table SA32 List of external mechanisms
A145: Supporting Table SA33 | B145: =A145&" Contracts having future budgetary implications" -> Supporting Table SA33 Contracts having future budgetary implications
A146: Supporting Table SA34a | B146: =IF(Consolques="YES",E146,F146) -> Supporting Table SA34a Capital expenditure on new assets by asset class | E146: =A146&" Consolidated capital expenditure on new assets by asset class" -> Supporting Table SA34a Consolidated capital expenditure on new assets by asset class | F146: =A146&" Capital expenditure on new assets by asset class" -> Supporting Table SA34a Capital expenditure on new assets by asset class
A147: Supporting Table SA34b | B147: Supporting Table SA34b Capital expenditure on the renewal of existing assets by asset class | E147: =A147&" Consolidated capital expenditure on the renewal of existing assets by asset class" -> Supporting Table SA34b Consolidated capital expenditure on the renewal of existing assets by asset class | F147: =A147&" Capital expenditure on the renewal of existing assets by asset class" -> Supporting Table SA34b Capital expenditure on the renewal of existing assets by asset class
A148: Supporting Table SA34c | B148: Supporting Table SA34c Repairs and maintenance expenditure by asset class | E148: =A148&" Consolidated repairs and maintenance by asset class" -> Supporting Table SA34c Consolidated repairs and maintenance by asset class | F148: =A148&" Repairs and maintenance expenditure by asset class" -> Supporting Table SA34c Repairs and maintenance expenditure by asset class
A149: Supporting Table SA34d | B149: =IF(Consolques="YES",E149,F149) -> Supporting Table SA34d Depreciation by asset class | E149: =A149&" Consolidated Depreciation by asset class" -> Supporting Table SA34d Consolidated Depreciation by asset class | F149: =A149&" Depreciation by asset class" -> Supporting Table SA34d Depreciation by asset class
A150: Supporting Table SA34e | B150: =IF(Consolques="YES",E150,F150) -> Supporting Table SA34e Capital expenditure on the upgrading of existing assets by asset class | E150: =A150&" Consolidated capital expenditure on the upgrading of existing assets by asset class" -> Supporting Table SA34e Consolidated capital expenditure on the upgrading of existing assets by asset class | F150: =A150&" Capital expenditure on the upgrading of existing assets by asset class" -> Supporting Table SA34e Capital expenditure on the upgrading of existing assets by asset class
A151: Supporting Table SA35 | B151: Supporting Table SA35 Future financial implications of the capital budget | E151: =A151&" Consolidated future financial implications of the capital budget" -> Supporting Table SA35 Consolidated future financial implications of the capital budget | F151: =A151& " Future financial implications of the capital budget" -> Supporting Table SA35 Future financial implications of the capital budget
A152: Supporting Table SA36 | B152: Supporting Table SA36 Detailed capital budget | E152: =A152&" Consolidated detailed capital budget" -> Supporting Table SA36 Consolidated detailed capital budget | F152: =A152& " Detailed capital budget" -> Supporting Table SA36 Detailed capital budget
A153: Supporting Table SA37 | B153: Supporting Table SA37 Projects delayed from previous financial year/s | E153: =A153&" Consolidated projects delayed from previous financial year/s" -> Supporting Table SA37 Consolidated projects delayed from previous financial year/s | F153: =A153& " Projects delayed from previous financial year/s" -> Supporting Table SA37 Projects delayed from previous financial year/s
A154: Supporting Table SA38 | B154: =IF(Consolques="YES",E154,F154) -> Supporting Table SA38 Detailed operational projects | E154: =A154&" Consolidated detailed operational projects" -> Supporting Table SA38 Consolidated detailed operational projects | F154: =A154& " Detailed operational projects" -> Supporting Table SA38 Detailed operational projects
A156: Budget Charts | B156: Charts | C156: Cross reference
A157: Chart A1 | B157: =A157&"Revenue by Municipal Vote" -> Chart A1 Revenue by Municipal Vote
A158: Chart A2 | B158: =A158&"Expenditure by Municipal Vote" -> Chart A2 Expenditure by Municipal Vote
A159: Chart A3 | B159: =A159&"Revenue by Standard Classification" -> Chart A3 Revenue by Standard Classification | C159: A2
A160: Chart A4 | B160: =A160&"Expenditure by Standard Classification" -> Chart A4 Expenditure by Standard Classification | C160: A2
A161: Chart A5 | B161: =A161&"Revenue by Major Source (refer 'Minor' source for 'Other Revenue' allocation" -> Chart A5 Revenue by Major Source (refer 'Minor' source for 'Other Revenue' allocation | C161: A3
A162: Chart A6 | B162: =A162&"Revenue by Minor Source (Other)" -> Chart A6 Revenue by Minor Source (Other) | C162: A3
A163: Chart A7 | B163: =A163&"Expenditure by Major Type" -> Chart A7 Expenditure by Major Type | C163: A3
A164: Chart A8 | B164: =A164&"Expenditure by Minor Type (Other)" -> Chart A8 Expenditure by Minor Type (Other) | C164: A3
A165: Chart A9 | B165: =A165&"Capital Expenditure by Municipal Vote/Appropriation (Major)" -> Chart A9 Capital Expenditure by Municipal Vote/Appropriation (Major) | C165: A5
A166: Chart A10 | B166: =A166&"Capital Expenditure by Municipal Vote/Appropriation (Minor)" -> Chart A10 Capital Expenditure by Municipal Vote/Appropriation (Minor) | C166: A5
A167: Chart A11 | B167: =A166&"Capital Expenditure by Standard Classification" -> Chart A10 Capital Expenditure by Standard Classification | C167: A5
A168: Chart A12 | B168: =A168&"Capital expenditure performance trend" -> Chart A12 Capital expenditure performance trend | C168: A5
A169: Chart A13 | B169: =A169&"Capital funding by Source" -> Chart A13 Capital funding by Source | C169: A5
A170: Chart A14 | B170: =A170&"Cash flow trend" -> Chart A14 Cash flow trend | C170: A7
A171: Chart A15 | B171: =A171&"IDP Strategic Objective - Revenue" -> Chart A15 IDP Strategic Objective - Revenue | C171: Table A4
A172: Chart A16 | B172: =A172&"IDP Strategic Objective - Expenditure" -> Chart A16 IDP Strategic Objective - Expenditure | C172: Table A5
A173: Chart A17 | B173: =A173&"IDP Strategic Objective - Capital Expenditure" -> Chart A17 IDP Strategic Objective - Capital Expenditure | C173: Table A6
A174: Chart A18 | B174: =A174&"Debt (borrowing to Total Revenue)" -> Chart A18 Debt (borrowing to Total Revenue) | C174: Table A8
A175: Chart A19 | B175: =A175&"Debtors' trend analysis" -> Chart A19 Debtors' trend analysis | C175: Table A8
A176: Chart A20 | B176: =A176&"Distribution losses" -> Chart A20 Distribution losses | C176: Table A8
A177: Chart A21 | B177: =A177&"Borrowed funding of capital expenditure" -> Chart A21 Borrowed funding of capital expenditure | C177: Table A8
A178: Chart A22 | B178: =A178&"Expenditure analysis (% of Revenue)" -> Chart A22 Expenditure analysis (% of Revenue) | C178: Table A8
A179: Chart A23 | B179: =A179&"Increases in service charges" -> Chart A23 Increases in service charges | C179: Table A10

Sheet Lookup and lists (hidden)
A1: Description | B1: 2007 | C1: 2008 | D1: 2009 | E1: 2010 | F1: 2011 | G1: 2012 | H1: 2013 | I1: 2014 | J1: 2015 | K1: 2016 | L1: 2017 | M1: 2018 | N1: 2019 | O1: 2020 | Q1: Lists | Y1: Grants: | Z1: National - opex | AA1: Provincial - opex | AB1: National - capex | AC1: Provincial - capex
A2: ='Template names'!C2 -> Prior year -1 | B2: 2005/06 | C2: 2006/07 | D2: 2007/08 | E2: =E1-2&"/"&RIGHT(E1,2)-1 -> 2008/9 | F2: 2009/10 | G2: 2010/11 | H2: 2011/12 | I2: 2012/13 | J2: 2013/14 | K2: 2014/15 | L2: 2015/16 | M2: 2016/17 | N2: 2017/18 | O2: 2018/19 | Q2: Yes | R2: <1 | S2: <4 | T2: Market | U2: Land & impr. | V2: Yes | W2: Uniform | X2: Yrs | Z2: Local Government Equitable Share | AA2: Health subsidy | AB2: Municipal Infrastructure Grant (MIG) | AC2: Agriculture
A3: ='Template names'!C3 -> Prior year -2 | B3: 2004/05 | C3: 2005/06 | D3: 2006/07 | E3: =E1-3&"/"&RIGHT(E1,2)-2 -> 2007/8 | F3: 2008/9 | G3: 2009/10 | H3: 2010/11 | I3: 2011/12 | J3: 2012/13 | K3: 2013/14 | L3: 2014/15 | M3: 2015/16 | N3: 2016/17 | O3: 2017/18 | Q3: No | R3: 1 | S3: 4 | T3: Dep.Replace | U3: Land only | V3: No | W3: Variable | X3: Mths | Z3: RSC Levy Replacement | AA3: Ambulance subsidy | AB3: Public Transport and Systems | AC3: Education
A4: ='Template names'!C4 -> Prior year -3 | B4: 2003/04 | C4: 2004/05 | D4: 2005/06 | E4: =E1-4&"/"&RIGHT(E1,2)-3 -> 2006/7 | F4: 2007/8 | G4: 2008/9 | H4: 2009/10 | I4: 2010/11 | J4: 2011/12 | K4: 2012/13 | L4: 2013/14 | M4: 2014/15 | N4: 2015/16 | O4: 2016/17 | R4: 2 | S4: 5 | T4: Other | U4: Other | Z4: Finance Management | AA4: Housing | AB4: Rural Transport Services and Infrastructure | AC4: Health
A5: ='Template names'!C5 -> Year in which budget is being prepared | B5: Current Year 2006/07 | C5: Current Year 2007/08 | D5: Current Year 2008/09 | E5: ="Current Year "& E1-1&"/"&RIGHT(E1,2) -> Current Year 2009/10 | F5: Current Year 2010/11 | G5: Current Year 2011/12 | H5: Current Year 2012/13 | I5: Current Year 2013/14 | J5: Current Year 2014/15 | K5: Current Year 2015/16 | L5: Current Year 2016/17 | M5: Current Year 2017/18 | N5: Current Year 2018/19 | O5: Current Year 2019/20 | R5: 3 | S5: 6 | Z5: Municipal Systems Improvement | AA5: Sport and Recreation | AB5: Regional Bulk Infrastructure | AC5: Housing and Local Government
A6: ='Template names'!C6 -> Year in which budget is being prepared | B6: 2006/07 | C6: 2007/08 | D6: 2008/09 | E6: =E1-1&"/"&RIGHT(E1,2) -> 2009/10 | F6: 2010/11 | G6: 2011/12 | H6: 2012/13 | I6: 2013/14 | J6: 2014/15 | K6: 2015/16 | L6: 2016/17 | M6: 2017/18 | N6: 2018/19 | O6: 2019/20 | R6: 4 | S6: 6-10 | Z6: Water Services Operating Subsidy | AB6: Rural Households Infrastructure | AC6: Other Departments
A7: ='Template names'!C7 -> MTREF name | B7: 2007/08 Medium Term Revenue & Expenditure Framework | C7: 2008/09 Medium Term Revenue & Expenditure Framework | D7: 2009/10 Medium Term Revenue & Expenditure Framework | E7: =E1&"/"&RIGHT(E1,2)+1&" Medium Term Revenue & Expenditure Framework" -> 2010/11 Medium Term Revenue & Expenditure Framework | F7: 2011/12 Medium Term Revenue & Expenditure Framework | G7: 2012/13 Medium Term Revenue & Expenditure Framework | H7: 2013/14 Medium Term Revenue & Expenditure Framework | I7: 2014/15 Medium Term Revenue & Expenditure Framework | J7: 2015/16 Medium Term Revenue & Expenditure Framework | K7: 2016/17 Medium Term Revenue & Expenditure Framework | L7: 2017/18 Medium Term Revenue & Expenditure Framework | M7: 2018/19 Medium Term Revenue & Expenditure Framework | N7: 2019/20 Medium Term Revenue & Expenditure Framework | O7: 2020/21 Medium Term Revenue & Expenditure Framework | R7: 5 | S7: >10 | Z7: Energy Efficiency and Demand Management | AB7: Neighbourhood Development Partnership | AC7: Public Works, Roads, Transport
A8: ='Template names'!C15 -> 1st year of MTREF | B8: Budget Year 2007/08 | C8: Budget Year 2008/09 | D8: Budget Year 2009/10 | E8: ="Budget Year "&E1&"/"&RIGHT(E1,2)+1 -> Budget Year 2010/11 | F8: Budget Year 2011/12 | G8: Budget Year 2012/13 | H8: Budget Year 2013/14 | I8: Budget Year 2014/15 | J8: Budget Year 2015/16 | K8: Budget Year 2016/17 | L8: Budget Year 2017/18 | M8: Budget Year 2018/19 | N8: Budget Year 2019/20 | O8: Budget Year 2020/21 | R8: >5 | Z8: Integrated National Electrification Programme | AB8: 2010 FIFA World Cup Stadiums Development | AC8: Sport and Recreation
A9: ='Template names'!C16 -> 2nd year of MTREF | B9: Budget Year +1 2008/09 | C9: Budget Year +1 2009/10 | D9: Budget Year +1 2010/11 | E9: ="Budget Year +1 "&E1+1&"/"&RIGHT(E1,2)+2 -> Budget Year +1 2011/12 | F9: Budget Year +1 2012/13 | G9: Budget Year +1 2013/14 | H9: Budget Year +1 2014/15 | I9: Budget Year +1 2015/16 | J9: Budget Year +1 2016/17 | K9: Budget Year +1 2017/18 | L9: Budget Year +1 2018/19 | M9: Budget Year +1 2019/20 | N9: Budget Year +1 2020/21 | O9: Budget Year +1 2021/22 | Z9: Municipal Drought Relief
A10: ='Template names'!C17 -> 3rd year of MTREF | B10: Budget Year +2 2009/10 | C10: Budget Year +2 2010/11 | D10: Budget Year +2 2011/12 | E10: ="Budget Year +2 "&E1+2&"/"&RIGHT(E1,2)+3 -> Budget Year +2 2012/13 | F10: Budget Year +2 2013/14 | G10: Budget Year +2 2014/15 | H10: Budget Year +2 2015/16 | I10: Budget Year +2 2016/17 | J10: Budget Year +2 2017/18 | K10: Budget Year +2 2018/19 | L10: Budget Year +2 2019/20 | M10: Budget Year +2 2020/21 | N10: Budget Year +2 2021/22 | O10: Budget Year +2 2022/23 | Z10: 2010 FIFA World Cup Operating
A11: ='Template names'!C18 -> 1st yr of long term forecast | B11: Forecast 2010/11 | C11: Forecast 2011/12 | D11: Forecast 2012/13 | E11: ="Forecast "&E1+3&"/"&RIGHT(E1,2)+4 -> Forecast 2013/14 | F11: Forecast 2014/15 | G11: Forecast 2015/16 | H11: Forecast 2016/17 | I11: Forecast 2017/18 | J11: Forecast 2018/19 | K11: Forecast 2019/20 | L11: Forecast 2020/21 | M11: Forecast 2021/22 | N11: Forecast 2022/23 | O11: Forecast 2023/24 | Z11: Electricity Demand Side Management
A12: ='Template names'!C19 -> Next yr of long term forecast | B12: Forecast 2011/12 | C12: Forecast 2012/13 | D12: Forecast 2013/14 | E12: ="Forecast "&E1+4&"/"&RIGHT(E1,2)+5 -> Forecast 2014/15 | F12: Forecast 2015/16 | G12: Forecast 2016/17 | H12: Forecast 2017/18 | I12: Forecast 2018/19 | J12: Forecast 2019/20 | K12: Forecast 2020/21 | L12: Forecast 2021/22 | M12: Forecast 2022/23 | N12: Forecast 2023/24 | O12: Forecast 2024/25 | Z12: EPWP Incentive
A13: ='Template names'!C20 -> Next yr of long term forecast | B13: Forecast 2012/13 | C13: Forecast 2013/14 | D13: Forecast 2014/15 | E13: ="Forecast "&E1+5&"/"&RIGHT(E1,2)+6 -> Forecast 2015/16 | F13: Forecast 2016/17 | G13: Forecast 2017/18 | H13: Forecast 2018/19 | I13: Forecast 2019/20 | J13: Forecast 2020/21 | K13: Forecast 2021/22 | L13: Forecast 2022/23 | M13: Forecast 2023/24 | N13: Forecast 2024/25 | O13: Forecast 2025/26
A14: ='Template names'!C21 -> Next yr of long term forecast | B14: Forecast 2013/14 | C14: Forecast 2014/15 | D14: Forecast 2015/16 | E14: ="Forecast "&E1+6&"/"&RIGHT(E1,2)+7 -> Forecast 2016/17 | F14: Forecast 2017/18 | G14: Forecast 2018/19 | H14: Forecast 2019/20 | I14: Forecast 2020/21 | J14: Forecast 2021/22 | K14: Forecast 2022/23 | L14: Forecast 2023/24 | M14: Forecast 2024/25 | N14: Forecast 2025/26 | O14: Forecast 2026/27 | Z14: Asset Class | AA14: Asset sub-class old | AB14: Asset sub-class | AC14: IUDF | AD14: MTSF
A15: ='Template names'!C22 -> Next yr of long term forecast | B15: Forecast 2014/15 | C15: Forecast 2015/16 | D15: Forecast 2016/17 | E15: ="Forecast "&E1+7&"/"&RIGHT(E1,2)+8 -> Forecast 2017/18 | F15: Forecast 2018/19 | G15: Forecast 2019/20 | H15: Forecast 2020/21 | I15: Forecast 2021/22 | J15: Forecast 2022/23 | K15: Forecast 2023/24 | L15: Forecast 2024/25 | M15: Forecast 2025/26 | N15: Forecast 2026/27 | O15: Forecast 2027/28
A16: ='Template names'!C23 -> Next yr of long term forecast | B16: Forecast 2015/16 | C16: Forecast 2016/17 | D16: Forecast 2017/18 | E16: ="Forecast "&E1+8&"/"&RIGHT(E1,2)+9 -> Forecast 2018/19 | F16: Forecast 2019/20 | G16: Forecast 2020/21 | H16: Forecast 2021/22 | I16: Forecast 2022/23 | J16: Forecast 2023/24 | K16: Forecast 2024/25 | L16: Forecast 2025/26 | M16: Forecast 2026/27 | N16: Forecast 2027/28 | O16: Forecast 2028/29 | Z16: Roads Infrastructure | AA16: Roads, Pavements & Bridges | AB16: Roads | AC16: Spatial integration | AD16: Quality basic education
A17: ='Template names'!C24 -> Next yr of long term forecast | B17: Forecast 2016/17 | C17: Forecast 2017/18 | D17: Forecast 2018/19 | E17: ="Forecast "&E1+9&"/"&RIGHT(E1,2)+10 -> Forecast 2019/20 | F17: Forecast 2020/21 | G17: Forecast 2021/22 | H17: Forecast 2022/23 | I17: Forecast 2023/24 | J17: Forecast 2024/25 | K17: Forecast 2025/26 | L17: Forecast 2026/27 | M17: Forecast 2027/28 | N17: Forecast 2028/29 | O17: Forecast 2029/30 | Z17: Storm water Infrastructure | AA17: Storm water | AB17: Road Structures | AC17: Inclusion and access | AD17: A long and healthy life for all South Africans
A18: ='Template names'!C25 -> Next yr of long term forecast | B18: Forecast 2017/18 | C18: Forecast 2018/19 | D18: Forecast 2019/20 | E18: ="Forecast "&E1+10&"/"&RIGHT(E1,2)+11 -> Forecast 2020/21 | F18: Forecast 2021/22 | G18: Forecast 2022/23 | H18: Forecast 2023/24 | I18: Forecast 2024/25 | J18: Forecast 2025/26 | K18: Forecast 2026/27 | L18: Forecast 2027/28 | M18: Forecast 2028/29 | N18: Forecast 2029/30 | O18: Forecast 2030/31 | Z18: Electrical Infrastructure | AA18: Generation | AB18: Road Furniture | AC18: Growth | AD18: All people in South Africa are and feel safe
A19: ='Template names'!C26 -> Next yr of long term forecast | B19: Forecast 2018/19 | C19: Forecast 2019/20 | D19: Forecast 2020/21 | E19: ="Forecast "&E1+11&"/"&RIGHT(E1,2)+12 -> Forecast 2021/22 | F19: Forecast 2022/23 | G19: Forecast 2023/24 | H19: Forecast 2024/25 | I19: Forecast 2025/26 | J19: Forecast 2026/27 | K19: Forecast 2027/28 | L19: Forecast 2028/29 | M19: Forecast 2029/30 | N19: Forecast 2030/31 | O19: Forecast 2031/32 | Z19: Water Supply Infrastructure | AA19: Transmission & Reticulation | AB19: Capital Spares | AC19: Governance | AD19: Decent employment through inclusive growth
A20: ='Template names'!C27 -> Next yr of long term forecast | B20: Forecast 2019/20 | C20: Forecast 2020/21 | D20: Forecast 2021/22 | E20: ="Forecast "&E1+12&"/"&RIGHT(E1,2)+13 -> Forecast 2022/23 | F20: Forecast 2023/24 | G20: Forecast 2024/25 | H20: Forecast 2025/26 | I20: Forecast 2026/27 | J20: Forecast 2027/28 | K20: Forecast 2028/29 | L20: Forecast 2029/30 | M20: Forecast 2030/31 | N20: Forecast 2031/32 | O20: Forecast 2032/33 | Z20: Sanitation Infrastructure | AA20: Street Lighting | AB20: Drainage Collection | AD20: A skilled and capable workforce to support an inclusive growth path
A21: ='Template names'!C28 -> Next yr of long term forecast | B21: Forecast 2020/21 | C21: Forecast 2021/22 | D21: Forecast 2022/23 | E21: ="Forecast "&E1+13&"/"&RIGHT(E1,2)+14 -> Forecast 2023/24 | F21: Forecast 2024/25 | G21: Forecast 2025/26 | H21: Forecast 2026/27 | I21: Forecast 2027/28 | J21: Forecast 2028/29 | K21: Forecast 2029/30 | L21: Forecast 2030/31 | M21: Forecast 2031/32 | N21: Forecast 2032/33 | O21: Forecast 2033/34 | Z21: Solid Waste Infrastructure | AA21: Dams & Reservoirs | AB21: Storm water Conveyance | AD21: An efficient, competitive and responsive economic infrastructure network
A22: ='Template names'!C29 -> Next yr of long term forecast | B22: Forecast 2021/22 | C22: Forecast 2022/23 | D22: Forecast 2023/24 | E22: ="Forecast "&E1+14&"/"&RIGHT(E1,2)+15 -> Forecast 2024/25 | F22: Forecast 2025/26 | G22: Forecast 2026/27 | H22: Forecast 2027/28 | I22: Forecast 2028/29 | J22: Forecast 2029/30 | K22: Forecast 2030/31 | L22: Forecast 2031/32 | M22: Forecast 2032/33 | N22: Forecast 2033/34 | O22: Forecast 2034/35 | Z22: Rail Infrastructure | AA22: Water purification | AB22: Attenuation | AD22: Vibrant, equitable, sustainable rural communities contributing towards food security for all
A23: Adjustments Budget | B23: Annual target 2007/08 | C23: Annual target 2008/09 | D23: Annual target 2009/10 | E23: ="Annual target " & E1&"/"&RIGHT(E1,2)+1 -> Annual target 2010/11 | F23: Annual target 2011/12 | G23: Annual target 2012/13 | H23: Annual target 2013/14 | I23: Annual target 2014/15 | J23: Annual target 2015/16 | K23: Annual target 2016/17 | L23: Annual target 2017/18 | M23: Annual target 2018/19 | N23: Annual target 2019/20 | O23: Annual target 2020/21 | Z23: Coastal Infrastructure | AA23: Reticulation | AB23: Power Plants | AD23: Sustainable human settlements and improved quality of household life
A24: =A23 -> Adjustments Budget | B24: Revised target 2007/08 | C24: Revised target 2008/09 | D24: Revised target 2009/10 | E24: ="Revised target "& E1&"/"&RIGHT(E1,2)+1 -> Revised target 2010/11 | F24: Revised target 2011/12 | G24: Revised target 2012/13 | H24: Revised target 2013/14 | I24: Revised target 2014/15 | J24: Revised target 2015/16 | K24: Revised target 2016/17 | L24: Revised target 2017/18 | M24: Revised target 2018/19 | N24: Revised target 2019/20 | O24: Revised target 2020/21 | Z24: Information and Communication Infrastructure | AA24: Sewerage purification | AB24: HV Substations | AD24: Responsive, accountable, effective and efficient local government
A25: NOTE: This sheet should not be directly amended - select headings from sheet 'S' | Z25: Community Facilities | AA25: Waste Management | AB25: HV Switching Station | AD25: Protect and enhance our environmental assets and natural resources
Z26: Sport and Recreation Facilities | AA26: Transportation | AB26: HV Transmission Conductors | AD26: Create a better South Africa and contribute to a better Africa and a better world
A27: Name link | B27: 130 | Z27: Heritage assets | AA27: Gas | AB27: MV Substations | AD27: An efficient, effective and development-oriented public service
A28: Name of Muni | B28: =INDEX(B29:B307,B27,1) -> LIM332 Greater Letaba | Z28: Revenue Generating | AA28: Parks & gardens | AB28: MV Switching Stations | AD28: A comprehensive, responsive and sustainable social protection system
B29: Choose name from list | C29: Set name on 'Instructions' sheet | Z29: Non-revenue Generating | AA29: Sportsfields & stadia | AB29: MV Networks | AD29: A diverse, socially cohesive society with a common national identity
B30: BUF Buffalo City | C30: EC EASTERN CAPE | Z30: Operational Buildings | AA30: Swimming pools | AB30: LV Networks
B31: NMA Nelson Mandela Bay | C31: EC EASTERN CAPE | Z31: Housing | AA31: Community halls | AB31: Capital Spares
B32: EC101 Dr Beyers Naude | C32: EC EASTERN CAPE | Z32: Biological or Cultivated Assets | AA32: Libraries | AB32: Dams and Weirs
B33: EC102 Blue Crane Route | C33: EC EASTERN CAPE | Z33: Servitudes | AA33: Recreational facilities | AB33: Boreholes
B34: EC104 Makana | C34: EC EASTERN CAPE | Z34: Licences and Rights | AA34: Fire, safety & emergency | AB34: Reservoirs
B35: EC105 Ndlambe | C35: EC EASTERN CAPE | Z35: Computer Equipment | AA35: Security and policing | AB35: Pump Stations
B36: EC106 Sundays River Valley | C36: EC EASTERN CAPE | Z36: Furniture and Office Equipment | AA36: Buses | AB36: Water Treatment Works
B37: EC108 Kouga | C37: EC EASTERN CAPE | Z37: Machinery and Equipment | AA37: Clinics | AB37: Bulk Mains
B38: EC109 Kou-Kamma | C38: EC EASTERN CAPE | Z38: Transport Assets | AA38: Museums & Art Galleries | AB38: Distribution
B39: DC10 Sarah Baartman | C39: EC EASTERN CAPE | Z39: Land | AA39: Cemeteries | AB39: Distribution Points
B40: EC121 Mbhashe | C40: EC EASTERN CAPE | Z40: Zoo's, Marine and Non-biological Animals | AA40: Social rental housing | AB40: PRV Stations
B41: EC122 Mnquma | C41: EC EASTERN CAPE | AA41: Buildings | AB41: Capital Spares
B42: EC123 Great Kei | C42: EC EASTERN CAPE | AA42: Housing development | AB42: Pump Station
B43: EC124 Amahlathi | C43: EC EASTERN CAPE | AA43: General vehicles | AB43: Reticulation
B44: EC126 Ngqushwa | C44: EC EASTERN CAPE | AA44: Specialised vehicles - Refuse | AB44: Waste Water Treatment Works
B45: EC129 Raymond Mhlaba | C45: EC EASTERN CAPE | AA45: Specialised vehicles - Fire | AB45: Outfall Sewers
B46: DC12 Amathole | C46: EC EASTERN CAPE | AA46: Specialised vehicles - Conservancy | AB46: Toilet Facilities
B47: EC131 Inxuba Yethemba | C47: EC EASTERN CAPE | AA47: Specialised vehicles - Ambulances | AB47: Capital Spares
B48: EC135 Intsika Yethu | C48: EC EASTERN CAPE | AA48: Plant & equipment | AB48: Landfill Sites
B49: EC136 Emalahleni (Ec) | C49: EC EASTERN CAPE | AA49: Computers - hardware/equipment | AB49: Waste Transfer Stations
B50: EC137 Engcobo | C50: EC EASTERN CAPE | AA50: Furniture and other office equipment | AB50: Waste Processing Facilities
B51: EC138 Sakhisizwe | C51: EC EASTERN CAPE | AA51: Abattoirs | AB51: Waste Drop-off Points
B52: EC139 Enoch Mgijima | C52: EC EASTERN CAPE | AA52: Markets | AB52: Waste Separation Facilities
B53: DC13 Chris Hani | C53: EC EASTERN CAPE | AA53: Civic Land and Buildings | AB53: Electricity Generation Facilities
B54: EC141 Elundini | C54: EC EASTERN CAPE | AA54: Other Buildings | AB54: Capital Spares
B55: EC142 Senqu | C55: EC EASTERN CAPE | AA55: Other Land | AB55: Rail Lines
B56: EC145 Walter Sisulu | C56: EC EASTERN CAPE | AA56: Surplus Assets - (Investment or Inventory) | AB56: Rail Structures
B57: DC14 Joe Gqabi | C57: EC EASTERN CAPE | AA57: Computers - software & programming | AB57: Rail Furniture
B58: EC153 Ngquza Hills | C58: EC EASTERN CAPE | AA58: Other | AB58: Drainage Collection
B59: EC154 Port St Johns | C59: EC EASTERN CAPE | AB59: Storm water Conveyance
B60: EC155 Nyandeni | C60: EC EASTERN CAPE | Z60: SA16 - Investments | AB60: Attenuation
B61: EC156 Mhlontlo | C61: EC EASTERN CAPE | Z61: Security | AA61: Interest rate | AB61: MV Substations
B62: EC157 King Sabata Dalindyebo | C62: EC EASTERN CAPE | Z62: Yes | AA62: Fixed | AB62: LV Networks
B63: DC15 O .R. Tambo | C63: EC EASTERN CAPE | Z63: No | AA63: Variable | AB63: Capital Spares
B64: EC441 Matatiele | C64: EC EASTERN CAPE | AB64: Sand Pumps
B65: EC442 Umzimvubu | C65: EC EASTERN CAPE | AB65: Piers
B66: EC443 Mbizana | C66: EC EASTERN CAPE | Z66: SA36, SA37 - Capital projects | AB66: Revetments
B67: EC444 Ntabankulu | C67: EC EASTERN CAPE | Z67: Yes | AB67: Promenades
B68: DC44 Alfred Nzo | C68: EC EASTERN CAPE | Z68: No | AB68: Capital Spares
B69: MAN Mangaung | C69: FS FREE STATE | AB69: Data Centres
B70: FS161 Letsemeng | C70: FS FREE STATE | AB70: Core Layers
B71: FS162 Kopanong | C71: FS FREE STATE | AB71: Distribution Layers
B72: FS163 Mohokare | C72: FS FREE STATE | AB72: Capital Spares
B73: DC16 Xhariep | C73: FS FREE STATE | AB73: Halls
B74: FS181 Masilonyana | C74: FS FREE STATE | AB74: Centres
B75: FS182 Tokologo | C75: FS FREE STATE | AB75: Crèches
B76: FS183 Tswelopele | C76: FS FREE STATE | AB76: Clinics/Care Centres
B77: FS184 Matjhabeng | C77: FS FREE STATE | AB77: Fire/Ambulance Stations
B78: FS185 Nala | C78: FS FREE STATE | AB78: Testing Stations
B79: DC18 Lejweleputswa | C79: FS FREE STATE | AB79: Museums
B80: FS191 Setsoto | C80: FS FREE STATE | AB80: Galleries
B81: FS192 Dihlabeng | C81: FS FREE STATE | AB81: Theatres
B82: FS193 Nketoana | C82: FS FREE STATE | AB82: Libraries
B83: FS194 Maluti-a-Phofung | C83: FS FREE STATE | AB83: Cemeteries/Crematoria
B84: FS195 Phumelela | C84: FS FREE STATE | AB84: Police
B85: FS196 Mantsopa | C85: FS FREE STATE | AB85: Purls
B86: DC19 Thabo Mofutsanyana | C86: FS FREE STATE | AB86: Public Open Space
B87: FS201 Moqhaka | C87: FS FREE STATE | AB87: Nature Reserves
B88: FS203 Ngwathe | C88: FS FREE STATE | AB88: Public Ablution Facilities
B89: FS204 Metsimaholo | C89: FS FREE STATE | AB89: Markets
B90: FS205 Mafube | C90: FS FREE STATE | AB90: Stalls
B91: DC20 Fezile Dabi | C91: FS FREE STATE | AB91: Abattoirs
B92: EKU City of Ekurhuleni | C92: GT GAUTENG | AB92: Airports
B93: JHB City Of Johannesburg | C93: GT GAUTENG | AB93: Taxi Ranks/Bus Terminals
B94: TSH City Of Tshwane | C94: GT GAUTENG | AB94: Capital Spares
B95: GT421 Emfuleni | C95: GT GAUTENG | AB95: Indoor Facilities
B96: GT422 Midvaal | C96: GT GAUTENG | AB96: Outdoor Facilities
B97: GT423 Lesedi | C97: GT GAUTENG | AB97: Capital Spares
B98: DC42 Sedibeng | C98: GT GAUTENG | AB98: Monuments
B99: GT481 Mogale City | C99: GT GAUTENG | AB99: Historic Buildings
B100: GT484 Merafong City | C100: GT GAUTENG | AB100: Works of Art
B101: GT485 Rand West City | C101: GT GAUTENG | AB101: Conservation Areas
B102: DC48 West Rand | C102: GT GAUTENG | AB102: Other Heritage
B103: ETH eThekwini | C103: KZN KWAZULU-NATAL | AB103: Improved Property
B104: KZN212 Umdoni | C104: KZN KWAZULU-NATAL | AB104: Unimproved Property
B105: KZN213 Umzumbe | C105: KZN KWAZULU-NATAL | AB105: Municipal Offices
B106: KZN214 uMuziwabantu | C106: KZN KWAZULU-NATAL | AB106: Pay/Enquiry Points
B107: KZN216 Ray Nkonyeni | C107: KZN KWAZULU-NATAL | AB107: Building Plan Offices
B108: DC21 Ugu | C108: KZN KWAZULU-NATAL | AB108: Workshops
B109: KZN221 uMshwathi | C109: KZN KWAZULU-NATAL | AB109: Yards
B110: KZN222 uMngeni | C110: KZN KWAZULU-NATAL | AB110: Stores
B111: KZN223 Mpofana | C111: KZN KWAZULU-NATAL | AB111: Laboratories
B112: KZN224 Impendle | C112: KZN KWAZULU-NATAL | AB112: Training Centres
B113: KZN225 Msunduzi | C113: KZN KWAZULU-NATAL | AB113: Manufacturing Plant
B114: KZN226 Mkhambathini | C114: KZN KWAZULU-NATAL | AB114: Depots
B115: KZN227 Richmond | C115: KZN KWAZULU-NATAL | AB115: Capital Spares
B116: DC22 uMgungundlovu | C116: KZN KWAZULU-NATAL | AB116: Staff Housing
B117: KZN235 Okhahlamba | C117: KZN KWAZULU-NATAL | AB117: Social Housing
B118: KZN237 Inkosi Langalibalele | C118: KZN KWAZULU-NATAL | AB118: Capital Spares
B119: KZN238 Alfred Duma | C119: KZN KWAZULU-NATAL | AB119: Water Rights
B120: DC23 Uthukela | C120: KZN KWAZULU-NATAL | AB120: Effluent Licenses
B121: KZN241 Endumeni | C121: KZN KWAZULU-NATAL | AB121: Solid Waste Licenses
B122: KZN242 Nquthu | C122: KZN KWAZULU-NATAL | AB122: Computer Software and Applications
B123: KZN244 Msinga | C123: KZN KWAZULU-NATAL | AB123: Load Settlement Software Applications
B124: KZN245 Umvoti | C124: KZN KWAZULU-NATAL | AB124: Unspecified
B125: DC24 Umzinyathi | C125: KZN KWAZULU-NATAL
B126: KZN252 Newcastle | C126: KZN KWAZULU-NATAL
B127: KZN253 Emadlangeni | C127: KZN KWAZULU-NATAL
B128: KZN254 Dannhauser | C128: KZN KWAZULU-NATAL
B129: DC25 Amajuba | C129: KZN KWAZULU-NATAL
B130: KZN261 eDumbe | C130: KZN KWAZULU-NATAL
B131: KZN262 uPhongolo | C131: KZN KWAZULU-NATAL
B132: KZN263 Abaqulusi | C132: KZN KWAZULU-NATAL
B133: KZN265 Nongoma | C133: KZN KWAZULU-NATAL
B134: KZN266 Ulundi | C134: KZN KWAZULU-NATAL
B135: DC26 Zululand | C135: KZN KWAZULU-NATAL
B136: KZN271 Umhlabuyalingana | C136: KZN KWAZULU-NATAL
B137: KZN272 Jozini | C137: KZN KWAZULU-NATAL
B138: KZN275 Mtubatuba | C138: KZN KWAZULU-NATAL
B139: KZN276 Hlabisa Big Five | C139: KZN KWAZULU-NATAL
B140: DC27 Umkhanyakude | C140: KZN KWAZULU-NATAL
B141: KZN281 Mfolozi | C141: KZN KWAZULU-NATAL
B142: KZN282 uMhlathuze | C142: KZN KWAZULU-NATAL
B143: KZN284 uMlalazi | C143: KZN KWAZULU-NATAL
B144: KZN285 Mthonjaneni | C144: KZN KWAZULU-NATAL
B145: KZN286 Nkandla | C145: KZN KWAZULU-NATAL
B146: DC28 King Cetshwayo | C146: KZN KWAZULU-NATAL
B147: KZN291 Mandeni | C147: KZN KWAZULU-NATAL
B148: KZN292 KwaDukuza | C148: KZN KWAZULU-NATAL
B149: KZN293 Ndwedwe | C149: KZN KWAZULU-NATAL
B150: KZN294 Maphumulo | C150: KZN KWAZULU-NATAL
B151: DC29 iLembe | C151: KZN KWAZULU-NATAL
B152: KZN433 Greater Kokstad | C152: KZN KWAZULU-NATAL
B153: KZN434 Ubuhlebezwe | C153: KZN KWAZULU-NATAL
B154: KZN435 Umzimkhulu | C154: KZN KWAZULU-NATAL
B155: KZN436 Dr Nkosazana Dlamini Zuma | C155: KZN KWAZULU-NATAL
B156: DC43 Harry Gwala | C156: KZN KWAZULU-NATAL
B157: LIM331 Greater Giyani | C157: LIM LIMPOPO
B158: LIM332 Greater Letaba | C158: LIM LIMPOPO
B159: LIM333 Greater Tzaneen | C159: LIM LIMPOPO
B160: LIM334 Ba-Phalaborwa | C160: LIM LIMPOPO
B161: LIM335 Maruleng | C161: LIM LIMPOPO
B162: DC33 Mopani | C162: LIM LIMPOPO
B163: LIM341 Musina | C163: LIM LIMPOPO
B164: LIM343 Thulamela | C164: LIM LIMPOPO
B165: LIM344 Makhado | C165: LIM LIMPOPO
B166: LIM345 Collins Chabane | C166: LIM LIMPOPO
B167: DC34 Vhembe | C167: LIM LIMPOPO
B168: LIM351 Blouberg | C168: LIM LIMPOPO
B169: LIM353 Molemole | C169: LIM LIMPOPO
B170: LIM354 Polokwane | C170: LIM LIMPOPO
B171: LIM355 Lepelle-Nkumpi | C171: LIM LIMPOPO
B172: DC35 Capricorn | C172: LIM LIMPOPO
B173: LIM361 Thabazimbi | C173: LIM LIMPOPO
B174: LIM362 Lephalale | C174: LIM LIMPOPO
B175: LIM366 Bela Bela | C175: LIM LIMPOPO
B176: LIM367 Mogalakwena | C176: LIM LIMPOPO
B177: LIM368 Modimolle-Mookgopong | C177: LIM LIMPOPO
B178: DC36 Waterberg | C178: LIM LIMPOPO
B179: LIM471 Ephraim Mogale | C179: LIM LIMPOPO
B180: LIM472 Elias Motsoaledi | C180: LIM LIMPOPO
B181: LIM473 Makhuduthamaga | C181: LIM LIMPOPO
B182: LIM476 Tubatse Fetakgomo | C182: LIM LIMPOPO
B183: DC47 Sekhukhune | C183: LIM LIMPOPO
B184: MP301 Albert Luthuli | C184: MP MPUMALANGA
B185: MP302 Msukaligwa | C185: MP MPUMALANGA
B186: MP303 Mkhondo | C186: MP MPUMALANGA
B187: MP304 Pixley Ka Seme (MP) | C187: MP MPUMALANGA
B188: MP305 Lekwa | C188: MP MPUMALANGA
B189: MP306 Dipaleseng | C189: MP MPUMALANGA
B190: MP307 Govan Mbeki | C190: MP MPUMALANGA
B191: DC30 Gert Sibande | C191: MP MPUMALANGA
B192: MP311 Victor Khanye | C192: MP MPUMALANGA
B193: MP312 Emalahleni (Mp) | C193: MP MPUMALANGA
B194: MP313 Steve Tshwete | C194: MP MPUMALANGA
B195: MP314 Emakhazeni | C195: MP MPUMALANGA
B196: MP315 Thembisile Hani | C196: MP MPUMALANGA
B197: MP316 Dr J.S. Moroka | C197: MP MPUMALANGA
B198: DC31 Nkangala | C198: MP MPUMALANGA
B199: MP321 Thaba Chweu | C199: MP MPUMALANGA
B200: MP324 Nkomazi | C200: MP MPUMALANGA
... 87 more rows

Sheet Org structure
A1: Organisational Structure Votes | C1: Organisational Structure Sub-Votes | E1: Display Sub-Votes
A2: =B2&" - "&C2 -> Vote 1 - Executive & Council | B2: Vote 1 | C2: Executive & Council
A3: =B13&" - "& C13 -> Vote 2 - Finance and Administration | B3: 1.1 | C3: Mayor and Council | D3: =CONCATENATE(B3, " - ", C3) -> 1,1 - Mayor and Council | E3: 1,1 - Mayor and Council
A4: =B24&" - "&C24 -> Vote 3 - Internal Audit | B4: 1.2 | C4: Municipal Manager | D4: 1,2 - Municipal Manager | E4: 1,2 - Municipal Manager
A5: =B35&" - "&C35 -> Vote 4 - Community and Public Safety | B5: 1.3 | D5: 1,3 -
A6: =B46&" - "&C46 -> Vote 5 - Sports and Recreation | B6: 1.4 | D6: 1,4 -
A7: =B57&" - "&C57 -> Vote 6 - Housing | B7: 1.5 | D7: 1,5 -
A8: =B68&" - "&C68 -> Vote 7 - Planning and development | B8: 1.6 | D8: 1,6 -
A9: =B79&" - "&C79 -> Vote 8 - Road Transport | B9: 1.7 | D9: 1,7 -
A10: =B90&" - "&C90 -> Vote 9 - Energy Sources | B10: 1.8 | D10: 1,8 -
A11: =B101&" - "&C101 -> Vote 10 - Waste Water Management | B11: 1.9 | D11: 1,9 -
A12: =B112&" - "&C112 -> Vote 11 - Waste Management | B12: 1.10 | D12: 1.10 -
A13: =B123&" - "&C123 -> Vote 12 - [NAME OF VOTE 12] | B13: Vote 2 | C13: Finance and Administration
A14: =B134&" - "&C134 -> Vote 13 - [NAME OF VOTE 13] | B14: 2.1 | C14: Administrative and Corporate Support | D14: =CONCATENATE(B14, " - ", C14) -> 2,1 - Administrative and Corporate Support | E14: 2,1 - Administrative and Corporate Support
A15: =B145&" - "&C145 -> Vote 14 - [NAME OF VOTE 14] | B15: 2.2 | C15: Asset Management | D15: 2,2 - Asset Management | E15: 2,2 - Asset Management
A16: =B156&" - "&C156 -> Vote 15 - [NAME OF VOTE 15] | B16: 2.3 | C16: Budget and Treasury Office | D16: 2,3 - Budget and Treasury Office | E16: 2,3 - Budget and Treasury Office
B17: 2.4 | C17: Human Resource | D17: 2,4 - Human Resource | E17: 2,4 - Human Resource
B18: 2.5 | C18: Information Technology | D18: 2,5 - Information Technology | E18: 2,5 - Information Technology
B19: 2.6 | C19: Legal Services | D19: 2,6 - Legal Services | E19: 2,6 - Legal Services
B20: 2.7 | C20: Customer Relation and Coordination | D20: 2,7 - Customer Relation and Coordination | E20: 2,7 - Customer Relation and Coordination
B21: 2.8 | C21: Property Services | D21: 2,8 - Property Services | E21: 2,8 - Property Services
B22: 2.9 | C22: Risk Management | D22: 2,9 - Risk Management | E22: 2,9 - Risk Management
B23: 2.10 | C23: Supply Chain Management | D23: 2.10 - Supply Chain Management | E23: 2.10 - Supply Chain Management
B24: Vote 3 | C24: Internal Audit
B25: 3.1 | C25: Governance Function | D25: =CONCATENATE(B25, " - ", C25) -> 3,1 - Governance Function | E25: 3,1 - Governance Function
B26: 3.2 | D26: 3,2 -
B27: 3.3 | D27: 3,3 -
B28: 3.4 | D28: 3,4 -
B29: 3.5 | D29: 3,5 -
B30: 3.6 | D30: 3,6 -
B31: 3.7 | D31: 3,7 -
B32: 3.8 | D32: 3,8 -
B33: 3.9 | D33: 3,9 -
B34: 3.10 | D34: 3.10 -
B35: Vote 4 | C35: Community and Public Safety
B36: 4.1 | C36: Cemetries and crematoriums | D36: =CONCATENATE(B36, " - ", C36) -> 4,1 - Cemetries and crematoriums | E36: 4,1 - Cemetries and crematoriums
B37: 4.2 | C37: Community halls and Facilities | D37: 4,2 - Community halls and Facilities | E37: 4,2 - Community halls and Facilities
B38: 4.3 | C38: Disaster Management | D38: 4,3 - Disaster Management | E38: 4,3 - Disaster Management
B39: 4.4 | C39: Libraries and Archives | D39: 4,4 - Libraries and Archives | E39: 4,4 - Libraries and Archives
B40: 4.5 | D40: 4,5 -
B41: 4.6 | D41: 4,6 -
B42: 4.7 | D42: 4,7 -
B43: 4.8 | D43: 4,8 -
B44: 4.9 | D44: 4,9 -
B45: 4.10 | D45: 4.10 -
B46: Vote 5 | C46: Sports and Recreation
B47: 5.1 | C47: Community parks | D47: =CONCATENATE(B47, " - ", C47) -> 5,1 - Community parks | E47: 5,1 - Community parks
B48: 5.2 | D48: 5,2 -
B49: 5.3 | D49: 5,3 -
B50: 5.4 | D50: 5,4 -
B51: 5.5 | D51: 5,5 -
B52: 5.6 | D52: 5,6 -
B53: 5.7 | D53: 5,7 -
B54: 5.8 | D54: 5,8 -
B55: 5.9 | D55: 5,9 -
B56: 5.10 | D56: 5.10 -
B57: Vote 6 | C57: Housing
B58: 6.1 | C58: Housing | D58: =CONCATENATE(B58, " - ", C58) -> 6,1 - Housing | E58: 6,1 - Housing
B59: 6.2 | D59: 6,2 -
B60: 6.3 | D60: 6,3 -
B61: 6.4 | D61: 6,4 -
B62: 6.5 | D62: 6,5 -
B63: 6.6 | D63: 6,6 -
B64: 6.7 | D64: 6,7 -
B65: 6.8 | D65: 6,8 -
B66: 6.9 | D66: 6,9 -
B67: 6.10 | D67: 6.10 -
B68: Vote 7 | C68: Planning and development
B69: 7.1 | C69: Corporate Wide Strategic Planning (IDP & LED) | D69: =CONCATENATE(B69, " - ", C69) -> 7,1 - Corporate Wide Strategic Planning (IDP & LED) | E69: 7,1 - Corporate Wide Strategic Planning (IDP & LED)
B70: 7.2 | C70: Town Planning and Building Regulations | D70: 7,2 - Town Planning and Building Regulations | E70: 7,2 - Town Planning and Building Regulations
B71: 7.3 | C71: Project Management Unit | D71: 7,3 - Project Management Unit | E71: 7,3 - Project Management Unit
B72: 7.4 | D72: 7,4 -
B73: 7.5 | D73: 7,5 -
B74: 7.6 | D74: 7,6 -
B75: 7.7 | D75: 7,7 -
B76: 7.8 | D76: 7,8 -
B77: 7.9 | D77: 7,9 -
B78: 7.10 | D78: 7.10 -
B79: Vote 8 | C79: Road Transport
B80: 8.1 | C80: Road and Traffic Regulations | D80: =CONCATENATE(B80, " - ", C80) -> 8,1 - Road and Traffic Regulations | E80: 8,1 - Road and Traffic Regulations
B81: 8.2 | C81: Roads | D81: 8,2 - Roads | E81: 8,2 - Roads
B82: 8.3 | C82: Taxi Ranks | D82: 8,3 - Taxi Ranks | E82: 8,3 - Taxi Ranks
B83: 8.4 | D83: 8,4 -
B84: 8.5 | D84: 8,5 -
B85: 8.6 | D85: 8,6 -
B86: 8.7 | D86: 8,7 -
B87: 8.8 | D87: 8,8 -
B88: 8.9 | D88: 8,9 -
B89: 8.10 | D89: 8.10 -
B90: Vote 9 | C90: Energy Sources
B91: 9.1 | C91: Electricity | D91: =CONCATENATE(B91, " - ", C91) -> 9,1 - Electricity | E91: 9,1 - Electricity
B92: 9.2 | C92: Street Lighting | D92: 9,2 - Street Lighting | E92: 9,2 - Street Lighting
B93: 9.3 | D93: 9,3 -
B94: 9.4 | D94: 9,4 -
B95: 9.5 | D95: 9,5 -
B96: 9.6 | D96: 9,6 -
B97: 9.7 | D97: 9,7 -
B98: 9.8 | D98: 9,8 -
B99: 9.9 | D99: 9,9 -
B100: 9.10 | D100: 9.10 -
B101: Vote 10 | C101: Waste Water Management
B102: 10.1 | C102: Public Toilets | D102: =CONCATENATE(B102, " - ", C102) -> 10,1 - Public Toilets | E102: 10,1 - Public Toilets
B103: 10.2 | D103: 10,2 -
B104: 10.3 | D104: 10,3 -
B105: 10.4 | D105: 10,4 -
B106: 10.5 | D106: 10,5 -
B107: 10.6 | D107: 10,6 -
B108: 10.7 | D108: 10,7 -
B109: 10.8 | D109: 10,8 -
B110: 10.9 | D110: 10,9 -
B111: 10.10 | D111: 10.10 -
B112: Vote 11 | C112: Waste Management
B113: 11.1 | C113: Solid Waste Removal | D113: =CONCATENATE(B113, " - ", C113) -> 11,1 - Solid Waste Removal | E113: 11,1 - Solid Waste Removal
B114: 11.2 | D114: 11,2 -
B115: 11.3 | D115: 11,3 -
B116: 11.4 | D116: 11,4 -
B117: 11.5 | D117: 11,5 -
B118: 11.6 | D118: 11,6 -
B119: 11.7 | D119: 11,7 -
B120: 11.8 | D120: 11,8 -
B121: 11.9 | C121: [Name of sub-vote] | D121: 11,9 - [Name of sub-vote]
B122: 11.10 | C122: [Name of sub-vote] | D122: 11.10 - [Name of sub-vote]
B123: Vote 12 | C123: [NAME OF VOTE 12]
B124: 12.1 | C124: [Name of sub-vote] | D124: =CONCATENATE(B124, " - ", C124) -> 12,1 - [Name of sub-vote] | E124: 12.1 - [Name of sub-vote]
B125: 12.2 | C125: [Name of sub-vote] | D125: 12,2 - [Name of sub-vote]
B126: 12.3 | C126: [Name of sub-vote] | D126: 12,3 - [Name of sub-vote]
B127: 12.4 | C127: [Name of sub-vote] | D127: 12,4 - [Name of sub-vote]
B128: 12.5 | C128: [Name of sub-vote] | D128: 12,5 - [Name of sub-vote]
B129: 12.6 | C129: [Name of sub-vote] | D129: 12,6 - [Name of sub-vote]
B130: 12.7 | C130: [Name of sub-vote] | D130: 12,7 - [Name of sub-vote]
B131: 12.8 | C131: [Name of sub-vote] | D131: 12,8 - [Name of sub-vote]
B132: 12.9 | C132: [Name of sub-vote] | D132: 12,9 - [Name of sub-vote]
B133: 12.10 | C133: [Name of sub-vote] | D133: 12.10 - [Name of sub-vote]
B134: Vote 13 | C134: [NAME OF VOTE 13]
B135: 13.1 | C135: [Name of sub-vote] | D135: =CONCATENATE(B135, " - ", C135) -> 13,1 - [Name of sub-vote] | E135: 13.1 - [Name of sub-vote]
B136: 13.2 | C136: [Name of sub-vote] | D136: 13,2 - [Name of sub-vote]
B137: 13.3 | C137: [Name of sub-vote] | D137: 13,3 - [Name of sub-vote]
B138: 13.4 | C138: [Name of sub-vote] | D138: 13,4 - [Name of sub-vote]
B139: 13.5 | C139: [Name of sub-vote] | D139: 13,5 - [Name of sub-vote]
B140: 13.6 | C140: [Name of sub-vote] | D140: 13,6 - [Name of sub-vote]
B141: 13.7 | C141: [Name of sub-vote] | D141: 13,7 - [Name of sub-vote]
B142: 13.8 | C142: [Name of sub-vote] | D142: 13,8 - [Name of sub-vote]
B143: 13.9 | C143: [Name of sub-vote] | D143: 13,9 - [Name of sub-vote]
B144: 13.10 | C144: [Name of sub-vote] | D144: 13.10 - [Name of sub-vote]
B145: Vote 14 | C145: [NAME OF VOTE 14]
B146: 14.1 | C146: [Name of sub-vote] | D146: =CONCATENATE(B146, " - ", C146) -> 14,1 - [Name of sub-vote] | E146: 14.1 - [Name of sub-vote]
B147: 14.2 | C147: [Name of sub-vote] | D147: 14,2 - [Name of sub-vote]
B148: 14.3 | C148: [Name of sub-vote] | D148: 14,3 - [Name of sub-vote]
B149: 14.4 | C149: [Name of sub-vote] | D149: 14,4 - [Name of sub-vote]
B150: 14.5 | C150: [Name of sub-vote] | D150: 14,5 - [Name of sub-vote]
B151: 14.6 | C151: [Name of sub-vote] | D151: 14,6 - [Name of sub-vote]
B152: 14.7 | C152: [Name of sub-vote] | D152: 14,7 - [Name of sub-vote]
B153: 14.8 | C153: [Name of sub-vote] | D153: 14,8 - [Name of sub-vote]
B154: 14.9 | C154: [Name of sub-vote] | D154: 14,9 - [Name of sub-vote]
B155: 14.10 | C155: [Name of sub-vote] | D155: 14.10 - [Name of sub-vote]
B156: Vote 15 | C156: [NAME OF VOTE 15]
B157: 15.1 | C157: [Name of sub-vote] | D157: =CONCATENATE(B157, " - ", C157) -> 15,1 - [Name of sub-vote] | E157: 15.1 - [Name of sub-vote]
B158: 15.2 | C158: [Name of sub-vote] | D158: 15,2 - [Name of sub-vote]
B159: 15.3 | C159: [Name of sub-vote] | D159: 15,3 - [Name of sub-vote]
B160: 15.4 | C160: [Name of sub-vote] | D160: 15,4 - [Name of sub-vote]
B161: 15.5 | C161: [Name of sub-vote] | D161: 15,5 - [Name of sub-vote]
B162: 15.6 | C162: [Name of sub-vote] | D162: 15,6 - [Name of sub-vote]
B163: 15.7 | C163: [Name of sub-vote] | D163: 15,7 - [Name of sub-vote]
B164: 15.8 | C164: [Name of sub-vote] | D164: 15,8 - [Name of sub-vote]
B165: 15.9 | C165: [Name of sub-vote] | D165: 15,9 - [Name of sub-vote]
B166: 15.10 | C166: [Name of sub-vote] | D166: 15.10 - [Name of sub-vote]

Sheet Contacts
A1: =muni&" - "&" Contact Information" -> LIM332 Greater Letaba - Contact Information
A3: A. GENERAL INFORMATION
A4: Municipality | B4: =muni -> LIM332 Greater Letaba | C4: =IF(B4="Choose name from List","Set name on 'Instructions' sheet", "") -> 
A6: Grade | B6: 3 | C6: 1 Grade in terms of the Remuneration of Public Office Bearers Act.
A8: Province | B8: =IF(B4>" ",VLOOKUP(B4,'Lookup and lists'!B29:C307,2, FALSE)," ") -> LIM LIMPOPO
A10: Web Address | B10: www.greaterletaba.gov.za
A12: e-mail Address
A14: B. CONTACT INFORMATION
A15: Postal address:
A16: P.O. Box | B16: 36
A17: City / Town | B17: Modjadjiskloof
A18: Postal Code | B18: 835
A20: Street address
A21: Building | B21: Civic Centre
A22: Street No. & Name | B22: 44 Botha Street
A23: City / Town | B23: Modjadjiskloof
A24: Postal Code | B24: 835
A26: General Contacts
A27: Telephone number | B27: 015 309 9246/7/8
A28: Fax number | B28: 015 309 9419
A30: C. POLITICAL LEADERSHIP
A31: Speaker: | C31: Secretary/PA to the Speaker:
A32: ID Number | B32: 6704290418087 | C32: ID Number | D32: "7305100539085
A33: Title | B33: Ms | C33: Title | D33: Ms
A34: Name | B34: Makhananisa M.D | C34: Name | D34: Mutshendze TM
A35: Telephone number | B35: 015 309 9246 | C35: Telephone number | D35: 015 309 9246
A36: Cell number | B36: 082 418 8635 | C36: Cell number | D36: 073 227 7640
A37: Fax number | B37: 015 309 9419 | C37: Fax number | D37: 015 309 9419
A38: E-mail address | B38: speaker@glm.gov.za | C38: E-mail address | D38: mollym@glm.gov.za
A40: Mayor/Executive Mayor: | C40: Secretary/PA to the Mayor/Executive Mayor:
A41: ID Number | B41: "6302025730080 | C41: ID Number | D41: "7905070311082
A42: Title | B42: Mr | C42: Title | D42: Ms
A43: Name | B43: Matlou M.P | C43: Name | D43: Maapolela D.W
A44: Telephone number | B44: 015 309 9246 | C44: Telephone number | D44: 015 309 9246
A45: Cell number | B45: 079 153 5627 | C45: Cell number | D45: 083 977 3072
A46: Fax number | B46: 015 309 9419 | C46: Fax number | D46: 015 309 9419
A47: E-mail address | B47: mayor@glm.gov.za | C47: E-mail address | D47: nkelem@glm.gov.za
A49: Deputy Mayor/Executive Mayor: | C49: Secretary/PA to the Deputy Mayor/Executive Mayor:
A50: ID Number | C50: ID Number
A51: Title | C51: Title
A52: Name | C52: Name
A53: Telephone number | C53: Telephone number
A54: Cell number | C54: Cell number
A55: Fax number | C55: Fax number
A56: E-mail address | C56: E-mail address
A58: D. MANAGEMENT LEADERSHIP
A59: Municipal Manager: | C59: Secretary/PA to the Municipal Manager:
A60: ID Number | B60: '7209095504080 | C60: ID Number | D60: 7212280485081
A61: Title | B61: Mr | C61: Title | D61: Ms
A62: Name | B62: Dr K.I Sirovha | C62: Name | D62: M.F Masipa
A63: Telephone number | B63: 015 309 9451 | C63: Telephone number | D63: 0153099246
A64: Cell number | B64: 0721239734 | C64: Cell number | D64: 0828440350
A65: Fax number | B65: 015 309 9419 | C65: Fax number | D65: 0153099419
A66: E-mail address | B66: InnocentS@glm.gov.za | C66: E-mail address | D66: secretarymm@glm.gov.za
A68: Chief Financial Officer | C68: Secretary/PA to the Chief Financial Officer
A69: ID Number | B69: "7211080336080 | C69: ID Number | D69: 8601170703083
A70: Title | B70: Mrs | C70: Title | D70: Ms
A71: Name | B71: Mankgabe M.F | C71: Name | D71: Mmaseleka MP
A72: Telephone number | B72: 015 309 9246 | C72: Telephone number | D72: 015 309 9246
A73: Cell number | B73: 076 715 9510 | C73: Cell number | D73: 078 190 6886
A74: Fax number | B74: 015 309 9419 | C74: Fax number | D74: 015 309 9419
A75: E-mail address | B75: florahm@glm.gov.za | C75: E-mail address | D75: matsiem@glm.gov.za
A77: Official responsible for submitting financial information | C77: Official responsible for submitting financial information
A78: ID Number | B78: "8505230737082 | C78: ID Number | D78: "9006111065080
A79: Title | B79: Ms | C79: Title | D79: Ms
A80: Name | B80: Nomsa Makhubela | C80: Name | D80: Tracy Baloyi
A81: Telephone number | B81: 015 309 9246 | C81: Telephone number | D81: 015 309 9246
A82: Cell number | B82: 064 750 1437 | C82: Cell number | D82: 083 271 0762
A83: Fax number | B83: 015 309 9419 | C83: Fax number | D83: 015 309 9419
A84: E-mail address | B84: nomsam@glm.gov.za | C84: E-mail address | D84: Tracyb@glm.gov.za
A85: Official responsible for submitting financial information | C85: Official responsible for submitting financial information
A86: ID Number | C86: ID Number
A87: Title | B87: Mr | C87: Title
A88: Name | B88: Mamatlepa LM | C88: Name
A89: Telephone number | B89: 015 309 9246 | C89: Telephone number
A90: Cell number | B90: 076 167 8941 | C90: Cell number
A91: Fax number | B91: 015 309 9419 | C91: Fax number
A92: E-mail address | B92: lesleym@glm.gov.za | C92: E-mail address
A93: Official responsible for submitting financial information | C93: Official responsible for submitting financial information
A94: ID Number | C94: ID Number
A95: Title | C95: Title
A96: Name | C96: Name
A97: Telephone number | C97: Telephone number
A98: Cell number | C98: Cell number
A99: Fax number | C99: Fax number
A100: E-mail address | C100: E-mail address
A101: Official responsible for submitting financial information | C101: Official responsible for submitting financial information
A102: ID Number | C102: ID Number
A103: Title | C103: Title
A104: Name | C104: Name
A105: Telephone number | C105: Telephone number
A106: Cell number | C106: Cell number
A107: Fax number | C107: Fax number
A108: E-mail address | C108: E-mail address
A109: Official responsible for submitting financial information | C109: Official responsible for submitting financial information
A110: ID Number | C110: ID Number
A111: Title | C111: Title
A112: Name | C112: Name
A113: Telephone number | C113: Telephone number
A114: Cell number | C114: Cell number
A115: Fax number | C115: Fax number
A116: E-mail address | C116: E-mail address
A117: Official responsible for submitting financial information | C117: Official responsible for submitting financial information
A118: ID Number | C118: ID Number
A119: Title | C119: Title
A120: Name | C120: Name
A121: Telephone number | C121: Telephone number
A122: Cell number | C122: Cell number
A123: Fax number | C123: Fax number
A124: E-mail address | C124: E-mail address
A125: Official responsible for submitting financial information | C125: Official responsible for submitting financial information
A126: ID Number | C126: ID Number
A127: Title | C127: Title
A128: Name | C128: Name
A129: Telephone number | C129: Telephone number
A130: Cell number | C130: Cell number
A131: Fax number | C131: Fax number
A132: E-mail address | C132: E-mail address
A133: Official responsible for submitting financial information
A134: ID Number
A135: Title
A136: Name
A137: Telephone number
A138: Cell number
A139: Fax number
A140: E-mail address

Sheet A1-Sum
A1: =muni&" - "&Approve1 -> LIM332 Greater Letaba - Table A1 Budget Summary
A2: =desc -> Description | B2: =head1b -> 2015/16 | C2: =head1A -> 2016/17 | D2: =Head1 -> 2017/18 | E2: =Head2 -> Current Year 2018/19 | I2: =Head3 -> 2019/20 Medium Term Revenue & Expenditure Framework
A3: R thousands | B3: =Head5 -> Audited Outcome | C3: =Head5 -> Audited Outcome | D3: =Head5 -> Audited Outcome | E3: =Head6 -> Original Budget | F3: =Head7 -> Adjusted Budget | G3: =Head8 -> Full Year Forecast | H3: =Head5b -> Pre-audit outcome | I3: =Head9 -> Budget Year 2019/20 | J3: =Head10 -> Budget Year +1 2020/21 | K3: =Head11 -> Budget Year +2 2021/22
A4: Financial Performance
A5: Property rates | B5: ='A4-FinPerf RE'!C5 -> 8977594 | C5: ='A4-FinPerf RE'!D5 -> 11845856 | D5: ='A4-FinPerf RE'!E5 -> 8599768 | E5: ='A4-FinPerf RE'!F5 -> 12255327.57 | F5: ='A4-FinPerf RE'!G5 -> 16863286.57 | G5: ='A4-FinPerf RE'!H5 -> 16863286.57 | H5: ='A4-FinPerf RE'!I5 -> 16863286.57 | I5: ='A4-FinPerf RE'!J5 -> 17740178 | J5: ='A4-FinPerf RE'!K5 -> 18698147 | K5: ='A4-FinPerf RE'!L5 -> 19707847
A6: Service charges | B6: =SUM('A4-FinPerf RE'!C6:C9) -> 12929540 | C6: =SUM('A4-FinPerf RE'!D6:D9) -> 13836020 | D6: =SUM('A4-FinPerf RE'!E6:E9) -> 13861049 | E6: =SUM('A4-FinPerf RE'!F6:F9) -> 18910040.03 | F6: =SUM('A4-FinPerf RE'!G6:G9) -> 32718040.03 | G6: =SUM('A4-FinPerf RE'!H6:H9) -> 32718040.03 | H6: =SUM('A4-FinPerf RE'!I6:I9) -> 31671899.03 | I6: =SUM('A4-FinPerf RE'!J6:J9) -> 34410962 | J6: =SUM('A4-FinPerf RE'!K6:K9) -> 36269153 | K6: =SUM('A4-FinPerf RE'!L6:L9) -> 38227689
A7: Investment revenue | B7: ='A4-FinPerf RE'!C12 -> 3925076 | C7: ='A4-FinPerf RE'!D12 -> 5885924 | D7: ='A4-FinPerf RE'!E12 -> 4605544 | E7: ='A4-FinPerf RE'!F12 -> 4519515.44 | F7: ='A4-FinPerf RE'!G12 -> 4519515.44 | G7: ='A4-FinPerf RE'!H12 -> 4519515.44 | H7: ='A4-FinPerf RE'!I12 -> 4519515.44 | I7: ='A4-FinPerf RE'!J12 -> 4754530 | J7: ='A4-FinPerf RE'!K12 -> 5011275 | K7: ='A4-FinPerf RE'!L12 -> 5281884
A8: Transfers recognised - operational | B8: ='A4-FinPerf RE'!C18 -> 212960000 | C8: ='A4-FinPerf RE'!D18 -> 209514001 | D8: ='A4-FinPerf RE'!E18 -> 227036999 | E8: ='A4-FinPerf RE'!F18 -> 248358000 | F8: ='A4-FinPerf RE'!G18 -> 248358000 | G8: ='A4-FinPerf RE'!H18 -> 248358000 | H8: ='A4-FinPerf RE'!I18 -> 248358000 | I8: ='A4-FinPerf RE'!J18 -> 281624000 | J8: ='A4-FinPerf RE'!K18 -> 300105000 | K8: ='A4-FinPerf RE'!L18 -> 321890000
A9: Other own revenue | B9: ='A4-FinPerf RE'!C11+'A4-FinPerf RE'!C13+'A4-FinPerf RE'!C14+'A4-FinPerf RE'!C15+'A4-FinPerf RE'!C16+'A4-FinPerf RE'!C17+'A4-FinPerf RE'!C19+'A4-FinPerf RE'!C20 -> 17771115 | C9: ='A4-FinPerf RE'!D11+'A4-FinPerf RE'!D13+'A4-FinPerf RE'!D14+'A4-FinPerf RE'!D15+'A4-FinPerf RE'!D16+'A4-FinPerf RE'!D17+'A4-FinPerf RE'!D19+'A4-FinPerf RE'!D20 -> 18155055 | D9: ='A4-FinPerf RE'!E11+'A4-FinPerf RE'!E13+'A4-FinPerf RE'!E14+'A4-FinPerf RE'!E15+'A4-FinPerf RE'!E16+'A4-FinPerf RE'!E17+'A4-FinPerf RE'!E19+'A4-FinPerf RE'!E20 -> 25451461 | E9: ='A4-FinPerf RE'!F11+'A4-FinPerf RE'!F13+'A4-FinPerf RE'!F14+'A4-FinPerf RE'!F15+'A4-FinPerf RE'!F16+'A4-FinPerf RE'!F17+'A4-FinPerf RE'!F19+'A4-FinPerf RE'!F20 -> 56221797.19 | F9: ='A4-FinPerf RE'!G11+'A4-FinPerf RE'!G13+'A4-FinPerf RE'!G14+'A4-FinPerf RE'!G15+'A4-FinPerf RE'!G16+'A4-FinPerf RE'!G17+'A4-FinPerf RE'!G19+'A4-FinPerf RE'!G20 -> 84223039.19 | G9: ='A4-FinPerf RE'!H11+'A4-FinPerf RE'!H13+'A4-FinPerf RE'!H14+'A4-FinPerf RE'!H15+'A4-FinPerf RE'!H16+'A4-FinPerf RE'!H17+'A4-FinPerf RE'!H19+'A4-FinPerf RE'!H20 -> 84223039.19 | H9: ='A4-FinPerf RE'!I11+'A4-FinPerf RE'!I13+'A4-FinPerf RE'!I14+'A4-FinPerf RE'!I15+'A4-FinPerf RE'!I16+'A4-FinPerf RE'!I17+'A4-FinPerf RE'!I19+'A4-FinPerf RE'!I20 -> 84223039.19 | I9: ='A4-FinPerf RE'!J11+'A4-FinPerf RE'!J13+'A4-FinPerf RE'!J14+'A4-FinPerf RE'!J15+'A4-FinPerf RE'!J16+'A4-FinPerf RE'!J17+'A4-FinPerf RE'!J19+'A4-FinPerf RE'!J20 -> 64004773 | J9: ='A4-FinPerf RE'!K11+'A4-FinPerf RE'!K13+'A4-FinPerf RE'!K14+'A4-FinPerf RE'!K15+'A4-FinPerf RE'!K16+'A4-FinPerf RE'!K17+'A4-FinPerf RE'!K19+'A4-FinPerf RE'!K20 -> 67461033 | K9: ='A4-FinPerf RE'!L11+'A4-FinPerf RE'!L13+'A4-FinPerf RE'!L14+'A4-FinPerf RE'!L15+'A4-FinPerf RE'!L16+'A4-FinPerf RE'!L17+'A4-FinPerf RE'!L19+'A4-FinPerf RE'!L20 -> 71103926
A10: ='A4-FinPerf RE'!A21 -> Total Revenue (excluding capital transfers and contributions) | B10: =SUM(B5:B9) -> 256563325 | C10: 259236856 | D10: 279554821 | E10: 340264680.2 | F10: 386681881.2 | G10: 386681881.2 | H10: 385635740.2 | I10: 402534443 | J10: 427544608 | K10: 456211346
A11: Employee costs | B11: ='A4-FinPerf RE'!C24 -> 64406539 | C11: ='A4-FinPerf RE'!D24 -> 68377015 | D11: ='A4-FinPerf RE'!E24 -> 74714220 | E11: ='A4-FinPerf RE'!F24 -> 78303797.25 | F11: ='A4-FinPerf RE'!G24 -> 95266292.25 | G11: ='A4-FinPerf RE'!H24 -> 95266292.25 | H11: ='A4-FinPerf RE'!I24 -> 95266292.25 | I11: ='A4-FinPerf RE'!J24 -> 107636135 | J11: ='A4-FinPerf RE'!K24 -> 115063029 | K11: ='A4-FinPerf RE'!L24 -> 123002381
A12: Remuneration of councillors | B12: ='A4-FinPerf RE'!C25 -> 17728499 | C12: ='A4-FinPerf RE'!D25 -> 18896474 | D12: ='A4-FinPerf RE'!E25 -> 20873647 | E12: ='A4-FinPerf RE'!F25 -> 22467855 | F12: ='A4-FinPerf RE'!G25 -> 22882032 | G12: ='A4-FinPerf RE'!H25 -> 22882032 | H12: ='A4-FinPerf RE'!I25 -> 22882032 | I12: ='A4-FinPerf RE'!J25 -> 24071901 | J12: ='A4-FinPerf RE'!K25 -> 25371784 | K12: ='A4-FinPerf RE'!L25 -> 26741860
A13: Depreciation & asset impairment | B13: ='A4-FinPerf RE'!C27 -> 21569539 | C13: ='A4-FinPerf RE'!D27 -> 31106428 | D13: ='A4-FinPerf RE'!E27 -> 28680829 | E13: ='A4-FinPerf RE'!F27 -> 5043379.81 | F13: ='A4-FinPerf RE'!G27 -> 5942210.81 | G13: ='A4-FinPerf RE'!H27 -> 5942210.81 | H13: ='A4-FinPerf RE'!I27 -> 5942210.81 | I13: ='A4-FinPerf RE'!J27 -> 6251207 | J13: ='A4-FinPerf RE'!K27 -> 6588772 | K13: ='A4-FinPerf RE'!L27 -> 6944565
A14: Finance charges | B14: ='A4-FinPerf RE'!C28 -> 0 | C14: ='A4-FinPerf RE'!D28 -> 0 | D14: ='A4-FinPerf RE'!E28 -> 0 | E14: ='A4-FinPerf RE'!F28 -> 0 | F14: ='A4-FinPerf RE'!G28 -> 0 | G14: ='A4-FinPerf RE'!H28 -> 0 | H14: ='A4-FinPerf RE'!I28 -> 0 | I14: ='A4-FinPerf RE'!J28 -> 0 | J14: ='A4-FinPerf RE'!K28 -> 0 | K14: ='A4-FinPerf RE'!L28 -> 0
A15: Materials and bulk purchases | B15: ='A4-FinPerf RE'!C29+'A4-FinPerf RE'!C30 -> 8728768 | C15: ='A4-FinPerf RE'!D29+'A4-FinPerf RE'!D30 -> 13029942 | D15: ='A4-FinPerf RE'!E29+'A4-FinPerf RE'!E30 -> 14679655 | E15: ='A4-FinPerf RE'!F29+'A4-FinPerf RE'!F30 -> 17096559 | F15: ='A4-FinPerf RE'!G29+'A4-FinPerf RE'!G30 -> 17096559 | G15: ='A4-FinPerf RE'!H29+'A4-FinPerf RE'!H30 -> 17096559 | H15: ='A4-FinPerf RE'!I29+'A4-FinPerf RE'!I30 -> 17096559 | I15: ='A4-FinPerf RE'!J29+'A4-FinPerf RE'!J30 -> 17985580 | J15: ='A4-FinPerf RE'!K29+'A4-FinPerf RE'!K30 -> 18956801 | K15: ='A4-FinPerf RE'!L29+'A4-FinPerf RE'!L30 -> 19980468
A16: Transfers and grants | B16: ='A4-FinPerf RE'!C32 -> 0 | C16: ='A4-FinPerf RE'!D32 -> 0 | D16: ='A4-FinPerf RE'!E32 -> 0 | E16: ='A4-FinPerf RE'!F32 -> 0 | F16: ='A4-FinPerf RE'!G32 -> 0 | G16: ='A4-FinPerf RE'!H32 -> 0 | H16: ='A4-FinPerf RE'!I32 -> 0 | I16: ='A4-FinPerf RE'!J32 -> 0 | J16: ='A4-FinPerf RE'!K32 -> 0 | K16: ='A4-FinPerf RE'!L32 -> 0
A17: Other expenditure | B17: ='A4-FinPerf RE'!C26+'A4-FinPerf RE'!C31+'A4-FinPerf RE'!C33+'A4-FinPerf RE'!C34 -> 77085262 | C17: ='A4-FinPerf RE'!D26+'A4-FinPerf RE'!D31+'A4-FinPerf RE'!D33+'A4-FinPerf RE'!D34 -> 99080137 | D17: ='A4-FinPerf RE'!E26+'A4-FinPerf RE'!E31+'A4-FinPerf RE'!E33+'A4-FinPerf RE'!E34 -> 108717042 | E17: ='A4-FinPerf RE'!F26+'A4-FinPerf RE'!F31+'A4-FinPerf RE'!F33+'A4-FinPerf RE'!F34 -> 100518770.3 | F17: ='A4-FinPerf RE'!G26+'A4-FinPerf RE'!G31+'A4-FinPerf RE'!G33+'A4-FinPerf RE'!G34 -> 134276372 | G17: ='A4-FinPerf RE'!H26+'A4-FinPerf RE'!H31+'A4-FinPerf RE'!H33+'A4-FinPerf RE'!H34 -> 134276372 | H17: ='A4-FinPerf RE'!I26+'A4-FinPerf RE'!I31+'A4-FinPerf RE'!I33+'A4-FinPerf RE'!I34 -> 134276372 | I17: ='A4-FinPerf RE'!J26+'A4-FinPerf RE'!J31+'A4-FinPerf RE'!J33+'A4-FinPerf RE'!J34 -> 152643399 | J17: ='A4-FinPerf RE'!K26+'A4-FinPerf RE'!K31+'A4-FinPerf RE'!K33+'A4-FinPerf RE'!K34 -> 143524930 | K17: ='A4-FinPerf RE'!L26+'A4-FinPerf RE'!L31+'A4-FinPerf RE'!L33+'A4-FinPerf RE'!L34 -> 151341856
A18: ='A4-FinPerf RE'!A35 -> Total Expenditure | B18: =SUM(B11:B17) -> 189518607 | C18: =SUM(C11:C17) -> 230489996 | D18: 247665393 | E18: 223430361.4 | F18: 275463466.1 | G18: 275463466.1 | H18: 275463466.1 | I18: 308588222 | J18: 309505316 | K18: 328011130
A19: ='A4-FinPerf RE'!A37 -> Surplus/(Deficit) | B19: =B10-B18 -> 67044718 | C19: 28746860 | D19: 31889428 | E19: 116834318.9 | F19: 111218415.2 | G19: 111218415.2 | H19: 110172274.2 | I19: 93946221 | J19: 118039292 | K19: 128200216
A20: ='A4-FinPerf RE'!A38 -> Transfers and subsidies - capital (monetary allocations) (National / Provincial and District) | B20: ='A4-FinPerf RE'!C38 -> 89159710 | C20: ='A4-FinPerf RE'!D38 -> 61332323 | D20: ='A4-FinPerf RE'!E38 -> 64658124 | E20: ='A4-FinPerf RE'!F38 -> 62443000 | F20: ='A4-FinPerf RE'!G38 -> 82443000 | G20: ='A4-FinPerf RE'!H38 -> 82443000 | H20: ='A4-FinPerf RE'!I38 -> 82443000 | I20: ='A4-FinPerf RE'!J38 -> 57608000 | J20: ='A4-FinPerf RE'!K38 -> 67783000 | K20: ='A4-FinPerf RE'!L38 -> 72351000
A21: Contributions recognised - capital & contributed assets | B21: ='A4-FinPerf RE'!C39+'A4-FinPerf RE'!C40 -> 0 | C21: ='A4-FinPerf RE'!D39+'A4-FinPerf RE'!D40 -> 0 | D21: ='A4-FinPerf RE'!E39+'A4-FinPerf RE'!E40 -> 0 | E21: ='A4-FinPerf RE'!F39+'A4-FinPerf RE'!F40 -> 0 | F21: ='A4-FinPerf RE'!G39+'A4-FinPerf RE'!G40 -> 0 | G21: ='A4-FinPerf RE'!H39+'A4-FinPerf RE'!H40 -> 0 | H21: ='A4-FinPerf RE'!I39+'A4-FinPerf RE'!I40 -> 0 | I21: ='A4-FinPerf RE'!J39+'A4-FinPerf RE'!J40 -> 0 | J21: ='A4-FinPerf RE'!K39+'A4-FinPerf RE'!K40 -> 0 | K21: ='A4-FinPerf RE'!L39+'A4-FinPerf RE'!L40 -> 0
A22: ='A4-FinPerf RE'!A41 -> Surplus/(Deficit) after capital transfers & contributions | B22: =B19+SUM(B20:B21) -> 156204428 | C22: =C19+SUM(C20:C21) -> 90079183 | D22: 96547552 | E22: 179277318.9 | F22: 193661415.2 | G22: 193661415.2 | H22: 192615274.2 | I22: 151554221 | J22: 185822292 | K22: 200551216
A23: ='A4-FinPerf RE'!A46 -> Share of surplus/ (deficit) of associate | B23: ='A4-FinPerf RE'!C46 -> 0 | C23: ='A4-FinPerf RE'!D46 -> 0 | D23: ='A4-FinPerf RE'!E46 -> 0 | E23: ='A4-FinPerf RE'!F46 -> 0 | F23: ='A4-FinPerf RE'!G46 -> 0 | G23: ='A4-FinPerf RE'!H46 -> 0 | H23: ='A4-FinPerf RE'!I46 -> 0 | I23: ='A4-FinPerf RE'!J46 -> 0 | J23: ='A4-FinPerf RE'!K46 -> 0 | K23: ='A4-FinPerf RE'!L46 -> 0
A24: ='A4-FinPerf RE'!A47 -> Surplus/(Deficit) for the year | B24: =B22+B23 -> 156204428 | C24: =C22+C23 -> 90079183 | D24: 96547552 | E24: 179277318.9 | F24: 193661415.2 | G24: 193661415.2 | H24: 192615274.2 | I24: 151554221 | J24: 185822292 | K24: 200551216
A26: Capital expenditure & funds sources
A27: Capital expenditure | B27: ='A5-Capex'!C63 -> 176242640 | C27: ='A5-Capex'!D63 -> 104957167 | D27: ='A5-Capex'!E63 -> 168679537 | E27: ='A5-Capex'!F63 -> 179277318.9 | F27: ='A5-Capex'!G63 -> 193661559.9 | G27: ='A5-Capex'!H63 -> 193661559.9 | H27: ='A5-Capex'!I63 -> 193661559.9 | I27: ='A5-Capex'!J63 -> 151554220 | J27: ='A5-Capex'!K63 -> 185822294 | K27: ='A5-Capex'!L63 -> 200551218
A28: Transfers recognised - capital | B28: ='A5-Capex'!C70 -> 89314320 | C28: ='A5-Capex'!D70 -> 53446000 | D28: ='A5-Capex'!E70 -> 67162000 | E28: ='A5-Capex'!F70 -> 62443000 | F28: ='A5-Capex'!G70 -> 82443000 | G28: ='A5-Capex'!H70 -> 82443000 | H28: ='A5-Capex'!I70 -> 82443000 | I28: ='A5-Capex'!J70 -> 57608000 | J28: ='A5-Capex'!K70 -> 67783000 | K28: ='A5-Capex'!L70 -> 72351000
A30: ='A5-Capex'!A72 -> Borrowing | B30: ='A5-Capex'!C72 -> 0 | C30: ='A5-Capex'!D72 -> 0 | D30: ='A5-Capex'!E72 -> 0 | E30: ='A5-Capex'!F72 -> 0 | F30: ='A5-Capex'!G72 -> 0 | G30: ='A5-Capex'!H72 -> 0 | H30: ='A5-Capex'!I72 -> 0 | I30: ='A5-Capex'!J72 -> 0 | J30: ='A5-Capex'!K72 -> 0 | K30: ='A5-Capex'!L72 -> 0
A31: ='A5-Capex'!A73 -> Internally generated funds | B31: ='A5-Capex'!C73 -> 86928320 | C31: ='A5-Capex'!D73 -> 51511167 | D31: ='A5-Capex'!E73 -> 101517537 | E31: ='A5-Capex'!F73 -> 116834318.9 | F31: ='A5-Capex'!G73 -> 111218559.9 | G31: ='A5-Capex'!H73 -> 111218559.9 | H31: ='A5-Capex'!I73 -> 111218559.9 | I31: ='A5-Capex'!J73 -> 93946220 | J31: ='A5-Capex'!K73 -> 118039294 | K31: ='A5-Capex'!L73 -> 128200218
A32: Total sources of capital funds | B32: =+B28+B30+B31 -> 176242640 | C32: =+C28+C30+C31 -> 104957167 | D32: 168679537 | E32: 179277318.9 | F32: 193661559.9 | G32: 193661559.9 | H32: 193661559.9 | I32: 151554220 | J32: 185822294 | K32: 200551218
A34: Financial position
A35: ='A6-FinPos'!A12 -> Total current assets | B35: ='A6-FinPos'!C12 -> 137649368 | C35: ='A6-FinPos'!D12 -> 141996812 | D35: ='A6-FinPos'!E12 -> 127810541 | E35: ='A6-FinPos'!F12 -> 96189276.33 | F35: ='A6-FinPos'!G12 -> 70494276.33 | G35: ='A6-FinPos'!H12 -> 70494276.33 | H35: ='A6-FinPos'!I12 -> 70494276.33 | I35: ='A6-FinPos'!J12 -> 117064530 | J35: ='A6-FinPos'!K12 -> 118038571.6 | K35: ='A6-FinPos'!L12 -> 118077521.4
A36: ='A6-FinPos'!A24 -> Total non current assets | B36: ='A6-FinPos'!C24 -> 613375059 | C36: ='A6-FinPos'!D24 -> 678800824 | D36: ='A6-FinPos'!E24 -> 815530256 | E36: ='A6-FinPos'!F24 -> 854921586.6 | F36: ='A6-FinPos'!G24 -> 849615673.6 | G36: ='A6-FinPos'!H24 -> 849615673.6 | H36: ='A6-FinPos'!I24 -> 849615673.6 | I36: ='A6-FinPos'!J24 -> 954101630 | J36: ='A6-FinPos'!K24 -> 1125732201 | K36: ='A6-FinPos'!L24 -> 1319840419
A37: ='A6-FinPos'!A34 -> Total current liabilities | B37: ='A6-FinPos'!C34 -> 55384231 | C37: ='A6-FinPos'!D34 -> 36700685 | D37: ='A6-FinPos'!E34 -> 56876426 | E37: ='A6-FinPos'!F34 -> 36063204.06 | F37: ='A6-FinPos'!G34 -> 36063204.06 | G37: ='A6-FinPos'!H34 -> 36063204.06 | H37: ='A6-FinPos'!I34 -> 36063204.06 | I37: ='A6-FinPos'!J34 -> 34517000 | J37: ='A6-FinPos'!K34 -> 29295000 | K37: ='A6-FinPos'!L34 -> 32395000
A38: ='A6-FinPos'!A39 -> Total non current liabilities | B38: ='A6-FinPos'!C39 -> 13419779 | C38: ='A6-FinPos'!D39 -> 12512637 | D38: ='A6-FinPos'!E39 -> 13958640 | E38: ='A6-FinPos'!F39 -> 14744449.65 | F38: ='A6-FinPos'!G39 -> 14744449.65 | G38: ='A6-FinPos'!H39 -> 14744449.65 | H38: ='A6-FinPos'!I39 -> 14744449.65 | I38: ='A6-FinPos'!J39 -> 17101289.28 | J38: ='A6-FinPos'!K39 -> 17894251.7 | K38: ='A6-FinPos'!L39 -> 18730034.09
A39: Community wealth/Equity | B39: ='A6-FinPos'!C48 -> 682220417 | C39: ='A6-FinPos'!D48 -> 771584314 | D39: ='A6-FinPos'!E48 -> 872505731 | E39: ='A6-FinPos'!F48 -> 900303209.2 | F39: ='A6-FinPos'!G48 -> 869302296.2 | G39: ='A6-FinPos'!H48 -> 869302296.2 | H39: ='A6-FinPos'!I48 -> 869302296.2 | I39: ='A6-FinPos'!J48 -> 1019547871 | J39: ='A6-FinPos'!K48 -> 1196581521 | K39: ='A6-FinPos'!L48 -> 1386792906
A41: Cash flows
A42: Net cash from (used) operating | B42: ='A7-CFlow'!C17 -> 174519554 | C42: ='A7-CFlow'!D17 -> 90723268 | D42: ='A7-CFlow'!E17 -> 110879386 | E42: ='A7-CFlow'!F17 -> 151493540.5 | F42: ='A7-CFlow'!G17 -> 153112540.5 | G42: ='A7-CFlow'!H17 -> 153112540.5 | H42: ='A7-CFlow'!I17 -> 153112540.5 | I42: ='A7-CFlow'!J17 -> 137141747 | J42: ='A7-CFlow'!K17 -> 140226184.5 | K42: ='A7-CFlow'!L17 -> 152492918.3
A43: Net cash from (used) investing | B43: ='A7-CFlow'!C27 -> -174519554 | C43: ='A7-CFlow'!D27 -> -95505284 | D43: ='A7-CFlow'!E27 -> -153644721 | E43: ='A7-CFlow'!F27 -> -144514398 | F43: ='A7-CFlow'!G27 -> -162757398 | G43: ='A7-CFlow'!H27 -> -162757398 | H43: ='A7-CFlow'!I27 -> -162757398 | I43: ='A7-CFlow'!J27 -> -134841798 | J43: ='A7-CFlow'!K27 -> -139368000 | K43: ='A7-CFlow'!L27 -> -152575000
A44: Net cash from (used) financing | B44: ='A7-CFlow'!C36 -> 0 | C44: ='A7-CFlow'!D36 -> 0 | D44: ='A7-CFlow'!E36 -> 0 | E44: ='A7-CFlow'!F36 -> 0 | F44: ='A7-CFlow'!G36 -> 0 | G44: ='A7-CFlow'!H36 -> 0 | H44: ='A7-CFlow'!I36 -> 0 | I44: ='A7-CFlow'!J36 -> 0 | J44: ='A7-CFlow'!K36 -> 0 | K44: ='A7-CFlow'!L36 -> 0
A45: =LEFT('A7-CFlow'!A40,37) -> Cash/cash equivalents at the year end | B45: ='A7-CFlow'!C40 -> 60714362 | C45: ='A7-CFlow'!D40 -> 55932345 | D45: ='A7-CFlow'!E40 -> 13167010 | E45: ='A7-CFlow'!F40 -> 37279142.49 | F45: ='A7-CFlow'!G40 -> 4026142.487 | G45: ='A7-CFlow'!H40 -> 4026142.487 | H45: ='A7-CFlow'!I40 -> 4026142.487 | I45: ='A7-CFlow'!J40 -> 2421448.981 | J45: ='A7-CFlow'!K40 -> 3279633.525 | K45: ='A7-CFlow'!L40 -> 3197551.777
A47: Cash backing/surplus reconciliation
A48: ='A8-ResRecon'!A4 -> Cash and investments available | B48: ='A8-ResRecon'!C8 -> 60714361 | C48: ='A8-ResRecon'!D8 -> 55932345 | D48: ='A8-ResRecon'!E8 -> 13167011 | E48: ='A8-ResRecon'!F8 -> 29721281.53 | F48: ='A8-ResRecon'!G8 -> 4026281.53 | G48: ='A8-ResRecon'!H8 -> 4026281.53 | H48: ='A8-ResRecon'!I8 -> 4026281.53 | I48: ='A8-ResRecon'!J8 -> 2421000 | J48: ='A8-ResRecon'!K8 -> 3280146 | K48: ='A8-ResRecon'!L8 -> 3197995.884
A49: ='A8-ResRecon'!A10 -> Application of cash and investments | B49: ='A8-ResRecon'!C18 -> 11550928 | C49: ='A8-ResRecon'!D18 -> 8865959 | D49: ='A8-ResRecon'!E18 -> 39163092 | E49: ='A8-ResRecon'!F18 -> 24639831.65 | F49: ='A8-ResRecon'!G18 -> 18208831.65 | G49: ='A8-ResRecon'!H18 -> 18208831.65 | H49: ='A8-ResRecon'!I18 -> 17929831.65 | I49: ='A8-ResRecon'!J18 -> 1063405.2 | J49: ='A8-ResRecon'!K18 -> -4040744.919 | K49: ='A8-ResRecon'!L18 -> -816615.1448
A50: Balance - surplus (shortfall) | B50: =B48-B49 -> 49163433 | C50: =C48-C49 -> 47066386 | D50: -25996081 | E50: 5081449.882 | F50: -14182550.12 | G50: -14182550.12 | H50: -13903550.12 | I50: 1357594.8 | J50: 7320890.919 | K50: 4014611.029
A52: Asset management
A53: Asset register summary (WDV) | B53: ='A9-Asset'!C165 -> 678800559 | C53: ='A9-Asset'!D165 -> 814981868 | D53: ='A9-Asset'!E165 -> 854921362 | E53: ='A9-Asset'!F165 -> 849067086.6 | F53: ='A9-Asset'!G165 -> 849067173.6 | G53: ='A9-Asset'!H165 -> 849067173.6 | H53: ='A9-Asset'!H165 -> 849067173.6 | I53: ='A9-Asset'!I165 -> 953552546.6 | J53: ='A9-Asset'!J165 -> 1125182904 | K53: ='A9-Asset'!K165 -> 1319291289
A54: ='A9-Asset'!A168 -> Depreciation | B54: ='A9-Asset'!C168 -> 21569539 | C54: ='A9-Asset'!D168 -> 31106428 | D54: ='A9-Asset'!E168 -> 28680827 | E54: ='A9-Asset'!F168 -> 5043379.812 | F54: ='A9-Asset'!G168 -> 5942211.582 | G54: ='A9-Asset'!H168 -> 5942211.582 | H54: ='A9-Asset'!H168 -> 5942211.582 | I54: ='A9-Asset'!I168 -> 5941747.312 | J54: ='A9-Asset'!J168 -> 6250755.667 | K54: ='A9-Asset'!K168 -> 6588492.473
A55: Renewal and Upgrading of Existing Assets | B55: ='A9-Asset'!C37+'A9-Asset'!C69 -> 146294805 | C55: ='A9-Asset'!D37+'A9-Asset'!D69 -> 86979567 | D55: ='A9-Asset'!E37+'A9-Asset'!E69 -> 29229415 | E55: ='A9-Asset'!F37+'A9-Asset'!F69 -> 27083510.54 | F55: ='A9-Asset'!G37+'A9-Asset'!G69 -> 27083510.54 | G55: ='A9-Asset'!H37+'A9-Asset'!H69 -> 27083510.54 | H55: ='A9-Asset'!H37+'A9-Asset'!H69 -> 27083510.54 | I55: ='A9-Asset'!I37+'A9-Asset'!I69 -> 0 | J55: ='A9-Asset'!J37+'A9-Asset'!J69 -> 0 | K55: ='A9-Asset'!K37+'A9-Asset'!K69 -> 0
A56: Repairs and Maintenance | B56: ='A9-Asset'!C169 -> 5754016 | C56: ='A9-Asset'!D169 -> 4102201 | D56: ='A9-Asset'!E169 -> 9246700 | E56: ='A9-Asset'!F169 -> 22098649.14 | F56: ='A9-Asset'!G169 -> 22767301.14 | G56: ='A9-Asset'!H169 -> 22767301.14 | H56: ='A9-Asset'!H169 -> 22767301.14 | I56: ='A9-Asset'!I169 -> 24093599.8 | J56: ='A9-Asset'!J169 -> 21394337.98 | K56: ='A9-Asset'!K169 -> 22763448.23
A58: Free services
A59: Cost of Free Basic Services provided | B59: ='A10-SerDel'!C60 -> 0 | C59: ='A10-SerDel'!D60 -> 0 | D59: ='A10-SerDel'!E60 -> 0 | E59: ='A10-SerDel'!F60 -> 0 | F59: ='A10-SerDel'!G60 -> 0 | G59: ='A10-SerDel'!H60 -> 0 | H59: ='A10-SerDel'!I60 -> 0 | I59: ='A10-SerDel'!I60 -> 0 | J59: ='A10-SerDel'!J60 -> 0 | K59: ='A10-SerDel'!K60 -> 0
A60: Revenue cost of free services provided | B60: ='A10-SerDel'!C79 -> 3290182 | C60: ='A10-SerDel'!D79 -> 2756775 | D60: ='A10-SerDel'!E79 -> 2045637 | E60: ='A10-SerDel'!F79 -> 7952097.41 | F60: ='A10-SerDel'!G79 -> 7952097.41 | G60: ='A10-SerDel'!H79 -> 7952097.41 | H60: ='A10-SerDel'!I79 -> 8365606 | I60: ='A10-SerDel'!I79 -> 8365606 | J60: ='A10-SerDel'!J79 -> 8817350 | K60: ='A10-SerDel'!K79 -> 9293486
A61: Households below minimum service level
A62: ='A10-SerDel'!A5 -> Water: | B62: ='A10-SerDel'!C14 -> 14718 | C62: ='A10-SerDel'!D14 -> 14718 | D62: ='A10-SerDel'!E14 -> 14718 | E62: ='A10-SerDel'!F14 -> 14718 | F62: ='A10-SerDel'!G14 -> 14718 | G62: ='A10-SerDel'!H14 -> 18522 | H62: ='A10-SerDel'!I14 -> 18522 | I62: ='A10-SerDel'!I14 -> 18522 | J62: ='A10-SerDel'!J14 -> 18522 | K62: ='A10-SerDel'!K14 -> 18522
A63: ='A10-SerDel'!A16 -> Sanitation/sewerage: | B63: ='A10-SerDel'!C26 -> 7408 | C63: ='A10-SerDel'!D26 -> 7408 | D63: ='A10-SerDel'!E26 -> 7408 | E63: ='A10-SerDel'!F26 -> 7408 | F63: ='A10-SerDel'!G26 -> 7408 | G63: ='A10-SerDel'!H26 -> 11021 | H63: ='A10-SerDel'!I26 -> 11021 | I63: ='A10-SerDel'!I26 -> 11021 | J63: ='A10-SerDel'!J26 -> 11021 | K63: ='A10-SerDel'!K26 -> 11021
A64: ='A10-SerDel'!A28 -> Energy: | B64: ='A10-SerDel'!C35 -> 3000 | C64: ='A10-SerDel'!D35 -> 3000 | D64: ='A10-SerDel'!E35 -> 3000 | E64: ='A10-SerDel'!F35 -> 3000 | F64: ='A10-SerDel'!G35 -> 3000 | G64: ='A10-SerDel'!H35 -> 4805 | H64: ='A10-SerDel'!I35 -> 4805 | I64: ='A10-SerDel'!I35 -> 4805 | J64: ='A10-SerDel'!J35 -> 4805 | K64: ='A10-SerDel'!K35 -> 4805
A65: ='A10-SerDel'!A37 -> Refuse: | B65: ='A10-SerDel'!C45 -> 53308 | C65: ='A10-SerDel'!D45 -> 53308 | D65: ='A10-SerDel'!E45 -> 53308 | E65: ='A10-SerDel'!F45 -> 53308 | F65: ='A10-SerDel'!G45 -> 53308 | G65: ='A10-SerDel'!H45 -> 59613 | H65: ='A10-SerDel'!I45 -> 59613 | I65: ='A10-SerDel'!I45 -> 59613 | J65: ='A10-SerDel'!J45 -> 59613 | K65: ='A10-SerDel'!K45 -> 59613

Sheet A2-FinPerf SC
A1: =muni&" - "&Approve3 -> LIM332 Greater Letaba - Table A2 Budgeted Financial Performance (revenue and expenditure by functional classification)
A2: ="Functional Classification "&desc -> Functional Classification Description | B2: =head27 -> Ref | C2: =head1b -> 2015/16 | D2: =head1A -> 2016/17 | E2: =Head1 -> 2017/18 | F2: =Head2 -> Current Year 2018/19 | I2: =Head3 -> 2019/20 Medium Term Revenue & Expenditure Framework
A3: R thousand | B3: 1 | C3: =Head5 -> Audited Outcome | D3: =Head5 -> Audited Outcome | E3: =Head5 -> Audited Outcome | F3: =Head6 -> Original Budget | G3: =Head7 -> Adjusted Budget | H3: =Head8 -> Full Year Forecast | I3: =Head9 -> Budget Year 2019/20 | J3: =Head10 -> Budget Year +1 2020/21 | K3: =Head11 -> Budget Year +2 2021/22
A4: Revenue - Functional
A5: Governance and administration | C5: =SUM(C6:C8) -> 326083235 | D5: =SUM(D6:D8) -> 294548468.9 | E5: 316672284 | F5: 366195307 | G5: 401589521 | H5: 401589521 | I5: 395389361 | J5: 420077858 | K5: 449627111
A6: Executive and council | C6: =A2A!C6 -> 0 | D6: =A2A!D6 -> 0 | E6: =A2A!E6 -> 0 | F6: =A2A!F6 -> 0 | G6: =A2A!G6 -> 0 | H6: =A2A!H6 -> 0 | I6: =A2A!I6 -> 0 | J6: =A2A!J6 -> 0 | K6: =A2A!K6 -> 0
A7: Finance and administration | C7: =A2A!C9 -> 326083235 | D7: =A2A!D9 -> 294548468.9 | E7: =A2A!E9 -> 316672284 | F7: =A2A!F9 -> 366195307 | G7: =A2A!G9 -> 401589521 | H7: =A2A!H9 -> 401589521 | I7: =A2A!I9 -> 395389361 | J7: =A2A!J9 -> 420077858 | K7: =A2A!K9 -> 449627111
A8: Internal audit | C8: =A2A!C23 -> 0 | D8: =A2A!D23 -> 0 | E8: =A2A!E23 -> 0 | F8: =A2A!F23 -> 0 | G8: =A2A!G23 -> 0 | H8: =A2A!H23 -> 0 | I8: =A2A!I23 -> 0 | J8: =A2A!J23 -> 0 | K8: =A2A!K23 -> 0
A9: Community and public safety | C9: =SUM(C10:C14) -> 0 | D9: =SUM(D10:D14) -> 0 | E9: 0 | F9: 0 | G9: 0 | H9: 0 | I9: 0 | J9: 0 | K9: 0
A10: Community and social services | C10: =A2A!C26 -> 0 | D10: =A2A!D26 -> 0 | E10: =A2A!E26 -> 0 | F10: =A2A!F26 -> 0 | G10: =A2A!G26 -> 0 | H10: =A2A!H26 -> 0 | I10: =A2A!I26 -> 0 | J10: =A2A!J26 -> 0 | K10: =A2A!K26 -> 0
A11: Sport and recreation | C11: =A2A!C48 -> 0 | D11: =A2A!D48 -> 0 | E11: =A2A!E48 -> 0 | F11: =A2A!F48 -> 0 | G11: =A2A!G48 -> 0 | H11: =A2A!H48 -> 0 | I11: =A2A!I48 -> 0 | J11: =A2A!J48 -> 0 | K11: =A2A!K48 -> 0
A12: Public safety | C12: =A2A!C54 -> 0 | D12: =A2A!D54 -> 0 | E12: =A2A!E54 -> 0 | F12: =A2A!F54 -> 0 | G12: =A2A!G54 -> 0 | H12: =A2A!H54 -> 0 | I12: =A2A!I54 -> 0 | J12: =A2A!J54 -> 0 | K12: =A2A!K54 -> 0
A13: Housing | C13: =A2A!C63 -> 0 | D13: =A2A!D63 -> 0 | E13: =A2A!E63 -> 0 | F13: =A2A!F63 -> 0 | G13: =A2A!G63 -> 0 | H13: =A2A!H63 -> 0 | I13: =A2A!I63 -> 0 | J13: =A2A!J63 -> 0 | K13: =A2A!K63 -> 0
A14: Health | C14: =A2A!C66 -> 0 | D14: =A2A!D66 -> 0 | E14: =A2A!E66 -> 0 | F14: =A2A!F66 -> 0 | G14: =A2A!G66 -> 0 | H14: =A2A!H66 -> 0 | I14: =A2A!I66 -> 0 | J14: =A2A!J66 -> 0 | K14: =A2A!K66 -> 0
A15: Economic and environmental services | C15: =SUM(C16:C18) -> 6646951 | D15: =SUM(D16:D18) -> 6696371.41 | E15: 13679612 | F15: 11461019 | G15: 26061019 | H15: 26061019 | I15: 27416192 | J15: 28896666 | K15: 30457086
A16: Planning and development | C16: =A2A!C75 -> 0 | D16: =A2A!D75 -> 0 | E16: =A2A!E75 -> 0 | F16: =A2A!F75 -> 0 | G16: =A2A!G75 -> 0 | H16: =A2A!H75 -> 0 | I16: =A2A!I75 -> 0 | J16: =A2A!J75 -> 0 | K16: =A2A!K75 -> 0
A17: Road transport | C17: =A2A!C86 -> 6646951 | D17: =A2A!D86 -> 6696371.41 | E17: =A2A!E86 -> 13679612 | F17: =A2A!F86 -> 11461019 | G17: =A2A!G86 -> 26061019 | H17: =A2A!H86 -> 26061019 | I17: =A2A!I86 -> 27416192 | J17: =A2A!J86 -> 28896666 | K17: =A2A!K86 -> 30457086
A18: Environmental protection | C18: =A2A!C91 -> 0 | D18: =A2A!D91 -> 0 | E18: =A2A!E91 -> 0 | F18: =A2A!F91 -> 0 | G18: =A2A!G91 -> 0 | H18: =A2A!H91 -> 0 | I18: =A2A!I91 -> 0 | J18: =A2A!J91 -> 0 | K18: =A2A!K91 -> 0
A19: Trading services | C19: =SUM(C20:C23) -> 12992849 | D19: =SUM(D20:D23) -> 19324338.69 | E19: 13861049 | F19: 25051354.47 | G19: 41474341.47 | H19: 41474341.47 | I19: 37336890 | J19: =SUM(J20:J23) -> 46353082 | K19: 48478149
A20: Energy sources | C20: =A2A!C99 -> 9346308 | D20: =A2A!D99 -> 15358297.15 | E20: =A2A!E99 -> 9667754 | F20: =A2A!F99 -> 18807957.47 | G20: =A2A!G99 -> 33230944.47 | H20: =A2A!H99 -> 33230944.47 | I20: =A2A!I99 -> 28664837 | J20: =A2A!J99 -> 37212738 | K20: =A2A!K99 -> 38844226
A21: Water management | C21: =A2A!C103 -> 0 | D21: =A2A!D103 -> 0 | E21: =A2A!E103 -> 0 | F21: =A2A!F103 -> 0 | G21: =A2A!G103 -> 0 | H21: =A2A!H103 -> 0 | I21: =A2A!I103 -> 0 | J21: =A2A!J103 -> 0 | K21: =A2A!K103 -> 0
A22: Waste water management | C22: =A2A!C107 -> 0 | D22: =A2A!D107 -> 0 | E22: =A2A!E107 -> 0 | F22: =A2A!F107 -> 0 | G22: =A2A!G107 -> 0 | H22: =A2A!H107 -> 0 | I22: =A2A!I107 -> 0 | J22: =A2A!J107 -> 0 | K22: =A2A!K107 -> 0
A23: Waste management | C23: =A2A!C112 -> 3646541 | D23: =A2A!D112 -> 3966041.54 | E23: =A2A!E112 -> 4193295 | F23: =A2A!F112 -> 6243397 | G23: =A2A!G112 -> 8243397 | H23: =A2A!H112 -> 8243397 | I23: =A2A!I112 -> 8672053 | J23: =A2A!J112 -> 9140344 | K23: =A2A!K112 -> 9633923
A24: Other | B24: 4 | C24: =A2A!C117 -> 0 | D24: =A2A!D117 -> 0 | E24: =A2A!E117 -> 0 | F24: =A2A!F117 -> 0 | G24: =A2A!G117 -> 0 | H24: =A2A!H117 -> 0 | I24: =A2A!I117 -> 0 | J24: =A2A!J117 -> 0 | K24: =A2A!K117 -> 0
A25: ="Total "&A4 -> Total Revenue - Functional | B25: 2 | C25: =C5+C9+C15+C19+C24 -> 345723035 | D25: =D5+D9+D15+D19+D24 -> 320569179 | E25: =E5+E9+E15+E19+E24 -> 344212945 | F25: 402707680.4 | G25: 469124881.4 | H25: 469124881.4 | I25: =I5+I9+I15+I19+I24 -> 460142443 | J25: 495327606 | K25: 528562346
A27: Expenditure - Functional
A28: Governance and administration | C28: =SUM(C29:C31) -> 120886989 | D28: =SUM(D29:D31) -> 143565005.9 | E28: 147719392 | F28: 124146230.9 | G28: 145751668.9 | H28: 145751668.9 | I28: 156015915 | J28: 164651092 | K28: 174229418
A29: Executive and council | C29: =A2A!C128 -> 56239143 | D29: =A2A!D128 -> 71524875.87 | E29: =A2A!E128 -> 65494849 | F29: =A2A!F128 -> 47800391.17 | G29: =A2A!G128 -> 52383119.17 | H29: =A2A!H128 -> 52383119.17 | I29: =A2A!I128 -> 55042807 | J29: =A2A!J128 -> 58188850 | K29: =A2A!K128 -> 61461249
A30: Finance and administration | C30: =A2A!C131 -> 64647846 | D30: =A2A!D131 -> 72040130.04 | E30: =A2A!E131 -> 80597238 | F30: =A2A!F131 -> 74406900.69 | G30: =A2A!G131 -> 90901596.69 | H30: =A2A!H131 -> 90901596.69 | I30: =A2A!I131 -> 98346377 | J30: =A2A!J131 -> 103669749 | K30: =A2A!K131 -> 109799312
A31: Internal audit | C31: =A2A!C145 -> 0 | D31: =A2A!D145 -> 0 | E31: =A2A!E145 -> 1627305 | F31: =A2A!F145 -> 1938939.02 | G31: =A2A!G145 -> 2466953.02 | H31: =A2A!H145 -> 2466953.02 | I31: =A2A!I145 -> 2626731 | J31: =A2A!J145 -> 2792493 | K31: =A2A!K145 -> 2968857
A32: Community and public safety | C32: =SUM(C33:C37) -> 11895235 | D32: =SUM(D33:D37) -> 12715924.58 | E32: 12090250 | F32: 12752759.72 | G32: 18073645.72 | H32: 18073645.72 | I32: 26061793 | J32: 23863781 | K32: 25645779
A33: Community and social services | C33: =A2A!C148 -> 2389933 | D33: =A2A!D148 -> 3405469.58 | E33: =A2A!E148 -> 3691577 | F33: =A2A!F148 -> 4334295.18 | G33: =A2A!G148 -> 5016218.18 | H33: =A2A!H148 -> 5016218.18 | I33: =A2A!I148 -> 10102909 | J33: =A2A!J148 -> 6712339 | K33: =A2A!K148 -> 7359085
A34: Sport and recreation | C34: =A2A!C170 -> 8915763 | D34: =A2A!D170 -> 8657839.7 | E34: =A2A!E170 -> 7707414 | F34: =A2A!F170 -> 7690965.43 | G34: =A2A!G170 -> 12329928.43 | H34: =A2A!H170 -> 12329928.43 | I34: =A2A!I170 -> 15182096 | J34: =A2A!J170 -> 16321355 | K34: =A2A!K170 -> 17399646
A35: Public safety | C35: =A2A!C176 -> 0 | D35: =A2A!D176 -> 0 | E35: =A2A!E176 -> 0 | F35: =A2A!F176 -> 0 | G35: =A2A!G176 -> 0 | H35: =A2A!H176 -> 0 | I35: =A2A!I176 -> 0 | J35: =A2A!J176 -> 0 | K35: =A2A!K176 -> 0
A36: Housing | C36: =A2A!C185 -> 589539 | D36: =A2A!D185 -> 652615.3 | E36: =A2A!E185 -> 691259 | F36: =A2A!F185 -> 727499.11 | G36: =A2A!G185 -> 727499.11 | H36: =A2A!H185 -> 727499.11 | I36: =A2A!I185 -> 776788 | J36: =A2A!J185 -> 830087 | K36: =A2A!K185 -> 887048
A37: Health | C37: =A2A!C188 -> 0 | D37: =A2A!D188 -> 0 | E37: =A2A!E188 -> 0 | F37: =A2A!F188 -> 0 | G37: =A2A!G188 -> 0 | H37: =A2A!H188 -> 0 | I37: =A2A!I188 -> 0 | J37: =A2A!J188 -> 0 | K37: =A2A!K188 -> 0
A38: Economic and environmental services | C38: =SUM(C39:C41) -> 31868259 | D38: =SUM(D39:D41) -> 46415239.52 | E38: 56817006 | F38: 48381784.74 | G38: 65417929.74 | H38: 65417929.74 | I38: 77562952 | J38: 73515624 | K38: 77979221
A39: Planning and development | C39: =A2A!C197 -> 7322236 | D39: =A2A!D197 -> 9481093.04 | E39: =A2A!E197 -> 8030087 | F39: =A2A!F197 -> 13504109.48 | G39: =A2A!G197 -> 11586550.48 | H39: =A2A!H197 -> 11586550.48 | I39: =A2A!I197 -> 23542563 | J39: =A2A!J197 -> 16226548 | K39: =A2A!K197 -> 17220675
A40: Road transport | C40: =A2A!C208 -> 24546023 | D40: =A2A!D208 -> 36934146.48 | E40: =A2A!E208 -> 48786919 | F40: =A2A!F208 -> 34877675.26 | G40: =A2A!G208 -> 53831379.26 | H40: =A2A!H208 -> 53831379.26 | I40: =A2A!I208 -> 54020389 | J40: =A2A!J208 -> 57289076 | K40: =A2A!K208 -> 60758546
A41: Environmental protection | C41: =A2A!C213 -> 0 | D41: =A2A!D213 -> 0 | E41: =A2A!E213 -> 0 | F41: =A2A!F213 -> 0 | G41: =A2A!G213 -> 0 | H41: =A2A!H213 -> 0 | I41: =A2A!I213 -> 0 | J41: =A2A!J213 -> 0 | K41: =A2A!K213 -> 0
A42: Trading services | C42: =SUM(C43:C46) -> 24868124 | D42: =SUM(D43:D46) -> 27793825.99 | E42: 31038745 | F42: =SUM(F43:F46) -> 38149586.19 | G42: 46220222.19 | H42: 46220222.19 | I42: 48947566 | J42: 47474815 | K42: =SUM(K43:K46) -> 50156710
A43: Energy sources | C43: =A2A!C221 -> 14364689 | D43: =A2A!D221 -> 22833616.45 | E43: =A2A!E221 -> 25833507 | F43: =A2A!F221 -> 32487354.72 | G43: =A2A!G221 -> 40450161.72 | H43: =A2A!H221 -> 40450161.72 | I43: =A2A!I221 -> 42686645 | J43: =A2A!J221 -> 40832094 | K43: =A2A!K221 -> 43108554
A44: Water management | C44: =A2A!C225 -> 0 | D44: =A2A!D225 -> 0 | E44: =A2A!E225 -> 0 | F44: =A2A!F225 -> 0 | G44: =A2A!G225 -> 0 | H44: =A2A!H225 -> 0 | I44: =A2A!I225 -> 0 | J44: =A2A!J225 -> 0 | K44: =A2A!K225 -> 0
A45: Waste water management | C45: =A2A!C229 -> 645353 | D45: =A2A!D229 -> 603338.95 | E45: =A2A!E229 -> 636076 | F45: =A2A!F229 -> 686133 | G45: =A2A!G229 -> 700457 | H45: =A2A!H229 -> 700457 | I45: =A2A!I229 -> 751605 | J45: =A2A!J229 -> 802836 | K45: =A2A!K229 -> 857569
A46: Waste management | C46: =A2A!C234 -> 9858082 | D46: =A2A!D234 -> 4356870.59 | E46: =A2A!E234 -> 4569162 | F46: =A2A!F234 -> 4976098.47 | G46: =A2A!G234 -> 5069603.47 | H46: =A2A!H234 -> 5069603.47 | I46: =A2A!I234 -> 5509316 | J46: =A2A!J234 -> 5839885 | K46: =A2A!K234 -> 6190587
A47: Other | B47: 4 | C47: =A2A!C239 -> 0 | D47: =A2A!D239 -> 0 | E47: =A2A!E239 -> 0 | F47: =A2A!F239 -> 0 | G47: =A2A!G239 -> 0 | H47: =A2A!H239 -> 0 | I47: =A2A!I239 -> 0 | J47: =A2A!J239 -> 0 | K47: =A2A!K239 -> 0
A48: ="Total "&A27 -> Total Expenditure - Functional | B48: 3 | C48: =C28+C32+C38+C42+C47 -> 189518607 | D48: =D28+D32+D38+D42+D47 -> 230489996 | E48: =E28+E32+E38+E42+E47 -> 247665393 | F48: =F28+F32+F38+F42+F47 -> 223430361.5 | G48: 275463466.5 | H48: 275463466.5 | I48: 308588226 | J48: 309505312 | K48: 328011128
A49: =result -> Surplus/(Deficit) for the year | C49: =C25-C48 -> 156204428 | D49: =D25-D48 -> 90079183 | E49: 96547552 | F49: 179277318.9 | G49: 193661414.9 | H49: 193661414.9 | I49: 151554217 | J49: 185822294 | K49: 200551218
A50: =head27a -> References
A51: 1. Government Finance Statistics Functions and Sub-functions are standardised to assist the compilation of national and international accounts for comparison purposes
A52: 2. Total Revenue by functional classification must reconcile to Total Operating Revenue shown in Budgeted Financial Performance (revenue and expenditure)
A53: 3. Total Expenditure by Functional Classification must reconcile to Total Operating Expenditure shown in Budgeted Financial Performance (revenue and expenditure)
A54: 4. All amounts must be classified under a functional classification . The GFS function 'Other' is only for Abbatoirs, Air Transport, Forestry, Licensing and Regulation, Markets and Tourism - and if used must be supported by footnotes. Nothing else may be placed under 'Other'. Assign associate share to relevant classification.
A57: check oprev balance | C57: =C25-'A4-FinPerf RE'!C59 -> 0 | D57: =D25-'A4-FinPerf RE'!D59 -> 0 | E57: =E25-'A4-FinPerf RE'!E59 -> 0 | F57: =F25-'A4-FinPerf RE'!F59 -> 0.2100000381 | G57: =G25-'A4-FinPerf RE'!G59 -> 0.2100000381 | H57: =H25-'A4-FinPerf RE'!H59 -> 0.2100000381 | I57: =I25-'A4-FinPerf RE'!J59 -> 0 | J57: =J25-'A4-FinPerf RE'!K59 -> -2 | K57: =K25-'A4-FinPerf RE'!L59 -> 0
A58: check opexp balance | C58: =C48-'A4-FinPerf RE'!C35 -> 0 | D58: =D48-'A4-FinPerf RE'!D35 -> 0 | E58: =E48-'A4-FinPerf RE'!E35 -> 0 | F58: =F48-'A4-FinPerf RE'!F35 -> 0.1675999761 | G58: =G48-'A4-FinPerf RE'!G35 -> 0.467599988 | H58: =H48-'A4-FinPerf RE'!H35 -> 0.467599988 | I58: =I48-'A4-FinPerf RE'!J35 -> 4 | J58: =J48-'A4-FinPerf RE'!K35 -> -4 | K58: =K48-'A4-FinPerf RE'!L35 -> -2

Sheet A2A
A1: =muni&" - "&Approve3 -> LIM332 Greater Letaba - Table A2 Budgeted Financial Performance (revenue and expenditure by functional classification)
A2: ="Functional Classification "&desc -> Functional Classification Description | B2: =head27 -> Ref | C2: =head1b -> 2015/16 | D2: =head1A -> 2016/17 | E2: =Head1 -> 2017/18 | F2: =Head2 -> Current Year 2018/19 | I2: =Head3 -> 2019/20 Medium Term Revenue & Expenditure Framework
A3: R thousand | B3: 1 | C3: =Head5 -> Audited Outcome | D3: =Head5 -> Audited Outcome | E3: =Head5 -> Audited Outcome | F3: =Head6 -> Original Budget | G3: =Head7 -> Adjusted Budget | H3: =Head8 -> Full Year Forecast | I3: =Head9 -> Budget Year 2019/20 | J3: =Head10 -> Budget Year +1 2020/21 | K3: =Head11 -> Budget Year +2 2021/22
A4: Revenue - Functional
A5: Municipal governance and administration | C5: =C6+C9+C23 -> 326083235 | D5: 294548468.9 | E5: 316672284 | F5: 366195307 | G5: 401589521 | H5: 401589521 | I5: 395389361 | J5: 420077858 | K5: 449627111
A6: Executive and council | C6: =SUM(C7:C8) -> 0 | D6: =SUM(D7:D8) -> 0 | E6: 0 | F6: 0 | G6: 0 | H6: 0 | I6: 0 | J6: 0 | K6: 0
A7: Mayor and Council
A8: Municipal Manager, Town Secretary and Chief Executive
A9: Finance and administration | C9: =SUM(C10:C22) -> 326083235 | D9: 294548468.9 | E9: 316672284 | F9: 366195307 | G9: 401589521 | H9: 401589521 | I9: 395389361 | J9: 420077858 | K9: 449627111
A10: Administrative and Corporate Support
A11: Asset Management
A12: Finance | C12: 326083235 | D12: 294548468.9 | E12: 316672284 | F12: 366195307 | G12: =381589520.97+20000000 -> 401589521 | H12: =381589520.97+20000000 -> 401589521 | I12: 395389361 | J12: 420077858 | K12: 449627111
A13: Fleet Management
A14: Human Resources
A15: Information Technology
A16: Legal Services
A17: Marketing, Customer Relations, Publicity and Media Co-ordination
A18: Property Services
A19: Risk Management
A20: Security Services
A21: Supply Chain Management
A22: Valuation Service
A23: Internal audit | C23: =SUM(C24:C24) -> 0 | D23: 0 | E23: 0 | F23: 0 | G23: 0 | H23: 0 | I23: 0 | J23: 0 | K23: 0
A24: Governance Function
A25: Community and public safety | C25: =C26+C48+C54+C63+C66 -> 0 | D25: 0 | E25: 0 | F25: 0 | G25: 0 | H25: 0 | I25: 0 | J25: 0 | K25: 0
A26: Community and social services | C26: =SUM(C27:C47) -> 0 | D26: =SUM(D27:D47) -> 0 | E26: 0 | F26: 0 | G26: 0 | H26: 0 | I26: 0 | J26: 0 | K26: 0
A27: Aged Care
A28: Agricultural
A29: Animal Care and Diseases
A30: Cemeteries, Funeral Parlours and Crematoriums
A31: Child Care Facilities
A32: Community Halls and Facilities
A33: Consumer Protection
A34: Cultural Matters
A35: Disaster Management
A36: Education
A37: Indigenous and Customary Law
A38: Industrial Promotion
A39: Language Policy
A40: Libraries and Archives
A41: Literacy Programmes
A42: Media Services
A43: Museums and Art Galleries
A44: Population Development
A45: Provincial Cultural Matters
A46: Theatres
A47: Zoo's
A48: Sport and recreation | C48: =SUM(C49:C53) -> 0 | D48: =SUM(D49:D53) -> 0 | E48: 0 | F48: 0 | G48: 0 | H48: 0 | I48: 0 | J48: 0 | K48: 0
A49: Beaches and Jetties
A50: Casinos, Racing, Gambling, Wagering
A51: Community Parks (including Nurseries)
A52: Recreational Facilities
A53: Sports Grounds and Stadiums
A54: Public safety | C54: =SUM(C55:C62) -> 0 | D54: 0 | E54: 0 | F54: 0 | G54: 0 | H54: 0 | I54: 0 | J54: 0 | K54: 0
A55: Civil Defence
A56: Cleansing
A57: Control of Public Nuisances
A58: Fencing and Fences
A59: Fire Fighting and Protection
A60: Licensing and Control of Animals
A61: Police Forces, Traffic and Street Parking Control
A62: Pounds
A63: Housing | C63: =SUM(C64:C65) -> 0 | D63: =SUM(D64:D65) -> 0 | E63: 0 | F63: 0 | G63: 0 | H63: 0 | I63: 0 | J63: 0 | K63: 0
A64: Housing
A65: Informal Settlements
A66: Health | C66: =SUM(C67:C73) -> 0 | D66: =SUM(D67:D73) -> 0 | E66: 0 | F66: 0 | G66: 0 | H66: 0 | I66: 0 | J66: 0 | K66: 0
A67: Ambulance
A68: Health Services
A69: Laboratory Services
A70: Food Control
A71: Health Surveillance and Prevention of Communicable Diseases including immunizations
A72: Vector Control
A73: Chemical Safety
A74: Economic and environmental services | C74: =C75+C86+C91 -> 6646951 | D74: 6696371.41 | E74: 13679612 | F74: 11461019 | G74: 26061019 | H74: 26061019 | I74: 27416192 | J74: 28896666 | K74: 30457086
A75: Planning and development | C75: =SUM(C76:C85) -> 0 | D75: =SUM(D76:D85) -> 0 | E75: 0 | F75: 0 | G75: 0 | H75: 0 | I75: 0 | J75: 0 | K75: 0
A76: Billboards
A77: Corporate Wide Strategic Planning (IDPs, LEDs)
A78: Central City Improvement District
A79: Development Facilitation
A80: Economic Development/Planning
A81: Regional Planning and Development
A82: Town Planning, Building Regulations and Enforcement, and City Engineer
A83: Project Management Unit
A84: Provincial Planning
A85: Support to Local Municipalities
A86: Road transport | C86: =SUM(C87:C90) -> 6646951 | D86: 6696371.41 | E86: 13679612 | F86: 11461019 | G86: 26061019 | H86: 26061019 | I86: 27416192 | J86: 28896666 | K86: 30457086
A87: Public Transport
A88: Road and Traffic Regulation | C88: 6646951 | D88: 6696371.41 | E88: 13679612 | F88: 11461019 | G88: 26061019 | H88: 26061019 | I88: 27416192 | J88: 28896666 | K88: 30457086
A89: Roads
A90: Taxi Ranks
A91: Environmental protection | C91: =SUM(C92:C97) -> 0 | D91: =SUM(D92:D97) -> 0 | E91: 0 | F91: 0 | G91: 0 | H91: 0 | I91: 0 | J91: 0 | K91: 0
A92: Biodiversity and Landscape
A93: Coastal Protection
A94: Indigenous Forests
A95: Nature Conservation
A96: Pollution Control
A97: Soil Conservation
A98: Trading services | C98: =C99+C103+C107+C112 -> 12992849 | D98: =D99+D103+D107+D112 -> 19324338.69 | E98: 13861049 | F98: 25051354.47 | G98: 41474341.47 | H98: 41474341.47 | I98: 37336890 | J98: 46353082 | K98: =K99+K103+K107+K112 -> 48478149
A99: Energy sources | C99: =SUM(C100:C102) -> 9346308 | D99: =SUM(D100:D102) -> 15358297.15 | E99: 9667754 | F99: 18807957.47 | G99: 33230944.47 | H99: 33230944.47 | I99: 28664837 | J99: 37212738 | K99: 38844226
A100: Electricity | C100: 9346308 | D100: 15358297.15 | E100: 9667754 | F100: 18807957.47 | G100: 33230944.47 | H100: 33230944.47 | I100: 28664837 | J100: 37212738 | K100: 38844226
A101: Street Lighting and Signal Systems
A102: Nonelectric Energy
A103: Water management | C103: =SUM(C104:C106) -> 0 | D103: =SUM(D104:D106) -> 0 | E103: 0 | F103: 0 | G103: 0 | H103: 0 | I103: 0 | J103: 0 | K103: 0
A104: Water Treatment
A105: Water Distribution
A106: Water Storage
A107: Waste water management | C107: =SUM(C108:C111) -> 0 | D107: =SUM(D108:D111) -> 0 | E107: 0 | F107: 0 | G107: 0 | H107: 0 | I107: 0 | J107: 0 | K107: 0
A108: Public Toilets
A109: Sewerage
A110: Storm Water Management
A111: Waste Water Treatment
A112: Waste management | C112: =SUM(C113:C116) -> 3646541 | D112: =SUM(D113:D116) -> 3966041.54 | E112: 4193295 | F112: 6243397 | G112: 8243397 | H112: 8243397 | I112: 8672053 | J112: 9140344 | K112: 9633923
A113: Recycling
A114: Solid Waste Disposal (Landfill Sites)
A115: Solid Waste Removal | C115: 3646541 | D115: 3966041.54 | E115: 4193295 | F115: 6243397 | G115: 8243397 | H115: 8243397 | I115: 8672053 | J115: 9140344 | K115: 9633923
A116: Street Cleaning
A117: Other | C117: =SUM(C118:C123) -> 0 | D117: =SUM(D118:D123) -> 0 | E117: 0 | F117: 0 | G117: 0 | H117: 0 | I117: 0 | J117: 0 | K117: 0
A118: Abattoirs
A119: Air Transport
A120: Forestry
A121: Licensing and Regulation
A122: Markets
A123: Tourism
A124: ="Total "&A4 -> Total Revenue - Functional | B124: 2 | C124: =C5+C25+C74+C98+C117 -> 345723035 | D124: 320569179 | E124: 344212945 | F124: 402707680.4 | G124: 469124881.4 | H124: 469124881.4 | I124: 460142443 | J124: 495327606 | K124: 528562346
A126: Expenditure - Functional
A127: =A5 -> Municipal governance and administration | C127: =C128+C131+C145 -> 120886989 | D127: 143565005.9 | E127: 147719392 | F127: 124146230.9 | G127: 145751668.9 | H127: 145751668.9 | I127: 156015915 | J127: 164651092 | K127: 174229418
A128: Executive and council | C128: =SUM(C129:C130) -> 56239143 | D128: 71524875.87 | E128: 65494849 | F128: 47800391.17 | G128: 52383119.17 | H128: 52383119.17 | I128: 55042807 | J128: 58188850 | K128: 61461249
A129: Mayor and Council | C129: 46697647 | D129: 61666926.82 | E129: 58053543 | F129: 39561229.98 | G129: 43261501.98 | H129: 43261501.98 | I129: 43765407 | J129: 46191460 | K129: 48752886
A130: Municipal Manager, Town Secretary and Chief Executive | C130: 9541496 | D130: 9857949.05 | E130: 7441306 | F130: 8239161.19 | G130: 9121617.19 | H130: 9121617.19 | I130: 11277400 | J130: 11997390 | K130: 12708363
A131: Finance and administration | C131: =SUM(C132:C144) -> 64647846 | D131: 72040130.04 | E131: 80597238 | F131: 74406900.69 | G131: 90901596.69 | H131: 90901596.69 | I131: 98346377 | J131: 103669749 | K131: 109799312
A132: Administrative and Corporate Support | C132: 15367614 | D132: 14080487.02 | E132: 25731390 | F132: 20206768.22 | G132: 21178859.22 | H132: 21178859.22 | I132: 20840040 | J132: 22058795 | K132: 23349814
A133: Asset Management | C133: 0 | D133: 0 | E133: 4088835 | F133: 4087160.29 | G133: 4276405.29 | H133: 4276405.29 | I133: 5306062 | J133: 5644396 | K133: 6004574
A134: Finance | C134: 22859510 | D134: 27485052.87 | E134: 26820570 | F134: 23968834.34 | G134: 31766182.34 | H134: 31766182.34 | I134: 32503101 | J134: 34317463 | K134: 36241885
A135: Fleet Management | C135: 0 | D135: 0 | E135: 0 | F135: 0 | G135: 0 | H135: 0 | I135: 0 | J135: 0 | K135: 0
A136: Human Resources | C136: 4521657 | D136: 3689633.19 | E136: 5181285 | F136: 6977174.93 | G136: 8062539.93 | H136: 8062539.93 | I136: 8903613 | J136: 9420724 | K136: 9968266
A137: Information Technology | C137: 3453761 | D137: 4603479.21 | E137: 6364955 | F137: 6403449.82 | G137: 5438745.82 | H137: 5438745.82 | I137: 6587608 | J137: 6972965 | K137: 7381176
A138: Legal Services | C138: 0 | D138: 0 | E138: 6398289 | F138: 4346185.1 | G138: 7090268.1 | H138: 7090268.1 | I138: 6674848 | J138: 7026847 | K138: 7433891
A139: Marketing, Customer Relations, Publicity and Media Co-ordination | C139: 0 | D139: 0 | E139: 1427977 | F139: 2151894.46 | G139: 2151894.46 | H139: 2151894.46 | I139: 4059673 | J139: 3858915 | K139: 4091563
A140: Property Services | C140: 18445304 | D140: 22181477.75 | E140: 1456662 | F140: 3136452 | G140: 7599612 | H140: 7599612 | I140: 10036054 | J140: 10703398 | K140: 11415432
A141: Risk Management | C141: 0 | D141: 0 | E141: 826803 | F141: 847756.79 | G141: 864863.79 | H141: 864863.79 | I141: 1029647 | J141: 1096302 | K141: 1167319
A142: Security Services | C142: 0 | D142: 0 | E142: 0 | F142: 0 | G142: 0 | H142: 0 | I142: 0 | J142: 0 | K142: 0
A143: Supply Chain Management | C143: 0 | D143: 0 | E143: 2300472 | F143: 2281224.74 | G143: 2472225.74 | H143: 2472225.74 | I143: 2405731 | J143: 2569944 | K143: 2745392
A144: Valuation Service | C144: 0 | D144: 0 | E144: 0 | F144: 0 | G144: 0 | H144: 0 | I144: 0 | J144: 0 | K144: 0
A145: Internal audit | C145: =SUM(C146:C146) -> 0 | D145: 0 | E145: 1627305 | F145: 1938939.02 | G145: 2466953.02 | H145: 2466953.02 | I145: 2626731 | J145: 2792493 | K145: 2968857
A146: Governance Function | C146: 0 | D146: 0 | E146: 1627305 | F146: 1938939.02 | G146: 2466953.02 | H146: 2466953.02 | I146: 2626731 | J146: 2792493 | K146: 2968857
A147: Community and public safety | C147: =C148+C170+C176+C185+C188 -> 11895235 | D147: 12715924.58 | E147: 12090250 | F147: 12752759.72 | G147: 18073645.72 | H147: 18073645.72 | I147: 26061793 | J147: 23863781 | K147: 25645779
A148: Community and social services | C148: =SUM(C149:C169) -> 2389933 | D148: =SUM(D149:D169) -> 3405469.58 | E148: 3691577 | F148: 4334295.18 | G148: 5016218.18 | H148: 5016218.18 | I148: 10102909 | J148: 6712339 | K148: 7359085
A149: Aged Care
A150: Agricultural
A151: Animal Care and Diseases
A152: Cemeteries, Funeral Parlours and Crematoriums | C152: 220294 | D152: 242251.59 | E152: 245534 | F152: 257880.39 | G152: 256562.39 | H152: 256562.39 | I152: 290922 | J152: 310114 | K152: 330583
A153: Child Care Facilities | C153: 0 | D153: 0 | E153: 0 | F153: 0 | G153: 0 | H153: 0 | I153: 0 | J153: 0 | K153: 0
A154: Community Halls and Facilities | C154: 291784 | D154: 154214.69 | E154: 717075 | F154: 1484481.45 | G154: 1502801.45 | H154: 1502801.45 | I154: 5551246 | J154: 1862282 | K154: 2190892
A155: Consumer Protection | C155: 0 | D155: 0 | E155: 0 | F155: 0 | G155: 0 | H155: 0 | I155: 0 | J155: 0 | K155: 0
A156: Cultural Matters | C156: 0 | D156: 0 | E156: 0 | F156: 0 | G156: 0 | H156: 0 | I156: 0 | J156: 0 | K156: 0
A157: Disaster Management | C157: 575349 | D157: 1422866.7 | E157: 1235173 | F157: 1038276.39 | G157: 1147517.39 | H157: 1147517.39 | I157: 1755688 | J157: 1868331 | K157: 1988287
A158: Education | C158: 0 | D158: 0 | E158: 0 | F158: 0 | G158: 0 | H158: 0 | I158: 0 | J158: 0 | K158: 0
A159: =A37 -> Indigenous and Customary Law | C159: 0 | D159: 0 | E159: 0 | F159: 0 | G159: 0 | H159: 0 | I159: 0 | J159: 0 | K159: 0
A160: Industrial Promotion | C160: 0 | D160: 0 | E160: 0 | F160: 0 | G160: 0 | H160: 0 | I160: 0 | J160: 0 | K160: 0
A161: Language Policy | C161: 0 | D161: 0 | E161: 0 | F161: 0 | G161: 0 | H161: 0 | I161: 0 | J161: 0 | K161: 0
A162: Libraries and Archives | C162: 1302506 | D162: 1586136.6 | E162: 1493795 | F162: 1553656.95 | G162: 2109336.95 | H162: 2109336.95 | I162: 2505053 | J162: 2671612 | K162: 2849323
A163: Literacy Programmes
A164: Media Services
A165: Museums and Art Galleries
A166: Population Development
A167: Provincial Cultural Matters
A168: Theatres
A169: Zoo's
A170: Sport and recreation | C170: =SUM(C171:C175) -> 8915763 | D170: 8657839.7 | E170: 7707414 | F170: 7690965.43 | G170: 12329928.43 | H170: 12329928.43 | I170: 15182096 | J170: 16321355 | K170: 17399646
A171: Beaches and Jetties
A172: Casinos, Racing, Gambling, Wagering
A173: Community Parks (including Nurseries)
A174: Recreational Facilities
A175: Sports Grounds and Stadiums | C175: 8915763 | D175: 8657839.7 | E175: 7707414 | F175: 7690965.43 | G175: 12329928.43 | H175: 12329928.43 | I175: 15182096 | J175: 16321355 | K175: 17399646
A176: Public safety | C176: =SUM(C177:C184) -> 0 | D176: 0 | E176: 0 | F176: 0 | G176: 0 | H176: 0 | I176: 0 | J176: 0 | K176: 0
A177: Civil Defence
A178: Cleansing
A179: =A57 -> Control of Public Nuisances
A180: Fencing and Fences
A181: Fire Fighting and Protection
A182: Licensing and Control of Animals
A183: Police Forces, Traffic and Street Parking Control
A184: Pounds
A185: =A63 -> Housing | C185: =SUM(C186:C187) -> 589539 | D185: 652615.3 | E185: 691259 | F185: 727499.11 | G185: 727499.11 | H185: 727499.11 | I185: 776788 | J185: 830087 | K185: 887048
A186: Housing | C186: 589539 | D186: 652615.3 | E186: 691259 | F186: 727499.11 | G186: 727499.11 | H186: 727499.11 | I186: 776788 | J186: 830087 | K186: 887048
A187: Informal Settlements
A188: Health | C188: =SUM(C189:C195) -> 0 | D188: =SUM(D189:D195) -> 0 | E188: 0 | F188: 0 | G188: 0 | H188: 0 | I188: 0 | J188: 0 | K188: 0
A189: Ambulance
A190: Health Services
A191: Laboratory Services
A192: Food Control
A193: Health Surveillance and Prevention of Communicable Diseases including immunizations
A194: Vector Control
A195: Chemical Safety
A196: Economic and environmental services | C196: =C197+C208+C213 -> 31868259 | D196: 46415239.52 | E196: 56817006 | F196: 48381784.74 | G196: 65417929.74 | H196: 65417929.74 | I196: 77562952 | J196: 73515624 | K196: 77979221
A197: Planning and development | C197: =SUM(C198:C207) -> 7322236 | D197: =SUM(D198:D207) -> 9481093.04 | E197: 8030087 | F197: 13504109.48 | G197: 11586550.48 | H197: 11586550.48 | I197: 23542563 | J197: 16226548 | K197: 17220675
A198: Billboards
A199: Corporate Wide Strategic Planning (IDPs, LEDs) | C199: 7322236 | D199: 9481093.04 | E199: 4588968 | F199: 8839649.24 | G199: 5621308.24 | H199: 5621308.24 | I199: 8744481 | J199: 5367427 | K199: 5657206
A200: Central City Improvement District
A201: Development Facilitation
... 53 more rows

Sheet A3-FinPerf V
A1: =muni&" - "&Approve2 -> LIM332 Greater Letaba - Table A3 Budgeted Financial Performance (revenue and expenditure by municipal vote)
A2: =Vdesc -> Vote Description | B2: =head27 -> Ref | C2: =head1b -> 2015/16 | D2: =head1A -> 2016/17 | E2: =Head1 -> 2017/18 | F2: =Head2 -> Current Year 2018/19 | I2: =Head3 -> 2019/20 Medium Term Revenue & Expenditure Framework | L2: =Head4 -> LTFS
A3: R thousand | C3: =Head5 -> Audited Outcome | D3: =Head5 -> Audited Outcome | E3: =Head5 -> Audited Outcome | F3: =Head6 -> Original Budget | G3: =Head7 -> Adjusted Budget | H3: =Head8 -> Full Year Forecast | I3: =Head9 -> Budget Year 2019/20 | J3: =Head10 -> Budget Year +1 2020/21 | K3: =Head11 -> Budget Year +2 2021/22 | L3: =Head12 -> Forecast 2022/23 | M3: =Head13 -> Forecast 2023/24 | N3: =Head14 -> Forecast 2024/25 | O3: =Head15 -> Forecast 2025/26 | P3: =Head16 -> Forecast 2026/27 | Q3: =Head17 -> Forecast 2027/28 | R3: =Head18 -> Forecast 2028/29 | S3: =Head19 -> Forecast 2029/30 | T3: =Head20 -> Forecast 2030/31 | U3: =Head21 -> Forecast 2031/32 | V3: =Head22 -> Forecast 2032/33 | W3: =Head23 -> Forecast 2033/34
A4: Revenue by Vote | B4: 1
A5: =A3A!A5 -> Vote 1 - Executive & Council | C5: =A3A!C5 -> 0 | D5: =A3A!D5 -> 0 | E5: =A3A!E5 -> 0 | F5: =A3A!F5 -> 0 | G5: =A3A!G5 -> 0 | H5: =A3A!H5 -> 0 | I5: =A3A!I5 -> 0 | J5: =A3A!J5 -> 0 | K5: =A3A!K5 -> 0
A6: =A3A!A16 -> Vote 2 - Finance and Administration | C6: =A3A!C16 -> 326083235 | D6: =A3A!D16 -> 294548468.9 | E6: =A3A!E16 -> 316672284 | F6: =A3A!F16 -> 366195307 | G6: =A3A!G16 -> 401589521 | H6: =A3A!H16 -> 401589521 | I6: =A3A!I16 -> 395389361 | J6: =A3A!J16 -> 420077858 | K6: =A3A!K16 -> 449627111
A7: =A3A!A27 -> Vote 3 - Internal Audit | C7: =A3A!C27 -> 0 | D7: =A3A!D27 -> 0 | E7: =A3A!E27 -> 0 | F7: =A3A!F27 -> 0 | G7: =A3A!G27 -> 0 | H7: =A3A!H27 -> 0 | I7: =A3A!I27 -> 0 | J7: =A3A!J27 -> 0 | K7: =A3A!K27 -> 0
A8: =A3A!A38 -> Vote 4 - Community and Public Safety | C8: =A3A!C38 -> 0 | D8: =A3A!D38 -> 0 | E8: =A3A!E38 -> 0 | F8: =A3A!F38 -> 0 | G8: =A3A!G38 -> 0 | H8: =A3A!H38 -> 0 | I8: =A3A!I38 -> 0 | J8: =A3A!J38 -> 0 | K8: =A3A!K38 -> 0
A9: =A3A!A49 -> Vote 5 - Sports and Recreation | C9: =A3A!C49 -> 0 | D9: =A3A!D49 -> 0 | E9: =A3A!E49 -> 0 | F9: =A3A!F49 -> 0 | G9: =A3A!G49 -> 0 | H9: =A3A!H49 -> 0 | I9: =A3A!I49 -> 0 | J9: =A3A!J49 -> 0 | K9: =A3A!K49 -> 0
A10: =A3A!A60 -> Vote 6 - Housing | C10: =A3A!C60 -> 0 | D10: =A3A!D60 -> 0 | E10: =A3A!E60 -> 0 | F10: =A3A!F60 -> 0 | G10: =A3A!G60 -> 0 | H10: =A3A!H60 -> 0 | I10: =A3A!I60 -> 0 | J10: =A3A!J60 -> 0 | K10: =A3A!K60 -> 0
A11: =A3A!A71 -> Vote 7 - Planning and development | C11: =A3A!C71 -> 0 | D11: =A3A!D71 -> 0 | E11: =A3A!E71 -> 0 | F11: =A3A!F71 -> 0 | G11: =A3A!G71 -> 0 | H11: =A3A!H71 -> 0 | I11: =A3A!I71 -> 0 | J11: =A3A!J71 -> 0 | K11: =A3A!K71 -> 0
A12: =A3A!A82 -> Vote 8 - Road Transport | C12: =A3A!C82 -> 6646951 | D12: =A3A!D82 -> 6696371.41 | E12: =A3A!E82 -> 13679612 | F12: =A3A!F82 -> 11461019 | G12: =A3A!G82 -> 26061019 | H12: =A3A!H82 -> 26061019 | I12: =A3A!I82 -> 27416192 | J12: =A3A!J82 -> 28896666 | K12: =A3A!K82 -> 30457086
A13: =A3A!A93 -> Vote 9 - Energy Sources | C13: =A3A!C93 -> 9346308 | D13: =A3A!D93 -> 15358297.15 | E13: =A3A!E93 -> 9667754 | F13: =A3A!F93 -> 18807957.47 | G13: =A3A!G93 -> 33230944.47 | H13: =A3A!H93 -> 33230944.47 | I13: =A3A!I93 -> 28664837 | J13: =A3A!J93 -> 37212738 | K13: =A3A!K93 -> 38844226
A14: =A3A!A104 -> Vote 10 - Waste Water Management | C14: =A3A!C104 -> 0 | D14: =A3A!D104 -> 0 | E14: =A3A!E104 -> 0 | F14: =A3A!F104 -> 0 | G14: =A3A!G104 -> 0 | H14: =A3A!H104 -> 0 | I14: =A3A!I104 -> 0 | J14: =A3A!J104 -> 0 | K14: =A3A!K104 -> 0
A15: =A3A!A115 -> Vote 11 - Waste Management | C15: =A3A!C115 -> 3646541 | D15: =A3A!D115 -> 3966041.54 | E15: =A3A!E115 -> 4193295 | F15: =A3A!F115 -> 6243397 | G15: =A3A!G115 -> 8243397 | H15: =A3A!H115 -> 8243397 | I15: =A3A!I115 -> 8672053 | J15: =A3A!J115 -> 9140344 | K15: =A3A!K115 -> 9633923 | L15: =A5A!L115 -> 0
A16: =A3A!A126 -> Vote 12 - [NAME OF VOTE 12] | C16: =A3A!C126 -> 0 | D16: =A3A!D126 -> 0 | E16: =A3A!E126 -> 0 | F16: =A3A!F126 -> 0 | G16: =A3A!G126 -> 0 | H16: =A3A!H126 -> 0 | I16: =A3A!I126 -> 0 | J16: =A3A!J126 -> 0 | K16: =A3A!K126 -> 0 | L16: =A5A!L126 -> 0
A17: =A3A!A137 -> Vote 13 - [NAME OF VOTE 13] | C17: =A3A!C137 -> 0 | D17: =A3A!D137 -> 0 | E17: =A3A!E137 -> 0 | F17: =A3A!F137 -> 0 | G17: =A3A!G137 -> 0 | H17: =A3A!H137 -> 0 | I17: =A3A!I137 -> 0 | J17: =A3A!J137 -> 0 | K17: =A3A!K137 -> 0 | L17: =A5A!L137 -> 0
A18: =A3A!A148 -> Vote 14 - [NAME OF VOTE 14] | C18: =A3A!C148 -> 0 | D18: =A3A!D148 -> 0 | E18: =A3A!E148 -> 0 | F18: =A3A!F148 -> 0 | G18: =A3A!G148 -> 0 | H18: =A3A!H148 -> 0 | I18: =A3A!I148 -> 0 | J18: =A3A!J148 -> 0 | K18: =A3A!K148 -> 0 | L18: =A5A!L148 -> 0
A19: =A3A!A159 -> Vote 15 - [NAME OF VOTE 15] | C19: =A3A!C159 -> 0 | D19: =A3A!D159 -> 0 | E19: =A3A!E159 -> 0 | F19: =A3A!F159 -> 0 | G19: =A3A!G159 -> 0 | H19: =A3A!H159 -> 0 | I19: =A3A!I159 -> 0 | J19: =A3A!J159 -> 0 | K19: =A3A!K159 -> 0 | L19: =A5A!L159 -> 0
A20: Total Revenue by Vote | B20: 2 | C20: =SUM(C5:C19) -> 345723035 | D20: =SUM(D5:D19) -> 320569179 | E20: 344212945 | F20: 402707680.4 | G20: 469124881.4 | H20: 469124881.4 | I20: 460142443 | J20: 495327606 | K20: 528562346
A22: Expenditure by Vote to be appropriated | B22: 1
A23: =A3A!A173 -> Vote 1 - Executive & Council | C23: =A3A!C173 -> 56239143 | D23: =A3A!D173 -> 71524875.87 | E23: =A3A!E173 -> 65494849 | F23: =A3A!F173 -> 47800391.17 | G23: =A3A!G173 -> 52383119.17 | H23: =A3A!H173 -> 52383119.17 | I23: =A3A!I173 -> 55042807 | J23: =A3A!J173 -> 58188850 | K23: =A3A!K173 -> 61461249
A24: =A3A!A184 -> Vote 2 - Finance and Administration | C24: =A3A!C184 -> 64647846 | D24: =A3A!D184 -> 72040130.04 | E24: =A3A!E184 -> 80597238 | F24: =A3A!F184 -> 74406900.69 | G24: =A3A!G184 -> 90901596.69 | H24: =A3A!H184 -> 90901596.69 | I24: =A3A!I184 -> 98346377 | J24: =A3A!J184 -> 103669749 | K24: =A3A!K184 -> 109799312
A25: =A3A!A195 -> Vote 3 - Internal Audit | C25: =A3A!C195 -> 0 | D25: =A3A!D195 -> 0 | E25: =A3A!E195 -> 1627305 | F25: =A3A!F195 -> 1938939.02 | G25: =A3A!G195 -> 2466953.02 | H25: =A3A!H195 -> 2466953.02 | I25: =A3A!I195 -> 2626731 | J25: =A3A!J195 -> 2792493 | K25: =A3A!K195 -> 2968857
A26: =A3A!A206 -> Vote 4 - Community and Public Safety | C26: =A3A!C206 -> 2389933 | D26: =A3A!D206 -> 3405469.58 | E26: =A3A!E206 -> 3691577 | F26: =A3A!F206 -> 4334295.18 | G26: =A3A!G206 -> 5016218.18 | H26: =A3A!H206 -> 5016218.18 | I26: =A3A!I206 -> 10102909 | J26: =A3A!J206 -> 6712339 | K26: =A3A!K206 -> 7359085
A27: =A3A!A217 -> Vote 5 - Sports and Recreation | C27: =A3A!C217 -> 8915763 | D27: =A3A!D217 -> 8657839.7 | E27: =A3A!E217 -> 7707414 | F27: =A3A!F217 -> 7690965.43 | G27: =A3A!G217 -> 12329928.43 | H27: =A3A!H217 -> 12329928.43 | I27: =A3A!I217 -> 15182096 | J27: =A3A!J217 -> 16321355 | K27: =A3A!K217 -> 17399646
A28: =A3A!A228 -> Vote 6 - Housing | C28: =A3A!C228 -> 589539 | D28: =A3A!D228 -> 652615.3 | E28: =A3A!E228 -> 691259 | F28: =A3A!F228 -> 727499.11 | G28: =A3A!G228 -> 727499.11 | H28: =A3A!H228 -> 727499.11 | I28: =A3A!I228 -> 776788 | J28: =A3A!J228 -> 830087 | K28: =A3A!K228 -> 887048
A29: =A3A!A239 -> Vote 7 - Planning and development | C29: =A3A!C239 -> 7322236 | D29: =A3A!D239 -> 9481093.04 | E29: =A3A!E239 -> 8030087 | F29: =A3A!F239 -> 13504109.48 | G29: =A3A!G239 -> 11586550.48 | H29: =A3A!H239 -> 11586550.48 | I29: =A3A!I239 -> 23542563 | J29: =A3A!J239 -> 16226548 | K29: =A3A!K239 -> 17220675
A30: =A3A!A250 -> Vote 8 - Road Transport | C30: =A3A!C250 -> 24546023 | D30: =A3A!D250 -> 36934146.48 | E30: =A3A!E250 -> 48786919 | F30: =A3A!F250 -> 34877675.26 | G30: =A3A!G250 -> 53831379.26 | H30: =A3A!H250 -> 53831379.26 | I30: =A3A!I250 -> 54020389 | J30: =A3A!J250 -> 57289076 | K30: =A3A!K250 -> 60758546
A31: =A3A!A261 -> Vote 9 - Energy Sources | C31: =A3A!C261 -> 14364689 | D31: =A3A!D261 -> 22833616.45 | E31: =A3A!E261 -> 25833507 | F31: =A3A!F261 -> 32487354.72 | G31: =A3A!G261 -> 40450161.72 | H31: =A3A!H261 -> 40450161.72 | I31: =A3A!I261 -> 42686645 | J31: =A3A!J261 -> 40832094 | K31: =A3A!K261 -> 43108554
A32: =A3A!A272 -> Vote 10 - Waste Water Management | C32: =A3A!C272 -> 645353 | D32: =A3A!D272 -> 603338.95 | E32: =A3A!E272 -> 636076 | F32: =A3A!F272 -> 686133 | G32: =A3A!G272 -> 700457 | H32: =A3A!H272 -> 700457 | I32: =A3A!I272 -> 751605 | J32: =A3A!J272 -> 802836 | K32: =A3A!K272 -> 857569
A33: =A3A!A283 -> Vote 11 - Waste Management | C33: =A3A!C283 -> 9858082 | D33: =A3A!D283 -> 4356870.59 | E33: =A3A!E283 -> 4569162 | F33: =A3A!F283 -> 4976098.47 | G33: =A3A!G283 -> 5069603.47 | H33: =A3A!H283 -> 5069603.47 | I33: =A3A!I283 -> 5509316 | J33: =A3A!J283 -> 5839885 | K33: =A3A!K283 -> 6190587 | L33: =A3A!L284 -> 0
A34: =A3A!A294 -> Vote 12 - [NAME OF VOTE 12] | C34: =A3A!C294 -> 0 | D34: =A3A!D294 -> 0 | E34: =A3A!E294 -> 0 | F34: =A3A!F294 -> 0 | G34: =A3A!G294 -> 0 | H34: =A3A!H294 -> 0 | I34: =A3A!I294 -> 0 | J34: =A3A!J294 -> 0 | K34: =A3A!K294 -> 0 | L34: =A3A!L295 -> 0
A35: =A3A!A305 -> Vote 13 - [NAME OF VOTE 13] | C35: =A3A!C305 -> 0 | D35: =A3A!D305 -> 0 | E35: =A3A!E305 -> 0 | F35: =A3A!F305 -> 0 | G35: =A3A!G305 -> 0 | H35: =A3A!H305 -> 0 | I35: =A3A!I305 -> 0 | J35: =A3A!J305 -> 0 | K35: =A3A!K305 -> 0 | L35: =A3A!L306 -> 0
A36: =A3A!A316 -> Vote 14 - [NAME OF VOTE 14] | C36: =A3A!C316 -> 0 | D36: =A3A!D316 -> 0 | E36: =A3A!E316 -> 0 | F36: =A3A!F316 -> 0 | G36: =A3A!G316 -> 0 | H36: =A3A!H316 -> 0 | I36: =A3A!I316 -> 0 | J36: =A3A!J316 -> 0 | K36: =A3A!K316 -> 0 | L36: =A3A!L317 -> 0
A37: =A3A!A327 -> Vote 15 - [NAME OF VOTE 15] | C37: =A3A!C327 -> 0 | D37: =A3A!D327 -> 0 | E37: =A3A!E327 -> 0 | F37: =A3A!F327 -> 0 | G37: =A3A!G327 -> 0 | H37: =A3A!H327 -> 0 | I37: =A3A!I327 -> 0 | J37: =A3A!J327 -> 0 | K37: =A3A!K327 -> 0 | L37: =A3A!L328 -> 0
A38: Total Expenditure by Vote | B38: 2 | C38: =SUM(C23:C37) -> 189518607 | D38: =SUM(D23:D37) -> 230489996 | E38: 247665393 | F38: 223430361.5 | G38: 275463466.5 | H38: 275463466.5 | I38: 308588226 | J38: 309505312 | K38: 328011128 | L38: =SUM(L23:L29) -> 0 | M38: 0 | N38: 0 | O38: 0 | P38: 0 | Q38: 0 | R38: 0 | S38: 0 | T38: 0 | U38: 0 | V38: 0 | W38: 0
A39: =result -> Surplus/(Deficit) for the year | B39: 2 | C39: =C20-C38 -> 156204428 | D39: 90079183 | E39: 96547552 | F39: 179277318.9 | G39: 193661414.9 | H39: 193661414.9 | I39: 151554217 | J39: 185822294 | K39: 200551218 | L39: 0 | M39: 0 | N39: 0 | O39: 0 | P39: 0 | Q39: 0 | R39: 0 | S39: 0 | T39: 0 | U39: 0 | V39: 0 | W39: 0
A40: =head27a -> References
A41: 1. Insert 'Vote'; e.g. department, if different to functional classification structure
A42: 2. Must reconcile to Budgeted Financial Performance (revenue and expenditure)
A43: 3. Assign share in 'associate' to relevant Vote
A45: ="check "&A39 -> check Surplus/(Deficit) for the year | C45: =C39-A3A!C340 -> 0 | D45: =D39-A3A!D340 -> 0 | E45: =E39-A3A!E340 -> 0 | F45: =F39-A3A!F340 -> 0 | G45: =G39-A3A!G340 -> 0 | H45: =H39-A3A!H340 -> 0 | I45: =I39-A3A!I340 -> 0 | J45: =J39-A3A!J340 -> 0 | K45: =K39-A3A!K340 -> 0

Sheet A3A
A1: =muni&" - "&Approve2&"A" -> LIM332 Greater Letaba - Table A3 Budgeted Financial Performance (revenue and expenditure by municipal vote)A
A2: =Vdesc -> Vote Description | B2: =head27 -> Ref | C2: =head1b -> 2015/16 | D2: =head1A -> 2016/17 | E2: =Head1 -> 2017/18 | F2: =Head2 -> Current Year 2018/19 | I2: =Head3 -> 2019/20 Medium Term Revenue & Expenditure Framework | L2: =Head4 -> LTFS
A3: R thousand | C3: =Head5 -> Audited Outcome | D3: =Head5 -> Audited Outcome | E3: =Head5 -> Audited Outcome | F3: =Head6 -> Original Budget | G3: =Head7 -> Adjusted Budget | H3: =Head8 -> Full Year Forecast | I3: =Head9 -> Budget Year 2019/20 | J3: =Head10 -> Budget Year +1 2020/21 | K3: =Head11 -> Budget Year +2 2021/22 | L3: =Head12 -> Forecast 2022/23 | M3: =Head13 -> Forecast 2023/24 | N3: =Head14 -> Forecast 2024/25 | O3: =Head15 -> Forecast 2025/26 | P3: =Head16 -> Forecast 2026/27 | Q3: =Head17 -> Forecast 2027/28 | R3: =Head18 -> Forecast 2028/29 | S3: =Head19 -> Forecast 2029/30 | T3: =Head20 -> Forecast 2030/31 | U3: =Head21 -> Forecast 2031/32 | V3: =Head22 -> Forecast 2032/33 | W3: =Head23 -> Forecast 2033/34
A4: Revenue by Vote | B4: 1
A5: ='Org structure'!A2 -> Vote 1 - Executive & Council | C5: =SUM(C6:C15) -> 0 | D5: =SUM(D6:D15) -> 0 | E5: 0 | F5: 0 | G5: 0 | H5: 0 | I5: 0 | J5: 0 | K5: 0
A6: ='Org structure'!E3 -> 1,1 - Mayor and Council
A7: ='Org structure'!E4 -> 1,2 - Municipal Manager
A8: ='Org structure'!E5 -> 0
A9: ='Org structure'!E6 -> 0
A10: ='Org structure'!E7 -> 0
A11: ='Org structure'!E8 -> 0
A12: ='Org structure'!E9 -> 0
A13: ='Org structure'!E10 -> 0
A14: ='Org structure'!E11 -> 0
A15: ='Org structure'!E12 -> 0
A16: ='Org structure'!A3 -> Vote 2 - Finance and Administration | C16: =SUM(C17:C26) -> 326083235 | D16: =SUM(D17:D26) -> 294548468.9 | E16: 316672284 | F16: 366195307 | G16: 401589521 | H16: 401589521 | I16: 395389361 | J16: 420077858 | K16: 449627111
A17: ='Org structure'!E14 -> 2,1 - Administrative and Corporate Support
A18: ='Org structure'!E15 -> 2,2 - Asset Management
A19: ='Org structure'!E16 -> 2,3 - Budget and Treasury Office | C19: 326083235 | D19: 294548468.9 | E19: 316672284 | F19: 366195307 | G19: =381589520.97+20000000 -> 401589521 | H19: =381589520.97+20000000 -> 401589521 | I19: 395389361 | J19: 420077858 | K19: 449627111
A20: ='Org structure'!E17 -> 2,4 - Human Resource
A21: ='Org structure'!E18 -> 2,5 - Information Technology
A22: ='Org structure'!E19 -> 2,6 - Legal Services
A23: ='Org structure'!E20 -> 2,7 - Customer Relation and Coordination
A24: ='Org structure'!E21 -> 2,8 - Property Services
A25: ='Org structure'!E22 -> 2,9 - Risk Management
A26: ='Org structure'!E23 -> 2.10 - Supply Chain Management
A27: ='Org structure'!A4 -> Vote 3 - Internal Audit | C27: =SUM(C28:C37) -> 0 | D27: 0 | E27: 0 | F27: 0 | G27: 0 | H27: 0 | I27: 0 | J27: 0 | K27: 0
A28: ='Org structure'!E25 -> 3,1 - Governance Function
A29: ='Org structure'!E26 -> 0
A30: ='Org structure'!E27 -> 0
A31: ='Org structure'!E28 -> 0
A32: ='Org structure'!E29 -> 0
A33: ='Org structure'!E30 -> 0
A34: ='Org structure'!E31 -> 0
A35: ='Org structure'!E32 -> 0
A36: ='Org structure'!E33 -> 0
A37: ='Org structure'!E34 -> 0
A38: ='Org structure'!A5 -> Vote 4 - Community and Public Safety | C38: =SUM(C39:C48) -> 0 | D38: 0 | E38: 0 | F38: 0 | G38: 0 | H38: 0 | I38: 0 | J38: 0 | K38: 0
A39: ='Org structure'!E36 -> 4,1 - Cemetries and crematoriums
A40: ='Org structure'!E37 -> 4,2 - Community halls and Facilities
A41: ='Org structure'!E38 -> 4,3 - Disaster Management
A42: ='Org structure'!E39 -> 4,4 - Libraries and Archives
A43: ='Org structure'!E40 -> 0
A44: ='Org structure'!E41 -> 0
A45: ='Org structure'!E42 -> 0
A46: ='Org structure'!E43 -> 0
A47: ='Org structure'!E44 -> 0
A48: ='Org structure'!E45 -> 0
A49: ='Org structure'!A6 -> Vote 5 - Sports and Recreation | C49: =SUM(C50:C59) -> 0 | D49: =SUM(D50:D59) -> 0 | E49: 0 | F49: 0 | G49: 0 | H49: 0 | I49: 0 | J49: 0 | K49: 0
A50: ='Org structure'!E47 -> 5,1 - Community parks
A51: ='Org structure'!E48 -> 0
A52: ='Org structure'!E49 -> 0
A53: ='Org structure'!E50 -> 0
A54: ='Org structure'!E51 -> 0
A55: ='Org structure'!E52 -> 0
A56: ='Org structure'!E53 -> 0
A57: ='Org structure'!E54 -> 0
A58: ='Org structure'!E55 -> 0
A59: ='Org structure'!E56 -> 0
A60: ='Org structure'!A7 -> Vote 6 - Housing | C60: =SUM(C61:C70) -> 0 | D60: =SUM(D61:D70) -> 0 | E60: 0 | F60: 0 | G60: 0 | H60: 0 | I60: 0 | J60: 0 | K60: 0
A61: ='Org structure'!E58 -> 6,1 - Housing
A62: ='Org structure'!E59 -> 0
A63: ='Org structure'!E60 -> 0
A64: ='Org structure'!E61 -> 0
A65: ='Org structure'!E62 -> 0
A66: ='Org structure'!E63 -> 0
A67: ='Org structure'!E64 -> 0
A68: ='Org structure'!E65 -> 0
A69: ='Org structure'!E66 -> 0
A70: ='Org structure'!E67 -> 0
A71: ='Org structure'!A8 -> Vote 7 - Planning and development | C71: =SUM(C72:C81) -> 0 | D71: 0 | E71: 0 | F71: 0 | G71: 0 | H71: 0 | I71: 0 | J71: 0 | K71: 0
A72: ='Org structure'!E69 -> 7,1 - Corporate Wide Strategic Planning (IDP & LED)
A73: ='Org structure'!E70 -> 7,2 - Town Planning and Building Regulations
A74: ='Org structure'!E71 -> 7,3 - Project Management Unit
A75: ='Org structure'!E72 -> 0
A76: ='Org structure'!E73 -> 0
A77: ='Org structure'!E74 -> 0
A78: ='Org structure'!E75 -> 0
A79: ='Org structure'!E76 -> 0
A80: ='Org structure'!E77 -> 0
A81: ='Org structure'!E78 -> 0
A82: ='Org structure'!A9 -> Vote 8 - Road Transport | C82: =SUM(C83:C92) -> 6646951 | D82: =SUM(D83:D92) -> 6696371.41 | E82: 13679612 | F82: 11461019 | G82: 26061019 | H82: 26061019 | I82: 27416192 | J82: 28896666 | K82: 30457086
A83: ='Org structure'!E80 -> 8,1 - Road and Traffic Regulations | C83: 6646951 | D83: 6696371.41 | E83: 13679612 | F83: 11461019 | G83: 26061019 | H83: 26061019 | I83: 27416192 | J83: 28896666 | K83: 30457086
A84: ='Org structure'!E81 -> 8,2 - Roads
A85: ='Org structure'!E82 -> 8,3 - Taxi Ranks
A86: ='Org structure'!E83 -> 0
A87: ='Org structure'!E84 -> 0
A88: ='Org structure'!E85 -> 0
A89: ='Org structure'!E86 -> 0
A90: ='Org structure'!E87 -> 0
A91: ='Org structure'!E88 -> 0
A92: ='Org structure'!E89 -> 0
A93: ='Org structure'!A10 -> Vote 9 - Energy Sources | C93: =SUM(C94:C103) -> 9346308 | D93: =SUM(D94:D103) -> 15358297.15 | E93: 9667754 | F93: 18807957.47 | G93: 33230944.47 | H93: 33230944.47 | I93: 28664837 | J93: 37212738 | K93: 38844226
A94: ='Org structure'!E91 -> 9,1 - Electricity | C94: 9346308 | D94: 15358297.15 | E94: 9667754 | F94: 18807957.47 | G94: 33230944.47 | H94: 33230944.47 | I94: 28664837 | J94: 37212738 | K94: 38844226
A95: ='Org structure'!E92 -> 9,2 - Street Lighting
A96: ='Org structure'!E93 -> 0
A97: ='Org structure'!E94 -> 0
A98: ='Org structure'!E95 -> 0
A99: ='Org structure'!E96 -> 0
A100: ='Org structure'!E97 -> 0
A101: ='Org structure'!E98 -> 0
A102: ='Org structure'!E99 -> 0
A103: ='Org structure'!E100 -> 0
A104: ='Org structure'!A11 -> Vote 10 - Waste Water Management | C104: =SUM(C105:C114) -> 0 | D104: =SUM(D105:D114) -> 0 | E104: 0 | F104: 0 | G104: 0 | H104: 0 | I104: 0 | J104: 0 | K104: 0
A105: ='Org structure'!E102 -> 10,1 - Public Toilets
A106: ='Org structure'!E103 -> 0
A107: ='Org structure'!E104 -> 0
A108: ='Org structure'!E105 -> 0
A109: ='Org structure'!E106 -> 0
A110: ='Org structure'!E107 -> 0
A111: ='Org structure'!E108 -> 0
A112: ='Org structure'!E109 -> 0
A113: ='Org structure'!E110 -> 0
A114: ='Org structure'!E111 -> 0
A115: ='Org structure'!A12 -> Vote 11 - Waste Management | C115: =SUM(C116:C125) -> 3646541 | D115: =SUM(D116:D125) -> 3966041.54 | E115: 4193295 | F115: 6243397 | G115: 8243397 | H115: 8243397 | I115: 8672053 | J115: 9140344 | K115: 9633923
A116: ='Org structure'!E113 -> 11,1 - Solid Waste Removal | C116: 3646541 | D116: 3966041.54 | E116: 4193295 | F116: 6243397 | G116: 8243397 | H116: 8243397 | I116: 8672053 | J116: 9140344 | K116: 9633923
A117: ='Org structure'!E114 -> 0
A118: ='Org structure'!E115 -> 0
A119: ='Org structure'!E116 -> 0
A120: ='Org structure'!E117 -> 0
A121: ='Org structure'!E118 -> 0
A122: ='Org structure'!E119 -> 0
A123: ='Org structure'!E120 -> 0
A124: ='Org structure'!E121 -> 0
A125: ='Org structure'!E122 -> 0
A126: ='Org structure'!A13 -> Vote 12 - [NAME OF VOTE 12] | C126: =SUM(C127:C136) -> 0 | D126: =SUM(D127:D136) -> 0 | E126: 0 | F126: 0 | G126: 0 | H126: 0 | I126: 0 | J126: 0 | K126: 0
A127: ='Org structure'!E124 -> 12.1 - [Name of sub-vote]
A128: ='Org structure'!E125 -> 0
A129: ='Org structure'!E126 -> 0
A130: ='Org structure'!E127 -> 0
A131: ='Org structure'!E128 -> 0
A132: ='Org structure'!E129 -> 0
A133: ='Org structure'!E130 -> 0
A134: ='Org structure'!E131 -> 0
A135: ='Org structure'!E132 -> 0
A136: ='Org structure'!E133 -> 0
A137: ='Org structure'!A14 -> Vote 13 - [NAME OF VOTE 13] | C137: =SUM(C138:C147) -> 0 | D137: =SUM(D138:D147) -> 0 | E137: 0 | F137: 0 | G137: 0 | H137: 0 | I137: 0 | J137: 0 | K137: 0
A138: ='Org structure'!E135 -> 13.1 - [Name of sub-vote]
A139: ='Org structure'!E136 -> 0
A140: ='Org structure'!E137 -> 0
A141: ='Org structure'!E138 -> 0
A142: ='Org structure'!E139 -> 0
A143: ='Org structure'!E140 -> 0
A144: ='Org structure'!E141 -> 0
A145: ='Org structure'!E142 -> 0
A146: ='Org structure'!E143 -> 0
A147: ='Org structure'!E144 -> 0
A148: ='Org structure'!A15 -> Vote 14 - [NAME OF VOTE 14] | C148: =SUM(C149:C158) -> 0 | D148: =SUM(D149:D158) -> 0 | E148: 0 | F148: 0 | G148: 0 | H148: 0 | I148: 0 | J148: 0 | K148: 0
A149: ='Org structure'!E146 -> 14.1 - [Name of sub-vote]
A150: ='Org structure'!E147 -> 0
A151: ='Org structure'!E148 -> 0
A152: ='Org structure'!E149 -> 0
A153: ='Org structure'!E150 -> 0
A154: ='Org structure'!E151 -> 0
A155: ='Org structure'!E152 -> 0
A156: ='Org structure'!E153 -> 0
A157: ='Org structure'!E154 -> 0
A158: ='Org structure'!E155 -> 0
A159: ='Org structure'!A16 -> Vote 15 - [NAME OF VOTE 15] | C159: =SUM(C160:C169) -> 0 | D159: =SUM(D160:D169) -> 0 | E159: 0 | F159: 0 | G159: 0 | H159: 0 | I159: 0 | J159: 0 | K159: 0
A160: ='Org structure'!E157 -> 15.1 - [Name of sub-vote]
A161: ='Org structure'!E158 -> 0
A162: ='Org structure'!E159 -> 0
A163: ='Org structure'!E160 -> 0
A164: ='Org structure'!E161 -> 0
A165: ='Org structure'!E162 -> 0
A166: ='Org structure'!E163 -> 0
A167: ='Org structure'!E164 -> 0
A168: ='Org structure'!E165 -> 0
A169: ='Org structure'!E166 -> 0
A170: Total Revenue by Vote | B170: 2 | C170: =C5+C16+C27+C38+C49+C60+C71+C82+C93+C104+C115+C126+C137+C148+C159 -> 345723035 | D170: =D5+D16+D27+D38+D49+D60+D71+D82+D93+D104+D115+D126+D137+D148+D159 -> 320569179 | E170: =E5+E16+E27+E38+E49+E60+E71+E82+E93+E104+E115+E126+E137+E148+E159 -> 344212945 | F170: 402707680.4 | G170: 469124881.4 | H170: 469124881.4 | I170: =I5+I16+I27+I38+I49+I60+I71+I82+I93+I104+I115+I126+I137+I148+I159 -> 460142443 | J170: 495327606 | K170: 528562346 | L170: =SUM(L78:L81) -> 0 | M170: 0 | N170: 0 | O170: 0 | P170: 0 | Q170: 0 | R170: 0 | S170: 0 | T170: 0 | U170: 0 | V170: 0 | W170: 0
A172: Expenditure by Vote | B172: 1
A173: =A5 -> Vote 1 - Executive & Council | C173: =SUM(C174:C183) -> 56239143 | D173: 71524875.87 | E173: 65494849 | F173: 47800391.17 | G173: 52383119.17 | H173: 52383119.17 | I173: 55042807 | J173: 58188850 | K173: 61461249
A174: =A6 -> 1,1 - Mayor and Council | C174: 46697647 | D174: 61666926.82 | E174: 58053543 | F174: 39561229.98 | G174: 43261501.98 | H174: 43261501.98 | I174: 43765407 | J174: 46191460 | K174: 48752886
A175: 1,2 - Municipal Manager | C175: 9541496 | D175: 9857949.05 | E175: 7441306 | F175: 8239161.19 | G175: 9121617.19 | H175: 9121617.19 | I175: 11277400 | J175: 11997390 | K175: 12708363
A176: 0
A177: 0
A178: 0
A179: 0
A180: 0
A181: 0
A182: 0
A183: 0
A184: =A16 -> Vote 2 - Finance and Administration | C184: =SUM(C185:C194) -> 64647846 | D184: =SUM(D185:D194) -> 72040130.04 | E184: =SUM(E185:E194) -> 80597238 | F184: 74406900.69 | G184: 90901596.69 | H184: 90901596.69 | I184: 98346377 | J184: 103669749 | K184: 109799312
A185: =A17 -> 2,1 - Administrative and Corporate Support | C185: 15367614 | D185: 14080487.02 | E185: 25731390 | F185: 20206768.22 | G185: 21178859.22 | H185: 21178859.22 | I185: 20840040 | J185: 22058795 | K185: 23349814
A186: 2,2 - Asset Management | C186: 0 | D186: 0 | E186: 4088835 | F186: 4087160.29 | G186: 4276405.29 | H186: 4276405.29 | I186: 5306062 | J186: 5644396 | K186: 6004574
A187: 2,3 - Budget and Treasury Office | C187: 22859510 | D187: 27485052.87 | E187: 26820570 | F187: 23968834.34 | G187: 31766182.34 | H187: 31766182.34 | I187: 32503101 | J187: 34317463 | K187: 36241885
A188: 2,4 - Human Resource | C188: 4521657 | D188: 3689633.19 | E188: 5181285 | F188: 6977174.93 | G188: 8062539.93 | H188: 8062539.93 | I188: 8903613 | J188: 9420724 | K188: 9968266
A189: 2,5 - Information Technology | C189: 3453761 | D189: 4603479.21 | E189: 6364955 | F189: 6403449.82 | G189: 5438745.82 | H189: 5438745.82 | I189: 6587608 | J189: 6972965 | K189: 7381176
A190: 2,6 - Legal Services | C190: 0 | D190: 0 | E190: 6398289 | F190: 4346185.1 | G190: 7090268.1 | H190: 7090268.1 | I190: 6674848 | J190: 7026847 | K190: 7433891
A191: 2,7 - Customer Relation and Coordination | C191: 0 | D191: 0 | E191: 1427977 | F191: 2151894.46 | G191: 2151894.46 | H191: 2151894.46 | I191: 4059673 | J191: 3858915 | K191: 4091563
A192: 2,8 - Property Services | C192: 18445304 | D192: 22181477.75 | E192: 1456662 | F192: 3136452 | G192: 7599612 | H192: 7599612 | I192: 10036054 | J192: 10703398 | K192: 11415432
A193: 2,9 - Risk Management | C193: 0 | D193: 0 | E193: 826803 | F193: 847756.79 | G193: 864863.79 | H193: 864863.79 | I193: 1029647 | J193: 1096302 | K193: 1167319
A194: 2.10 - Supply Chain Management | C194: 0 | D194: 0 | E194: 2300472 | F194: 2281224.74 | G194: 2472225.74 | H194: 2472225.74 | I194: 2405731 | J194: 2569944 | K194: 2745392
A195: =A27 -> Vote 3 - Internal Audit | C195: =SUM(C196:C205) -> 0 | D195: 0 | E195: 1627305 | F195: 1938939.02 | G195: 2466953.02 | H195: 2466953.02 | I195: 2626731 | J195: 2792493 | K195: 2968857
A196: 3,1 - Governance Function | C196: 0 | D196: 0 | E196: 1627305 | F196: 1938939.02 | G196: 2466953.02 | H196: 2466953.02 | I196: 2626731 | J196: 2792493 | K196: 2968857
A197: 0
A198: 0
A199: 0
A200: 0
A201: 0
... 144 more rows

Sheet A4-FinPerf RE
A1: =muni&" - "&Approve4 -> LIM332 Greater Letaba - Table A4 Budgeted Financial Performance (revenue and expenditure)
A2: =desc -> Description | B2: =head27 -> Ref | C2: =head1b -> 2015/16 | D2: =head1A -> 2016/17 | E2: =Head1 -> 2017/18 | F2: =Head2 -> Current Year 2018/19 | J2: =Head3 -> 2019/20 Medium Term Revenue & Expenditure Framework | M2: =Head4 -> LTFS
A3: R thousand | B3: 1 | C3: =Head5 -> Audited Outcome | D3: =Head5 -> Audited Outcome | E3: =Head5 -> Audited Outcome | F3: =Head6 -> Original Budget | G3: =Head7 -> Adjusted Budget | H3: =Head8 -> Full Year Forecast | I3: =Head5b -> Pre-audit outcome | J3: =Head9 -> Budget Year 2019/20 | K3: =Head10 -> Budget Year +1 2020/21 | L3: =Head11 -> Budget Year +2 2021/22 | M3: =Head12 -> Forecast 2022/23 | N3: =Head13 -> Forecast 2023/24 | O3: =Head14 -> Forecast 2024/25 | P3: =Head15 -> Forecast 2025/26 | Q3: =Head16 -> Forecast 2026/27 | R3: =Head17 -> Forecast 2027/28 | S3: =Head18 -> Forecast 2028/29 | T3: =Head19 -> Forecast 2029/30 | U3: =Head20 -> Forecast 2030/31 | V3: =Head21 -> Forecast 2031/32 | W3: =Head22 -> Forecast 2032/33 | X3: =Head23 -> Forecast 2033/34
A4: Revenue By Source
A5: Property rates | B5: 2 | C5: ='SA1'!C9 -> 8977594 | D5: ='SA1'!D9 -> 11845856 | E5: ='SA1'!E9 -> 8599768 | F5: ='SA1'!F9 -> 12255327.57 | G5: ='SA1'!G9 -> 16863286.57 | H5: ='SA1'!H9 -> 16863286.57 | I5: ='SA1'!I9 -> 16863286.57 | J5: ='SA1'!J9 -> 17740178 | K5: ='SA1'!K9 -> 18698147 | L5: ='SA1'!L9 -> 19707847
A6: Service charges - electricity revenue | B6: 2 | C6: ='SA1'!C15 -> 9282999 | D6: ='SA1'!D15 -> 9782575 | E6: ='SA1'!E15 -> 9667754 | F6: ='SA1'!F15 -> 12666643.21 | G6: ='SA1'!G15 -> 24474643.21 | H6: ='SA1'!H15 -> 24474643.21 | I6: ='SA1'!I15 -> 23428502.21 | J6: ='SA1'!J15 -> 25738909 | K6: ='SA1'!K15 -> 27128809 | L6: ='SA1'!L15 -> 28593766
A7: Service charges - water revenue | B7: 2 | C7: ='SA1'!C21 -> 0 | D7: ='SA1'!D21 -> 0 | E7: ='SA1'!E21 -> 0 | F7: ='SA1'!F21 -> 0 | G7: ='SA1'!G21 -> 0 | H7: ='SA1'!H21 -> 0 | I7: ='SA1'!I21 -> 0 | J7: ='SA1'!J21 -> 0 | K7: ='SA1'!K21 -> 0 | L7: ='SA1'!L21 -> 0
A8: Service charges - sanitation revenue | B8: 2 | C8: ='SA1'!C27 -> 0 | D8: ='SA1'!D27 -> 0 | E8: ='SA1'!E27 -> 0 | F8: ='SA1'!F27 -> 0 | G8: ='SA1'!G27 -> 0 | H8: ='SA1'!H27 -> 0 | I8: ='SA1'!I27 -> 0 | J8: ='SA1'!J27 -> 0 | K8: ='SA1'!K27 -> 0 | L8: ='SA1'!L27 -> 0
A9: Service charges - refuse revenue | B9: 2 | C9: ='SA1'!C34 -> 3646541 | D9: ='SA1'!D34 -> 4053445 | E9: ='SA1'!E34 -> 4193295 | F9: ='SA1'!F34 -> 6243396.82 | G9: ='SA1'!G34 -> 8243396.82 | H9: ='SA1'!H34 -> 8243396.82 | I9: ='SA1'!I34 -> 8243396.82 | J9: ='SA1'!J34 -> 8672053 | K9: ='SA1'!K34 -> 9140344 | L9: ='SA1'!L34 -> 9633923
A11: Rental of facilities and equipment | C11: 90519 | D11: 142097 | E11: 169074 | F11: 956797.77 | G11: 956797.77 | H11: 956797.77 | I11: 956797.77 | J11: 1006551 | K11: 1060905 | L11: 1118194
A12: Interest earned - external investments | C12: 3925076 | D12: 5885924 | E12: 4605544 | F12: 4519515.44 | G12: 4519515.44 | H12: 4519515.44 | I12: 4519515.44 | J12: 4754530 | K12: 5011275 | L12: 5281884
A13: Interest earned - outstanding debtors | C13: 7752685 | D13: 9162216 | E13: 10309711 | F13: 8441397.77 | G13: 19227652.77 | H13: 19227652.77 | I13: 19227652.77 | J13: 20227491 | K13: 21319776 | L13: 22471044
A14: Dividends received | C14: 0 | D14: 0 | E14: 0 | F14: 0 | G14: 0 | H14: 0 | I14: 0 | J14: 0 | K14: 0 | L14: 0
A15: Fines, penalties and forfeits | C15: 1932180 | D15: 1373405 | E15: 993006 | F15: 1200000 | G15: 1200000 | H15: 1200000 | I15: 1200000 | J15: 1262400 | K15: 1330570 | L15: 1402420
A16: Licences and permits | C16: 2901591 | D16: 4261961 | E16: 10675069 | F16: 8085004.64 | G16: 22685004.64 | H16: 22685004.64 | I16: 22685004.64 | J16: 23864625 | K16: 25153315 | L16: 26511594
A17: Agency services | C17: 1813180 | D17: 1975516 | E17: 2258635 | F17: 2176014.33 | G17: 2176014.33 | H17: 2176014.33 | I17: 2176014.33 | J17: 2289167 | K17: 2412782 | L17: 2543072
A18: Transfers and subsidies | C18: 212960000 | D18: 209514001 | E18: =291695123-64658124 -> 227036999 | F18: 248358000 | G18: 248358000 | H18: 248358000 | I18: 248358000 | J18: 281624000 | K18: 300105000 | L18: 321890000
A19: Other revenue | B19: 2 | C19: ='SA1'!C49 -> 3280960 | D19: ='SA1'!D49 -> 1239860 | E19: ='SA1'!E49 -> 842364 | F19: ='SA1'!F49 -> 34785582.68 | G19: ='SA1'!G49 -> 37400569.68 | H19: ='SA1'!H49 -> 37400569.68 | I19: ='SA1'!I49 -> 37400569.68 | J19: ='SA1'!J49 -> 14747535 | K19: ='SA1'!K49 -> 15543903 | L19: ='SA1'!L49 -> 16383272
A20: Gains on disposal of PPE | C20: 0 | D20: 0 | E20: 203602 | F20: 577000 | G20: 577000 | H20: 577000 | I20: 577000 | J20: 607004 | K20: 639782 | L20: 674330
A21: Total Revenue (excluding capital transfers and contributions) | C21: =SUM(C5:C9)+SUM(C11:C20) -> 256563325 | D21: =SUM(D5:D9)+SUM(D11:D20) -> 259236856 | E21: 279554821 | F21: 340264680.2 | G21: 386681881.2 | H21: 386681881.2 | I21: 385635740.2 | J21: 402534443 | K21: 427544608 | L21: 456211346 | M21: =SUM(M5:M20) -> 0 | N21: 0 | O21: 0 | P21: 0 | Q21: 0 | R21: 0 | S21: 0 | T21: 0 | U21: 0 | V21: 0 | W21: 0 | X21: 0
A23: Expenditure By Type
A24: Employee related costs | B24: 2 | C24: ='SA1'!C67 -> 64406539 | D24: ='SA1'!D67 -> 68377015 | E24: ='SA1'!E67 -> 74714220 | F24: ='SA1'!F67 -> 78303797.25 | G24: ='SA1'!G67 -> 95266292.25 | H24: ='SA1'!H67 -> 95266292.25 | I24: ='SA1'!I67 -> 95266292.25 | J24: ='SA1'!J67 -> 107636135 | K24: ='SA1'!K67 -> 115063029 | L24: ='SA1'!L67 -> 123002381
A25: Remuneration of councillors | C25: 17728499 | D25: 18896474 | E25: 20873647 | F25: 22467855 | G25: 22882032 | H25: 22882032 | I25: 22882032 | J25: 24071901 | K25: 25371784 | L25: 26741860
A26: Debt impairment | B26: 3 | C26: 9513612 | D26: 24545889 | E26: 19199926 | F26: 1956620.19 | G26: 1956620.19 | H26: 1956620.19 | I26: 1956620.19 | J26: 2058364 | K26: 2169516 | L26: 2286670
A27: Depreciation & asset impairment | B27: 2 | C27: ='SA1'!C83 -> 21569539 | D27: ='SA1'!D83 -> 31106428 | E27: ='SA1'!E83 -> 28680829 | F27: ='SA1'!F83 -> 5043379.81 | G27: ='SA1'!G83 -> 5942210.81 | H27: ='SA1'!H83 -> 5942210.81 | I27: ='SA1'!I83 -> 5942210.81 | J27: ='SA1'!J83 -> 6251207 | K27: ='SA1'!K83 -> 6588772 | L27: ='SA1'!L83 -> 6944565
A28: Finance charges | C28: 0 | D28: 0 | E28: 0 | F28: 0 | G28: 0 | H28: 0 | I28: 0 | J28: 0 | K28: 0 | L28: 0
A29: Bulk purchases | B29: 2 | C29: ='SA1'!C88 -> 8728768 | D29: ='SA1'!D88 -> 13029942 | E29: ='SA1'!E88 -> 14679655 | F29: ='SA1'!F88 -> 17096559 | G29: ='SA1'!G88 -> 17096559 | H29: ='SA1'!H88 -> 17096559 | I29: ='SA1'!I88 -> 17096559 | J29: ='SA1'!J88 -> 17985580 | K29: ='SA1'!K88 -> 18956801 | L29: ='SA1'!L88 -> 19980468
A30: Other materials | B30: 8 | C30: 0 | D30: 0 | E30: 0 | F30: 0 | G30: 0 | H30: 0 | I30: 0 | J30: 0 | K30: 0 | L30: 0
A31: Contracted services | C31: ='SA1'!C127 -> 9272936 | D31: ='SA1'!D127 -> 13404220 | E31: ='SA1'!E127 -> 13883089 | F31: ='SA1'!F127 -> 15119136.5 | G31: ='SA1'!G127 -> 19376165.5 | H31: ='SA1'!H127 -> 19376165.5 | I31: ='SA1'!I127 -> 19376165.5 | J31: ='SA1'!J127 -> 19459626 | K31: ='SA1'!K127 -> 20510449 | L31: ='SA1'!L127 -> 21618010
A32: Transfers and subsidies | C32: ='SA1'!C93 -> 0 | D32: ='SA1'!D93 -> 0 | E32: ='SA1'!E93 -> 0 | F32: ='SA1'!F93 -> 0 | G32: ='SA1'!G93 -> 0 | H32: ='SA1'!H93 -> 0 | I32: ='SA1'!I93 -> 0 | J32: ='SA1'!J93 -> 0 | K32: ='SA1'!K93 -> 0 | L32: ='SA1'!L93 -> 0
A33: Other expenditure | B33: 4, 5 | C33: ='SA1'!C157 -> 58298714 | D33: ='SA1'!D157 -> 61130028 | E33: ='SA1'!E157 -> 75634027 | F33: ='SA1'!F157 -> 83443013.61 | G33: ='SA1'!G157 -> 112943586.3 | H33: ='SA1'!H157 -> 112943586.3 | I33: ='SA1'!I157 -> 112943586.3 | J33: ='SA1'!J157 -> 131125409 | K33: ='SA1'!K157 -> 120844965 | L33: ='SA1'!L157 -> 127437176
A34: Loss on disposal of PPE | J34: 0 | K34: 0 | L34: 0
A35: Total Expenditure | C35: =SUM(C24:C34) -> 189518607 | D35: =SUM(D24:D34) -> 230489996 | E35: 247665393 | F35: 223430361.4 | G35: 275463466.1 | H35: 275463466.1 | I35: 275463466.1 | J35: 308588222 | K35: 309505316 | L35: 328011130 | M35: =SUM(M24:M34) -> 0 | N35: 0 | O35: 0 | P35: 0 | Q35: 0 | R35: 0 | S35: 0 | T35: 0 | U35: 0 | V35: 0 | W35: 0 | X35: 0
A37: Surplus/(Deficit) | C37: =C21-C35 -> 67044718 | D37: 28746860 | E37: 31889428 | F37: 116834318.9 | G37: 111218415.2 | H37: 111218415.2 | I37: 110172274.2 | J37: 93946221 | K37: 118039292 | L37: 128200216 | M37: =M21+M35 -> 0 | N37: 0 | O37: 0 | P37: 0 | Q37: 0 | R37: 0 | S37: 0 | T37: 0 | U37: 0 | V37: 0 | W37: 0 | X37: 0
A38: Transfers and subsidies - capital (monetary allocations) (National / Provincial and District) | C38: 89159710 | D38: 61332323 | E38: 64658124 | F38: 62443000 | G38: =62443000+20000000 -> 82443000 | H38: =62443000+20000000 -> 82443000 | I38: =62443000+20000000 -> 82443000 | J38: 57608000 | K38: =60783000+7000000 -> 67783000 | L38: =65351000+7000000 -> 72351000
A39: Transfers and subsidies - capital (monetary allocations) (National / Provincial Departmental Agencies, Households, Non-profit Institutions, Private Enterprises, Public Corporatons, Higher Educational Institutions) | B39: 6 | C39: ='SA1'!C76 -> 0 | D39: ='SA1'!D76 -> 0 | E39: ='SA1'!E76 -> 0 | F39: ='SA1'!F76 -> 0 | G39: ='SA1'!G76 -> 0 | H39: ='SA1'!H76 -> 0 | I39: ='SA1'!I76 -> 0 | J39: ='SA1'!J76 -> 0 | K39: ='SA1'!K76 -> 0 | L39: ='SA1'!L76 -> 0
A40: Transfers and subsidies - capital (in-kind - all)
A41: Surplus/(Deficit) after capital transfers & contributions | C41: =SUM(C37:C40) -> 156204428 | D41: 90079183 | E41: 96547552 | F41: 179277318.9 | G41: 193661415.2 | H41: 193661415.2 | I41: 192615274.2 | J41: 151554221 | K41: 185822292 | L41: 200551216
A42: Taxation
A43: Surplus/(Deficit) after taxation | C43: =C41-C42 -> 156204428 | D43: 90079183 | E43: 96547552 | F43: 179277318.9 | G43: 193661415.2 | H43: 193661415.2 | I43: 192615274.2 | J43: 151554221 | K43: 185822292 | L43: 200551216
A44: Attributable to minorities
A45: Surplus/(Deficit) attributable to municipality | C45: =SUM(C43:C44) -> 156204428 | D45: 90079183 | E45: 96547552 | F45: 179277318.9 | G45: 193661415.2 | H45: 193661415.2 | I45: 192615274.2 | J45: 151554221 | K45: 185822292 | L45: 200551216
A46: Share of surplus/ (deficit) of associate | B46: 7
A47: =result -> Surplus/(Deficit) for the year | C47: =SUM(C45:C46) -> 156204428 | D47: 90079183 | E47: 96547552 | F47: 179277318.9 | G47: 193661415.2 | H47: 193661415.2 | I47: 192615274.2 | J47: 151554221 | K47: 185822292 | L47: 200551216 | M47: =M25+M46 -> 0 | N47: 0 | O47: 0 | P47: 0 | Q47: 0 | R47: 0 | S47: 0 | T47: 0 | U47: 0 | V47: 0 | W47: 0 | X47: 0
A48: =head27a -> References
A49: 1. Classifications are revenue sources and expenditure type
A50: 2. Detail to be provided in Table SA1
A51: 3. Previously described as 'bad or doubtful debts' - amounts shown should reflect the change in the provision for debt impairment
A52: 4. Expenditure type components previously shown under repairs and maintenance should be allocated back to the originating expenditure group/item; e.g. employee costs
A53: 5. Repairs & maintenance detailed in Table A9 and Table SA34c
A54: 6. Contributions are funds provided by external organisations to assist with infrastructure development; e.g. developer contributions (detail to be provided in Table SA1)
A55: 7. Equity method ( Includes Joint Ventures)
A56: 8. All materials not part of 'bulk' e.g road making materials, pipe, cable etc.
A57: check balance | C57: =C45-'A3-FinPerf V'!C39 -> 0 | D57: =D45-'A3-FinPerf V'!D39 -> 0 | E57: =E45-'A3-FinPerf V'!E39 -> 0 | F57: =F45-'A3-FinPerf V'!F39 -> -0.04240006208 | G57: =G45-'A3-FinPerf V'!G39 -> 0.257600069 | H57: =H45-'A3-FinPerf V'!H39 -> 0.257600069 | J57: =J45-'A3-FinPerf V'!I39 -> 4 | K57: =K45-'A3-FinPerf V'!J39 -> -2 | L57: =L45-'A3-FinPerf V'!K39 -> -2
A59: Total revenue | C59: =C21+SUM(C38:C40) -> 345723035 | D59: 320569179 | E59: 344212945 | F59: 402707680.2 | G59: 469124881.2 | H59: 469124881.2 | I59: 468078740.2 | J59: 460142443 | K59: 495327608 | L59: 528562346

Sheet A5-Capex
A2: =Vdesc -> Vote Description | B2: =head27 -> Ref | C2: =head1b -> 2015/16 | D2: =head1A -> 2016/17 | E2: =Head1 -> 2017/18 | F2: =Head2 -> Current Year 2018/19 | J2: =Head3 -> 2019/20 Medium Term Revenue & Expenditure Framework
A3: R thousand | B3: 1 | C3: =Head5 -> Audited Outcome | D3: =Head5 -> Audited Outcome | E3: =Head5 -> Audited Outcome | F3: =Head6 -> Original Budget | G3: =Head7 -> Adjusted Budget | H3: =Head8 -> Full Year Forecast | I3: =Head5b -> Pre-audit outcome | J3: =Head9 -> Budget Year 2019/20 | K3: =Head10 -> Budget Year +1 2020/21 | L3: =Head11 -> Budget Year +2 2021/22
A4: Capital expenditure - Vote
A5: Multi-year expenditure to be appropriated | B5: 2
A6: =A5A!A6 -> Vote 1 - Executive & Council | C6: =A5A!C6 -> 0 | D6: =A5A!D6 -> 0 | E6: =A5A!E6 -> 0 | F6: =A5A!F6 -> 0 | G6: =A5A!G6 -> 0 | H6: =A5A!H6 -> 0 | I6: =A5A!I6 -> 0 | J6: =A5A!J6 -> 0 | K6: =A5A!K6 -> 0 | L6: =A5A!L6 -> 0
A7: =A5A!A17 -> Vote 2 - Finance and Administration | C7: =A5A!C17 -> 0 | D7: =A5A!D17 -> 0 | E7: =A5A!E17 -> 0 | F7: =A5A!F17 -> 0 | G7: =A5A!G17 -> 0 | H7: =A5A!H17 -> 0 | I7: =A5A!I17 -> 0 | J7: =A5A!J17 -> 0 | K7: =A5A!K17 -> 0 | L7: =A5A!L17 -> 0
A8: =A5A!A28 -> Vote 3 - Internal Audit | C8: =A5A!C28 -> 0 | D8: =A5A!D28 -> 0 | E8: =A5A!E28 -> 0 | F8: =A5A!F28 -> 0 | G8: =A5A!G28 -> 0 | H8: =A5A!H28 -> 0 | I8: =A5A!I28 -> 0 | J8: =A5A!J28 -> 0 | K8: =A5A!K28 -> 0 | L8: =A5A!L28 -> 0
A9: =A5A!A39 -> Vote 4 - Community and Public Safety | C9: =A5A!C39 -> 9816354 | D9: =A5A!D39 -> 18440000 | E9: =A5A!E39 -> 8865104 | F9: =A5A!F39 -> 3218446 | G9: =A5A!G39 -> 1718446 | H9: =A5A!H39 -> 1718446 | I9: =A5A!I39 -> 1718446 | J9: =A5A!J39 -> 3100000 | K9: =A5A!K39 -> 3900000 | L9: =A5A!L39 -> 0
A10: =A5A!A50 -> Vote 5 - Sports and Recreation | C10: =A5A!C50 -> 3193643 | D10: =A5A!D50 -> 6740167 | E10: =A5A!E50 -> 46132125 | F10: =A5A!F50 -> 63505497 | G10: =A5A!G50 -> 66671312 | H10: =A5A!H50 -> 66671312 | I10: =A5A!I50 -> 66671312 | J10: =A5A!J50 -> 43635415 | K10: =A5A!K50 -> 38582889 | L10: =A5A!L50 -> 21681111
A11: =A5A!A61 -> Vote 6 - Housing | C11: =A5A!C61 -> 0 | D11: =A5A!D61 -> 0 | E11: =A5A!E61 -> 0 | F11: =A5A!F61 -> 0 | G11: =A5A!G61 -> 0 | H11: =A5A!H61 -> 0 | I11: =A5A!I61 -> 0 | J11: =A5A!J61 -> 0 | K11: =A5A!K61 -> 0 | L11: =A5A!L61 -> 0
A12: =A5A!A72 -> Vote 7 - Planning and development | C12: =A5A!C72 -> 4111760 | D12: =A5A!D72 -> 0 | E12: =A5A!E72 -> 0 | F12: =A5A!F72 -> 0 | G12: =A5A!G72 -> 0 | H12: =A5A!H72 -> 0 | I12: =A5A!I72 -> 0 | J12: =A5A!J72 -> 0 | K12: =A5A!K72 -> 0 | L12: =A5A!L72 -> 0
A13: =A5A!A83 -> Vote 8 - Road Transport | C13: =A5A!C83 -> 135906114 | D13: =A5A!D83 -> 56929000 | E13: =A5A!E83 -> 0 | F13: =A5A!F83 -> 57269303.81 | G13: =A5A!G83 -> 60856960.81 | H13: =A5A!H83 -> 60856960.81 | I13: =A5A!I83 -> 60856960.81 | J13: =A5A!J83 -> 56740758 | K13: =A5A!K83 -> 126765055 | L13: =A5A!L83 -> 141871156
A14: =A5A!A94 -> Vote 9 - Energy Sources | C14: =A5A!C94 -> 0 | D14: =A5A!D94 -> 0 | E14: =A5A!E94 -> 55248315 | F14: =A5A!F94 -> 0 | G14: =A5A!G94 -> 0 | H14: =A5A!H94 -> 0 | I14: =A5A!I94 -> 0 | J14: =A5A!J94 -> 0 | K14: =A5A!K94 -> 0 | L14: =A5A!L94 -> 0
A15: =A5A!A105 -> Vote 10 - Waste Water Management | C15: =A5A!C105 -> 0 | D15: =A5A!D105 -> 0 | E15: =A5A!E105 -> 0 | F15: =A5A!F105 -> 0 | G15: =A5A!G105 -> 0 | H15: =A5A!H105 -> 0 | I15: =A5A!I105 -> 0 | J15: =A5A!J105 -> 0 | K15: =A5A!K105 -> 0 | L15: =A5A!L105 -> 0
A16: =A5A!A116 -> Vote 11 - Waste Management | C16: =A5A!C116 -> 0 | D16: =A5A!D116 -> 0 | E16: =A5A!E116 -> 0 | F16: =A5A!F116 -> 0 | G16: =A5A!G116 -> 0 | H16: =A5A!H116 -> 0 | I16: =A5A!I116 -> 0 | J16: =A5A!J116 -> 0 | K16: =A5A!K116 -> 0 | L16: =A5A!L116 -> 0
A17: =A5A!A127 -> Vote 12 - [NAME OF VOTE 12] | C17: =A5A!C127 -> 0 | D17: =A5A!D127 -> 0 | E17: =A5A!E127 -> 0 | F17: =A5A!F127 -> 0 | G17: =A5A!G127 -> 0 | H17: =A5A!H127 -> 0 | I17: =A5A!I127 -> 0 | J17: =A5A!J127 -> 0 | K17: =A5A!K127 -> 0 | L17: =A5A!L127 -> 0
A18: =A5A!A138 -> Vote 13 - [NAME OF VOTE 13] | C18: =A5A!C138 -> 0 | D18: =A5A!D138 -> 0 | E18: =A5A!E138 -> 0 | F18: =A5A!F138 -> 0 | G18: =A5A!G138 -> 0 | H18: =A5A!H138 -> 0 | I18: =A5A!I138 -> 0 | J18: =A5A!J138 -> 0 | K18: =A5A!K138 -> 0 | L18: =A5A!L138 -> 0
A19: =A5A!A149 -> Vote 14 - [NAME OF VOTE 14] | C19: =A5A!C149 -> 0 | D19: =A5A!D149 -> 0 | E19: =A5A!E149 -> 0 | F19: =A5A!F149 -> 0 | G19: =A5A!G149 -> 0 | H19: =A5A!H149 -> 0 | I19: =A5A!I149 -> 0 | J19: =A5A!J149 -> 0 | K19: =A5A!K149 -> 0 | L19: =A5A!L149 -> 0
A20: =A5A!A160 -> Vote 15 - [NAME OF VOTE 15] | C20: =A5A!C160 -> 0 | D20: =A5A!D160 -> 0 | E20: =A5A!E160 -> 0 | F20: =A5A!F160 -> 0 | G20: =A5A!G160 -> 0 | H20: =A5A!H160 -> 0 | I20: =A5A!I160 -> 0 | J20: =A5A!J160 -> 0 | K20: =A5A!K160 -> 0 | L20: =A5A!L160 -> 0
A21: Capital multi-year expenditure sub-total | B21: 7 | C21: =SUM(C6:C20) -> 153027871 | D21: =SUM(D6:D20) -> 82109167 | E21: 110245544 | F21: 123993246.8 | G21: 129246718.8 | H21: =SUM(H6:H20) -> 129246718.8 | I21: 129246718.8 | J21: 103476173 | K21: 169247944 | L21: 163552267
A23: Single-year expenditure to be appropriated | B23: 2
A24: =A6 -> Vote 1 - Executive & Council | C24: =A5A!C175 -> 0 | D24: =A5A!D175 -> 0 | E24: =A5A!E175 -> 1959142 | F24: =A5A!F175 -> 0 | G24: =A5A!G175 -> 0 | H24: =A5A!H175 -> 0 | I24: =A5A!I175 -> 0 | J24: =A5A!J175 -> 525000 | K24: =A5A!K175 -> 0 | L24: =A5A!L175 -> 0
A25: =A7 -> Vote 2 - Finance and Administration | C25: =A5A!C186 -> 1631093 | D25: =A5A!D186 -> 3922000 | E25: =A5A!E186 -> 1653375 | F25: =A5A!F186 -> 7086000 | G25: =A5A!G186 -> 6419665 | H25: =A5A!H186 -> 6419665 | I25: =A5A!I186 -> 6419665 | J25: =A5A!J186 -> 4417000 | K25: =A5A!K186 -> 0 | L25: =A5A!L186 -> 0
A26: Vote 3 - Internal Audit | C26: =A5A!C197 -> 0 | D26: =A5A!D197 -> 0 | E26: =A5A!E197 -> 0 | F26: =A5A!F197 -> 0 | G26: =A5A!G197 -> 0 | H26: =A5A!H197 -> 0 | I26: =A5A!I197 -> 0 | J26: =A5A!J197 -> 0 | K26: =A5A!K197 -> 0 | L26: =A5A!L197 -> 0
A27: Vote 4 - Community and Public Safety | C27: =A5A!C208 -> 314568 | D27: =A5A!D208 -> 0 | E27: =A5A!E208 -> 7226812 | F27: =A5A!F208 -> 400000 | G27: =A5A!G208 -> 400000 | H27: =A5A!H208 -> 400000 | I27: =A5A!I208 -> 400000 | J27: =A5A!J208 -> 1863000 | K27: =A5A!K208 -> 0 | L27: =A5A!L208 -> 0
A28: Vote 5 - Sports and Recreation | C28: =A5A!C219 -> 104312 | D28: =A5A!D219 -> 0 | E28: =A5A!E219 -> 0 | F28: =A5A!F219 -> 0 | G28: =A5A!G219 -> 0 | H28: =A5A!H219 -> 0 | I28: =A5A!I219 -> 0 | J28: =A5A!J219 -> 0 | K28: =A5A!K219 -> 0 | L28: =A5A!L219 -> 0
A29: Vote 6 - Housing | C29: =A5A!C230 -> 0 | D29: =A5A!D230 -> 0 | E29: =A5A!E230 -> 0 | F29: =A5A!F230 -> 0 | G29: =A5A!G230 -> 0 | H29: =A5A!H230 -> 0 | I29: =A5A!I230 -> 0 | J29: =A5A!J230 -> 0 | K29: =A5A!K230 -> 0 | L29: =A5A!L230 -> 0
A30: Vote 7 - Planning and development | C30: =A5A!C241 -> 0 | D30: =A5A!D241 -> 1011000 | E30: =A5A!E241 -> 0 | F30: =A5A!F241 -> 0 | G30: =A5A!G241 -> 0 | H30: =A5A!H241 -> 0 | I30: =A5A!I241 -> 0 | J30: =A5A!J241 -> 0 | K30: =A5A!K241 -> 0 | L30: =A5A!L241 -> 0
A31: Vote 8 - Road Transport | C31: =A5A!C252 -> 15600255 | D31: =A5A!D252 -> 230000 | E31: =A5A!E252 -> 23092981 | F31: =A5A!F252 -> 17659306.26 | G31: =A5A!G252 -> 19529000.26 | H31: =A5A!H252 -> 19529000.26 | I31: =A5A!I252 -> 19529000.26 | J31: =A5A!J252 -> 15643047 | K31: =A5A!K252 -> 3747986 | L31: =A5A!L252 -> 3998733
A32: Vote 9 - Energy Sources | C32: =A5A!C263 -> 3873785 | D32: =A5A!D263 -> 14080000 | E32: =A5A!E263 -> 13201925 | F32: =A5A!F263 -> 18334111.6 | G32: =A5A!G263 -> 26461367.6 | H32: =A5A!H263 -> 26461367.6 | I32: =A5A!I263 -> 26461367.6 | J32: =A5A!J263 -> 15100000 | K32: =A5A!K263 -> 9500000 | L32: =A5A!L263 -> 17491920
A33: Vote 10 - Waste Water Management | C33: =A5A!C274 -> 1638257 | D33: =A5A!D274 -> 0 | E33: =A5A!E274 -> 2278685 | F33: =A5A!F274 -> 5664654.45 | G33: =A5A!G274 -> 6464654.45 | H33: =A5A!H274 -> 6464654.45 | I33: =A5A!I274 -> 6464654.45 | J33: =A5A!J274 -> 3680000 | K33: =A5A!K274 -> 3326364 | L33: =A5A!L274 -> 15508298
A34: Vote 11 - Waste Management | C34: =A5A!C285 -> 52500 | D34: =A5A!D285 -> 3605000 | E34: =A5A!E285 -> 3160235 | F34: =A5A!F285 -> 6140000 | G34: =A5A!G285 -> 5140000 | H34: =A5A!H285 -> 5140000 | I34: =A5A!I285 -> 5140000 | J34: =A5A!J285 -> 6850000 | K34: =A5A!K285 -> 0 | L34: =A5A!L285 -> 0
A35: Vote 12 - [NAME OF VOTE 12] | C35: =A5A!C296 -> 0 | D35: =A5A!D296 -> 0 | E35: =A5A!E296 -> 0 | F35: =A5A!F296 -> 0 | G35: =A5A!G296 -> 0 | H35: =A5A!H296 -> 0 | I35: =A5A!I296 -> 0 | J35: =A5A!J296 -> 0 | K35: =A5A!K296 -> 0 | L35: =A5A!L296 -> 0
A36: Vote 13 - [NAME OF VOTE 13] | C36: =A5A!C307 -> 0 | D36: =A5A!D307 -> 0 | E36: =A5A!E307 -> 0 | F36: =A5A!F307 -> 0 | G36: =A5A!G307 -> 0 | H36: =A5A!H307 -> 0 | I36: =A5A!I307 -> 0 | J36: =A5A!J307 -> 0 | K36: =A5A!K307 -> 0 | L36: =A5A!L307 -> 0
A37: Vote 14 - [NAME OF VOTE 14] | C37: =A5A!C318 -> 0 | D37: =A5A!D318 -> 0 | E37: =A5A!E318 -> 0 | F37: =A5A!F318 -> 0 | G37: =A5A!G318 -> 0 | H37: =A5A!H318 -> 0 | I37: =A5A!I318 -> 0 | J37: =A5A!J318 -> 0 | K37: =A5A!K318 -> 0 | L37: =A5A!L318 -> 0
A38: =A20 -> Vote 15 - [NAME OF VOTE 15] | C38: =A5A!C329 -> 0 | D38: =A5A!D329 -> 0 | E38: =A5A!E329 -> 0 | F38: =A5A!F329 -> 0 | G38: =A5A!G329 -> 0 | H38: =A5A!H329 -> 0 | I38: =A5A!I329 -> 0 | J38: =A5A!J329 -> 0 | K38: =A5A!K329 -> 0 | L38: =A5A!L329 -> 0
A39: Capital single-year expenditure sub-total | C39: =SUM(C24:C38) -> 23214770 | D39: =SUM(D24:D38) -> 22848000 | E39: 52573155 | F39: 55284072.31 | G39: 64414687.31 | H39: 64414687.31 | I39: 64414687.31 | J39: 48078047 | K39: 16574350 | L39: 36998951
A40: Total Capital Expenditure - Vote | C40: =C39+C21 -> 176242641 | D40: =D39+D21 -> 104957167 | E40: 162818699 | F40: 179277319.1 | G40: 193661406.1 | H40: 193661406.1 | I40: 193661406.1 | J40: 151554220 | K40: 185822294 | L40: 200551218
A42: Capital Expenditure - Functional
A43: Governance and administration | C43: =SUM(C44:C46) -> 1631093 | D43: =SUM(D44:D46) -> 3922000 | E43: 3612517 | F43: 7086000 | G43: 6419665 | H43: 6419665 | I43: 6419665 | J43: 4942000 | K43: 0 | L43: 0
A44: Executive and council | C44: 0 | D44: 0 | E44: 1959142 | F44: 0 | G44: 0 | H44: 0 | I44: 0 | J44: 525000 | K44: 0 | L44: 0
A45: Finance and administration | C45: 1631093 | D45: 3922000 | E45: 1653375 | F45: 7086000 | G45: 6419665 | H45: 6419665 | I45: 6419665 | J45: =2167000+35000+1250000+965000 -> 4417000 | K45: 0 | L45: 0
A46: Internal audit | C46: 0 | D46: 0 | E46: 0 | F46: 0 | G46: 0 | H46: 0 | I46: 0 | J46: 0 | K46: 0 | L46: 0
A47: Community and public safety | C47: =SUM(C48:C52) -> 17087437 | D47: =SUM(D48:D52) -> 27244167 | E47: 64302342 | F47: 44240432.2 | G47: 44262227.2 | H47: 44262227.2 | I47: 44262227.2 | J47: 51598415 | K47: 55259253 | L47: 76173031
A48: Community and social services | C48: 10131222 | D48: 18440000 | E48: 16091916 | F48: 3618446.4 | G48: 2118446.4 | H48: 2118446.4 | I48: 2118446.4 | J48: =3000+4630000+330000 -> 4963000 | K48: 3900000 | L48: 0
A49: Sport and recreation | C49: 3297955 | D49: 6740167 | E49: 46132125 | F49: 36421985.8 | G49: 36466371.8 | H49: 36466371.8 | I49: 36466371.8 | J49: =15402226+8233189+10000000+10000000 -> 43635415 | K49: =8750000+14681858+15151031 -> 38582889 | L49: =11325142+10355969 -> 21681111
A50: Public safety | C50: 3658260 | D50: 2064000 | E50: 2078301 | F50: 4200000 | G50: 5677409 | H50: 5677409 | I50: 5677409 | J50: 3000000 | K50: 12776364 | L50: 54491920
A51: Housing | C51: 0 | D51: 0 | E51: 0 | F51: 0 | G51: 0 | H51: 0 | I51: 0 | J51: 0 | K51: 0 | L51: 0
A52: Health | C52: 0 | D52: 0 | E52: 0 | F52: 0 | G52: 0 | H52: 0 | I52: 0 | J52: 0 | K52: 0 | L52: 0
A53: Economic and environmental services | C53: =SUM(C54:C56) -> 155617828 | D53: =SUM(D54:D56) -> 58170000 | E53: 78341296 | F53: 102012120.6 | G53: 110590901.6 | H53: 110590901.6 | I53: 110590901.6 | J53: 72683805 | K53: 110513041 | L53: 85869889
A54: Planning and development | C54: 5991032 | D54: 1011000 | E54: 0 | F54: 0 | G54: 0 | H54: 0 | I54: 0 | J54: 0 | K54: 0 | L54: 0
A55: Road transport | C55: 149626796 | D55: 57159000 | E55: 78341296 | F55: 102012120.6 | G55: =90590901.61+20000000 -> 110590901.6 | H55: =90590901.61+20000000 -> 110590901.6 | I55: =90590901.61+20000000 -> 110590901.6 | J55: =40478994+2830000+9861764+8000000+1000000+7000000+3513047 -> 72683805 | K55: =79562930+14002125+600000+600000+4000000+8000000+3747986 -> 110513041 | L55: =42200000+6113111+15700000+15458045+2400000+3998733 -> 85869889
A56: Environmental protection | C56: 0 | D56: 0 | E56: 0 | F56: 0 | G56: 0 | H56: 0 | I56: 0 | J56: 0 | K56: 0 | L56: 0
A57: Trading services | C57: =SUM(C58:C61) -> 1906282 | D57: =SUM(D58:D61) -> 15621000 | E57: 22423382 | F57: 25938766.05 | G57: 32388766.05 | H57: 32388766.05 | I57: 32388766.05 | J57: 22330000 | K57: 20050000 | L57: 38508298
A58: Energy sources | C58: 215525 | D58: 12016000 | E58: 16984462 | F58: 14134111.6 | G58: 20784111.6 | H58: 20784111.6 | I58: 20784111.6 | J58: 11800000 | K58: 7000000 | L58: 7000000
A59: Water management | C59: 0 | D59: 0 | E59: 0 | F59: 0 | G59: 0 | H59: 0 | I59: 0 | J59: 0 | K59: 0 | L59: 0
A60: Waste water management | C60: 52500 | D60: 0 | E60: 2278685 | F60: 5664654.45 | G60: 6464654.45 | H60: 6464654.45 | I60: 6464654.45 | J60: 3680000 | K60: 13050000 | L60: 31508298
A61: Waste management | C61: 1638257 | D61: 3605000 | E61: 3160235 | F61: 6140000 | G61: 5140000 | H61: 5140000 | I61: 5140000 | J61: 6850000 | K61: 0 | L61: 0
A62: Other | F62: 0 | G62: 0 | H62: 0 | I62: 0 | J62: 0 | K62: 0 | L62: 0
A63: Total Capital Expenditure - Functional | B63: 3 | C63: =C43+C47+C53+C57+C62 -> 176242640 | D63: =D43+D47+D53+D57+D62 -> 104957167 | E63: 168679537 | F63: 179277318.9 | G63: 193661559.9 | H63: 193661559.9 | I63: 193661559.9 | J63: 151554220 | K63: 185822294 | L63: =L43+L47+L53+L57+L62 -> 200551218
A65: Funded by:
A66: National Government | C66: 89314320 | D66: =48341000+5105000 -> 53446000 | E66: =61162000 -> 61162000 | F66: 56460000 | G66: =56460000+20000000 -> 76460000 | H66: =56460000+20000000 -> 76460000 | I66: =56460000+20000000 -> 76460000 | J66: 57608000 | K66: 60783000 | L66: 65351000
A67: Provincial Government | G67: 0 | H67: 0 | I67: 0
A68: District Municipality | G68: 0 | H68: 0 | I68: 0
A69: Other transfers and grants | E69: 6000000 | F69: 5983000 | G69: 5983000 | H69: 5983000 | I69: 5983000 | J69: 0 | K69: 7000000 | L69: 7000000
A70: Transfers recognised - capital | B70: 4 | C70: =SUM(C66:C69) -> 89314320 | D70: 53446000 | E70: 67162000 | F70: 62443000 | G70: 82443000 | H70: 82443000 | I70: 82443000 | J70: 57608000 | K70: 67783000 | L70: 72351000
A72: Borrowing | B72: 6
A73: Internally generated funds | C73: 86928320 | D73: 51511167 | E73: 101517537 | F73: 116834318.9 | G73: 111218559.9 | H73: 111218559.9 | I73: 111218559.9 | J73: 93946220 | K73: 118039294 | L73: 128200218
A74: Total Capital Funding | B74: 7 | C74: =+C70+C72+C73 -> 176242640 | D74: =+D70+D72+D73 -> 104957167 | E74: 168679537 | F74: 179277318.9 | G74: 193661559.9 | H74: 193661559.9 | I74: 193661559.9 | J74: 151554220 | K74: 185822294 | L74: 200551218
A75: =head27a -> References
A76: 1. Municipalities may choose to appropriate for capital expenditure for three years or for one year (if one year appropriation projected expenditure required for yr2 and yr3).
A77: 2. Include capital component of PPP unitary payment. Note that capital transfers are only appropriated to municipalities for the budget year
A78: 3. Capital expenditure by functional classification must reconcile to the appropriations by vote
A79: 4. Must reconcile to supporting table SA20 and to Budgeted Financial Performance (revenue and expenditure)
A81: 6. Include finance leases and PPP capital funding component of unitary payment - total borrowing/repayments to reconcile to changes in Table SA17
A82: 7. Total Capital Funding must balance with Total Capital Expenditure
A83: 8. Include any capitalised interest (MFMA section 46) as part of relevant capital budget
A85: check balance | C85: =IF((C63-C74)=0,0,"Unbalanced") -> 0 | D85: =IF((D63-D74)=0,0,"Unbalanced") -> 0 | E85: 0 | F85: 0 | G85: 0 | H85: 0 | I85: 0 | J85: 0 | K85: 0 | L85: 0

Sheet A5A
A1: =muni&" - "&Approve5 -> LIM332 Greater Letaba - Table A5 Budgeted Capital Expenditure by vote, functional classification and funding
A2: =Vdesc -> Vote Description | B2: =head27 -> Ref | C2: =head1b -> 2015/16 | D2: =head1A -> 2016/17 | E2: =Head1 -> 2017/18 | F2: =Head2 -> Current Year 2018/19 | J2: =Head3 -> 2019/20 Medium Term Revenue & Expenditure Framework | N2: ="Multi-year appropriation for "&Head9& " in the "&Head2A&" Annual Budget" -> Multi-year appropriation for Budget Year 2019/20 in the 2018/19 Annual Budget | R2: ="Multi-year appropriation for "&RIGHT(Head10,7)& " in the "&Head2A&" Annual Budget" -> Multi-year appropriation for 2020/21 in the 2018/19 Annual Budget | V2: New multi-year appropriations (funds for new and existing projects)
A3: R thousand | B3: 1 | C3: =Head5 -> Audited Outcome | D3: =Head5 -> Audited Outcome | E3: =Head5 -> Audited Outcome | F3: =Head6 -> Original Budget | G3: =Head7 -> Adjusted Budget | H3: =Head8 -> Full Year Forecast | I3: =Head5b -> Pre-audit outcome | J3: =Head9 -> Budget Year 2019/20 | K3: =Head10 -> Budget Year +1 2020/21 | L3: =Head11 -> Budget Year +2 2021/22 | N3: ="Appropriation for "&RIGHT(Head9,7) -> Appropriation for 2019/20 | O3: ="Adjustments in "&Head2A -> Adjustments in 2018/19 | P3: ="Downward adjustments for "&RIGHT(Head9,7) -> Downward adjustments for 2019/20 | Q3: Appropriation carried forward | R3: ="Appropriation for "&RIGHT(Head9,7) -> Appropriation for 2019/20 | S3: ="Adjustments in "&Head2A -> Adjustments in 2018/19 | T3: ="Downward adjustments for "&RIGHT(Head9,7) -> Downward adjustments for 2019/20 | U3: Appropriation carried forward | V3: =Head9 -> Budget Year 2019/20 | W3: =Head10 -> Budget Year +1 2020/21 | X3: =Head11 -> Budget Year +2 2021/22
A4: Capital expenditure - Municipal Vote
A5: Multi-year expenditure appropriation | B5: 2
A6: ='Org structure'!A2 -> Vote 1 - Executive & Council | C6: =SUM(C7:C16) -> 0 | D6: =SUM(D7:D16) -> 0 | E6: 0 | F6: 0 | G6: 0 | H6: 0 | I6: =SUM(I7:I16) -> 0 | J6: 0 | K6: 0 | L6: 0 | N6: =SUM(N7:N16) -> 0 | O6: 0 | P6: 0 | Q6: 0 | R6: 0 | S6: 0 | T6: 0 | U6: 0 | V6: =SUM(V7:V16) -> 0 | W6: =SUM(W7:W16) -> 0 | X6: =SUM(X7:X16) -> 0
A7: ='Org structure'!E3 -> 1,1 - Mayor and Council | J7: =Q7+V7 -> 0 | K7: =U7+W7 -> 0 | L7: =X7 -> 0 | Q7: =SUM(N7:P7) -> 0 | U7: =SUM(R7:T7) -> 0
A8: ='Org structure'!E4 -> 1,2 - Municipal Manager | J8: =Q8+V8 -> 0 | K8: =U8+W8 -> 0 | L8: =X8 -> 0 | Q8: =SUM(N8:P8) -> 0 | U8: =SUM(R8:T8) -> 0
A9: ='Org structure'!E5 -> 0 | J9: =Q9+V9 -> 0 | K9: =U9+W9 -> 0 | L9: 0 | Q9: 0 | U9: 0
A10: ='Org structure'!E6 -> 0 | J10: 0 | K10: 0 | L10: 0 | Q10: 0 | U10: 0
A11: ='Org structure'!E7 -> 0 | J11: 0 | K11: 0 | L11: =X11 -> 0 | Q11: 0 | U11: 0
A12: ='Org structure'!E8 -> 0 | J12: 0 | K12: 0 | L12: 0 | Q12: 0 | U12: 0
A13: ='Org structure'!E9 -> 0 | J13: 0 | K13: 0 | L13: 0 | Q13: 0 | U13: 0
A14: ='Org structure'!E10 -> 0 | J14: 0 | K14: 0 | L14: 0 | Q14: 0 | U14: 0
A15: ='Org structure'!E11 -> 0 | J15: 0 | K15: 0 | L15: 0 | Q15: 0 | U15: 0
A16: ='Org structure'!E12 -> 0 | J16: 0 | K16: 0 | L16: 0 | Q16: 0 | U16: 0
A17: ='Org structure'!A3 -> Vote 2 - Finance and Administration | C17: =SUM(C18:C27) -> 0 | D17: =SUM(D18:D27) -> 0 | E17: 0 | F17: 0 | G17: 0 | H17: 0 | I17: =SUM(I18:I27) -> 0 | J17: 0 | K17: 0 | L17: 0 | N17: =SUM(N18:N27) -> 0 | O17: 0 | P17: 0 | Q17: 0 | R17: 0 | S17: 0 | T17: 0 | U17: 0 | V17: 0 | W17: 0 | X17: 0
A18: ='Org structure'!E14 -> 2,1 - Administrative and Corporate Support | J18: =Q18+V18 -> 0 | K18: =U18+W18 -> 0 | L18: =X18 -> 0 | Q18: =SUM(N18:P18) -> 0 | U18: 0
A19: ='Org structure'!E15 -> 2,2 - Asset Management | J19: =Q19+V19 -> 0 | K19: =U19+W19 -> 0 | L19: 0 | Q19: 0 | U19: 0
A20: ='Org structure'!E16 -> 2,3 - Budget and Treasury Office | J20: 0 | K20: 0 | L20: 0 | Q20: 0 | U20: 0
A21: ='Org structure'!E17 -> 2,4 - Human Resource | J21: 0 | K21: =U21+W21 -> 0 | L21: 0 | Q21: 0 | U21: 0
A22: ='Org structure'!E18 -> 2,5 - Information Technology | J22: 0 | K22: 0 | L22: 0 | Q22: 0 | U22: 0
A23: ='Org structure'!E19 -> 2,6 - Legal Services | J23: 0 | K23: 0 | L23: 0 | Q23: 0 | U23: 0
A24: ='Org structure'!E20 -> 2,7 - Customer Relation and Coordination | J24: 0 | K24: 0 | L24: 0 | Q24: 0 | U24: 0
A25: ='Org structure'!E21 -> 2,8 - Property Services | J25: 0 | K25: 0 | L25: 0 | Q25: 0 | U25: 0
A26: ='Org structure'!E22 -> 2,9 - Risk Management | J26: 0 | K26: 0 | L26: 0 | Q26: 0 | U26: 0
A27: ='Org structure'!E23 -> 2.10 - Supply Chain Management | J27: 0 | K27: 0 | L27: 0 | Q27: 0 | U27: 0
A28: ='Org structure'!A4 -> Vote 3 - Internal Audit | C28: =SUM(C29:C38) -> 0 | D28: =SUM(D29:D38) -> 0 | E28: 0 | F28: 0 | G28: 0 | H28: 0 | I28: =SUM(I29:I38) -> 0 | J28: 0 | K28: 0 | L28: 0 | N28: =SUM(N29:N38) -> 0 | O28: 0 | P28: 0 | Q28: 0 | R28: 0 | S28: 0 | T28: 0 | U28: 0 | V28: 0 | W28: 0 | X28: 0
A29: ='Org structure'!E25 -> 3,1 - Governance Function | J29: =Q29+V29 -> 0 | K29: =U29+W29 -> 0 | L29: =X29 -> 0 | Q29: =SUM(N29:P29) -> 0 | U29: 0
A30: ='Org structure'!E26 -> 0 | J30: 0 | K30: 0 | L30: 0 | Q30: 0 | U30: 0
A31: ='Org structure'!E27 -> 0 | J31: 0 | K31: 0 | L31: 0 | Q31: 0 | U31: =SUM(R31:T31) -> 0
A32: ='Org structure'!E28 -> 0 | J32: 0 | K32: =U32+W32 -> 0 | L32: 0 | Q32: 0 | U32: 0
A33: ='Org structure'!E29 -> 0 | J33: =Q33+V33 -> 0 | K33: 0 | L33: 0 | Q33: 0 | U33: 0
A34: ='Org structure'!E30 -> 0 | J34: 0 | K34: 0 | L34: 0 | Q34: 0 | U34: 0
A35: ='Org structure'!E31 -> 0 | J35: 0 | K35: 0 | L35: 0 | Q35: 0 | U35: 0
A36: ='Org structure'!E32 -> 0 | J36: 0 | K36: 0 | L36: 0 | Q36: 0 | U36: 0
A37: ='Org structure'!E33 -> 0 | J37: 0 | K37: 0 | L37: 0 | Q37: 0 | U37: 0
A38: ='Org structure'!E34 -> 0 | J38: 0 | K38: 0 | L38: 0 | Q38: 0 | U38: 0
A39: ='Org structure'!A5 -> Vote 4 - Community and Public Safety | C39: =SUM(C40:C49) -> 9816354 | D39: =SUM(D40:D49) -> 18440000 | E39: 8865104 | F39: 3218446 | G39: 1718446 | H39: 1718446 | I39: =SUM(I40:I49) -> 1718446 | J39: 3100000 | K39: 3900000 | L39: 0 | N39: =SUM(N40:N49) -> 0 | O39: 0 | P39: 0 | Q39: 0 | R39: 0 | S39: 0 | T39: 0 | U39: 0 | V39: 3100000 | W39: 3900000 | X39: 0
A40: ='Org structure'!E36 -> 4,1 - Cemetries and crematoriums | F40: 0 | G40: 0 | H40: 0 | I40: 0 | J40: =Q40+V40 -> 0 | K40: =U40+W40 -> 0 | L40: =X40 -> 0 | Q40: =SUM(N40:P40) -> 0 | U40: 0
A41: ='Org structure'!E37 -> 4,2 - Community halls and Facilities | C41: 7088575 | D41: 17252000 | E41: 5033257 | F41: 1600000 | G41: 600000 | H41: 600000 | I41: 600000 | J41: 3100000 | K41: 3900000 | L41: 0 | Q41: 0 | U41: 0 | V41: 3100000 | W41: 3900000 | X41: 0
A42: ='Org structure'!E38 -> 4,3 - Disaster Management | F42: 0 | G42: 0 | H42: 0 | I42: 0 | J42: 0 | K42: 0 | L42: 0 | Q42: 0 | U42: 0 | V42: 0 | W42: 0 | X42: 0
A43: ='Org structure'!E39 -> 4,4 - Libraries and Archives | C43: 2727779 | D43: 1188000 | E43: 3831847 | F43: 1618446 | G43: 1118446 | H43: 1118446 | I43: 1118446 | J43: 0 | K43: 0 | L43: 0 | Q43: 0 | U43: 0 | V43: 0 | W43: 0 | X43: 0
A44: ='Org structure'!E40 -> 0 | J44: 0 | K44: 0 | L44: 0 | Q44: 0 | U44: 0
A45: ='Org structure'!E41 -> 0 | J45: 0 | K45: 0 | L45: 0 | Q45: 0 | U45: 0
A46: ='Org structure'!E42 -> 0 | J46: 0 | K46: 0 | L46: 0 | Q46: 0 | U46: 0
A47: ='Org structure'!E43 -> 0 | J47: 0 | K47: 0 | L47: 0 | Q47: 0 | U47: 0
A48: ='Org structure'!E44 -> 0 | J48: 0 | K48: 0 | L48: 0 | Q48: 0 | U48: 0
A49: ='Org structure'!E45 -> 0 | J49: 0 | K49: 0 | L49: 0 | Q49: 0 | U49: 0
A50: ='Org structure'!A6 -> Vote 5 - Sports and Recreation | C50: =SUM(C51:C60) -> 3193643 | D50: =SUM(D51:D60) -> 6740167 | E50: 46132125 | F50: 63505497 | G50: 66671312 | H50: 66671312 | I50: =SUM(I51:I60) -> 66671312 | J50: 43635415 | K50: 38582889 | L50: 21681111 | N50: =SUM(N51:N60) -> 0 | O50: 0 | P50: 0 | Q50: 0 | R50: 0 | S50: 0 | T50: 0 | U50: 0 | V50: 43635415 | W50: 38582889 | X50: 21681111
A51: ='Org structure'!E47 -> 5,1 - Community parks | C51: 3193643 | D51: 6740167 | E51: 46132125 | F51: 63505497 | G51: 66671312 | H51: 66671312 | I51: 66671312 | J51: =Q51+V51 -> 43635415 | K51: =U51+W51 -> 38582889 | L51: =X51 -> 21681111 | Q51: =SUM(N51:P51) -> 0 | U51: 0 | V51: =15402226+10000000+10000000+8233189 -> 43635415 | W51: =8750000+14681858+15151031 -> 38582889 | X51: =11325142+10355969 -> 21681111
A52: ='Org structure'!E48 -> 0 | J52: 0 | K52: 0 | L52: 0 | Q52: 0 | U52: 0
A53: ='Org structure'!E49 -> 0 | J53: 0 | K53: 0 | L53: 0 | Q53: 0 | U53: 0
A54: ='Org structure'!E50 -> 0 | J54: 0 | K54: 0 | L54: 0 | Q54: 0 | U54: 0
A55: ='Org structure'!E51 -> 0 | J55: 0 | K55: 0 | L55: 0 | Q55: 0 | U55: 0
A56: ='Org structure'!E52 -> 0 | J56: 0 | K56: 0 | L56: 0 | Q56: 0 | U56: 0
A57: ='Org structure'!E53 -> 0 | J57: 0 | K57: 0 | L57: 0 | Q57: 0 | U57: 0
A58: ='Org structure'!E54 -> 0 | J58: 0 | K58: 0 | L58: 0 | Q58: 0 | U58: 0
A59: ='Org structure'!E55 -> 0 | J59: 0 | K59: 0 | L59: 0 | Q59: 0 | U59: 0
A60: ='Org structure'!E56 -> 0 | J60: 0 | K60: 0 | L60: 0 | Q60: 0 | U60: 0
A61: ='Org structure'!A7 -> Vote 6 - Housing | C61: =SUM(C62:C71) -> 0 | D61: =SUM(D62:D71) -> 0 | E61: 0 | F61: 0 | G61: 0 | H61: 0 | I61: =SUM(I62:I71) -> 0 | J61: 0 | K61: 0 | L61: 0 | N61: =SUM(N62:N71) -> 0 | O61: 0 | P61: 0 | Q61: 0 | R61: 0 | S61: 0 | T61: 0 | U61: 0 | V61: 0 | W61: 0 | X61: 0
A62: ='Org structure'!E58 -> 6,1 - Housing | J62: =Q62+V62 -> 0 | K62: =U62+W62 -> 0 | L62: =X62 -> 0 | Q62: =SUM(N62:P62) -> 0 | U62: 0
A63: ='Org structure'!E59 -> 0 | J63: 0 | K63: 0 | L63: 0 | Q63: 0 | U63: 0
A64: ='Org structure'!E60 -> 0 | J64: 0 | K64: 0 | L64: 0 | Q64: 0 | U64: 0
A65: ='Org structure'!E61 -> 0 | J65: 0 | K65: 0 | L65: 0 | Q65: 0 | U65: 0
A66: ='Org structure'!E62 -> 0 | J66: 0 | K66: 0 | L66: 0 | Q66: 0 | U66: 0
A67: ='Org structure'!E63 -> 0 | J67: 0 | K67: 0 | L67: 0 | Q67: 0 | U67: 0
A68: ='Org structure'!E64 -> 0 | J68: 0 | K68: 0 | L68: 0 | Q68: 0 | U68: 0
A69: ='Org structure'!E65 -> 0 | J69: 0 | K69: 0 | L69: 0 | Q69: 0 | U69: 0
A70: ='Org structure'!E66 -> 0 | J70: 0 | K70: 0 | L70: 0 | Q70: 0 | U70: 0
A71: ='Org structure'!E67 -> 0 | J71: 0 | K71: 0 | L71: 0 | Q71: 0 | U71: 0
A72: ='Org structure'!A8 -> Vote 7 - Planning and development | C72: =SUM(C73:C82) -> 4111760 | D72: 0 | E72: 0 | F72: 0 | G72: 0 | H72: 0 | I72: 0 | J72: 0 | K72: 0 | L72: 0 | N72: =SUM(N73:N82) -> 0 | O72: 0 | P72: 0 | Q72: 0 | R72: 0 | S72: 0 | T72: 0 | U72: 0 | V72: 0 | W72: 0 | X72: 0
A73: ='Org structure'!E69 -> 7,1 - Corporate Wide Strategic Planning (IDP & LED) | C73: 4111760 | D73: 0 | F73: 0 | G73: 0 | H73: 0 | I73: 0 | J73: =Q73+V73 -> 0 | K73: =U73+W73 -> 0 | L73: =X73 -> 0 | Q73: =SUM(N73:P73) -> 0 | U73: =SUM(R73:T73) -> 0
A74: ='Org structure'!E70 -> 7,2 - Town Planning and Building Regulations | J74: 0 | K74: 0 | L74: 0 | Q74: 0 | U74: 0
A75: ='Org structure'!E71 -> 7,3 - Project Management Unit | J75: 0 | K75: 0 | L75: 0 | Q75: 0 | U75: 0
A76: ='Org structure'!E72 -> 0 | J76: 0 | K76: 0 | L76: 0 | Q76: 0 | U76: 0
A77: ='Org structure'!E73 -> 0 | J77: 0 | K77: 0 | L77: 0 | Q77: 0 | U77: 0
A78: ='Org structure'!E74 -> 0 | J78: 0 | K78: 0 | L78: 0 | Q78: 0 | U78: 0
A79: ='Org structure'!E75 -> 0 | J79: 0 | K79: 0 | L79: 0 | Q79: 0 | U79: 0
A80: ='Org structure'!E76 -> 0 | J80: 0 | K80: 0 | L80: 0 | Q80: 0 | U80: 0
A81: ='Org structure'!E77 -> 0 | J81: 0 | K81: 0 | L81: 0 | Q81: 0 | U81: 0
A82: ='Org structure'!E78 -> 0 | J82: 0 | K82: 0 | L82: 0 | Q82: 0 | U82: 0
A83: ='Org structure'!A9 -> Vote 8 - Road Transport | C83: =SUM(C84:C93) -> 135906114 | D83: 56929000 | E83: 0 | F83: 57269303.81 | G83: 60856960.81 | H83: 60856960.81 | I83: 60856960.81 | J83: 56740758 | K83: 126765055 | L83: 141871156 | N83: =SUM(N84:N93) -> 0 | O83: 0 | P83: 0 | Q83: 0 | R83: 0 | S83: 0 | T83: 0 | U83: 0 | V83: 56740758 | W83: 126765055 | X83: 141871156
A84: ='Org structure'!E80 -> 8,1 - Road and Traffic Regulations | C84: 0 | D84: 0 | E84: 0 | F84: 0 | G84: 0 | H84: 0 | I84: 0 | J84: =Q84+V84 -> 0 | K84: =U84+W84 -> 0 | L84: =X84 -> 0 | Q84: =SUM(N84:P84) -> 0 | U84: 0
A85: ='Org structure'!E81 -> 8,2 - Roads | C85: 135906114 | D85: 56929000 | F85: 57269303.81 | G85: =40856960.81+20000000 -> 60856960.81 | H85: =40856960.81+20000000 -> 60856960.81 | I85: =40856960.81+20000000 -> 60856960.81 | J85: 56740758 | K85: 126765055 | L85: 141871156 | Q85: 0 | U85: 0 | V85: =3000000+3000000+5700000+3000000+7178994+4000000+400000+300000+300000+400000+400000+400000+400000+400000+400000+400000+400000+400000+400000+9861764+8000000+1000000+7000000 -> 56740758 | W85: =10000000+10000000+7644261+8454525+5600000+12332072+12332072+2500000+2500000+2500000+2500000+2500000+2500000+2500000+2500000+6600000+6600000+14002125+600000+600000+4000000+8000000 -> 126765055 | X85: =5500000+4200000+3000000+3000000+4000000+5500000+4000000+4000000+7500000+7500000+7500000+7500000+7500000+7500000+7500000+7500000+4500000+4500000+6113111+15700000+15458045+2400000 -> 141871156
A86: ='Org structure'!E82 -> 8,3 - Taxi Ranks | C86: 0 | D86: 0 | E86: 0 | F86: 0 | G86: 0 | H86: 0 | I86: 0 | J86: 0 | K86: 0 | L86: 0 | Q86: 0 | U86: 0
A87: ='Org structure'!E83 -> 0 | J87: 0 | K87: 0 | L87: 0 | Q87: 0 | U87: 0
A88: ='Org structure'!E84 -> 0 | J88: 0 | K88: 0 | L88: 0 | Q88: 0 | U88: 0
A89: ='Org structure'!E85 -> 0 | J89: 0 | K89: 0 | L89: 0 | Q89: 0 | U89: 0
A90: ='Org structure'!E86 -> 0 | J90: 0 | K90: 0 | L90: 0 | Q90: 0 | U90: 0
A91: ='Org structure'!E87 -> 0 | J91: 0 | K91: 0 | L91: 0 | Q91: 0 | U91: 0
A92: ='Org structure'!E88 -> 0 | J92: 0 | K92: 0 | L92: 0 | Q92: 0 | U92: 0
A93: ='Org structure'!E89 -> 0 | J93: 0 | K93: 0 | L93: 0 | Q93: 0 | U93: 0
A94: ='Org structure'!A10 -> Vote 9 - Energy Sources | C94: =SUM(C95:C104) -> 0 | D94: =SUM(D95:D104) -> 0 | E94: 55248315 | F94: 0 | G94: 0 | H94: 0 | I94: 0 | J94: 0 | K94: 0 | L94: 0 | N94: =SUM(N95:N104) -> 0 | O94: 0 | P94: 0 | Q94: 0 | R94: 0 | S94: 0 | T94: 0 | U94: 0 | V94: 0 | W94: 0 | X94: 0
A95: ='Org structure'!E91 -> 9,1 - Electricity | E95: 55248315 | J95: =Q95+V95 -> 0 | K95: =U95+W95 -> 0 | L95: =X95 -> 0 | Q95: =SUM(N95:P95) -> 0 | U95: 0
A96: ='Org structure'!E92 -> 9,2 - Street Lighting | J96: 0 | K96: 0 | L96: 0 | Q96: 0 | U96: 0
A97: ='Org structure'!E93 -> 0 | J97: 0 | K97: 0 | L97: 0 | Q97: 0 | U97: 0
A98: ='Org structure'!E94 -> 0 | J98: 0 | K98: 0 | L98: 0 | Q98: 0 | U98: 0
A99: ='Org structure'!E95 -> 0 | J99: 0 | K99: 0 | L99: 0 | Q99: 0 | U99: 0
A100: ='Org structure'!E96 -> 0 | J100: 0 | K100: 0 | L100: 0 | Q100: 0 | U100: 0
A101: ='Org structure'!E97 -> 0 | J101: 0 | K101: 0 | L101: 0 | Q101: 0 | U101: 0
A102: ='Org structure'!E98 -> 0 | J102: 0 | K102: 0 | L102: 0 | Q102: 0 | U102: 0
A103: ='Org structure'!E99 -> 0 | J103: 0 | K103: 0 | L103: 0 | Q103: 0 | U103: 0
A104: ='Org structure'!E100 -> 0 | J104: 0 | K104: 0 | L104: 0 | Q104: 0 | U104: 0
A105: ='Org structure'!A11 -> Vote 10 - Waste Water Management | C105: =SUM(C106:C115) -> 0 | D105: =SUM(D106:D115) -> 0 | E105: 0 | F105: 0 | G105: 0 | H105: 0 | I105: 0 | J105: 0 | K105: 0 | L105: 0 | N105: =SUM(N106:N115) -> 0 | O105: 0 | P105: 0 | Q105: 0 | R105: 0 | S105: 0 | T105: 0 | U105: 0 | V105: 0 | W105: 0 | X105: 0
A106: ='Org structure'!E102 -> 10,1 - Public Toilets | J106: =Q106+V106 -> 0 | K106: =U106+W106 -> 0 | L106: =X106 -> 0 | Q106: =SUM(N106:P106) -> 0 | U106: 0
A107: ='Org structure'!E103 -> 0 | J107: 0 | K107: 0 | L107: 0 | Q107: 0 | U107: 0
A108: ='Org structure'!E104 -> 0 | J108: 0 | K108: 0 | L108: 0 | Q108: 0 | U108: 0
A109: ='Org structure'!E105 -> 0 | J109: 0 | K109: 0 | L109: 0 | Q109: 0 | U109: 0
A110: ='Org structure'!E106 -> 0 | J110: 0 | K110: 0 | L110: 0 | Q110: 0 | U110: 0
A111: ='Org structure'!E107 -> 0 | J111: 0 | K111: 0 | L111: 0 | Q111: 0 | U111: 0
A112: ='Org structure'!E108 -> 0 | J112: 0 | K112: 0 | L112: 0 | Q112: 0 | U112: 0
A113: ='Org structure'!E109 -> 0 | J113: 0 | K113: 0 | L113: 0 | Q113: 0 | U113: 0
A114: ='Org structure'!E110 -> 0 | J114: 0 | K114: 0 | L114: 0 | Q114: 0 | U114: 0
A115: ='Org structure'!E111 -> 0 | J115: 0 | K115: 0 | L115: 0 | Q115: 0 | U115: 0
A116: ='Org structure'!A12 -> Vote 11 - Waste Management | C116: =SUM(C117:C126) -> 0 | D116: 0 | E116: 0 | F116: 0 | G116: 0 | H116: 0 | I116: 0 | J116: 0 | K116: 0 | L116: 0 | N116: =SUM(N117:N126) -> 0 | O116: 0 | P116: 0 | Q116: 0 | R116: 0 | S116: 0 | T116: 0 | U116: 0 | V116: 0 | W116: 0 | X116: 0
A117: ='Org structure'!E113 -> 11,1 - Solid Waste Removal | J117: =Q117+V117 -> 0 | K117: =U117+W117 -> 0 | L117: =X117 -> 0 | Q117: =SUM(N117:P117) -> 0 | U117: 0
A118: ='Org structure'!E114 -> 0 | J118: 0 | K118: 0 | L118: 0 | Q118: 0 | U118: 0
A119: ='Org structure'!E115 -> 0 | J119: 0 | K119: 0 | L119: 0 | Q119: 0 | U119: 0
A120: ='Org structure'!E116 -> 0 | J120: 0 | K120: 0 | L120: 0 | Q120: 0 | U120: 0
A121: ='Org structure'!E117 -> 0 | J121: 0 | K121: 0 | L121: 0 | Q121: 0 | U121: 0
A122: ='Org structure'!E118 -> 0 | J122: 0 | K122: 0 | L122: 0 | Q122: 0 | U122: 0
A123: ='Org structure'!E119 -> 0 | J123: 0 | K123: 0 | L123: 0 | Q123: 0 | U123: 0
A124: ='Org structure'!E120 -> 0 | J124: 0 | K124: 0 | L124: 0 | Q124: 0 | U124: 0
A125: ='Org structure'!E121 -> 0 | J125: 0 | K125: 0 | L125: 0 | Q125: 0 | U125: 0
A126: ='Org structure'!E122 -> 0 | J126: 0 | K126: 0 | L126: 0 | Q126: 0 | U126: 0
A127: ='Org structure'!A13 -> Vote 12 - [NAME OF VOTE 12] | C127: =SUM(C128:C137) -> 0 | D127: 0 | E127: 0 | F127: 0 | G127: 0 | H127: 0 | I127: 0 | J127: 0 | K127: 0 | L127: 0 | N127: =SUM(N128:N137) -> 0 | O127: 0 | P127: 0 | Q127: 0 | R127: 0 | S127: 0 | T127: 0 | U127: 0 | V127: 0 | W127: 0 | X127: 0
A128: ='Org structure'!E124 -> 12.1 - [Name of sub-vote] | J128: =Q128+V128 -> 0 | K128: =U128+W128 -> 0 | L128: =X128 -> 0 | Q128: =SUM(N128:P128) -> 0 | U128: 0
A129: ='Org structure'!E125 -> 0 | J129: 0 | K129: 0 | L129: 0 | Q129: 0 | U129: 0
A130: ='Org structure'!E126 -> 0 | J130: 0 | K130: 0 | L130: 0 | Q130: 0 | U130: 0
A131: ='Org structure'!E127 -> 0 | J131: 0 | K131: 0 | L131: 0 | Q131: 0 | U131: 0
A132: ='Org structure'!E128 -> 0 | J132: 0 | K132: 0 | L132: 0 | Q132: 0 | U132: 0
A133: ='Org structure'!E129 -> 0 | J133: =Q133+V133 -> 0 | K133: 0 | L133: 0 | Q133: 0 | U133: 0
A134: ='Org structure'!E130 -> 0 | J134: 0 | K134: 0 | L134: 0 | Q134: 0 | U134: 0
A135: ='Org structure'!E131 -> 0 | J135: 0 | K135: 0 | L135: 0 | Q135: 0 | U135: 0
A136: ='Org structure'!E132 -> 0 | J136: 0 | K136: 0 | L136: 0 | Q136: 0 | U136: =SUM(R136:T136) -> 0
A137: ='Org structure'!E133 -> 0 | J137: 0 | K137: 0 | L137: 0 | Q137: 0 | U137: 0
A138: ='Org structure'!A14 -> Vote 13 - [NAME OF VOTE 13] | C138: =SUM(C139:C148) -> 0 | D138: 0 | E138: 0 | F138: 0 | G138: 0 | H138: 0 | I138: 0 | J138: 0 | K138: 0 | L138: 0 | N138: =SUM(N139:N148) -> 0 | O138: 0 | P138: 0 | Q138: 0 | R138: 0 | S138: 0 | T138: 0 | U138: 0 | V138: 0 | W138: 0 | X138: 0
A139: ='Org structure'!E135 -> 13.1 - [Name of sub-vote] | J139: =Q139+V139 -> 0 | K139: =U139+W139 -> 0 | L139: =X139 -> 0 | Q139: =SUM(N139:P139) -> 0 | U139: 0
A140: ='Org structure'!E136 -> 0 | J140: 0 | K140: 0 | L140: 0 | Q140: 0 | U140: 0
A141: ='Org structure'!E137 -> 0 | J141: 0 | K141: 0 | L141: 0 | Q141: 0 | U141: 0
A142: ='Org structure'!E138 -> 0 | J142: 0 | K142: 0 | L142: 0 | Q142: 0 | U142: 0
A143: ='Org structure'!E139 -> 0 | J143: 0 | K143: 0 | L143: 0 | Q143: 0 | U143: 0
A144: ='Org structure'!E140 -> 0 | J144: 0 | K144: 0 | L144: 0 | Q144: 0 | U144: 0
A145: ='Org structure'!E141 -> 0 | J145: 0 | K145: 0 | L145: 0 | Q145: 0 | U145: 0
A146: ='Org structure'!E142 -> 0 | J146: 0 | K146: 0 | L146: 0 | Q146: 0 | U146: 0
A147: ='Org structure'!E143 -> 0 | J147: 0 | K147: 0 | L147: 0 | Q147: 0 | U147: 0
A148: ='Org structure'!E144 -> 0 | J148: 0 | K148: 0 | L148: 0 | Q148: 0 | U148: 0
A149: ='Org structure'!A15 -> Vote 14 - [NAME OF VOTE 14] | C149: =SUM(C150:C159) -> 0 | D149: 0 | E149: 0 | F149: 0 | G149: 0 | H149: 0 | I149: 0 | J149: 0 | K149: 0 | L149: 0 | N149: =SUM(N150:N159) -> 0 | O149: 0 | P149: 0 | Q149: 0 | R149: 0 | S149: 0 | T149: 0 | U149: 0 | V149: 0 | W149: 0 | X149: 0
A150: ='Org structure'!E146 -> 14.1 - [Name of sub-vote] | J150: =Q150+V150 -> 0 | K150: =U150+W150 -> 0 | L150: =X150 -> 0 | Q150: =SUM(N150:P150) -> 0 | U150: 0
A151: ='Org structure'!E147 -> 0 | J151: 0 | K151: 0 | L151: 0 | Q151: 0 | U151: 0
A152: ='Org structure'!E148 -> 0 | J152: 0 | K152: 0 | L152: 0 | Q152: 0 | U152: 0
A153: ='Org structure'!E149 -> 0 | J153: 0 | K153: 0 | L153: 0 | Q153: 0 | U153: 0
A154: ='Org structure'!E150 -> 0 | J154: 0 | K154: 0 | L154: 0 | Q154: 0 | U154: 0
A155: ='Org structure'!E151 -> 0 | J155: 0 | K155: 0 | L155: 0 | Q155: 0 | U155: 0
A156: ='Org structure'!E152 -> 0 | J156: 0 | K156: 0 | L156: 0 | Q156: 0 | U156: 0
A157: ='Org structure'!E153 -> 0 | J157: 0 | K157: 0 | L157: 0 | Q157: 0 | U157: 0
A158: ='Org structure'!E154 -> 0 | J158: 0 | K158: 0 | L158: 0 | Q158: 0 | U158: 0
A159: ='Org structure'!E155 -> 0 | J159: 0 | K159: 0 | L159: 0 | Q159: 0 | U159: 0
A160: ='Org structure'!A16 -> Vote 15 - [NAME OF VOTE 15] | C160: =SUM(C161:C170) -> 0 | D160: 0 | E160: 0 | F160: 0 | G160: 0 | H160: 0 | I160: 0 | J160: 0 | K160: 0 | L160: 0 | N160: =SUM(N161:N170) -> 0 | O160: 0 | P160: 0 | Q160: 0 | R160: 0 | S160: 0 | T160: 0 | U160: 0 | V160: 0 | W160: 0 | X160: 0
A161: ='Org structure'!E157 -> 15.1 - [Name of sub-vote] | J161: =Q161+V161 -> 0 | K161: =U161+W161 -> 0 | L161: =X161 -> 0 | Q161: =SUM(N161:P161) -> 0 | U161: 0
A162: ='Org structure'!E158 -> 0 | J162: 0 | K162: 0 | L162: 0 | Q162: 0 | U162: 0
A163: ='Org structure'!E159 -> 0 | J163: 0 | K163: 0 | L163: 0 | Q163: 0 | U163: 0
A164: ='Org structure'!E160 -> 0 | J164: 0 | K164: 0 | L164: 0 | Q164: 0 | U164: 0
A165: ='Org structure'!E161 -> 0 | J165: 0 | K165: 0 | L165: 0 | Q165: 0 | U165: 0
A166: ='Org structure'!E162 -> 0 | J166: 0 | K166: 0 | L166: 0 | Q166: 0 | U166: 0
A167: ='Org structure'!E163 -> 0 | J167: 0 | K167: 0 | L167: 0 | Q167: 0 | U167: 0
A168: ='Org structure'!E164 -> 0 | J168: 0 | K168: 0 | L168: 0 | Q168: 0 | U168: 0
A169: ='Org structure'!E165 -> 0 | J169: 0 | K169: 0 | L169: 0 | Q169: 0 | U169: 0
A170: ='Org structure'!E166 -> 0 | J170: 0 | K170: 0 | L170: 0 | Q170: 0 | U170: 0
A171: Capital multi-year expenditure sub-total | C171: =C6+C17+C28+C39+C50+C61+C72+C83+C94+C105+C116+C127+C138+C149+C160 -> 153027871 | D171: =D6+D17+D28+D39+D50+D61+D72+D83+D94+D105+D116+D127+D138+D149+D160 -> 82109167 | E171: 110245544 | F171: 123993246.8 | G171: 129246718.8 | H171: 129246718.8 | I171: 129246718.8 | J171: 103476173 | K171: 169247944 | L171: 163552267 | N171: =N6+N17+N28+N39+N50+N61+N72+N83+N94+N105+N116+N127+N138+N149+N160 -> 0 | O171: 0 | P171: 0 | Q171: 0 | R171: 0 | S171: 0 | U171: 0 | V171: =V6+V17+V28+V39+V50+V61+V72+V83+V94+V105+V116+V127+V138+V149+V160 -> 103476173 | W171: =W6+W17+W28+W39+W50+W61+W72+W83+W94+W105+W116+W127+W138+W149+W160 -> 169247944
A173: Capital expenditure - Municipal Vote
A174: Single-year expenditure appropriation | B174: 2
A175: =A6 -> Vote 1 - Executive & Council | C175: =SUM(C176:C185) -> 0 | D175: 0 | E175: 1959142 | F175: 0 | G175: 0 | H175: 0 | I175: 0 | J175: 525000 | K175: 0 | L175: 0
A176: =A7 -> 1,1 - Mayor and Council | E176: 1959142 | J176: 525000 | K176: 0 | L176: 0
A177: 1,2 - Municipal Manager | J177: 0 | K177: 0 | L177: 0
A178: 0
A179: 0
A180: 0
A181: 0
A182: 0
A183: 0
A184: 0
A185: 0
A186: Vote 2 - Finance and Administration | C186: =SUM(C187:C196) -> 1631093 | D186: 3922000 | E186: 1653375 | F186: 7086000 | G186: 6419665 | H186: 6419665 | I186: 6419665 | J186: 4417000 | K186: 0 | L186: 0
A187: 2,1 - Administrative and Corporate Support | F187: 0 | G187: 0 | H187: 0 | I187: 0 | J187: 0 | K187: 0 | L187: 0
A188: 2,2 - Asset Management | F188: 0 | G188: 0 | H188: 0 | I188: 0 | J188: 0 | K188: 0 | L188: 0
A189: 2,3 - Budget and Treasury Office | C189: 101222 | D189: 3922000 | F189: 730000 | G189: 900000 | H189: 900000 | I189: 900000 | J189: 2167000 | K189: 0 | L189: 0
A190: 2,4 - Human Resource | C190: 475650 | E190: 505214 | F190: 1300000 | G190: 2106838 | H190: 2106838 | I190: 2106838 | J190: 0 | K190: 0 | L190: 0
A191: 2,5 - Information Technology | C191: 215988 | E191: 530822 | F191: 1446000 | G191: 2402827 | H191: 2402827 | I191: 2402827 | J191: 1250000 | K191: 0 | L191: 0
A192: 2,6 - Legal Services | F192: 0 | G192: 0 | H192: 0 | I192: 0 | J192: 0 | K192: 0 | L192: 0
A193: 2,7 - Customer Relation and Coordination | F193: 0 | G193: 0 | H193: 0 | I193: 0 | J193: 35000 | K193: 0 | L193: 0
A194: 2,8 - Property Services | C194: 838233 | E194: 617339 | F194: 3610000 | G194: 1010000 | H194: 1010000 | I194: 1010000 | J194: 965000 | K194: 0 | L194: 0
A195: 2,9 - Risk Management | F195: 0 | G195: 0 | H195: 0 | I195: 0 | J195: 0 | K195: 0 | L195: 0
A196: 2.10 - Supply Chain Management | F196: 0 | G196: 0 | H196: 0 | I196: 0 | J196: 0 | K196: 0 | L196: 0
A197: Vote 3 - Internal Audit | C197: =SUM(C198:C207) -> 0 | D197: 0 | E197: 0 | F197: 0 | G197: 0 | H197: 0 | I197: 0 | J197: 0 | K197: 0 | L197: 0
A198: 3,1 - Governance Function | C198: 0 | D198: 0 | E198: 0 | F198: 0 | G198: 0 | H198: 0 | I198: 0 | J198: 0 | K198: 0 | L198: 0
A199: 0
A200: 0
A201: 0
... 140 more rows

Sheet A6-FinPos
A1: =muni&" - "&Approve6 -> LIM332 Greater Letaba - Table A6 Budgeted Financial Position
A2: =desc -> Description | B2: =head27 -> Ref | C2: =head1b -> 2015/16 | D2: =head1A -> 2016/17 | E2: =Head1 -> 2017/18 | F2: =Head2 -> Current Year 2018/19 | J2: =Head3 -> 2019/20 Medium Term Revenue & Expenditure Framework
A3: R thousand | C3: =Head5 -> Audited Outcome | D3: =Head5 -> Audited Outcome | E3: =Head5 -> Audited Outcome | F3: =Head6 -> Original Budget | G3: =Head7 -> Adjusted Budget | H3: =Head8 -> Full Year Forecast | I3: =Head5b -> Pre-audit outcome | J3: =Head9 -> Budget Year 2019/20 | K3: =Head10 -> Budget Year +1 2020/21 | L3: =Head11 -> Budget Year +2 2021/22
A4: ASSETS
A5: Current assets
A6: Cash | C6: 1234000 | D6: 2301712 | E6: 451661 | F6: 1200000 | G6: 505000 | H6: 505000 | I6: 505000 | J6: 122000 | K6: 857000 | L6: 644000
A7: Call investment deposits | B7: 1 | C7: ='SA3'!C9 -> 59480361 | D7: ='SA3'!D9 -> 53630633 | E7: ='SA3'!E9 -> 12715350 | F7: ='SA3'!F9 -> 28521281.53 | G7: ='SA3'!G9 -> 3521281.53 | H7: ='SA3'!H9 -> 3521281.53 | I7: ='SA3'!I9 -> 3521281.53 | J7: ='SA3'!J9 -> 2299000 | K7: ='SA3'!K9 -> 2423146 | L7: ='SA3'!L9 -> 2553995.884
A8: Consumer debtors | B8: 1 | C8: ='SA3'!C14 -> 11150895 | D8: ='SA3'!D14 -> 6883323 | E8: ='SA3'!E14 -> 2127696 | F8: ='SA3'!F14 -> 6900000 | G8: ='SA3'!G14 -> 6900000 | H8: ='SA3'!H14 -> 6900000 | I8: ='SA3'!I14 -> 6900000 | J8: ='SA3'!J14 -> 2127696 | K8: ='SA3'!K14 -> 2242591.584 | L8: ='SA3'!L14 -> 2363691.53
A9: Other debtors | C9: 23378286 | D9: 62569544 | E9: 74918907 | F9: 44274458.96 | G9: 44274458.96 | H9: 44274458.96 | I9: 44274458.96 | J9: 74918907 | K9: 74918907 | L9: 74918907
A10: Current portion of long-term receivables | C10: 39516936 | D10: 10175655 | E10: 25673707 | F10: 12078140.61 | G10: 12078140.61 | H10: 12078140.61 | I10: 12078140.61 | J10: 25673707 | K10: 25673707 | L10: 25673707
A11: Inventory | B11: 2 | C11: 2888890 | D11: 6435945 | E11: 11923220 | F11: 3215395.237 | G11: 3215395.237 | H11: 3215395.237 | I11: 3215395.237 | J11: 11923220 | K11: 11923220 | L11: 11923220
A12: Total current assets | C12: =SUM(C6:C11) -> 137649368 | D12: 141996812 | E12: 127810541 | F12: 96189276.33 | G12: 70494276.33 | H12: 70494276.33 | I12: 70494276.33 | J12: 117064530 | K12: 118038571.6 | L12: 118077521.4
A14: Non current assets
A15: Long-term receivables
A16: Investments
A17: Investment property | C17: 249048 | D17: 240057 | E17: 231065 | F17: 249045 | G17: 249045 | H17: 249045 | I17: 249045 | J17: 241000 | K17: 245000 | L17: 245000
A18: Investment in Associate
A19: Property, plant and equipment | B19: 3 | C19: ='SA3'!C26 -> 612369408 | D19: ='SA3'!D26 -> 677895023 | E19: ='SA3'!E26 -> 814565410 | F19: ='SA3'!F26 -> 853915938.6 | G19: ='SA3'!G26 -> 848610025.6 | H19: ='SA3'!H26 -> 848610025.6 | I19: ='SA3'!I26 -> 848610025.6 | J19: ='SA3'!J26 -> 953119630 | K19: ='SA3'!K26 -> 1124743201 | L19: ='SA3'!L26 -> 1318845419
A21: Biological
A22: Intangible | C22: 208103 | D22: 117244 | E22: 185281 | F22: 208103 | G22: 208103 | H22: 208103 | I22: 208103 | J22: 192000 | K22: 195000 | L22: 201000
A23: Other non-current assets | C23: 548500 | D23: 548500 | E23: 548500 | F23: 548500 | G23: 548500 | H23: 548500 | I23: 548500 | J23: 549000 | K23: 549000 | L23: 549000
A24: Total non current assets | C24: =SUM(C15:C19)+SUM(C21:C23) -> 613375059 | D24: =SUM(D15:D19)+SUM(D21:D23) -> 678800824 | E24: 815530256 | F24: 854921586.6 | G24: 849615673.6 | H24: 849615673.6 | I24: 849615673.6 | J24: 954101630 | K24: 1125732201 | L24: 1319840419
A25: TOTAL ASSETS | C25: =C12+C24 -> 751024427 | D25: =D12+D24 -> 820797636 | E25: =E12+E24 -> 943340797 | F25: =F12+F24 -> 951110862.9 | G25: 920109949.9 | H25: 920109949.9 | I25: 920109949.9 | J25: 1071166160 | K25: 1243770773 | L25: 1437917940
A27: LIABILITIES
A28: Current liabilities
A29: Bank overdraft | B29: 1 | C29: 0 | D29: 0 | E29: 0 | F29: 0 | G29: 0 | H29: 0 | I29: 0 | J29: 0 | K29: 0 | L29: 0
A30: Borrowing | B30: 4 | C30: ='SA3'!C32 -> 0 | D30: ='SA3'!D32 -> 0 | E30: ='SA3'!E32 -> 0 | F30: ='SA3'!F32 -> 0 | G30: ='SA3'!G32 -> 0 | H30: ='SA3'!H32 -> 0 | I30: ='SA3'!I32 -> 0 | J30: ='SA3'!J32 -> 0 | K30: ='SA3'!K32 -> 0 | L30: ='SA3'!L32 -> 0
A31: Consumer deposits | C31: 351303 | D31: 363726 | E31: 383334 | F31: 369922.059 | G31: 369922.059 | H31: 369922.059 | I31: 369922.059 | J31: 395000 | K31: 395000 | L31: 395000
A32: Trade and other payables | B32: 4 | C32: ='SA3'!C39 -> 55032928 | D32: ='SA3'!D39 -> 36336959 | E32: ='SA3'!E39 -> 56493092 | F32: ='SA3'!F39 -> 35693282 | G32: ='SA3'!G39 -> 35693282 | H32: ='SA3'!H39 -> 35693282 | I32: ='SA3'!I39 -> 35693282 | J32: ='SA3'!J39 -> 34122000 | K32: ='SA3'!K39 -> 28900000 | L32: ='SA3'!L39 -> 32000000
A33: Provisions
A34: Total current liabilities | C34: =SUM(C29:C33) -> 55384231 | D34: 36700685 | E34: 56876426 | F34: 36063204.06 | G34: 36063204.06 | H34: 36063204.06 | I34: 36063204.06 | J34: 34517000 | K34: 29295000 | L34: 32395000
A36: Non current liabilities
A37: Borrowing | C37: ='SA3'!C44 -> 0 | D37: ='SA3'!D44 -> 0 | E37: ='SA3'!E44 -> 0 | F37: ='SA3'!F44 -> 0 | G37: ='SA3'!G44 -> 0 | H37: ='SA3'!H44 -> 0 | I37: ='SA3'!I44 -> 0 | J37: ='SA3'!J44 -> 0 | K37: ='SA3'!K44 -> 0 | L37: ='SA3'!L44 -> 0
A38: Provisions | C38: ='SA3'!C51 -> 13419779 | D38: ='SA3'!D51 -> 12512637 | E38: ='SA3'!E51 -> 13958640 | F38: ='SA3'!F51 -> 14744449.65 | G38: ='SA3'!G51 -> 14744449.65 | H38: ='SA3'!H51 -> 14744449.65 | I38: ='SA3'!I51 -> 14744449.65 | J38: ='SA3'!J51 -> 17101289.28 | K38: ='SA3'!K51 -> 17894251.7 | L38: ='SA3'!L51 -> 18730034.09
A39: Total non current liabilities | C39: =SUM(C37:C38) -> 13419779 | D39: =SUM(D37:D38) -> 12512637 | E39: =SUM(E37:E38) -> 13958640 | F39: =SUM(F37:F38) -> 14744449.65 | G39: 14744449.65 | H39: 14744449.65 | I39: 14744449.65 | J39: 17101289.28 | K39: =SUM(K37:K38) -> 17894251.7 | L39: 18730034.09
A40: TOTAL LIABILITIES | C40: =C34+C39 -> 68804010 | D40: =D34+D39 -> 49213322 | E40: =E34+E39 -> 70835066 | F40: =F34+F39 -> 50807653.71 | G40: 50807653.71 | H40: 50807653.71 | I40: 50807653.71 | J40: 51618289.28 | K40: =K34+K39 -> 47189251.7 | L40: 51125034.09
A42: NET ASSETS | B42: 5 | C42: =C25-C40 -> 682220417 | D42: 771584314 | E42: 872505731 | F42: 900303209.2 | G42: 869302296.2 | H42: 869302296.2 | I42: 869302296.2 | J42: 1019547871 | K42: 1196581521 | L42: 1386792906
A44: COMMUNITY WEALTH/EQUITY
A45: Accumulated Surplus/(Deficit) | C45: 682220417 | D45: 771584314 | E45: 872505731 | F45: 900303209.2 | G45: 869302296.2 | H45: 869302296.2 | I45: 869302296.2 | J45: 1019547871 | K45: 1196581521 | L45: 1386792906
A46: Reserves | B46: 4 | C46: ='SA3'!C70 -> 0 | D46: ='SA3'!D70 -> 0 | E46: ='SA3'!E70 -> 0 | F46: ='SA3'!F70 -> 0 | G46: ='SA3'!G70 -> 0 | H46: ='SA3'!H70 -> 0 | I46: ='SA3'!I70 -> 0 | J46: ='SA3'!J70 -> 0 | K46: ='SA3'!K70 -> 0 | L46: ='SA3'!L70 -> 0
A48: TOTAL COMMUNITY WEALTH/EQUITY | B48: 5 | C48: =SUM(C45:C46) -> 682220417 | D48: =SUM(D45:D46) -> 771584314 | E48: 872505731 | F48: 900303209.2 | G48: 869302296.2 | H48: 869302296.2 | I48: 869302296.2 | J48: 1019547871 | K48: 1196581521 | L48: 1386792906
A49: =head27a -> References
A50: 1. Detail to be provided in Table SA3
A51: 2. Include completed low cost housing to be transferred to beneficiaries within 12 months
A52: 3. Include 'Construction-work-in-progress' (disclosed separately in annual financial statements)
A53: 4. Detail to be provided in Table SA3. Includes reserves to be funded by statute.
A54: 5. Net assets must balance with Total Community Wealth/Equity
A55: check balance | C55: =IF((C42-C48)=0,0,"Unbalanced") -> 0 | D55: =IF((D42-D48)=0,0,"Unbalanced") -> 0 | E55: 0 | F55: 0 | G55: 0 | H55: 0 | I55: 0 | J55: 0 | K55: 0 | L55: 0
A71: Test | C71: =IF(C25<>C40,"Unbalanced",0) -> Unbalanced | D71: =IF(D25<>D40,"Unbalanced",0) -> Unbalanced | E71: Unbalanced | F71: Unbalanced | G71: Unbalanced | H71: Unbalanced | I71: Unbalanced | J71: Unbalanced | K71: Unbalanced | L71: Unbalanced

Sheet A7-CFlow
A1: =muni&" - "&Approve7 -> LIM332 Greater Letaba - Table A7 Budgeted Cash Flows
A2: =desc -> Description | B2: =head27 -> Ref | C2: =head1b -> 2015/16 | D2: =head1A -> 2016/17 | E2: =Head1 -> 2017/18 | F2: =Head2 -> Current Year 2018/19 | J2: =Head3 -> 2019/20 Medium Term Revenue & Expenditure Framework
A3: R thousand | C3: =Head5 -> Audited Outcome | D3: =Head5 -> Audited Outcome | E3: =Head5 -> Audited Outcome | F3: =Head6 -> Original Budget | G3: =Head7 -> Adjusted Budget | H3: =Head8 -> Full Year Forecast | I3: =Head5b -> Pre-audit outcome | J3: =Head9 -> Budget Year 2019/20 | K3: =Head10 -> Budget Year +1 2020/21 | L3: =Head11 -> Budget Year +2 2021/22
A4: CASH FLOW FROM OPERATING ACTIVITIES
A5: Receipts
A6: Property rates | C6: 8977595 | D6: 0 | E6: 0 | F6: 6453196.542 | G6: 10118196.54 | H6: 10118196.54 | I6: 10118196.54 | J6: ='SA30'!N5 -> 10644106.6 | K6: ='SA30'!O5 -> 11218888.36 | L6: ='SA30'!P5 -> 11824708.33
A7: Service charges | C7: 13039518 | D7: 11029921 | E7: 9888443 | F7: 13879352.66 | G7: 24519352.66 | H7: 24519352.66 | I7: 24519352.66 | J7: ='SA30'!N6+'SA30'!N7+'SA30'!N8+'SA30'!N9 -> 25794359 | K7: ='SA30'!O6+'SA30'!O7+'SA30'!O8+'SA30'!O9 -> 27187254.38 | L7: ='SA30'!P6+'SA30'!P7+'SA30'!P8+'SA30'!P9 -> 28655366.12
A8: Other revenue | C8: 27949360 | D8: 6309284 | E8: 842363 | F8: 28562039.65 | G8: 57142039.65 | H8: 57142039.65 | I8: 57142039.65 | J8: ='SA30'!N11+'SA30'!N15+'SA30'!N16+'SA30'!N17+'SA30'!N19 -> 17913129.8 | K8: ='SA30'!O11+'SA30'!O15+'SA30'!O16+'SA30'!O17+'SA30'!O19 -> 18880439.2 | L8: ='SA30'!P11+'SA30'!P15+'SA30'!P16+'SA30'!P17+'SA30'!P19 -> 19899982
A9: Government - operating | B9: 1 | C9: 212960000 | D9: =206299000+1810000+1405000+7000000 -> 216514000 | E9: =291405000-67162000 -> 224243000 | F9: 248358000 | G9: 248358000 | H9: 248358000 | I9: 248358000 | J9: ='SA30'!N18 -> 281624000 | K9: ='SA30'!O18 -> 300105000 | L9: ='SA30'!P18 -> 321890000
A10: Government - capital | B10: 1 | C10: 64870000 | D10: 54976000 | E10: =61162000+6000000 -> 67162000 | F10: 62443000 | G10: 62443000 | H10: 62443000 | I10: 62443000 | J10: ='SA30'!N23 -> 57608000 | K10: ='SA30'!O23 -> 67783000 | L10: ='SA30'!P23 -> 72351000
A11: Interest | C11: 11677760 | D11: 5918591 | E11: 4605544 | F11: 9584354.102 | G11: 18097354.1 | H11: 18097354.1 | I11: 18097354.1 | J11: ='SA30'!N12+'SA30'!N13 -> 14989212.6 | K11: ='SA30'!O12+'SA30'!O13 -> 15798630.6 | L11: ='SA30'!P12+'SA30'!P13 -> 16651756.8
A12: Dividends | J12: ='SA30'!N14 -> 0 | K12: ='SA30'!O14 -> 0 | L12: ='SA30'!P14 -> 0
A13: Payments
A14: Suppliers and employees | C14: -164954679 | D14: =-119050070-84974458 -> -204024528 | E14: -195861964 | F14: -217786402.5 | G14: -267565402.5 | H14: -267565402.5 | I14: -267565402.5 | J14: =-('SA30'!N35+'SA30'!N36+'SA30'!N38+'SA30'!N39+'SA30'!N40+'SA30'!N41+'SA30'!N44+'SA30'!N50) -> -271431061 | K14: =-('SA30'!O35+'SA30'!O36+'SA30'!O38+'SA30'!O39+'SA30'!O40+'SA30'!O41+'SA30'!O44+'SA30'!O50) -> -300747028 | L14: =-('SA30'!P35+'SA30'!P36+'SA30'!P38+'SA30'!P39+'SA30'!P40+'SA30'!P41+'SA30'!P44+'SA30'!P50) -> -318779895
A15: Finance charges | C15: 0 | D15: 0 | F15: 0 | G15: 0 | H15: 0 | I15: 0 | J15: =-('SA30'!N37) -> 0 | K15: =-('SA30'!O37) -> 0 | L15: =-('SA30'!P37) -> 0
A16: Transfers and Grants | B16: 1 | C16: 0 | D16: 0 | F16: 0 | G16: 0 | H16: 0 | I16: 0 | J16: =-('SA30'!N42+'SA30'!N43) -> 0 | K16: =-('SA30'!O42+'SA30'!O43) -> 0 | L16: =-('SA30'!P42+'SA30'!P43) -> 0
A17: NET CASH FROM/(USED) OPERATING ACTIVITIES | C17: =SUM(C6:C12)+SUM(C14:C16) -> 174519554 | D17: 90723268 | E17: 110879386 | F17: 151493540.5 | G17: 153112540.5 | H17: 153112540.5 | I17: 153112540.5 | J17: 137141747 | K17: 140226184.5 | L17: 152492918.3
A19: CASH FLOWS FROM INVESTING ACTIVITIES
A20: Receipts
A21: Proceeds on disposal of PPE | C21: 74496 | D21: 115417 | E21: 577756 | F21: 577000 | G21: 577000 | H21: 577000 | I21: 577000 | J21: ='SA30'!N24+'SA30'!N25 -> 577000 | K21: ='SA30'!O24+'SA30'!O25 -> 577000 | L21: ='SA30'!P24+'SA30'!P25 -> 577000
A22: Decrease (Increase) in non-current debtors | J22: ='SA30'!N29 -> 0 | K22: ='SA30'!O29 -> 0 | L22: ='SA30'!P29 -> 0
A23: Decrease (increase) other non-current receivables | J23: ='SA30'!N30 -> 0 | K23: ='SA30'!O30 -> 0 | L23: ='SA30'!P30 -> 0
A24: Decrease (increase) in non-current investments | J24: ='SA30'!N31 -> 0 | K24: ='SA30'!O31 -> 0 | L24: ='SA30'!P31 -> 0
A25: Payments
A26: Capital assets | C26: -174594050 | D26: =-95600150-20551 -> -95620701 | E26: =-153768699-148800-304978 -> -154222477 | F26: -145091398 | G26: -163334398 | H26: -163334398 | I26: -163334398 | J26: =-('SA30'!N48) -> -135418798 | K26: =-('SA30'!O48) -> -139945000 | L26: =-('SA30'!P48) -> -153152000
A27: NET CASH FROM/(USED) INVESTING ACTIVITIES | C27: =SUM(C21:C24)+C26 -> -174519554 | D27: =SUM(D21:D24)+D26 -> -95505284 | E27: -153644721 | F27: -144514398 | G27: -162757398 | H27: -162757398 | I27: -162757398 | J27: -134841798 | K27: -139368000 | L27: -152575000
A29: CASH FLOWS FROM FINANCING ACTIVITIES
A30: Receipts
A31: Short term loans | C31: 0 | D31: 0 | E31: 0 | F31: 0 | G31: 0 | H31: 0 | I31: 0 | J31: ='SA30'!N26 -> 0 | K31: ='SA30'!O26 -> 0 | L31: ='SA30'!P26 -> 0
A32: Borrowing long term/refinancing | C32: 0 | D32: 0 | E32: 0 | F32: 0 | G32: 0 | H32: 0 | I32: 0 | J32: ='SA30'!N27 -> 0 | K32: ='SA30'!O27 -> 0 | L32: ='SA30'!P27 -> 0
A33: Increase (decrease) in consumer deposits | C33: 0 | D33: 0 | E33: 0 | F33: 0 | G33: 0 | H33: 0 | I33: 0 | J33: ='SA30'!N28 -> 0 | K33: ='SA30'!O28 -> 0 | L33: ='SA30'!P28 -> 0
A34: Payments
A35: Repayment of borrowing | C35: 0 | D35: 0 | E35: 0 | F35: 0 | G35: 0 | H35: 0 | I35: 0 | J35: =-('SA30'!N49) -> 0 | K35: =-('SA30'!O49) -> 0 | L35: =-('SA30'!P49) -> 0
A36: NET CASH FROM/(USED) FINANCING ACTIVITIES | C36: =SUM(C31:C33)+C35 -> 0 | D36: =SUM(D31:D33)+D35 -> 0 | E36: 0 | F36: 0 | G36: 0 | H36: 0 | I36: 0 | J36: 0 | K36: 0 | L36: 0
A38: NET INCREASE/ (DECREASE) IN CASH HELD | C38: =C17+C27+C36 -> 0 | D38: =D17+D27+D36 -> -4782016 | E38: -42765335 | F38: 6979142.487 | G38: -9644857.513 | H38: -9644857.513 | I38: -9644857.513 | J38: 2299948.981 | K38: 858184.5437 | L38: -82081.74814
A39: Cash/cash equivalents at the year begin: | B39: 2 | C39: 60714362 | D39: 60714361 | E39: 55932345 | F39: 30300000 | G39: 13671000 | H39: 13671000 | I39: 13671000 | J39: ='SA30'!N54 -> 121500 | K39: =J40 -> 2421448.981 | L39: =K40 -> 3279633.525
A40: Cash/cash equivalents at the year end: | B40: 2 | C40: =C38+C39 -> 60714362 | D40: =D38+D39 -> 55932345 | E40: =E38+E39 -> 13167010 | F40: =F38+F39 -> 37279142.49 | G40: 4026142.487 | H40: 4026142.487 | I40: 4026142.487 | J40: 2421448.981 | K40: 3279633.525 | L40: 3197551.777
A41: =head27a -> References
A42: 1. Local/District municipalities to include transfers from/to District/Local Municipalities
A43: 2. Cash equivalents includes investments with maturities of 3 months or less
A44: 3. The MTREF is populated directly from SA30.
A45: Total receipts | C45: =SUM(C6:C12)+SUM(C21:C23) -> 339548729 | D45: 294863213 | E45: 307319106 | F45: 369856943 | G45: 421254943 | H45: 421254943 | I45: 421254943 | J45: 409149808 | K45: 441550212.5 | L45: 471849813.3
A46: Total payments | C46: =SUM(C14:C16)+C26 -> -339548729 | D46: =SUM(D14:D16)+D26 -> -299645229 | E46: -350084441 | F46: -362877800.5 | G46: -430899800.5 | H46: -430899800.5 | I46: -430899800.5 | J46: -406849859 | K46: -440692028 | L46: -471931895
C47: =C45+C46 -> 0 | D47: =D45+D46 -> -4782016 | E47: -42765335 | F47: 6979142.487 | G47: -9644857.513 | H47: -9644857.513 | I47: -9644857.513 | J47: 2299948.981 | K47: 858184.5437 | L47: -82081.74814
A48: Borrowings & investments & c.deposits | C48: =C24+C32+C33 -> 0 | D48: =D24+D32+D33 -> 0 | E48: 0 | F48: 0 | G48: 0 | H48: 0 | I48: 0 | J48: 0 | K48: 0 | L48: 0
A49: =A35 -> Repayment of borrowing | C49: =C35 -> 0 | D49: =D35 -> 0 | E49: 0 | F49: 0 | G49: 0 | H49: 0 | I49: =I35 -> 0 | J49: 0 | K49: 0 | L49: 0
C50: =C47+C48+C49 -> 0 | D50: =D47+D48+D49 -> -4782016 | E50: -42765335 | F50: 6979142.487 | G50: -9644857.513 | H50: -9644857.513 | I50: -9644857.513 | J50: 2299948.981 | K50: 858184.5437 | L50: -82081.74814
C51: =C38-C50 -> 0 | D51: 0 | E51: 0 | F51: -2.980232239e-08 | G51: -2.980232239e-08 | H51: -2.980232239e-08 | I51: -2.980232239e-08 | J51: 0 | K51: 0 | L51: 0

Sheet A8-ResRecon
A1: =muni&" - "&Approve8 -> LIM332 Greater Letaba - Table A8 Cash backed reserves/accumulated surplus reconciliation
A2: =desc -> Description | B2: =head27 -> Ref | C2: =head1b -> 2015/16 | D2: =head1A -> 2016/17 | E2: =Head1 -> 2017/18 | F2: =Head2 -> Current Year 2018/19 | J2: =Head3 -> 2019/20 Medium Term Revenue & Expenditure Framework
A3: R thousand | C3: =Head5 -> Audited Outcome | D3: =Head5 -> Audited Outcome | E3: =Head5 -> Audited Outcome | F3: =Head6 -> Original Budget | G3: =Head7 -> Adjusted Budget | H3: =Head8 -> Full Year Forecast | I3: =Head5b -> Pre-audit outcome | J3: =Head9 -> Budget Year 2019/20 | K3: =Head10 -> Budget Year +1 2020/21 | L3: =Head11 -> Budget Year +2 2021/22
A4: Cash and investments available
A5: =LEFT('A7-CFlow'!A40,37) -> Cash/cash equivalents at the year end | B5: 1 | C5: ='A7-CFlow'!C40 -> 60714362 | D5: ='A7-CFlow'!D40 -> 55932345 | E5: ='A7-CFlow'!E40 -> 13167010 | F5: ='A7-CFlow'!F40 -> 37279142.49 | G5: ='A7-CFlow'!G40 -> 4026142.487 | H5: ='A7-CFlow'!H40 -> 4026142.487 | I5: ='A7-CFlow'!I40 -> 4026142.487 | J5: ='A7-CFlow'!J40 -> 2421448.981 | K5: ='A7-CFlow'!K40 -> 3279633.525 | L5: ='A7-CFlow'!L40 -> 3197551.777
A6: Other current investments > 90 days | C6: ='A6-FinPos'!C6+'A6-FinPos'!C7-'A6-FinPos'!C29-'A8-ResRecon'!C5 -> -1 | D6: ='A6-FinPos'!D6+'A6-FinPos'!D7-'A6-FinPos'!D29-'A8-ResRecon'!D5 -> 0 | E6: ='A6-FinPos'!E6+'A6-FinPos'!E7-'A6-FinPos'!E29-'A8-ResRecon'!E5 -> 1 | F6: ='A6-FinPos'!F6+'A6-FinPos'!F7-'A6-FinPos'!F29-'A8-ResRecon'!F5 -> -7557860.957 | G6: ='A6-FinPos'!G6+'A6-FinPos'!G7-'A6-FinPos'!G29-'A8-ResRecon'!G5 -> 139.043 | H6: ='A6-FinPos'!H6+'A6-FinPos'!H7-'A6-FinPos'!H29-'A8-ResRecon'!H5 -> 139.043 | I6: ='A6-FinPos'!I6+'A6-FinPos'!I7-'A6-FinPos'!I29-'A8-ResRecon'!I5 -> 139.043 | J6: ='A6-FinPos'!J6+'A6-FinPos'!J7-'A6-FinPos'!J29-'A8-ResRecon'!J5 -> -448.981232 | K6: ='A6-FinPos'!K6+'A6-FinPos'!K7-'A6-FinPos'!K29-'A8-ResRecon'!K5 -> 512.4750694 | L6: ='A6-FinPos'!L6+'A6-FinPos'!L7-'A6-FinPos'!L29-'A8-ResRecon'!L5 -> 444.1072112
A7: ='A6-FinPos'!A14&" - "&'A6-FinPos'!A16 -> Non current assets - Investments | B7: 1 | C7: ='A6-FinPos'!C16 -> 0 | D7: ='A6-FinPos'!D16 -> 0 | E7: ='A6-FinPos'!E16 -> 0 | F7: ='A6-FinPos'!F16 -> 0 | G7: ='A6-FinPos'!G16 -> 0 | H7: ='A6-FinPos'!H16 -> 0 | I7: ='A6-FinPos'!I16 -> 0 | J7: ='A6-FinPos'!J16 -> 0 | K7: ='A6-FinPos'!K16 -> 0 | L7: ='A6-FinPos'!L16 -> 0
A8: Cash and investments available: | C8: =SUM(C5:C7) -> 60714361 | D8: =SUM(D5:D7) -> 55932345 | E8: 13167011 | F8: 29721281.53 | G8: 4026281.53 | H8: 4026281.53 | I8: 4026281.53 | J8: 2421000 | K8: 3280146 | L8: 3197995.884
A10: Application of cash and investments
A11: ='SA3'!A37 -> Unspent conditional transfers | C11: ='SA3'!C37 -> 0 | D11: ='SA3'!D37 -> 643677 | E11: ='SA3'!E37 -> 0 | F11: ='SA3'!F37 -> 0 | G11: ='SA3'!G37 -> 0 | H11: ='SA3'!H37 -> 0 | I11: ='SA3'!I37 -> 0 | J11: ='SA3'!J37 -> 0 | K11: ='SA3'!K37 -> 0 | L11: ='SA3'!L37 -> 0
A12: Unspent borrowing | C12: ='SA17'!C67 -> 0 | D12: ='SA17'!D67 -> 0 | E12: ='SA17'!E67 -> 0 | F12: ='SA17'!F67 -> 0 | G12: ='SA17'!G67 -> 0 | H12: ='SA17'!H67 -> 0 | J12: ='SA17'!I67 -> 0 | K12: ='SA17'!J67 -> 0 | L12: ='SA17'!K67 -> 0
A13: Statutory requirements | B13: 2 | C13: 0 | D13: 0 | E13: 0 | F13: 3025100 | G13: 3025100 | H13: 3025100 | I13: 3025100 | J13: =I13*1.052 -> 3182405.2 | K13: =J13*1.054 -> 3354255.081 | L13: =K13*1.054 -> 3535384.855
A14: Other working capital requirements | B14: 3 | C14: =-C32 -> 11550928 | D14: =-D32 -> 8222282 | E14: 39163092 | F14: =-F32 -> 6870282 | G14: 439282 | H14: 439282 | I14: 160282 | J14: -2119000 | K14: -7395000 | L14: -4352000
A15: Other provisions | C15: 0 | D15: 0 | E15: 0 | F15: 14744449.65 | G15: 14744449.65 | H15: 14744449.65 | I15: 14744449.65 | J15: 0 | K15: 0 | L15: 0
A16: Long term investments committed | B16: 4 | C16: =C52 -> 0 | D16: =D52 -> 0 | E16: 0 | F16: 0 | G16: 0 | H16: 0 | I16: 0 | J16: 0 | K16: 0 | L16: 0
A17: Reserves to be backed by cash/investments | B17: 5 | C17: 0 | D17: 0 | E17: 0 | F17: 0 | G17: 0 | H17: 0 | I17: 0 | J17: 0 | K17: 0 | L17: 0
A18: ="Total "&A10&":" -> Total Application of cash and investments: | C18: =SUM(C11:C17) -> 11550928 | D18: =SUM(D11:D17) -> 8865959 | E18: 39163092 | F18: 24639831.65 | G18: 18208831.65 | H18: 18208831.65 | I18: 17929831.65 | J18: 1063405.2 | K18: -4040744.919 | L18: -816615.1448
A19: Surplus(shortfall) | C19: =C8-C18 -> 49163433 | D19: =D8-D18 -> 47066386 | E19: -25996081 | F19: 5081449.882 | G19: -14182550.12 | H19: -14182550.12 | I19: -13903550.12 | J19: 1357594.8 | K19: 7320890.919 | L19: 4014611.029
A20: =head27a -> References
A21: 1. Must reconcile with Budgeted Cash Flows
A22: 2. For example: VAT, taxation
A23: 3. Council approval for policy required - include sufficient working capital (e.g. allowing for a % of current debtors > 90 days as uncollectable)
A24: 4. For example: sinking fund requirements for borrowing
A25: 5. Council approval required for each reserve created and basis of cash backing of reserves
A28: Other working capital requirements
A29: Debtors | C29: =IF(ISERROR(ROUND(C35*C36,-3)),0,(ROUND(C35*C36,-3))) -> 43482000 | D29: =IF(ISERROR(ROUND(D35*D36,-3)),0,(ROUND(D35*D36,-3))) -> 27471000 | E29: 17330000 | F29: 28823000 | G29: 35254000 | H29: 35254000 | I29: 35533000 | J29: 36241000 | K29: 36295000 | L29: 36352000
A31: Creditors due | C31: ='SA3'!C35+'SA3'!C36 -> 55032928 | D31: ='SA3'!D35+'SA3'!D36 -> 35693282 | E31: ='SA3'!E35+'SA3'!E36 -> 56493092 | F31: ='SA3'!F35+'SA3'!F36 -> 35693282 | G31: ='SA3'!G35+'SA3'!G36 -> 35693282 | H31: ='SA3'!H35+'SA3'!H36 -> 35693282 | I31: ='SA3'!I35+'SA3'!I36 -> 35693282 | J31: ='SA3'!J35+'SA3'!J36 -> 34122000 | K31: ='SA3'!K35+'SA3'!K36 -> 28900000 | L31: ='SA3'!L35+'SA3'!L36 -> 32000000
A32: Total | C32: =C29-C31 -> -11550928 | D32: =D29-D31 -> -8222282 | E32: -39163092 | F32: -6870282 | G32: -439282 | H32: -439282 | I32: -160282 | J32: 2119000 | K32: 7395000 | L32: 4352000
A34: Debtors collection assumptions
A35: Balance outstanding - debtors | C35: ='A6-FinPos'!C8+'A6-FinPos'!C9+'A6-FinPos'!C15 -> 34529181 | D35: ='A6-FinPos'!D8+'A6-FinPos'!D9+'A6-FinPos'!D15 -> 69452867 | E35: ='A6-FinPos'!E8+'A6-FinPos'!E9+'A6-FinPos'!E15 -> 77046603 | F35: ='A6-FinPos'!F8+'A6-FinPos'!F9+'A6-FinPos'!F15 -> 51174458.96 | G35: ='A6-FinPos'!G8+'A6-FinPos'!G9+'A6-FinPos'!G15 -> 51174458.96 | H35: ='A6-FinPos'!H8+'A6-FinPos'!H9+'A6-FinPos'!H15 -> 51174458.96 | I35: ='A6-FinPos'!I8+'A6-FinPos'!I9+'A6-FinPos'!I15 -> 51174458.96 | J35: ='A6-FinPos'!J8+'A6-FinPos'!J9+'A6-FinPos'!J15 -> 77046603 | K35: ='A6-FinPos'!K8+'A6-FinPos'!K9+'A6-FinPos'!K15 -> 77161498.58 | L35: ='A6-FinPos'!L8+'A6-FinPos'!L9+'A6-FinPos'!L15 -> 77282598.53
A36: Estimate of debtors collection rate | C36: =IF(ISERROR('SA10'!D10),0,('SA10'!D10)) -> 1.259291281 | D36: =IF(ISERROR('SA10'!E10),0,('SA10'!E10)) -> 0.3955387525 | E36: =IF(ISERROR('SA10'!F10),0,('SA10'!F10)) -> 0.2249235757 | F36: =IF(ISERROR('SA10'!G10),0,('SA10'!G10)) -> 0.5632357567 | G36: =IF(ISERROR('SA10'!H10),0,('SA10'!H10)) -> 0.6888944198 | H36: =IF(ISERROR('SA10'!I10),0,('SA10'!I10)) -> 0.6888944198 | I36: =IF(ISERROR('SA10'!J10),0,('SA10'!J10)) -> 0.6943466366 | J36: =IF(ISERROR('SA10'!K10),0,('SA10'!K10)) -> 0.4703774001 | K36: =IF(ISERROR('SA10'!L10),0,('SA10'!L10)) -> 0.4703773998 | L36: =IF(ISERROR('SA10'!M10),0,('SA10'!M10)) -> 0.4703773954
K39: `
A40: =A16 -> Long term investments committed
A41: Balance (Insert description; eg sinking fund)
C52: =SUM(C41:C51) -> 0 | D52: =SUM(D41:D51) -> 0 | E52: 0 | F52: 0 | G52: 0 | H52: 0 | I52: 0 | J52: 0 | K52: 0 | L52: 0
A53: =A17 -> Reserves to be backed by cash/investments
A54: ='SA3'!A65 -> Housing Development Fund | C54: ='SA3'!C65 -> 0 | D54: ='SA3'!D65 -> 0 | E54: ='SA3'!E65 -> 0 | F54: ='SA3'!F65 -> 0 | G54: ='SA3'!G65 -> 0 | H54: ='SA3'!H65 -> 0 | I54: ='SA3'!I65 -> 0 | J54: ='SA3'!J65 -> 0 | K54: ='SA3'!K65 -> 0 | L54: ='SA3'!L65 -> 0
A55: ='SA3'!A66 -> Capital replacement
A56: ='SA3'!A67 -> Self-insurance
A57: Other (list)
C67: =SUM(C54:C65) -> 0 | D67: 0 | E67: 0 | F67: 0 | G67: 0 | H67: 0 | I67: 0 | J67: 0 | K67: 0 | L67: 0

Sheet A9-Asset
A1: =muni&" - "&Approve9 -> LIM332 Greater Letaba - Table A9 Asset Management
A2: =desc -> Description | B2: =head27 -> Ref | C2: =head1b -> 2015/16 | D2: =head1A -> 2016/17 | E2: =Head1 -> 2017/18 | F2: =Head2 -> Current Year 2018/19 | I2: =Head3 -> 2019/20 Medium Term Revenue & Expenditure Framework
A3: R thousand | C3: =Head5 -> Audited Outcome | D3: =Head5 -> Audited Outcome | E3: =Head5 -> Audited Outcome | F3: =Head6 -> Original Budget | G3: =Head7 -> Adjusted Budget | H3: =Head8 -> Full Year Forecast | I3: =Head9 -> Budget Year 2019/20 | J3: =Head10 -> Budget Year +1 2020/21 | K3: =Head11 -> Budget Year +2 2021/22
A4: CAPITAL EXPENDITURE
A5: Total New Assets | B5: 1 | C5: =C15+C18+C19+C22+C25+C26+SUM(C29:C35) -> 29947836 | D5: =D15+D18+D19+D22+D25+D26+SUM(D29:D35) -> 17977600 | E5: 139450122 | F5: 152192808.3 | G5: 166577203.3 | H5: 166577203.3 | I5: 151554220 | J5: 185822169 | K5: 200551107
A6: Roads Infrastructure | C6: =SA34a!C7 -> 3223432 | D6: =SA34a!D7 -> 2154000 | E6: =SA34a!E7 -> 76356418 | F6: =SA34a!F7 -> 65206303.81 | G6: =SA34a!G7 -> 71993960.81 | H6: =SA34a!H7 -> 71993960.81 | I6: =SA34a!I7 -> 57540758 | J6: =SA34a!J7 -> 126854930 | K6: =SA34a!K7 -> 135758045
A7: Storm water Infrastructure | C7: =SA34a!C12 -> 0 | D7: =SA34a!D12 -> 0 | E7: =SA34a!E12 -> 3160235 | F7: =SA34a!F12 -> 5664654.45 | G7: =SA34a!G12 -> 5664654.45 | H7: =SA34a!H12 -> 5664654.45 | I7: =SA34a!I12 -> 3680000 | J7: =SA34a!J12 -> 3236364 | K7: =SA34a!K12 -> 15508298
A8: Electrical Infrastructure | C8: =SA34a!C16 -> 3873785 | D8: =SA34a!D16 -> 7289000 | E8: =SA34a!E16 -> 10984462 | F8: =SA34a!F16 -> 15457760 | G8: =SA34a!G16 -> 22107760 | H8: =SA34a!H16 -> 22107760 | I8: =SA34a!I16 -> 15100000 | J8: =SA34a!J16 -> 9500000 | K8: =SA34a!K16 -> 17491920
A9: Water Supply Infrastructure | C9: =SA34a!C26 -> 0 | D9: =SA34a!D26 -> 0 | E9: =SA34a!E26 -> 0 | F9: =SA34a!F26 -> 0 | G9: =SA34a!G26 -> 0 | H9: =SA34a!H26 -> 0 | I9: =SA34a!I26 -> 0 | J9: =SA34a!J26 -> 0 | K9: =SA34a!K26 -> 0
A10: Sanitation Infrastructure | C10: =SA34a!C37 -> 0 | D10: =SA34a!D37 -> 0 | E10: =SA34a!E37 -> 0 | F10: =SA34a!F37 -> 0 | G10: =SA34a!G37 -> 0 | H10: =SA34a!H37 -> 0 | I10: =SA34a!I37 -> 0 | J10: =SA34a!J37 -> 0 | K10: =SA34a!K37 -> 0
A11: Solid Waste Infrastructure | C11: =SA34a!C44 -> 104223 | D11: =SA34a!D44 -> 3602000 | E11: =SA34a!E44 -> 2278685 | F11: =SA34a!F44 -> 1700000 | G11: =SA34a!G44 -> 0 | H11: =SA34a!H44 -> 0 | I11: =SA34a!I44 -> 3300000 | J11: =SA34a!J44 -> 0 | K11: =SA34a!K44 -> 0
A12: Rail Infrastructure | C12: =SA34a!C52 -> 0 | D12: =SA34a!D52 -> 0 | E12: =SA34a!E52 -> 0 | F12: =SA34a!F52 -> 0 | G12: =SA34a!G52 -> 0 | H12: =SA34a!H52 -> 0 | I12: =SA34a!I52 -> 0 | J12: =SA34a!J52 -> 0 | K12: =SA34a!K52 -> 0
A13: Coastal Infrastructure | C13: =SA34a!C62 -> 0 | D13: =SA34a!D62 -> 0 | E13: =SA34a!E62 -> 0 | F13: =SA34a!F62 -> 0 | G13: =SA34a!G62 -> 0 | H13: =SA34a!H62 -> 0 | I13: =SA34a!I62 -> 0 | J13: =SA34a!J62 -> 0 | K13: =SA34a!K62 -> 0
A14: Information and Communication Infrastructure | C14: =SA34a!C68 -> 0 | D14: =SA34a!D68 -> 0 | E14: =SA34a!E68 -> 0 | F14: =SA34a!F68 -> 0 | G14: =SA34a!G68 -> 0 | H14: =SA34a!H68 -> 0 | I14: =SA34a!I68 -> 0 | J14: =SA34a!J68 -> 0 | K14: =SA34a!K68 -> 0
A15: Infrastructure | C15: =SUM(C6:C14) -> 7201440 | D15: =SUM(D6:D14) -> 13045000 | E15: 92779800 | F15: 88028718.26 | G15: 99766375.26 | H15: 99766375.26 | I15: 79620758 | J15: 139591294 | K15: 168758263
A16: Community Facilities | C16: =SA34a!C75 -> 6771504 | D16: =SA34a!D75 -> 0 | E16: =SA34a!E75 -> 8865104 | F16: =SA34a!F75 -> 4418446.4 | G16: =SA34a!G75 -> 2118446.4 | H16: =SA34a!H75 -> 2118446.4 | I16: =SA34a!I75 -> 3100000 | J16: =SA34a!J75 -> 3900000 | K16: =SA34a!K75 -> 0
A17: Sport and Recreation Facilities | C17: =SA34a!C98 -> 0 | D17: =SA34a!D98 -> 0 | E17: =SA34a!E98 -> 34192701 | F17: =SA34a!F98 -> 36421985.8 | G17: =SA34a!G98 -> 39361885.8 | H17: =SA34a!H98 -> 39361885.8 | I17: =SA34a!I98 -> 43635415 | J17: =SA34a!J98 -> 38582889 | K17: =SA34a!K98 -> 27794111
A18: Community Assets | C18: =SUM(C16:C17) -> 6771504 | D18: =SUM(D16:D17) -> 0 | E18: 43057805 | F18: 40840432.2 | G18: 41480332.2 | H18: 41480332.2 | I18: 46735415 | J18: 42482889 | K18: 27794111
A19: Heritage Assets | C19: =SA34a!C103 -> 0 | D19: =SA34a!D103 -> 0 | E19: =SA34a!E103 -> 0 | F19: =SA34a!F103 -> 0 | G19: =SA34a!G103 -> 0 | H19: =SA34a!H103 -> 0 | I19: =SA34a!I103 -> 0 | J19: =SA34a!J103 -> 0 | K19: =SA34a!K103 -> 0
A20: Revenue Generating | C20: =SA34a!C111 -> 0 | D20: =SA34a!D111 -> 0 | E20: =SA34a!E111 -> 0 | F20: =SA34a!F111 -> 0 | G20: =SA34a!G111 -> 0 | H20: =SA34a!H111 -> 0 | I20: =SA34a!I111 -> 0 | J20: =SA34a!J111 -> 0 | K20: =SA34a!K111 -> 0
A21: Non-revenue Generating | C21: =SA34a!C114 -> 0 | D21: =SA34a!D114 -> 0 | E21: =SA34a!E114 -> 0 | F21: =SA34a!F114 -> 0 | G21: =SA34a!G114 -> 0 | H21: =SA34a!H114 -> 0 | I21: =SA34a!I114 -> 0 | J21: =SA34a!J114 -> 0 | K21: =SA34a!K114 -> 0
A22: Investment properties | C22: =SUM(C20:C21) -> 0 | D22: =SUM(D20:D21) -> 0 | E22: 0 | F22: 0 | G22: 0 | H22: 0 | I22: 0 | J22: 0 | K22: 0
A23: Operational Buildings | C23: =SA34a!C119 -> 15952719 | D23: =SA34a!D119 -> 1011116 | E23: =SA34a!E119 -> 617339 | F23: =SA34a!F119 -> 9383657.86 | G23: =SA34a!G119 -> 8583657.86 | H23: =SA34a!H119 -> 8583657.86 | I23: =SA34a!I119 -> 7100047 | J23: =SA34a!J119 -> 3747986 | K23: =SA34a!K119 -> 3998733
A24: Housing | C24: =SA34a!C131 -> 0 | D24: =SA34a!D131 -> 0 | E24: =SA34a!E131 -> 0 | F24: =SA34a!F131 -> 0 | G24: =SA34a!G131 -> 0 | H24: =SA34a!H131 -> 0 | I24: =SA34a!I131 -> 0 | J24: =SA34a!J131 -> 0 | K24: =SA34a!K131 -> 0
A25: Other Assets | C25: =SUM(C23:C24) -> 15952719 | D25: =SUM(D23:D24) -> 1011116 | E25: 617339 | F25: 9383657.86 | G25: 8583657.86 | H25: 8583657.86 | I25: 7100047 | J25: 3747986 | K25: 3998733
A26: Biological or Cultivated Assets | C26: =SA34a!C136 -> 0 | D26: =SA34a!D136 -> 0 | E26: =SA34a!E136 -> 0 | F26: =SA34a!F136 -> 0 | G26: =SA34a!G136 -> 0 | H26: =SA34a!H136 -> 0 | I26: =SA34a!I136 -> 0 | J26: =SA34a!J136 -> 0 | K26: =SA34a!K136 -> 0
A27: Servitudes | C27: =SA34a!C140 -> 0 | D27: =SA34a!D140 -> 0 | E27: =SA34a!E140 -> 0 | F27: =SA34a!F140 -> 0 | G27: =SA34a!G140 -> 0 | H27: =SA34a!H140 -> 0 | I27: =SA34a!I140 -> 0 | J27: =SA34a!J140 -> 0 | K27: =SA34a!K140 -> 0
A28: Licences and Rights | C28: =SA34a!C141 -> 0 | D28: =SA34a!D141 -> 20551 | E28: =SA34a!E141 -> 0 | F28: =SA34a!F141 -> 1050000 | G28: =SA34a!G141 -> 1050000 | H28: =SA34a!H141 -> 1050000 | I28: =SA34a!I141 -> 0 | J28: =SA34a!J141 -> 0 | K28: =SA34a!K141 -> 0
A29: Intangible Assets | C29: =SUM(C27:C28) -> 0 | D29: =SUM(D27:D28) -> 20551 | E29: 0 | F29: 1050000 | G29: 1050000 | H29: 1050000 | I29: 0 | J29: 0 | K29: 0
A30: Computer Equipment | C30: =SA34a!C149 -> 0 | D30: =SA34a!D149 -> 369179 | E30: =SA34a!E149 -> 530822 | F30: =SA34a!F149 -> 380000 | G30: =SA34a!G149 -> 380000 | H30: =SA34a!H149 -> 380000 | I30: =SA34a!I149 -> 600000 | J30: =SA34a!J149 -> 0 | K30: =SA34a!K149 -> 0
A31: Furniture and Office Equipment | C31: =SA34a!C152 -> 22173 | D31: =SA34a!D152 -> 31754 | E31: =SA34a!E152 -> 505214 | F31: =SA34a!F152 -> 1660000 | G31: =SA34a!G152 -> 2466838 | H31: =SA34a!H152 -> 2466838 | I31: =SA34a!I152 -> 2618000 | J31: =SA34a!J152 -> 0 | K31: =SA34a!K152 -> 0
A32: Machinery and Equipment | C32: =SA34a!C155 -> 0 | D32: =SA34a!D155 -> 3500000 | E32: =SA34a!E155 -> 0 | F32: =SA34a!F155 -> 9750000 | G32: =SA34a!G155 -> 11750000 | H32: =SA34a!H155 -> 11750000 | I32: =SA34a!I155 -> 13430000 | J32: =SA34a!J155 -> 0 | K32: =SA34a!K155 -> 0
A33: Transport Assets | C33: =SA34a!C158 -> 0 | D33: =SA34a!D158 -> 0 | E33: =SA34a!E158 -> 1959142 | F33: =SA34a!F158 -> 1100000 | G33: =SA34a!G158 -> 1100000 | H33: =SA34a!H158 -> 1100000 | I33: =SA34a!I158 -> 1450000 | J33: =SA34a!J158 -> 0 | K33: =SA34a!K158 -> 0
A34: Land | C34: =SA34a!C161 -> 0 | D34: =SA34a!D161 -> 0 | E34: =SA34a!E161 -> 0 | F34: =SA34a!F161 -> 0 | G34: =SA34a!G161 -> 0 | H34: =SA34a!H161 -> 0 | I34: =SA34a!I161 -> 0 | J34: =SA34a!J161 -> 0 | K34: =SA34a!K161 -> 0
A35: Zoo's, Marine and Non-biological Animals | C35: =SA34a!C164 -> 0 | D35: =SA34a!D164 -> 0 | E35: =SA34a!E164 -> 0 | F35: =SA34a!F164 -> 0 | G35: =SA34a!G164 -> 0 | H35: =SA34a!H164 -> 0 | I35: =SA34a!I164 -> 0 | J35: =SA34a!J164 -> 0 | K35: =SA34a!K164 -> 0
A37: Total Renewal of Existing Assets | B37: 2 | C37: =C47+C50+C51+C54+C57+C58+SUM(C61:C67) -> 146294805 | D37: =D47+D50+D51+D54+D57+D58+SUM(D61:D67) -> 86979567 | E37: 29212415 | F37: 27083510.54 | G37: 27083510.54 | H37: 27083510.54 | I37: 0 | J37: 0 | K37: 0
A38: Roads Infrastructure | C38: =SA34b!C7 -> 144516617 | D38: =SA34b!D7 -> 55008400 | E38: =SA34b!E7 -> 7967877 | F38: =SA34b!F7 -> 0 | G38: =SA34b!G7 -> 0 | H38: =SA34b!H7 -> 0 | I38: =SA34b!I7 -> 0 | J38: =SA34b!J7 -> 0 | K38: =SA34b!K7 -> 0
A39: Storm water Infrastructure | C39: =SA34b!C12 -> 0 | D39: =SA34b!D12 -> 0 | E39: =SA34b!E12 -> 0 | F39: =SA34b!F12 -> 0 | G39: =SA34b!G12 -> 0 | H39: =SA34b!H12 -> 0 | I39: =SA34b!I12 -> 0 | J39: =SA34b!J12 -> 0 | K39: =SA34b!K12 -> 0
A40: Electrical Infrastructure | C40: =SA34b!C16 -> 0 | D40: =SA34b!D16 -> 6791000 | E40: =SA34b!E16 -> 2078301 | F40: =SA34b!F16 -> 0 | G40: =SA34b!G16 -> 0 | H40: =SA34b!H16 -> 0 | I40: =SA34b!I16 -> 0 | J40: =SA34b!J16 -> 0 | K40: =SA34b!K16 -> 0
A41: Water Supply Infrastructure | C41: =SA34b!C26 -> 0 | D41: =SA34b!D26 -> 0 | E41: =SA34b!E26 -> 0 | F41: =SA34b!F26 -> 0 | G41: =SA34b!G26 -> 0 | H41: =SA34b!H26 -> 0 | I41: =SA34b!I26 -> 0 | J41: =SA34b!J26 -> 0 | K41: =SA34b!K26 -> 0
A42: Sanitation Infrastructure | C42: =SA34b!C37 -> 0 | D42: =SA34b!D37 -> 0 | E42: =SA34b!E37 -> 0 | F42: =SA34b!F37 -> 0 | G42: =SA34b!G37 -> 0 | H42: =SA34b!H37 -> 0 | I42: =SA34b!I37 -> 0 | J42: =SA34b!J37 -> 0 | K42: =SA34b!K37 -> 0
A43: Solid Waste Infrastructure | C43: =SA34b!C44 -> 0 | D43: =SA34b!D44 -> 0 | E43: =SA34b!E44 -> 0 | F43: =SA34b!F44 -> 0 | G43: =SA34b!G44 -> 0 | H43: =SA34b!H44 -> 0 | I43: =SA34b!I44 -> 0 | J43: =SA34b!J44 -> 0 | K43: =SA34b!K44 -> 0
A44: Rail Infrastructure | C44: =SA34b!C52 -> 0 | D44: =SA34b!D52 -> 0 | E44: =SA34b!E52 -> 0 | F44: =SA34b!F52 -> 0 | G44: =SA34b!G52 -> 0 | H44: =SA34b!H52 -> 0 | I44: =SA34b!I52 -> 0 | J44: =SA34b!J52 -> 0 | K44: =SA34b!K52 -> 0
A45: Coastal Infrastructure | C45: =SA34b!C62 -> 0 | D45: =SA34b!D62 -> 0 | E45: =SA34b!E62 -> 0 | F45: =SA34b!F62 -> 0 | G45: =SA34b!G62 -> 0 | H45: =SA34b!H62 -> 0 | I45: =SA34b!I62 -> 0 | J45: =SA34b!J62 -> 0 | K45: =SA34b!K62 -> 0
A46: Information and Communication Infrastructure | C46: =SA34b!C68 -> 0 | D46: =SA34b!D68 -> 0 | E46: =SA34b!E68 -> 0 | F46: =SA34b!F68 -> 0 | G46: =SA34b!G68 -> 0 | H46: =SA34b!H68 -> 0 | I46: =SA34b!I68 -> 0 | J46: =SA34b!J68 -> 0 | K46: =SA34b!K68 -> 0
A47: Infrastructure | C47: =SUM(C38:C46) -> 144516617 | D47: =SUM(D38:D46) -> 61799400 | E47: 10046178 | F47: 0 | G47: 0 | H47: 0 | I47: 0 | J47: 0 | K47: 0
A48: Community Facilities | C48: =SA34b!C75 -> 0 | D48: =SA34b!D75 -> 18440000 | E48: =SA34b!E75 -> 7226813 | F48: =SA34b!F75 -> 0 | G48: =SA34b!G75 -> 0 | H48: =SA34b!H75 -> 0 | I48: =SA34b!I75 -> 0 | J48: =SA34b!J75 -> 0 | K48: =SA34b!K75 -> 0
A49: Sport and Recreation Facilities | C49: =SA34b!C98 -> 1778188 | D49: =SA34b!D98 -> 6740167 | E49: =SA34b!E98 -> 11939424 | F49: =SA34b!F98 -> 27083510.54 | G49: =SA34b!G98 -> 27083510.54 | H49: =SA34b!H98 -> 27083510.54 | I49: =SA34b!I98 -> 0 | J49: =SA34b!J98 -> 0 | K49: =SA34b!K98 -> 0
A50: Community Assets | C50: =SUM(C48:C49) -> 1778188 | D50: =SUM(D48:D49) -> 25180167 | E50: 19166237 | F50: 27083510.54 | G50: 27083510.54 | H50: 27083510.54 | I50: 0 | J50: 0 | K50: 0
A51: Heritage Assets | C51: =SA34b!C103 -> 0 | D51: =SA34b!D103 -> 0 | E51: =SA34b!E103 -> 0 | F51: =SA34b!F103 -> 0 | G51: =SA34b!G103 -> 0 | H51: =SA34b!H103 -> 0 | I51: =SA34b!I103 -> 0 | J51: =SA34b!J103 -> 0 | K51: =SA34b!K103 -> 0
A52: Revenue Generating | C52: =SA34b!C111 -> 0 | D52: =SA34b!D111 -> 0 | E52: =SA34b!E111 -> 0 | F52: =SA34b!F111 -> 0 | G52: =SA34b!G111 -> 0 | H52: =SA34b!H111 -> 0 | I52: =SA34b!I111 -> 0 | J52: =SA34b!J111 -> 0 | K52: =SA34b!K111 -> 0
A53: Non-revenue Generating | C53: =SA34b!C114 -> 0 | D53: =SA34b!D114 -> 0 | E53: =SA34b!E114 -> 0 | F53: =SA34b!F114 -> 0 | G53: =SA34b!G114 -> 0 | H53: =SA34b!H114 -> 0 | I53: =SA34b!I114 -> 0 | J53: =SA34b!J114 -> 0 | K53: =SA34b!K114 -> 0
A54: Investment properties | C54: =SUM(C52:C53) -> 0 | D54: =SUM(D52:D53) -> 0 | E54: 0 | F54: 0 | G54: 0 | H54: 0 | I54: 0 | J54: 0 | K54: 0
A55: Operational Buildings | C55: =SA34b!C119 -> 0 | D55: =SA34b!D119 -> 0 | E55: =SA34b!E119 -> 0 | F55: =SA34b!F119 -> 0 | G55: =SA34b!G119 -> 0 | H55: =SA34b!H119 -> 0 | I55: =SA34b!I119 -> 0 | J55: =SA34b!J119 -> 0 | K55: =SA34b!K119 -> 0
A56: Housing | C56: =SA34b!C131 -> 0 | D56: =SA34b!D131 -> 0 | E56: =SA34b!E131 -> 0 | F56: =SA34b!F131 -> 0 | G56: =SA34b!G131 -> 0 | H56: =SA34b!H131 -> 0 | I56: =SA34b!I131 -> 0 | J56: =SA34b!J131 -> 0 | K56: =SA34b!K131 -> 0
A57: Other Assets | C57: =SUM(C55:C56) -> 0 | D57: =SUM(D55:D56) -> 0 | E57: 0 | F57: 0 | G57: 0 | H57: 0 | I57: 0 | J57: 0 | K57: 0
A58: Biological or Cultivated Assets | C58: =SA34b!C136 -> 0 | D58: =SA34b!D136 -> 0 | E58: =SA34b!E136 -> 0 | F58: =SA34b!F136 -> 0 | G58: =SA34b!G136 -> 0 | H58: =SA34b!H136 -> 0 | I58: =SA34b!I136 -> 0 | J58: =SA34b!J136 -> 0 | K58: =SA34b!K136 -> 0
A59: Servitudes | C59: =SA34b!C140 -> 0 | D59: =SA34b!D140 -> 0 | E59: =SA34b!E140 -> 0 | F59: =SA34b!F140 -> 0 | G59: =SA34b!G140 -> 0 | H59: =SA34b!H140 -> 0 | I59: =SA34b!I140 -> 0 | J59: =SA34b!J140 -> 0 | K59: =SA34b!K140 -> 0
A60: Licences and Rights | C60: =SA34b!C141 -> 0 | D60: =SA34b!D141 -> 0 | E60: =SA34b!E141 -> 0 | F60: =SA34b!F141 -> 0 | G60: =SA34b!G141 -> 0 | H60: =SA34b!H141 -> 0 | I60: =SA34b!I141 -> 0 | J60: =SA34b!J141 -> 0 | K60: =SA34b!K141 -> 0
A61: Intangible Assets | C61: =SUM(C59:C60) -> 0 | D61: =SUM(D59:D60) -> 0 | E61: 0 | F61: 0 | G61: 0 | H61: 0 | I61: 0 | J61: 0 | K61: 0
A62: Computer Equipment | C62: =SA34b!C149 -> 0 | D62: =SA34b!D149 -> 0 | E62: =SA34b!E149 -> 0 | F62: =SA34b!F149 -> 0 | G62: =SA34b!G149 -> 0 | H62: =SA34b!H149 -> 0 | I62: =SA34b!I149 -> 0 | J62: =SA34b!J149 -> 0 | K62: =SA34b!K149 -> 0
A63: Furniture and Office Equipment | C63: =SA34b!C152 -> 0 | D63: =SA34b!D152 -> 0 | E63: =SA34b!E152 -> 0 | F63: =SA34b!F152 -> 0 | G63: =SA34b!G152 -> 0 | H63: =SA34b!H152 -> 0 | I63: =SA34b!I152 -> 0 | J63: =SA34b!J152 -> 0 | K63: =SA34b!K152 -> 0
A64: Machinery and Equipment | C64: =SA34b!C155 -> 0 | D64: =SA34b!D155 -> 0 | E64: =SA34b!E155 -> 0 | F64: =SA34b!F155 -> 0 | G64: =SA34b!G155 -> 0 | H64: =SA34b!H155 -> 0 | I64: =SA34b!I155 -> 0 | J64: =SA34b!J155 -> 0 | K64: =SA34b!K155 -> 0
A65: Transport Assets | C65: =SA34b!C158 -> 0 | D65: =SA34b!D158 -> 0 | E65: =SA34b!E158 -> 0 | F65: =SA34b!F158 -> 0 | G65: =SA34b!G158 -> 0 | H65: =SA34b!H158 -> 0 | I65: =SA34b!I158 -> 0 | J65: =SA34b!J158 -> 0 | K65: =SA34b!K158 -> 0
A66: Land | C66: =SA34b!C161 -> 0 | D66: =SA34b!D161 -> 0 | E66: =SA34b!E161 -> 0 | F66: =SA34b!F161 -> 0 | G66: =SA34b!G161 -> 0 | H66: =SA34b!H161 -> 0 | I66: =SA34b!I161 -> 0 | J66: =SA34b!J161 -> 0 | K66: =SA34b!K161 -> 0
A67: Zoo's, Marine and Non-biological Animals | C67: =SA34b!C164 -> 0 | D67: =SA34b!D164 -> 0 | E67: =SA34b!E164 -> 0 | F67: =SA34b!F164 -> 0 | G67: =SA34b!G164 -> 0 | H67: =SA34b!H164 -> 0 | I67: =SA34b!I164 -> 0 | J67: =SA34b!J164 -> 0 | K67: =SA34b!K164 -> 0
A69: Total Upgrading of Existing Assets | B69: 6 | C69: =C79+C82+C83+C86+C89+C90+SUM(C93:C99) -> 0 | D69: =D79+D82+D83+D86+D89+D90+SUM(D93:D99) -> 0 | E69: 17000 | F69: 0 | G69: 0 | H69: 0 | I69: 0 | J69: 0 | K69: 0
A70: Roads Infrastructure | C70: =SA34e!C7 -> 0 | D70: =SA34e!D7 -> 0 | E70: =SA34e!E7 -> 17000 | F70: =SA34e!F7 -> 0 | G70: =SA34e!G7 -> 0 | H70: =SA34e!H7 -> 0 | I70: =SA34e!I7 -> 0 | J70: =SA34e!J7 -> 0 | K70: =SA34e!K7 -> 0
A71: Storm water Infrastructure | C71: =SA34e!C12 -> 0 | D71: =SA34e!D12 -> 0 | E71: =SA34e!E12 -> 0 | F71: =SA34e!F12 -> 0 | G71: =SA34e!G12 -> 0 | H71: =SA34e!H12 -> 0 | I71: =SA34e!I12 -> 0 | J71: =SA34e!J12 -> 0 | K71: =SA34e!K12 -> 0
A72: Electrical Infrastructure | C72: =SA34e!C16 -> 0 | D72: =SA34e!D16 -> 0 | E72: =SA34e!E16 -> 0 | F72: =SA34e!F16 -> 0 | G72: =SA34e!G16 -> 0 | H72: =SA34e!H16 -> 0 | I72: =SA34e!I16 -> 0 | J72: =SA34e!J16 -> 0 | K72: =SA34e!K16 -> 0
A73: Water Supply Infrastructure | C73: =SA34e!C26 -> 0 | D73: =SA34e!D26 -> 0 | E73: =SA34e!E26 -> 0 | F73: =SA34e!F26 -> 0 | G73: =SA34e!G26 -> 0 | H73: =SA34e!H26 -> 0 | I73: =SA34e!I26 -> 0 | J73: =SA34e!J26 -> 0 | K73: =SA34e!K26 -> 0
A74: Sanitation Infrastructure | C74: =SA34e!C37 -> 0 | D74: =SA34e!D37 -> 0 | E74: =SA34e!E37 -> 0 | F74: =SA34e!F37 -> 0 | G74: =SA34e!G37 -> 0 | H74: =SA34e!H37 -> 0 | I74: =SA34e!I37 -> 0 | J74: =SA34e!J37 -> 0 | K74: =SA34e!K37 -> 0
A75: Solid Waste Infrastructure | C75: =SA34e!C44 -> 0 | D75: =SA34e!D44 -> 0 | E75: =SA34e!E44 -> 0 | F75: =SA34e!F44 -> 0 | G75: =SA34e!G44 -> 0 | H75: =SA34e!H44 -> 0 | I75: =SA34e!I44 -> 0 | J75: =SA34e!J44 -> 0 | K75: =SA34e!K44 -> 0
A76: Rail Infrastructure | C76: =SA34e!C52 -> 0 | D76: =SA34e!D52 -> 0 | E76: =SA34e!E52 -> 0 | F76: =SA34e!F52 -> 0 | G76: =SA34e!G52 -> 0 | H76: =SA34e!H52 -> 0 | I76: =SA34e!I52 -> 0 | J76: =SA34e!J52 -> 0 | K76: =SA34e!K52 -> 0
A77: Coastal Infrastructure | C77: =SA34e!C62 -> 0 | D77: =SA34e!D62 -> 0 | E77: =SA34e!E62 -> 0 | F77: =SA34e!F62 -> 0 | G77: =SA34e!G62 -> 0 | H77: =SA34e!H62 -> 0 | I77: =SA34e!I62 -> 0 | J77: =SA34e!J62 -> 0 | K77: =SA34e!K62 -> 0
A78: Information and Communication Infrastructure | C78: =SA34e!C68 -> 0 | D78: =SA34e!D68 -> 0 | E78: =SA34e!E68 -> 0 | F78: =SA34e!F68 -> 0 | G78: =SA34e!G68 -> 0 | H78: =SA34e!H68 -> 0 | I78: =SA34e!I68 -> 0 | J78: =SA34e!J68 -> 0 | K78: =SA34e!K68 -> 0
A79: Infrastructure | C79: =SUM(C70:C78) -> 0 | D79: 0 | E79: 17000 | F79: 0 | G79: 0 | H79: 0 | I79: 0 | J79: 0 | K79: 0
A80: Community Facilities | C80: =SA34e!C75 -> 0 | D80: =SA34e!D75 -> 0 | E80: =SA34e!E75 -> 0 | F80: =SA34e!F75 -> 0 | G80: =SA34e!G75 -> 0 | H80: =SA34e!H75 -> 0 | I80: =SA34e!I75 -> 0 | J80: =SA34e!J75 -> 0 | K80: =SA34e!K75 -> 0
A81: Sport and Recreation Facilities | C81: =SA34e!C98 -> 0 | D81: =SA34e!D98 -> 0 | E81: =SA34e!E98 -> 0 | F81: =SA34e!F98 -> 0 | G81: =SA34e!G98 -> 0 | H81: =SA34e!H98 -> 0 | I81: =SA34e!I98 -> 0 | J81: =SA34e!J98 -> 0 | K81: =SA34e!K98 -> 0
A82: Community Assets | C82: =SUM(C80:C81) -> 0 | D82: 0 | E82: 0 | F82: 0 | G82: 0 | H82: 0 | I82: 0 | J82: 0 | K82: 0
A83: Heritage Assets | C83: =SA34e!C103 -> 0 | D83: =SA34e!D103 -> 0 | E83: =SA34e!E103 -> 0 | F83: =SA34e!F103 -> 0 | G83: =SA34e!G103 -> 0 | H83: =SA34e!H103 -> 0 | I83: =SA34e!I103 -> 0 | J83: =SA34e!J103 -> 0 | K83: =SA34e!K103 -> 0
A84: Revenue Generating | C84: =SA34e!C111 -> 0 | D84: =SA34e!D111 -> 0 | E84: =SA34e!E111 -> 0 | F84: =SA34e!F111 -> 0 | G84: =SA34e!G111 -> 0 | H84: =SA34e!H111 -> 0 | I84: =SA34e!I111 -> 0 | J84: =SA34e!J111 -> 0 | K84: =SA34e!K111 -> 0
A85: Non-revenue Generating | C85: =SA34e!C114 -> 0 | D85: =SA34e!D114 -> 0 | E85: =SA34e!E114 -> 0 | F85: =SA34e!F114 -> 0 | G85: =SA34e!G114 -> 0 | H85: =SA34e!H114 -> 0 | I85: =SA34e!I114 -> 0 | J85: =SA34e!J114 -> 0 | K85: =SA34e!K114 -> 0
A86: Investment properties | C86: =SUM(C84:C85) -> 0 | D86: 0 | E86: 0 | F86: 0 | G86: 0 | H86: 0 | I86: 0 | J86: 0 | K86: 0
A87: Operational Buildings | C87: =SA34e!C119 -> 0 | D87: =SA34e!D119 -> 0 | E87: =SA34e!E119 -> 0 | F87: =SA34e!F119 -> 0 | G87: =SA34e!G119 -> 0 | H87: =SA34e!H119 -> 0 | I87: =SA34e!I119 -> 0 | J87: =SA34e!J119 -> 0 | K87: =SA34e!K119 -> 0
A88: Housing | C88: =SA34e!C131 -> 0 | D88: =SA34e!D131 -> 0 | E88: =SA34e!E131 -> 0 | F88: =SA34e!F131 -> 0 | G88: =SA34e!G131 -> 0 | H88: =SA34e!H131 -> 0 | I88: =SA34e!I131 -> 0 | J88: =SA34e!J131 -> 0 | K88: =SA34e!K131 -> 0
A89: Other Assets | C89: =SUM(C87:C88) -> 0 | D89: 0 | E89: 0 | F89: 0 | G89: 0 | H89: 0 | I89: 0 | J89: 0 | K89: 0
A90: Biological or Cultivated Assets | C90: =SA34e!C136 -> 0 | D90: =SA34e!D136 -> 0 | E90: =SA34e!E136 -> 0 | F90: =SA34e!F136 -> 0 | G90: =SA34e!G136 -> 0 | H90: =SA34e!H136 -> 0 | I90: =SA34e!I136 -> 0 | J90: =SA34e!J136 -> 0 | K90: =SA34e!K136 -> 0
A91: Servitudes | C91: =SA34e!C140 -> 0 | D91: =SA34e!D140 -> 0 | E91: =SA34e!E140 -> 0 | F91: =SA34e!F140 -> 0 | G91: =SA34e!G140 -> 0 | H91: =SA34e!H140 -> 0 | I91: =SA34e!I140 -> 0 | J91: =SA34e!J140 -> 0 | K91: =SA34e!K140 -> 0
A92: Licences and Rights | C92: =SA34e!C141 -> 0 | D92: =SA34e!D141 -> 0 | E92: =SA34e!E141 -> 0 | F92: =SA34e!F141 -> 0 | G92: =SA34e!G141 -> 0 | H92: =SA34e!H141 -> 0 | I92: =SA34e!I141 -> 0 | J92: =SA34e!J141 -> 0 | K92: =SA34e!K141 -> 0
A93: Intangible Assets | C93: =SUM(C91:C92) -> 0 | D93: 0 | E93: 0 | F93: 0 | G93: 0 | H93: 0 | I93: 0 | J93: 0 | K93: 0
A94: Computer Equipment | C94: =SA34e!C149 -> 0 | D94: =SA34e!D149 -> 0 | E94: =SA34e!E149 -> 0 | F94: =SA34e!F149 -> 0 | G94: =SA34e!G149 -> 0 | H94: =SA34e!H149 -> 0 | I94: =SA34e!I149 -> 0 | J94: =SA34e!J149 -> 0 | K94: =SA34e!K149 -> 0
A95: Furniture and Office Equipment | C95: =SA34e!C152 -> 0 | D95: =SA34e!D152 -> 0 | E95: =SA34e!E152 -> 0 | F95: =SA34e!F152 -> 0 | G95: =SA34e!G152 -> 0 | H95: =SA34e!H152 -> 0 | I95: =SA34e!I152 -> 0 | J95: =SA34e!J152 -> 0 | K95: =SA34e!K152 -> 0
A96: Machinery and Equipment | C96: =SA34e!C155 -> 0 | D96: =SA34e!D155 -> 0 | E96: =SA34e!E155 -> 0 | F96: =SA34e!F155 -> 0 | G96: =SA34e!G155 -> 0 | H96: =SA34e!H155 -> 0 | I96: =SA34e!I155 -> 0 | J96: =SA34e!J155 -> 0 | K96: =SA34e!K155 -> 0
A97: Transport Assets | C97: =SA34e!C158 -> 0 | D97: =SA34e!D158 -> 0 | E97: =SA34e!E158 -> 0 | F97: =SA34e!F158 -> 0 | G97: =SA34e!G158 -> 0 | H97: =SA34e!H158 -> 0 | I97: =SA34e!I158 -> 0 | J97: =SA34e!J158 -> 0 | K97: =SA34e!K158 -> 0
A98: Land | C98: =SA34e!C161 -> 0 | D98: =SA34e!D161 -> 0 | E98: =SA34e!E161 -> 0 | F98: =SA34e!F161 -> 0 | G98: =SA34e!G161 -> 0 | H98: =SA34e!H161 -> 0 | I98: =SA34e!I161 -> 0 | J98: =SA34e!J161 -> 0 | K98: =SA34e!K161 -> 0
A99: Zoo's, Marine and Non-biological Animals | C99: =SA34e!C164 -> 0 | D99: =SA34e!D164 -> 0 | E99: =SA34e!E164 -> 0 | F99: =SA34e!F164 -> 0 | G99: =SA34e!G164 -> 0 | H99: =SA34e!H164 -> 0 | I99: =SA34e!I164 -> 0 | J99: =SA34e!J164 -> 0 | K99: =SA34e!K164 -> 0
A101: Total Capital Expenditure | B101: 4 | C101: =+C5+C37+C69 -> 176242641 | D101: =+D5+D37+D69 -> 104957167 | E101: 168679537 | F101: 179276318.9 | G101: 193660713.9 | H101: 193660713.9 | I101: 151554220 | J101: 185822169 | K101: 200551107
A102: Roads Infrastructure | C102: =+C6+C38+C70 -> 147740049 | D102: =+D6+D38+D70 -> 57162400 | E102: 84341295 | F102: 65206303.81 | G102: 71993960.81 | H102: 71993960.81 | I102: 57540758 | J102: 126854930 | K102: 135758045
A103: Storm water Infrastructure | C103: =+C7+C39+C71 -> 0 | D103: 0 | E103: 3160235 | F103: 5664654.45 | G103: 5664654.45 | H103: 5664654.45 | I103: 3680000 | J103: 3236364 | K103: 15508298
A104: Electrical Infrastructure | C104: 3873785 | D104: 14080000 | E104: 13062763 | F104: 15457760 | G104: 22107760 | H104: 22107760 | I104: 15100000 | J104: 9500000 | K104: 17491920
A105: Water Supply Infrastructure | C105: 0 | D105: 0 | E105: 0 | F105: 0 | G105: 0 | H105: 0 | I105: 0 | J105: 0 | K105: 0
A106: Sanitation Infrastructure | C106: 0 | D106: 0 | E106: 0 | F106: 0 | G106: 0 | H106: 0 | I106: 0 | J106: 0 | K106: 0
A107: Solid Waste Infrastructure | C107: 104223 | D107: 3602000 | E107: 2278685 | F107: 1700000 | G107: 0 | H107: 0 | I107: 3300000 | J107: 0 | K107: 0
A108: Rail Infrastructure | C108: 0 | D108: 0 | E108: 0 | F108: 0 | G108: 0 | H108: 0 | I108: 0 | J108: 0 | K108: 0
A109: Coastal Infrastructure | C109: 0 | D109: 0 | E109: 0 | F109: 0 | G109: 0 | H109: 0 | I109: 0 | J109: 0 | K109: 0
A110: Information and Communication Infrastructure | C110: 0 | D110: 0 | E110: 0 | F110: 0 | G110: 0 | H110: 0 | I110: 0 | J110: 0 | K110: 0
A111: Infrastructure | C111: =SUM(C102:C110) -> 151718057 | D111: =SUM(D102:D110) -> 74844400 | E111: 102842978 | F111: 88028718.26 | G111: 99766375.26 | H111: 99766375.26 | I111: 79620758 | J111: 139591294 | K111: 168758263
A112: Community Facilities | C112: =+C16+C48+C80 -> 6771504 | D112: =+D16+D48+D80 -> 18440000 | E112: 16091917 | F112: 4418446.4 | G112: 2118446.4 | H112: 2118446.4 | I112: 3100000 | J112: 3900000 | K112: 0
A113: Sport and Recreation Facilities | C113: =+C17+C49+C81 -> 1778188 | D113: =+D17+D49+D81 -> 6740167 | E113: 46132125 | F113: 63505496.34 | G113: 66445396.34 | H113: 66445396.34 | I113: 43635415 | J113: 38582889 | K113: 27794111
A114: Community Assets | C114: =SUM(C112:C113) -> 8549692 | D114: =SUM(D112:D113) -> 25180167 | E114: 62224042 | F114: 67923942.74 | G114: 68563842.74 | H114: 68563842.74 | I114: 46735415 | J114: 42482889 | K114: 27794111
A115: Heritage Assets | C115: =+C19+C51+C83 -> 0 | D115: =+D19+D51+D83 -> 0 | E115: 0 | F115: 0 | G115: 0 | H115: 0 | I115: 0 | J115: 0 | K115: 0
A116: Revenue Generating | C116: =+C20+C52+C84 -> 0 | D116: =+D20+D52+D84 -> 0 | E116: 0 | F116: 0 | G116: 0 | H116: 0 | I116: 0 | J116: 0 | K116: 0
A117: Non-revenue Generating | C117: =+C21+C53+C85 -> 0 | D117: =+D21+D53+D85 -> 0 | E117: 0 | F117: 0 | G117: 0 | H117: 0 | I117: 0 | J117: 0 | K117: 0
A118: Investment properties | C118: =SUM(C116:C117) -> 0 | D118: =SUM(D116:D117) -> 0 | E118: 0 | F118: 0 | G118: 0 | H118: 0 | I118: 0 | J118: 0 | K118: 0
A119: Operational Buildings | C119: =+C23+C55+C87 -> 15952719 | D119: =+D23+D55+D87 -> 1011116 | E119: 617339 | F119: 9383657.86 | G119: 8583657.86 | H119: 8583657.86 | I119: 7100047 | J119: 3747986 | K119: 3998733
A120: Housing | C120: =+C24+C56+C88 -> 0 | D120: =+D24+D56+D88 -> 0 | E120: 0 | F120: 0 | G120: 0 | H120: 0 | I120: 0 | J120: 0 | K120: 0
A121: Other Assets | C121: =SUM(C119:C120) -> 15952719 | D121: 1011116 | E121: 617339 | F121: 9383657.86 | G121: 8583657.86 | H121: 8583657.86 | I121: 7100047 | J121: 3747986 | K121: 3998733
A122: Biological or Cultivated Assets | C122: =+C26+C58+C90 -> 0 | D122: =+D26+D58+D90 -> 0 | E122: 0 | F122: 0 | G122: 0 | H122: 0 | I122: 0 | J122: 0 | K122: 0
A123: Servitudes | C123: =+C27+C59+C91 -> 0 | D123: =+D27+D59+D91 -> 0 | E123: 0 | F123: 0 | G123: 0 | H123: 0 | I123: 0 | J123: 0 | K123: 0
A124: Licences and Rights | C124: =+C28+C60+C92 -> 0 | D124: =+D28+D60+D92 -> 20551 | E124: 0 | F124: 1050000 | G124: 1050000 | H124: 1050000 | I124: 0 | J124: 0 | K124: 0
A125: Intangible Assets | C125: =SUM(C123:C124) -> 0 | D125: =SUM(D123:D124) -> 20551 | E125: 0 | F125: 1050000 | G125: 1050000 | H125: 1050000 | I125: 0 | J125: 0 | K125: 0
A126: Computer Equipment | C126: =+C30+C62+C94 -> 0 | D126: =+D30+D62+D94 -> 369179 | E126: 530822 | F126: 380000 | G126: 380000 | H126: 380000 | I126: 600000 | J126: 0 | K126: 0
A127: Furniture and Office Equipment | C127: =+C31+C63+C95 -> 22173 | D127: 31754 | E127: 505214 | F127: 1660000 | G127: 2466838 | H127: 2466838 | I127: 2618000 | J127: 0 | K127: 0
A128: Machinery and Equipment | C128: 0 | D128: 3500000 | E128: 0 | F128: 9750000 | G128: 11750000 | H128: 11750000 | I128: 13430000 | J128: 0 | K128: 0
A129: Transport Assets | C129: 0 | D129: 0 | E129: 1959142 | F129: 1100000 | G129: 1100000 | H129: 1100000 | I129: 1450000 | J129: 0 | K129: 0
A130: Land | C130: 0 | D130: 0 | E130: 0 | F130: 0 | G130: 0 | H130: 0 | I130: 0 | J130: 0 | K130: 0
A131: Zoo's, Marine and Non-biological Animals | C131: 0 | D131: 0 | E131: 0 | F131: 0 | G131: 0 | H131: 0 | I131: 0 | J131: 0 | K131: 0
A132: TOTAL CAPITAL EXPENDITURE - Asset class | C132: =+C5+C37+C69 -> 176242641 | D132: =+D5+D37+D69 -> 104957167 | E132: 168679537 | F132: 179276318.9 | G132: 193660713.9 | H132: 193660713.9 | I132: 151554220 | J132: 185822169 | K132: 200551107
A134: ASSET REGISTER SUMMARY - PPE (WDV) | B134: 5 | C134: =C144+C147+C148+C151+C154+C155+C158+C159+C160+C161+C162+C163+C164 -> 678800559 | D134: =D144+D147+D148+D151+D154+D155+D158+D159+D160+D161+D162+D163+D164 -> 814981868 | E134: 854921362 | F134: 849067086.6 | G134: 849067173.6 | H134: 849067173.6 | I134: 953552546.6 | J134: 1125182904 | K134: 1319291289
A135: Roads Infrastructure | C135: =363041506+65974000 -> 429015506 | D135: =422618639+6255845+130831000 -> 559705484 | E135: =494156676-26715000 -> 467441676 | F135: =534835863-5306000 -> 529529863 | G135: =519623520+20000000-19690000 -> 519933520 | H135: =519623520+20000000-19690000 -> 519933520 | I135: =567683943.04+40169000-549000 -> 607303943 | J135: =598338875.96416+161898000 -> 760236876 | K135: =630649175.266225+303989000 -> 934638175.3
A136: Storm water Infrastructure | C136: 0 | D136: 0 | E136: 0 | F136: 0 | G136: 0 | H136: 0
A137: Electrical Infrastructure | C137: 32599262 | D137: 20664079 | E137: 61595970 | F137: 73629157.6 | G137: 81756413.6 | H137: 81756413.6 | I137: 86007747.11 | J137: 90652165.46 | K137: 95547382.39
A138: Water Supply Infrastructure | C138: 0 | D138: 0 | E138: 0 | F138: 0 | G138: 0 | H138: 0
A139: Sanitation Infrastructure | C139: 0 | D139: 0 | E139: 0 | F139: 0 | G139: 0 | H139: 0
A140: Solid Waste Infrastructure | C140: 5290278 | D140: 0 | E140: =6000935+169730 -> 6170665 | F140: 4997102 | G140: 4797102 | H140: 4797102 | I140: 5046551.304 | J140: 5319065.074 | K140: 5606294.588
A141: Rail Infrastructure | C141: 0 | D141: 0 | E141: 0 | F141: 0 | G141: 0 | H141: 0
A142: Coastal Infrastructure | C142: 0 | D142: 0 | E142: 0 | F142: 0 | G142: 0 | H142: 0
A143: Information and Communication Infrastructure | C143: 0 | D143: 0 | E143: 0 | F143: 0 | G143: 0 | H143: 0
A144: Infrastructure | C144: =SUM(C135:C143) -> 466905046 | D144: =SUM(D135:D143) -> 580369563 | E144: 535208311 | F144: 608156122.6 | G144: 606487035.6 | H144: 606487035.6 | I144: 698358241.5 | J144: 856208106.5 | K144: 1035791852
A147: Community Assets | C147: 210889862 | D147: 234612305 | E147: 1186274 | F147: 201568321 | G147: 203234136 | H147: 203234136 | I147: 213802311.1 | J147: 225347635.9 | K147: 237516408.2
A148: Heritage Assets | C148: 548500 | D148: 0 | E148: 548500 | F148: 0 | G148: 0 | H148: 0 | I148: 0 | J148: 0 | K148: 0
A151: Investment properties | C151: 249048 | D151: 0 | E151: 226559 | F151: 0 | G151: 0 | H151: 0 | I151: 0 | J151: 0 | K151: 0
A154: Other Assets | C154: 0 | D154: 0 | E154: 259759100 | F154: 0 | G154: 0 | H154: 0 | I154: 0 | J154: 0 | K154: 0
A155: Biological or Cultivated Assets
A158: Intangible Assets | C158: 208103 | D158: 0 | E158: 137774 | F158: 0 | G158: 0 | H158: 0 | I158: 0 | J158: 0 | K158: 0
A159: Computer Equipment | C159: 0 | D159: 0 | E159: 3885554 | F159: =2497928+180000+200000 -> 2877928 | G159: 3834755 | H159: 3834755 | I159: 4034162.26 | J159: 4252007.022 | K159: 4481615.401
A160: Furniture and Office Equipment | C160: 0 | D160: 0 | E160: 4241945 | F160: =6607690+390000 -> 6997690 | G160: 7374528 | H160: 7374528 | I160: 7758003.456 | J160: 8176935.643 | K160: 8618490.167
A161: Machinery and Equipment | C161: 0 | D161: 0 | E161: 6824904 | F161: =1500000+400000+13443574+820000 -> 16163574 | G161: 14833268 | H161: 14833268 | I161: 15604597.94 | J161: 16447246.22 | K161: 17335397.52
A162: Transport Assets | C162: 0 | D162: 0 | E162: 9072364 | F162: =12703451+600000 -> 13303451 | G162: 13303451 | H162: 13303451 | I162: 13995230.45 | J162: 14750972.9 | K162: 15547525.43
A163: Land | C163: 0 | D163: 0 | E163: 33830077 | F163: 0 | G163: 0 | H163: 0 | I163: 0 | J163: 0 | K163: 0
A164: Zoo's, Marine and Non-biological Animals | C164: 0 | D164: 0 | E164: 0 | F164: 0 | G164: 0 | H164: 0 | I164: 0 | J164: 0 | K164: 0
A165: TOTAL ASSET REGISTER SUMMARY - PPE (WDV) | B165: 5 | C165: =C144+C147+C148+C151+C154+C155+C158+C159+C160+C161+C162+C163+C164 -> 678800559 | D165: =D144+D147+D148+D151+D154+D155+D158+D159+D160+D161+D162+D163+D164 -> 814981868 | E165: 854921362 | F165: 849067086.6 | G165: 849067173.6 | H165: 849067173.6 | I165: 953552546.6 | J165: 1125182904 | K165: 1319291289
A167: EXPENDITURE OTHER ITEMS | C167: =SUM(C168:C169) -> 27323555 | D167: =SUM(D168:D169) -> 35208629 | E167: 37927527 | F167: 27142028.95 | G167: 28709512.72 | H167: 28709512.72 | I167: 30035347.11 | J167: 27645093.64 | K167: 29351940.7
A168: Depreciation | B168: 7 | C168: =SA34d!C167 -> 21569539 | D168: =SA34d!D167 -> 31106428 | E168: =SA34d!E167 -> 28680827 | F168: =SA34d!F167 -> 5043379.812 | G168: =SA34d!G167 -> 5942211.582 | H168: =SA34d!H167 -> 5942211.582 | I168: =SA34d!I167 -> 5941747.312 | J168: =SA34d!J167 -> 6250755.667 | K168: =SA34d!K167 -> 6588492.473
A169: Repairs and Maintenance by Asset Class | B169: 3 | C169: =C179+C182+C183+C186+C189+C190+SUM(C193:C199) -> 5754016 | D169: =D179+D182+D183+D186+D189+D190+SUM(D193:D199) -> 4102201 | E169: 9246700 | F169: 22098649.14 | G169: 22767301.14 | H169: 22767301.14 | I169: 24093599.8 | J169: 21394337.98 | K169: 22763448.23
A170: Roads Infrastructure | C170: =SA34c!C7 -> 1045141 | D170: =SA34c!D7 -> 4102201 | E170: =SA34c!E7 -> 3785000 | F170: =SA34c!F7 -> 9315704 | G170: =SA34c!G7 -> 9984356 | H170: =SA34c!H7 -> 9984356 | I170: =SA34c!I7 -> 10503542.51 | J170: =SA34c!J7 -> 8666733.808 | K170: =SA34c!K7 -> 9348553.433
A171: Storm water Infrastructure | C171: =SA34c!C12 -> 0 | D171: =SA34c!D12 -> 0 | E171: =SA34c!E12 -> 0 | F171: =SA34c!F12 -> 0 | G171: =SA34c!G12 -> 0 | H171: =SA34c!H12 -> 0 | I171: =SA34c!I12 -> 0 | J171: =SA34c!J12 -> 0 | K171: =SA34c!K12 -> 0
A172: Electrical Infrastructure | C172: =SA34c!C16 -> 446360 | D172: =SA34c!D16 -> 0 | E172: =SA34c!E16 -> 1523000 | F172: =SA34c!F16 -> 4752470 | G172: =SA34c!G16 -> 4752470 | H172: =SA34c!H16 -> 4752470 | I172: =SA34c!I16 -> 4999598.44 | J172: =SA34c!J16 -> 5269576.756 | K172: =SA34c!K16 -> 5554133.901
A173: Water Supply Infrastructure | C173: =SA34c!C26 -> 0 | D173: =SA34c!D26 -> 0 | E173: =SA34c!E26 -> 0 | F173: =SA34c!F26 -> 0 | G173: =SA34c!G26 -> 0 | H173: =SA34c!H26 -> 0 | I173: =SA34c!I26 -> 0 | J173: =SA34c!J26 -> 0 | K173: =SA34c!K26 -> 0
A174: Sanitation Infrastructure | C174: =SA34c!C37 -> 0 | D174: =SA34c!D37 -> 0 | E174: =SA34c!E37 -> 0 | F174: =SA34c!F37 -> 0 | G174: =SA34c!G37 -> 0 | H174: =SA34c!H37 -> 0 | I174: =SA34c!I37 -> 0 | J174: =SA34c!J37 -> 0 | K174: =SA34c!K37 -> 0
A175: Solid Waste Infrastructure | C175: =SA34c!C44 -> 0 | D175: =SA34c!D44 -> 0 | E175: =SA34c!E44 -> 0 | F175: =SA34c!F44 -> 0 | G175: =SA34c!G44 -> 0 | H175: =SA34c!H44 -> 0 | I175: =SA34c!I44 -> 0 | J175: =SA34c!J44 -> 0 | K175: =SA34c!K44 -> 0
A176: Rail Infrastructure | C176: =SA34c!C52 -> 0 | D176: =SA34c!D52 -> 0 | E176: =SA34c!E52 -> 0 | F176: =SA34c!F52 -> 0 | G176: =SA34c!G52 -> 0 | H176: =SA34c!H52 -> 0 | I176: =SA34c!I52 -> 0 | J176: =SA34c!J52 -> 0 | K176: =SA34c!K52 -> 0
A177: Coastal Infrastructure | C177: =SA34c!C62 -> 0 | D177: =SA34c!D62 -> 0 | E177: =SA34c!E62 -> 0 | F177: =SA34c!F62 -> 0 | G177: =SA34c!G62 -> 0 | H177: =SA34c!H62 -> 0 | I177: =SA34c!I62 -> 0 | J177: =SA34c!J62 -> 0 | K177: =SA34c!K62 -> 0
A178: Information and Communication Infrastructure | C178: =SA34c!C68 -> 0 | D178: =SA34c!D68 -> 0 | E178: =SA34c!E68 -> 0 | F178: =SA34c!F68 -> 0 | G178: =SA34c!G68 -> 0 | H178: =SA34c!H68 -> 0 | I178: =SA34c!I68 -> 0 | J178: =SA34c!J68 -> 0 | K178: =SA34c!K68 -> 0
A179: Infrastructure | C179: =SUM(C170:C178) -> 1491501 | D179: =SUM(D170:D178) -> 4102201 | E179: 5308000 | F179: 14068174 | G179: 14736826 | H179: 14736826 | I179: 15503140.95 | J179: 13936310.56 | K179: 14902687.33
A180: Community Facilities | C180: =SA34c!C75 -> 0 | D180: =SA34c!D75 -> 0 | E180: =SA34c!E75 -> 1032700 | F180: =SA34c!F75 -> 549933 | G180: =SA34c!G75 -> 549933 | H180: =SA34c!H75 -> 549933 | I180: =SA34c!I75 -> 578529.516 | J180: =SA34c!J75 -> 609770.1099 | K180: =SA34c!K75 -> 642697.6958
A181: Sport and Recreation Facilities | C181: =SA34c!C98 -> 0 | D181: =SA34c!D98 -> 0 | E181: =SA34c!E98 -> 745000 | F181: =SA34c!F98 -> 200000 | G181: =SA34c!G98 -> 200000 | H181: =SA34c!H98 -> 200000 | I181: =SA34c!I98 -> 210400 | J181: =SA34c!J98 -> 221761.6 | K181: =SA34c!K98 -> 233736.7264
A182: Community Assets | C182: =SUM(C180:C181) -> 0 | D182: 0 | E182: 1777700 | F182: 749933 | G182: 749933 | H182: 749933 | I182: 788929.516 | J182: 831531.7099 | K182: 876434.4222
A183: Heritage Assets | C183: =SA34c!C103 -> 0 | D183: =SA34c!D103 -> 0 | E183: =SA34c!E103 -> 0 | F183: =SA34c!F103 -> 0 | G183: =SA34c!G103 -> 0 | H183: =SA34c!H103 -> 0 | I183: =SA34c!I103 -> 0 | J183: =SA34c!J103 -> 0 | K183: =SA34c!K103 -> 0
A184: Revenue Generating | C184: =SA34c!C111 -> 0 | D184: =SA34c!D111 -> 0 | E184: =SA34c!E111 -> 0 | F184: =SA34c!F111 -> 0 | G184: =SA34c!G111 -> 0 | H184: =SA34c!H111 -> 0 | I184: =SA34c!I111 -> 0 | J184: =SA34c!J111 -> 0 | K184: =SA34c!K111 -> 0
A185: Non-revenue Generating | C185: =SA34c!C114 -> 0 | D185: =SA34c!D114 -> 0 | E185: =SA34c!E114 -> 0 | F185: =SA34c!F114 -> 0 | G185: =SA34c!G114 -> 0 | H185: =SA34c!H114 -> 0 | I185: =SA34c!I114 -> 0 | J185: =SA34c!J114 -> 0 | K185: =SA34c!K114 -> 0
A186: Investment properties | C186: =SUM(C184:C185) -> 0 | D186: 0 | E186: 0 | F186: 0 | G186: 0 | H186: 0 | I186: 0 | J186: 0 | K186: 0
A187: Operational Buildings | C187: =SA34c!C119 -> 4251318 | D187: =SA34c!D119 -> 0 | E187: =SA34c!E119 -> 849000 | F187: =SA34c!F119 -> 1765731 | G187: =SA34c!G119 -> 1765731 | H187: =SA34c!H119 -> 1765731 | I187: =SA34c!I119 -> 1999948.012 | J187: =SA34c!J119 -> 2107945.205 | K187: =SA34c!K119 -> 2221774.246
A188: Housing | C188: =SA34c!C131 -> 0 | D188: =SA34c!D131 -> 0 | E188: =SA34c!E131 -> 0 | F188: =SA34c!F131 -> 0 | G188: =SA34c!G131 -> 0 | H188: =SA34c!H131 -> 0 | I188: =SA34c!I131 -> 0 | J188: =SA34c!J131 -> 0 | K188: =SA34c!K131 -> 0
A189: Other Assets | C189: =SUM(C187:C188) -> 4251318 | D189: 0 | E189: 849000 | F189: 1765731 | G189: 1765731 | H189: 1765731 | I189: 1999948.012 | J189: 2107945.205 | K189: 2221774.246
A190: Biological or Cultivated Assets | C190: =SA34c!C136 -> 0 | D190: =SA34c!D136 -> 0 | E190: =SA34c!E136 -> 0 | F190: =SA34c!F136 -> 0 | G190: =SA34c!G136 -> 0 | H190: =SA34c!H136 -> 0 | I190: =SA34c!I136 -> 0 | J190: =SA34c!J136 -> 0 | K190: =SA34c!K136 -> 0
A191: Servitudes | C191: =SA34c!C140 -> 0 | D191: =SA34c!D140 -> 0 | E191: =SA34c!E140 -> 0 | F191: =SA34c!F140 -> 0 | G191: =SA34c!G140 -> 0 | H191: =SA34c!H140 -> 0 | I191: =SA34c!I140 -> 0 | J191: =SA34c!J140 -> 0 | K191: =SA34c!K140 -> 0
A192: Licences and Rights | C192: =SA34c!C141 -> 0 | D192: =SA34c!D141 -> 0 | E192: =SA34c!E141 -> 0 | F192: =SA34c!F141 -> 0 | G192: =SA34c!G141 -> 0 | H192: =SA34c!H141 -> 0 | I192: =SA34c!I141 -> 0 | J192: =SA34c!J141 -> 0 | K192: =SA34c!K141 -> 0
A193: Intangible Assets | C193: =SUM(C191:C192) -> 0 | D193: 0 | E193: 0 | F193: 0 | G193: 0 | H193: 0 | I193: 0 | J193: 0 | K193: 0
A194: Computer Equipment | C194: =SA34c!C149 -> 0 | D194: =SA34c!D149 -> 0 | E194: =SA34c!E149 -> 785000 | F194: =SA34c!F149 -> 1801663 | G194: =SA34c!G149 -> 1801663 | H194: =SA34c!H149 -> 1801663 | I194: =SA34c!I149 -> 1895349.476 | J194: =SA34c!J149 -> 1598000 | K194: =SA34c!K149 -> 1684292
A195: Furniture and Office Equipment | C195: =SA34c!C152 -> 0 | D195: =SA34c!D152 -> 0 | E195: =SA34c!E152 -> 0 | F195: =SA34c!F152 -> 0 | G195: =SA34c!G152 -> 0 | H195: =SA34c!H152 -> 0 | I195: =SA34c!I152 -> 0 | J195: =SA34c!J152 -> 0 | K195: =SA34c!K152 -> 0
A196: Machinery and Equipment | C196: =SA34c!C155 -> 0 | D196: =SA34c!D155 -> 0 | E196: =SA34c!E155 -> 312000 | F196: =SA34c!F155 -> 1100777.14 | G196: =SA34c!G155 -> 1100777.14 | H196: =SA34c!H155 -> 1100777.14 | I196: =SA34c!I155 -> 1158017.551 | J196: =SA34c!J155 -> 1220550.499 | K196: =SA34c!K155 -> 1286460.226
A197: Transport Assets | C197: =SA34c!C158 -> 11197 | D197: =SA34c!D158 -> 0 | E197: =SA34c!E158 -> 215000 | F197: =SA34c!F158 -> 2612371 | G197: =SA34c!G158 -> 2612371 | H197: =SA34c!H158 -> 2612371 | I197: =SA34c!I158 -> 2748214.292 | J197: =SA34c!J158 -> 1700000 | K197: =SA34c!K158 -> 1791800
A198: Land | C198: =SA34c!C161 -> 0 | D198: =SA34c!D161 -> 0 | E198: =SA34c!E161 -> 0 | F198: =SA34c!F161 -> 0 | G198: =SA34c!G161 -> 0 | H198: =SA34c!H161 -> 0 | I198: =SA34c!I161 -> 0 | J198: =SA34c!J161 -> 0 | K198: =SA34c!K161 -> 0
A199: Zoo's, Marine and Non-biological Animals | C199: =SA34c!C164 -> 0 | D199: =SA34c!D164 -> 0 | E199: =SA34c!E164 -> 0 | F199: =SA34c!F164 -> 0 | G199: =SA34c!G164 -> 0 | H199: =SA34c!H164 -> 0 | I199: =SA34c!I164 -> 0 | J199: =SA34c!J164 -> 0 | K199: =SA34c!K164 -> 0
A201: TOTAL EXPENDITURE OTHER ITEMS | C201: =SUM(C168:C169) -> 27323555 | D201: 35208629 | E201: 37927527 | F201: 27142028.95 | G201: 28709512.72 | H201: 28709512.72 | I201: 30035347.11 | J201: 27645093.64 | K201: 29351940.7
A203: Renewal and upgrading of Existing Assets as % of total capex | C203: =IF(ISERROR((C37+C69)/C132),0,((C37+C69)/C132)) -> 0.8300761051 | D203: =IF(ISERROR((D37+D69)/D132),0,((D37+D69)/D132)) -> 0.828714889 | E203: 0.1732837042 | F203: 0.1510713223 | G203: 0.1398503083 | H203: 0.1398503083 | I203: 0 | J203: 0 | K203: 0
A204: Renewal and upgrading of Existing Assets as % of deprecn | C204: =IF(ISERROR((C37+C69)/C168),0,((C37+C69)/C168)) -> 6.782472495 | D204: =IF(ISERROR((D37+D69)/D168),0,((D37+D69)/D168)) -> 2.796192703 | E204: 1.019127342 | F204: 5.370111225 | G204: 4.557816592 | H204: 4.557816592 | I204: 0 | J204: 0 | K204: 0
A205: R&M as a % of PPE | C205: =IF(ISERROR(ROUND(C169/'A6-FinPos'!C19,3)),0,(ROUND(C169/'A6-FinPos'!C19,3))) -> 0.009 | D205: =IF(ISERROR(ROUND(D169/'A6-FinPos'!D19,3)),0,(ROUND(D169/'A6-FinPos'!D19,3))) -> 0.006 | E205: =IF(ISERROR(ROUND(E169/'A6-FinPos'!E19,3)),0,(ROUND(E169/'A6-FinPos'!E19,3))) -> 0.011 | F205: =IF(ISERROR(ROUND(F169/'A6-FinPos'!F19,3)),0,(ROUND(F169/'A6-FinPos'!F19,3))) -> 0.026 | G205: =IF(ISERROR(ROUND(G169/'A6-FinPos'!G19,3)),0,(ROUND(G169/'A6-FinPos'!G19,3))) -> 0.027 | H205: =IF(ISERROR(ROUND(H169/'A6-FinPos'!H19,3)),0,(ROUND(H169/'A6-FinPos'!H19,3))) -> 0.027 | I205: =IF(ISERROR(ROUND(I169/'A6-FinPos'!J19,3)),0,(ROUND(I169/'A6-FinPos'!J19,3))) -> 0.025 | J205: =IF(ISERROR(ROUND(J169/'A6-FinPos'!K19,3)),0,(ROUND(J169/'A6-FinPos'!K19,3))) -> 0.019 | K205: =IF(ISERROR(ROUND(K169/'A6-FinPos'!L19,3)),0,(ROUND(K169/'A6-FinPos'!L19,3))) -> 0.017
A206: Renewal and upgrading and R&M as a % of PPE | C206: =IF(ISERROR(ROUND((C37+C69+C169)/C165,2)),0,(ROUND((C37+C69+C169)/C165,2))) -> 0.22 | D206: =IF(ISERROR(ROUND((D37+D69+D169)/D165,2)),0,(ROUND((D37+D69+D169)/D165,2))) -> 0.11 | E206: 0.05 | F206: 0.06 | G206: 0.06 | H206: 0.06 | I206: 0.03 | J206: 0.02 | K206: 0.02
A208: =head27a -> References
A209: 1. Detail of new assets provided in Table SA34a
A210: 2. Detail of renewal of existing assets provided in Table SA34b
A211: 3. Detail of Repairs and Maintenance by Asset Class provided in Table SA34c
A212: 4. Must reconcile to total capital expenditure on Budgeted Capital Expenditure
A213: 5. Must reconcile to 'Budgeted Financial Position' (written down value)
A214: 6. Detail of upgrading of existing assets provided in Table SA34e
A215: 7. Detail of depreciation provided in Table SA34d
A217: Check balance to A6 | C217: =C165-'A6-FinPos'!D17-'A6-FinPos'!D19-'A6-FinPos'!D20-'A6-FinPos'!D21-'A6-FinPos'!D22-C148 -> -265 | D217: =D165-'A6-FinPos'!E17-'A6-FinPos'!E19-'A6-FinPos'!E20-'A6-FinPos'!E21-'A6-FinPos'!E22-D148 -> 112 | E217: =E165-'A6-FinPos'!F17-'A6-FinPos'!F19-'A6-FinPos'!F20-'A6-FinPos'!F21-'A6-FinPos'!F22-E148 -> -224.6047388 | F217: =F165-'A6-FinPos'!G17-'A6-FinPos'!G19-'A6-FinPos'!G20-'A6-FinPos'!G21-'A6-FinPos'!G22-F148 -> -87 | G217: =G165-'A6-FinPos'!H17-'A6-FinPos'!H19-'A6-FinPos'!H20-'A6-FinPos'!H21-'A6-FinPos'!H22-G148 -> 0 | H217: =H165-'A6-FinPos'!I17-'A6-FinPos'!I19-'A6-FinPos'!I20-'A6-FinPos'!I21-'A6-FinPos'!I22-H148 -> 0 | I217: =I165-'A6-FinPos'!J17-'A6-FinPos'!J19-'A6-FinPos'!J20-'A6-FinPos'!J21-'A6-FinPos'!J22-I148 -> -83.36781478 | J217: =J165-'A6-FinPos'!K17-'A6-FinPos'!K19-'A6-FinPos'!K20-'A6-FinPos'!K21-'A6-FinPos'!K22-J148 -> -296.8496768 | K217: =K165-'A6-FinPos'!L17-'A6-FinPos'!L19-'A6-FinPos'!L20-'A6-FinPos'!L21-'A6-FinPos'!L22-K148 -> -130.0255587

Sheet A10-SerDel
A1: =muni&" - "&Approve10 -> LIM332 Greater Letaba - Table A10 Basic service delivery measurement
A2: =desc -> Description | B2: =head27 -> Ref | C2: =head1b -> 2015/16 | D2: =head1A -> 2016/17 | E2: =Head1 -> 2017/18 | F2: =Head2 -> Current Year 2018/19 | I2: =Head3 -> 2019/20 Medium Term Revenue & Expenditure Framework
C3: =Head5A -> Outcome | D3: =Head5A -> Outcome | E3: =Head5A -> Outcome | F3: =Head6 -> Original Budget | G3: =Head7 -> Adjusted Budget | H3: =Head8 -> Full Year Forecast | I3: =Head9 -> Budget Year 2019/20 | J3: =Head10 -> Budget Year +1 2020/21 | K3: =Head11 -> Budget Year +2 2021/22
A4: Household service targets | B4: 1
A5: Water:
A6: Piped water inside dwelling | C6: ='SA9'!E67 -> 5948 | D6: ='SA9'!F67 -> 5948 | E6: ='SA9'!G67 -> 5948 | F6: ='SA9'!H67 -> 5948 | G6: ='SA9'!I67 -> 5948 | H6: ='SA9'!J67 -> 7948 | I6: ='SA9'!K67 -> 7948 | J6: ='SA9'!L67 -> 7948 | K6: ='SA9'!M67 -> 7948
A7: Piped water inside yard (but not in dwelling) | C7: ='SA9'!E68 -> 20320 | D7: ='SA9'!F68 -> 20320 | E7: ='SA9'!G68 -> 20320 | F7: ='SA9'!H68 -> 20320 | G7: ='SA9'!I68 -> 20320 | H7: ='SA9'!J68 -> 21320 | I7: ='SA9'!K68 -> 21320 | J7: ='SA9'!L68 -> 21320 | K7: ='SA9'!M68 -> 21320
A8: Using public tap (at least min.service level) | B8: 2 | C8: ='SA9'!E69 -> 17276 | D8: ='SA9'!F69 -> 17276 | E8: ='SA9'!G69 -> 17276 | F8: ='SA9'!H69 -> 17276 | G8: ='SA9'!I69 -> 17276 | H8: ='SA9'!J69 -> 19277 | I8: ='SA9'!K69 -> 19277 | J8: ='SA9'!L69 -> 19277 | K8: ='SA9'!M69 -> 19277
A9: Other water supply (at least min.service level) | B9: 4 | C9: ='SA9'!E70 -> 0 | D9: ='SA9'!F70 -> 0 | E9: ='SA9'!G70 -> 0 | F9: ='SA9'!H70 -> 0 | G9: ='SA9'!I70 -> 0 | H9: ='SA9'!J70 -> 0 | I9: ='SA9'!K70 -> 0 | J9: ='SA9'!L70 -> 0 | K9: ='SA9'!M70 -> 0
A10: Minimum Service Level and Above sub-total | C10: =SUM(C6:C9) -> 43544 | D10: =SUM(D6:D9) -> 43544 | E10: 43544 | F10: 43544 | G10: 43544 | H10: 48545 | I10: 48545 | J10: 48545 | K10: 48545
A11: Using public tap (< min.service level) | B11: 3 | C11: ='SA9'!E72 -> 7560 | D11: ='SA9'!F72 -> 7560 | E11: ='SA9'!G72 -> 7560 | F11: ='SA9'!H72 -> 7560 | G11: ='SA9'!I72 -> 7560 | H11: ='SA9'!J72 -> 9462 | I11: ='SA9'!K72 -> 9462 | J11: ='SA9'!L72 -> 9462 | K11: ='SA9'!M72 -> 9462
A12: Other water supply (< min.service level) | B12: =B9 -> 4 | C12: ='SA9'!E73 -> 0 | D12: ='SA9'!F73 -> 0 | E12: ='SA9'!G73 -> 0 | F12: ='SA9'!H73 -> 0 | G12: ='SA9'!I73 -> 0 | H12: ='SA9'!J73 -> 9060 | I12: ='SA9'!K73 -> 9060 | J12: ='SA9'!L73 -> 9060 | K12: ='SA9'!M73 -> 9060
A13: No water supply | C13: ='SA9'!E74 -> 7158 | D13: ='SA9'!F74 -> 7158 | E13: ='SA9'!G74 -> 7158 | F13: ='SA9'!H74 -> 7158 | G13: ='SA9'!I74 -> 7158 | H13: ='SA9'!J74 -> 0 | I13: ='SA9'!K74 -> 0 | J13: ='SA9'!L74 -> 0 | K13: ='SA9'!M74 -> 0
A14: Below Minimum Service Level sub-total | C14: =SUM(C11:C13) -> 14718 | D14: =SUM(D11:D13) -> 14718 | E14: 14718 | F14: 14718 | G14: 14718 | H14: 18522 | I14: 18522 | J14: 18522 | K14: 18522
A15: Total number of households | B15: 5 | C15: =C10+C14 -> 58262 | D15: =D10+D14 -> 58262 | E15: 58262 | F15: 58262 | G15: 58262 | H15: 67067 | I15: 67067 | J15: 67067 | K15: 67067
A16: Sanitation/sewerage:
A17: Flush toilet (connected to sewerage) | C17: ='SA9'!E78 -> 9458 | D17: ='SA9'!F78 -> 9458 | E17: ='SA9'!G78 -> 9458 | F17: ='SA9'!H78 -> 9458 | G17: ='SA9'!I78 -> 9458 | H17: ='SA9'!J78 -> 9003 | I17: ='SA9'!K78 -> 9003 | J17: ='SA9'!L78 -> 9003 | K17: ='SA9'!M78 -> 9003
A18: Flush toilet (with septic tank) | C18: ='SA9'!E79 -> 7510 | D18: ='SA9'!F79 -> 7510 | E18: ='SA9'!G79 -> 7510 | F18: ='SA9'!H79 -> 7510 | G18: ='SA9'!I79 -> 7510 | H18: ='SA9'!J79 -> 8011 | I18: ='SA9'!K79 -> 8011 | J18: ='SA9'!L79 -> 8011 | K18: ='SA9'!M79 -> 8011
A19: Chemical toilet | C19: ='SA9'!E80 -> 11477 | D19: ='SA9'!F80 -> 11477 | E19: ='SA9'!G80 -> 11477 | F19: ='SA9'!H80 -> 11477 | G19: ='SA9'!I80 -> 11477 | H19: ='SA9'!J80 -> 12012 | I19: ='SA9'!K80 -> 12012 | J19: ='SA9'!L80 -> 12012 | K19: ='SA9'!M80 -> 12012
A20: Pit toilet (ventilated) | C20: ='SA9'!E81 -> 22409 | D20: ='SA9'!F81 -> 22409 | E20: ='SA9'!G81 -> 22409 | F20: ='SA9'!H81 -> 22409 | G20: ='SA9'!I81 -> 22409 | H20: ='SA9'!J81 -> 21012 | I20: ='SA9'!K81 -> 21012 | J20: ='SA9'!L81 -> 21012 | K20: ='SA9'!M81 -> 21012
A21: Other toilet provisions (> min.service level) | C21: ='SA9'!E82 -> 0 | D21: ='SA9'!F82 -> 0 | E21: ='SA9'!G82 -> 0 | F21: ='SA9'!H82 -> 0 | G21: ='SA9'!I82 -> 0 | H21: ='SA9'!J82 -> 6008 | I21: ='SA9'!K82 -> 6008 | J21: ='SA9'!L82 -> 6008 | K21: ='SA9'!M82 -> 6008
A22: =$A$10 -> Minimum Service Level and Above sub-total | C22: =SUM(C17:C21) -> 50854 | D22: =SUM(D17:D21) -> 50854 | E22: 50854 | F22: 50854 | G22: 50854 | H22: 56046 | I22: 56046 | J22: 56046 | K22: 56046
A23: Bucket toilet | C23: ='SA9'!E84 -> 336 | D23: ='SA9'!F84 -> 336 | E23: ='SA9'!G84 -> 336 | F23: ='SA9'!H84 -> 336 | G23: ='SA9'!I84 -> 336 | H23: ='SA9'!J84 -> 1000 | I23: ='SA9'!K84 -> 1000 | J23: ='SA9'!L84 -> 1000 | K23: ='SA9'!M84 -> 1000
A24: Other toilet provisions (< min.service level) | C24: ='SA9'!E85 -> 791 | D24: ='SA9'!F85 -> 791 | E24: ='SA9'!G85 -> 791 | F24: ='SA9'!H85 -> 791 | G24: ='SA9'!I85 -> 791 | H24: ='SA9'!J85 -> 2011 | I24: ='SA9'!K85 -> 2011 | J24: ='SA9'!L85 -> 2011 | K24: ='SA9'!M85 -> 2011
A25: No toilet provisions | C25: ='SA9'!E86 -> 6281 | D25: ='SA9'!F86 -> 6281 | E25: ='SA9'!G86 -> 6281 | F25: ='SA9'!H86 -> 6281 | G25: ='SA9'!I86 -> 6281 | H25: ='SA9'!J86 -> 8010 | I25: ='SA9'!K86 -> 8010 | J25: ='SA9'!L86 -> 8010 | K25: ='SA9'!M86 -> 8010
A26: =$A$14 -> Below Minimum Service Level sub-total | C26: =SUM(C23:C25) -> 7408 | D26: =SUM(D23:D25) -> 7408 | E26: 7408 | F26: 7408 | G26: 7408 | H26: 11021 | I26: 11021 | J26: 11021 | K26: 11021
A27: =$A$15 -> Total number of households | B27: =$B$15 -> 5 | C27: =C22+C26 -> 58262 | D27: =D22+D26 -> 58262 | E27: 58262 | F27: 58262 | G27: 58262 | H27: 67067 | I27: 67067 | J27: 67067 | K27: 67067
A28: Energy:
A29: Electricity (at least min.service level) | C29: ='SA9'!E90 -> 53260 | D29: ='SA9'!F90 -> 53260 | E29: ='SA9'!G90 -> 53260 | F29: ='SA9'!H90 -> 53260 | G29: ='SA9'!I90 -> 53260 | H29: ='SA9'!J90 -> 56260 | I29: ='SA9'!K90 -> 56260 | J29: ='SA9'!L90 -> 56260 | K29: ='SA9'!M90 -> 56260
A30: Electricity - prepaid (min.service level) | C30: ='SA9'!E91 -> 2002 | D30: ='SA9'!F91 -> 2002 | E30: ='SA9'!G91 -> 2002 | F30: ='SA9'!H91 -> 2002 | G30: ='SA9'!I91 -> 2002 | H30: ='SA9'!J91 -> 6002 | I30: ='SA9'!K91 -> 6002 | J30: ='SA9'!L91 -> 6002 | K30: ='SA9'!M91 -> 6002
A31: =$A$10 -> Minimum Service Level and Above sub-total | C31: =SUM(C29:C30) -> 55262 | D31: =SUM(D29:D30) -> 55262 | E31: 55262 | F31: 55262 | G31: 55262 | H31: 62262 | I31: 62262 | J31: 62262 | K31: 62262
A32: Electricity (< min.service level) | C32: ='SA9'!E93 -> 0 | D32: ='SA9'!F93 -> 0 | E32: ='SA9'!G93 -> 0 | F32: ='SA9'!H93 -> 0 | G32: ='SA9'!I93 -> 0 | H32: ='SA9'!J93 -> 0 | I32: ='SA9'!K93 -> 0 | J32: ='SA9'!L93 -> 0 | K32: ='SA9'!M93 -> 0
A33: Electricity - prepaid (< min. service level) | C33: ='SA9'!E94 -> 3000 | D33: ='SA9'!F94 -> 3000 | E33: ='SA9'!G94 -> 3000 | F33: ='SA9'!H94 -> 3000 | G33: ='SA9'!I94 -> 3000 | H33: ='SA9'!J94 -> 4805 | I33: ='SA9'!K94 -> 4805 | J33: ='SA9'!L94 -> 4805 | K33: ='SA9'!M94 -> 4805
A34: Other energy sources | C34: ='SA9'!E95 -> 0 | D34: ='SA9'!F95 -> 0 | E34: ='SA9'!G95 -> 0 | F34: ='SA9'!H95 -> 0 | G34: ='SA9'!I95 -> 0 | H34: ='SA9'!J95 -> 0 | I34: ='SA9'!K95 -> 0 | J34: ='SA9'!L95 -> 0 | K34: ='SA9'!M95 -> 0
A35: =$A$14 -> Below Minimum Service Level sub-total | C35: =SUM(C32:C34) -> 3000 | D35: =SUM(D32:D34) -> 3000 | E35: 3000 | F35: 3000 | G35: 3000 | H35: 4805 | I35: 4805 | J35: 4805 | K35: 4805
A36: =$A$15 -> Total number of households | B36: =$B$15 -> 5 | C36: =C31+C35 -> 58262 | D36: =D31+D35 -> 58262 | E36: 58262 | F36: 58262 | G36: 58262 | H36: 67067 | I36: 67067 | J36: 67067 | K36: 67067
A37: Refuse:
A38: Removed at least once a week | C38: ='SA9'!E99 -> 4954 | D38: ='SA9'!F99 -> 4954 | E38: ='SA9'!G99 -> 4954 | F38: ='SA9'!H99 -> 4954 | G38: ='SA9'!I99 -> 4954 | H38: ='SA9'!J99 -> 7454 | I38: ='SA9'!K99 -> 7454 | J38: ='SA9'!L99 -> 7454 | K38: ='SA9'!M99 -> 7454
A39: =$A$10 -> Minimum Service Level and Above sub-total | C39: =SUM(C38) -> 4954 | D39: =SUM(D38) -> 4954 | E39: 4954 | F39: 4954 | G39: 4954 | H39: 7454 | I39: 7454 | J39: 7454 | K39: 7454
A40: Removed less frequently than once a week | C40: ='SA9'!E101 -> 478 | D40: ='SA9'!F101 -> 478 | E40: ='SA9'!G101 -> 478 | F40: ='SA9'!H101 -> 478 | G40: ='SA9'!I101 -> 478 | H40: ='SA9'!J101 -> 978 | I40: ='SA9'!K101 -> 978 | J40: ='SA9'!L101 -> 978 | K40: ='SA9'!M101 -> 978
A41: Using communal refuse dump | C41: ='SA9'!E102 -> 651 | D41: ='SA9'!F102 -> 651 | E41: ='SA9'!G102 -> 651 | F41: ='SA9'!H102 -> 651 | G41: ='SA9'!I102 -> 651 | H41: ='SA9'!J102 -> 1051 | I41: ='SA9'!K102 -> 1051 | J41: ='SA9'!L102 -> 1051 | K41: ='SA9'!M102 -> 1051
A42: Using own refuse dump | C42: ='SA9'!E103 -> 42815 | D42: ='SA9'!F103 -> 42815 | E42: ='SA9'!G103 -> 42815 | F42: ='SA9'!H103 -> 42815 | G42: ='SA9'!I103 -> 42815 | H42: ='SA9'!J103 -> 45815 | I42: ='SA9'!K103 -> 45815 | J42: ='SA9'!L103 -> 45815 | K42: ='SA9'!M103 -> 45815
A43: Other rubbish disposal | C43: ='SA9'!E104 -> 8554 | D43: ='SA9'!F104 -> 8554 | E43: ='SA9'!G104 -> 8554 | F43: ='SA9'!H104 -> 8554 | G43: ='SA9'!I104 -> 8554 | H43: ='SA9'!J104 -> 10554 | I43: ='SA9'!K104 -> 10554 | J43: ='SA9'!L104 -> 10554 | K43: ='SA9'!M104 -> 10554
A44: No rubbish disposal | C44: ='SA9'!E105 -> 810 | D44: ='SA9'!F105 -> 810 | E44: ='SA9'!G105 -> 810 | F44: ='SA9'!H105 -> 810 | G44: ='SA9'!I105 -> 810 | H44: ='SA9'!J105 -> 1215 | I44: ='SA9'!K105 -> 1215 | J44: ='SA9'!L105 -> 1215 | K44: ='SA9'!M105 -> 1215
A45: =$A$14 -> Below Minimum Service Level sub-total | C45: =SUM(C40:C44) -> 53308 | D45: 53308 | E45: 53308 | F45: 53308 | G45: 53308 | H45: 59613 | I45: 59613 | J45: 59613 | K45: 59613
A46: =$A$15 -> Total number of households | B46: =$B$15 -> 5 | C46: =C39+C45 -> 58262 | D46: =D39+D45 -> 58262 | E46: 58262 | F46: 58262 | G46: 58262 | H46: 67067 | I46: 67067 | J46: 67067 | K46: 67067
A48: Households receiving Free Basic Service | B48: 7
A49: Water (6 kilolitres per household per month) | C49: ='SA9'!E263 -> 0 | D49: ='SA9'!F263 -> 0 | E49: ='SA9'!G263 -> 0 | F49: ='SA9'!H263 -> 120 | G49: ='SA9'!I263 -> 120 | H49: ='SA9'!J263 -> 120 | I49: ='SA9'!K263 -> 120 | J49: ='SA9'!L263 -> 120 | K49: ='SA9'!M263 -> 120
A50: Sanitation (free minimum level service) | C50: ='SA9'!E275 -> 0 | D50: ='SA9'!F275 -> 0 | E50: ='SA9'!G275 -> 0 | F50: ='SA9'!H275 -> 0 | G50: ='SA9'!I275 -> 0 | H50: ='SA9'!J275 -> 0 | I50: ='SA9'!K275 -> 120 | J50: ='SA9'!L275 -> 120 | K50: ='SA9'!M275 -> 120
A51: Electricity/other energy (50kwh per household per month) | C51: ='SA9'!E251 -> 0 | D51: ='SA9'!F251 -> 0 | E51: ='SA9'!G251 -> 0 | F51: ='SA9'!H251 -> 8000 | G51: ='SA9'!I251 -> 8000 | H51: ='SA9'!J251 -> 8000 | I51: ='SA9'!K251 -> 8000 | J51: ='SA9'!L251 -> 8000 | K51: ='SA9'!M251 -> 8000
A52: Refuse (removed at least once a week) | C52: ='SA9'!E287 -> 0 | D52: ='SA9'!F287 -> 0 | E52: ='SA9'!G287 -> 0 | F52: ='SA9'!H287 -> 0 | G52: ='SA9'!I287 -> 0 | H52: ='SA9'!J287 -> 0 | I52: ='SA9'!K287 -> 120 | J52: ='SA9'!L287 -> 120 | K52: ='SA9'!M287 -> 120
A54: Cost of Free Basic Services provided - Formal Settlements (R'000) | B54: 8
A55: Water (6 kilolitres per indigent household per month) | C55: ='SA1'!C20 -> 0 | D55: ='SA1'!D20 -> 0 | E55: ='SA1'!E20 -> 0 | F55: ='SA1'!F20 -> 0 | G55: ='SA1'!G20 -> 0 | H55: ='SA1'!H20 -> 0 | I55: ='SA1'!J20 -> 0 | J55: ='SA1'!K20 -> 0 | K55: ='SA1'!L20 -> 0
A56: Sanitation (free sanitation service to indigent households) | C56: ='SA1'!C26 -> 0 | D56: ='SA1'!D26 -> 0 | E56: ='SA1'!E26 -> 0 | F56: ='SA1'!F26 -> 0 | G56: ='SA1'!G26 -> 0 | H56: ='SA1'!H26 -> 0 | I56: ='SA1'!J26 -> 0 | J56: ='SA1'!K26 -> 0 | K56: ='SA1'!L26 -> 0
A57: Electricity/other energy (50kwh per indigent household per month) | C57: ='SA1'!C14 -> 0 | D57: ='SA1'!D14 -> 0 | E57: ='SA1'!E14 -> 0 | F57: ='SA1'!F14 -> 0 | G57: ='SA1'!G14 -> 0 | H57: ='SA1'!H14 -> 0 | I57: ='SA1'!J14 -> 0 | J57: ='SA1'!K14 -> 0 | K57: ='SA1'!L14 -> 0
A58: Refuse (removed once a week for indigent households) | C58: ='SA1'!C33 -> 0 | D58: ='SA1'!D33 -> 0 | E58: ='SA1'!E33 -> 0 | F58: ='SA1'!F33 -> 0 | G58: ='SA1'!G33 -> 0 | H58: ='SA1'!H33 -> 0 | I58: ='SA1'!J33 -> 0 | J58: ='SA1'!K33 -> 0 | K58: ='SA1'!L33 -> 0
A59: Cost of Free Basic Services provided - Informal Formal Settlements (R'000) | C59: ='SA9'!E260+'SA9'!E272+'SA9'!E284+'SA9'!E296 -> 0 | D59: ='SA9'!F260+'SA9'!F272+'SA9'!F284+'SA9'!F296 -> 0 | E59: ='SA9'!G260+'SA9'!G272+'SA9'!G284+'SA9'!G296 -> 0 | F59: ='SA9'!H260+'SA9'!H272+'SA9'!H284+'SA9'!H296 -> 0 | G59: ='SA9'!I260+'SA9'!I272+'SA9'!I284+'SA9'!I296 -> 0 | H59: ='SA9'!J260+'SA9'!J272+'SA9'!J284+'SA9'!J296 -> 0 | I59: ='SA9'!K260+'SA9'!K272+'SA9'!K284+'SA9'!K296 -> 0 | J59: ='SA9'!L260+'SA9'!L272+'SA9'!L284+'SA9'!L296 -> 0 | K59: ='SA9'!M260+'SA9'!M272+'SA9'!M284+'SA9'!M296 -> 0
A60: Total cost of FBS provided | C60: =SUM(C55:C59) -> 0 | D60: 0 | E60: 0 | F60: 0 | G60: 0 | H60: 0 | I60: 0 | J60: 0 | K60: 0
A62: Highest level of free service provided per household
A63: Property rates (R value threshold)
A64: Water (kilolitres per household per month) | C64: 8706000 | D64: 8706000 | E64: 8706000 | F64: 3759.6 | G64: 3759.6 | H64: 3759.6 | I64: 3759.6 | J64: 3759.6 | K64: 3759.6
A65: Sanitation (kilolitres per household per month) | C65: 0 | D65: 0
A66: Sanitation (Rand per household per month) | C66: 72618000 | D66: 72618000 | E66: 72618000 | F66: 24051.6 | G66: 24051.6 | H66: 24051.6 | I66: 24051.6 | J66: 24051.6 | K66: 24051.6
A67: Electricity (kwh per household per month) | C67: 9000 | D67: 9000 | E67: 9000 | F67: 412400 | G67: 412400 | H67: 412400 | I67: 412400 | J67: 412400 | K67: 412400
A68: Refuse (average litres per week)
A69: Revenue cost of subsidised services provided (R'000) | B69: 9
A70: Property rates (tariff adjustment) ( impermissable values per section 17 of MPRA)
A71: Property rates exemptions, reductions and rebates and impermissable values in excess of section 17 of MPRA) | C71: ='SA1'!C8 -> 3243513 | D71: ='SA1'!D8 -> 2756775 | E71: ='SA1'!E8 -> 2045637 | F71: ='SA1'!F8 -> 3239430.07 | G71: ='SA1'!G8 -> 3239430.07 | H71: ='SA1'!H8 -> 3239430.07 | I71: ='SA1'!J8 -> 3407880 | J71: ='SA1'!K8 -> 3591906 | K71: ='SA1'!L8 -> 3785869
A72: Water (in excess of 6 kilolitres per indigent household per month) | C72: ='SA1'!C19 -> 0 | D72: ='SA1'!D19 -> 0 | E72: ='SA1'!E19 -> 0 | F72: ='SA1'!F19 -> 0 | G72: ='SA1'!G19 -> 0 | H72: ='SA1'!H19 -> 0 | I72: ='SA1'!J19 -> 0 | J72: ='SA1'!K19 -> 0 | K72: ='SA1'!L19 -> 0
A73: Sanitation (in excess of free sanitation service to indigent households) | C73: ='SA1'!C25 -> 0 | D73: ='SA1'!D25 -> 0 | E73: ='SA1'!E25 -> 0 | F73: ='SA1'!F25 -> 0 | G73: ='SA1'!G25 -> 0 | H73: ='SA1'!H25 -> 0 | I73: ='SA1'!J25 -> 0 | J73: ='SA1'!K25 -> 0 | K73: ='SA1'!L25 -> 0
A74: Electricity/other energy (in excess of 50 kwh per indigent household per month) | C74: ='SA1'!C13 -> 0 | D74: ='SA1'!D13 -> 0 | E74: ='SA1'!E13 -> 0 | F74: ='SA1'!F13 -> 4220837.81 | G74: ='SA1'!G13 -> 4220837.81 | H74: ='SA1'!H13 -> 4220837.81 | I74: ='SA1'!J13 -> 4440321 | J74: ='SA1'!K13 -> 4680099 | K74: ='SA1'!L13 -> 4932824
A75: Refuse (in excess of one removal a week for indigent households) | C75: ='SA1'!C32 -> 46669 | D75: ='SA1'!D32 -> 0 | E75: ='SA1'!E32 -> 0 | F75: ='SA1'!F32 -> 491829.53 | G75: ='SA1'!G32 -> 491829.53 | H75: ='SA1'!H32 -> 491829.53 | I75: ='SA1'!J32 -> 517405 | J75: ='SA1'!K32 -> 545345 | K75: ='SA1'!L32 -> 574793
A76: Municipal Housing - rental rebates
A77: Housing - top structure subsidies | B77: 6
A78: Other
A79: Total revenue cost of subsidised services provided | C79: =SUM(C70:C78) -> 3290182 | D79: =SUM(D70:D78) -> 2756775 | E79: 2045637 | F79: 7952097.41 | G79: 7952097.41 | H79: 7952097.41 | I79: 8365606 | J79: =SUM(J70:J78) -> 8817350 | K79: =SUM(K70:K78) -> 9293486
A80: =head27a -> References
A81: 1. Include services provided by another entity; e.g. Eskom
A82: 2. Stand distance <= 200m from dwelling
A83: 3. Stand distance > 200m from dwelling
A84: 4. Borehole, spring, rain-water tank etc.
A85: 5. Must agree to total number of households in municipal area (informal settlements receiving services must be included)
A86: 6. Include value of subsidy provided by municipality above provincial subsidy level
A87: 7. Show number of households receiving at least these levels of services completely free (informal settlements must be included)
A88: 8. Must reflect the cost to the municipality of providing the Free Basic Service
A89: 9. Reflect the cost to the municipality in terms of 'revenue foregone' of providing free services (note this will not equal 'Revenue Foregone' on SA1)

Sheet SA1
A1: =muni&" - "&TableA1 -> LIM332 Greater Letaba - Supporting Table SA1 Supportinging detail to 'Budgeted Financial Performance'
A2: =desc -> Description | B2: =head27 -> Ref | C2: =head1b -> 2015/16 | D2: =head1A -> 2016/17 | E2: =Head1 -> 2017/18 | F2: =Head2 -> Current Year 2018/19 | J2: =Head3 -> 2019/20 Medium Term Revenue & Expenditure Framework
C3: =Head5 -> Audited Outcome | D3: =Head5 -> Audited Outcome | E3: =Head5 -> Audited Outcome | F3: =Head6 -> Original Budget | G3: =Head7 -> Adjusted Budget | H3: =Head8 -> Full Year Forecast | I3: =Head5b -> Pre-audit outcome | J3: =Head9 -> Budget Year 2019/20 | K3: =Head10 -> Budget Year +1 2020/21 | L3: =Head11 -> Budget Year +2 2021/22
A4: R thousand
A5: REVENUE ITEMS:
A6: ='A4-FinPerf RE'!A5 -> Property rates | B6: 6
A7: Total Property Rates | C7: 12221107 | D7: =11845856+2756775 -> 14602631 | E7: =8599768+2045637 -> 10645405 | F7: 15494757.64 | G7: 20102716.64 | H7: 20102716.64 | I7: 20102716.64 | J7: 21148058 | K7: 22290053 | L7: 23493716
A8: less Revenue Foregone (exemptions, reductions and rebates and impermissable values in excess of section 17 of MPRA) | C8: 3243513 | D8: 2756775 | E8: 2045637 | F8: 3239430.07 | G8: 3239430.07 | H8: 3239430.07 | I8: 3239430.07 | J8: 3407880 | K8: 3591906 | L8: 3785869
A9: Net Property Rates | C9: =C7-C8 -> 8977594 | D9: =D7-D8 -> 11845856 | E9: 8599768 | F9: 12255327.57 | G9: 16863286.57 | H9: 16863286.57 | I9: 16863286.57 | J9: 17740178 | K9: 18698147 | L9: 19707847
A11: ='A4-FinPerf RE'!A6 -> Service charges - electricity revenue | B11: 6
A12: ="Total "&A11 -> Total Service charges - electricity revenue | C12: 9282999 | D12: 9782575 | E12: 9667754 | F12: 16887481.02 | G12: 28695481.02 | H12: 28695481.02 | I12: 28695481.02 | J12: 30179230 | K12: 31808908 | L12: 33526590
A13: less Revenue Foregone (in excess of 50 kwh per indigent household per month) | C13: 0 | D13: 0 | E13: 0 | F13: 4220837.81 | G13: 4220837.81 | H13: 4220837.81 | I13: 4220837.81 | J13: 4440321 | K13: 4680099 | L13: 4932824
A14: less Cost of Free Basis Services (50 kwh per indigent household per month) | C14: ='SA9'!E250 -> 0 | D14: ='SA9'!F250 -> 0 | E14: ='SA9'!G250 -> 0 | F14: ='SA9'!H250 -> 0 | G14: ='SA9'!I250 -> 0 | H14: ='SA9'!J250 -> 0 | I14: 1046141 | J14: ='SA9'!K250 -> 0 | K14: ='SA9'!L250 -> 0 | L14: ='SA9'!M250 -> 0
A15: ="Net "& A11 -> Net Service charges - electricity revenue | C15: =C12-C13-C14 -> 9282999 | D15: =D12-D13-D14 -> 9782575 | E15: 9667754 | F15: 12666643.21 | G15: 24474643.21 | H15: 24474643.21 | I15: 23428502.21 | J15: 25738909 | K15: 27128809 | L15: 28593766
A17: ='A4-FinPerf RE'!A7 -> Service charges - water revenue | B17: 6
A18: ="Total "&A17 -> Total Service charges - water revenue
A19: less Revenue Foregone (in excess of 6 kilolitres per indigent household per month)
A20: less Cost of Free Basis Services (6 kilolitres per indigent household per month) | C20: ='SA9'!E262 -> 0 | D20: ='SA9'!F262 -> 0 | E20: ='SA9'!G262 -> 0 | F20: ='SA9'!H262 -> 0 | G20: ='SA9'!I262 -> 0 | H20: ='SA9'!J262 -> 0 | J20: ='SA9'!K262 -> 0 | K20: ='SA9'!L262 -> 0 | L20: ='SA9'!M262 -> 0
A21: ="Net "& A17 -> Net Service charges - water revenue | C21: =C18-C19-C20 -> 0 | D21: =D18-D19-D20 -> 0 | E21: 0 | F21: 0 | G21: 0 | H21: 0 | I21: 0 | J21: 0 | K21: 0 | L21: 0
A23: ='A4-FinPerf RE'!A8 -> Service charges - sanitation revenue
A24: ="Total "&A23 -> Total Service charges - sanitation revenue
A25: less Revenue Foregone (in excess of free sanitation service to indigent households)
A26: less Cost of Free Basis Services (free sanitation service to indigent households) | C26: ='SA9'!E274 -> 0 | D26: ='SA9'!F274 -> 0 | E26: ='SA9'!G274 -> 0 | F26: ='SA9'!H274 -> 0 | G26: ='SA9'!I274 -> 0 | H26: ='SA9'!J274 -> 0 | J26: ='SA9'!K274 -> 0 | K26: ='SA9'!L274 -> 0 | L26: ='SA9'!M274 -> 0
A27: ="Net "& A23 -> Net Service charges - sanitation revenue | C27: =C24-C25-C26 -> 0 | D27: =D24-D25-D26 -> 0 | E27: 0 | F27: 0 | G27: 0 | H27: 0 | I27: 0 | J27: 0 | K27: 0 | L27: 0
A29: ='A4-FinPerf RE'!A9 -> Service charges - refuse revenue | B29: 6
A30: Total refuse removal revenue | C30: 3693210 | D30: 4053445 | E30: 4193295 | F30: 6735226.35 | G30: 8735226.35 | H30: 8735226.35 | I30: 8735226.35 | J30: 9189458 | K30: 9685689 | L30: 10208716
A31: Total landfill revenue | C31: 0 | D31: 0 | E31: 0 | G31: 0 | H31: 0 | I31: 0 | J31: 0 | K31: 0 | L31: 0
A32: less Revenue Foregone (in excess of one removal a week to indigent households) | C32: 46669 | F32: 491829.53 | G32: 491829.53 | H32: 491829.53 | I32: 491829.53 | J32: 517405 | K32: 545345 | L32: 574793
A33: less Cost of Free Basis Services (removed once a week to indigent households) | C33: ='SA9'!E286 -> 0 | D33: ='SA9'!F286 -> 0 | E33: ='SA9'!G286 -> 0 | F33: ='SA9'!H286 -> 0 | G33: ='SA9'!I286 -> 0 | H33: ='SA9'!J286 -> 0 | I33: 0 | J33: ='SA9'!K286 -> 0 | K33: ='SA9'!L286 -> 0 | L33: ='SA9'!M286 -> 0
A34: ="Net "& A29 -> Net Service charges - refuse revenue | C34: =SUM(C30:C31)-C32-C33 -> 3646541 | D34: =SUM(D30:D31)-D32-D33 -> 4053445 | E34: 4193295 | F34: 6243396.82 | G34: 8243396.82 | H34: 8243396.82 | I34: 8243396.82 | J34: 8672053 | K34: 9140344 | L34: 9633923
A36: Other Revenue by source
A37: Prepaid Electricity | C37: 63309 | D37: 0 | E37: 0 | F37: 158314.26 | G37: 2781300.26 | H37: 2781300.26 | I37: 2781300.26 | J37: 2925929 | K37: 3083929 | L37: 3250461
A38: Interest FNB | C38: 1993515 | D38: 0 | E38: 0 | F38: 3602066.89 | G38: 3602066.89 | H38: 3602066.89 | I38: 3602066.89 | J38: 3789374 | K38: 3994001 | L38: 4209677
A39: Sale of Tender documents | C39: 879976 | D39: 0 | E39: 0 | F39: 1376799.43 | G39: 1376799.43 | H39: 1376799.43 | I39: 1376799.43 | J39: 1448393 | K39: 1526606 | L39: 1609043
A40: Other revenue | C40: 344160 | D40: 1239860 | E40: 842364 | F40: 1058402.1 | G40: =1058402.1-7999 -> 1050403.1 | H40: =1058402.1-7999 -> 1050403.1 | I40: =1058402.1-7999 -> 1050403.1 | J40: 1113439 | K40: 1173565 | L40: 1236937
A41: Investment witdrawals | C41: 0 | D41: 0 | E41: 0 | F41: 23390000 | G41: 23390000 | H41: 23390000 | I41: 23390000 | J41: 0 | K41: 0 | L41: 0
A42: Income: Awards | C42: 0 | D42: 0 | E42: 0 | F42: 0 | G42: 0 | H42: 0 | I42: 0 | J42: 0 | K42: 0 | L42: 0
A43: Debt collection services | C43: 0 | D43: 0 | E43: 0 | F43: 2000000 | G43: 2000000 | H43: 2000000 | I43: 2000000 | J43: 2104000 | K43: 2217616 | L43: 2337367
A44: Revenue from outdoor adverts | C44: 0 | D44: 0 | E44: 0 | F44: 1200000 | G44: 1200000 | H44: 1200000 | I44: 1200000 | J44: 1262400 | K44: 1330570 | L44: 1402420
A45: Ga-Kgapane Ext 5 loan accounts | C45: 0 | D45: 0 | E45: 0 | F45: 2000000 | G45: 2000000 | H45: 2000000 | I45: 2000000 | J45: 2104000 | K45: 2217616 | L45: 2337367
B48: 3
A49: Total 'Other' Revenue | B49: 1 | C49: =SUM(C37:C48) -> 3280960 | D49: =SUM(D37:D48) -> 1239860 | E49: 842364 | F49: 34785582.68 | G49: 37400569.68 | H49: 37400569.68 | I49: 37400569.68 | J49: 14747535 | K49: 15543903 | L49: 16383272
A51: EXPENDITURE ITEMS:
A52: ='A4-FinPerf RE'!A24 -> Employee related costs
A53: Basic Salaries and Wages | B53: 2 | C53: 40648962 | D53: 42332560 | E53: 45210928 | F53: 49033296.49 | G53: 63079148.49 | H53: 63079148.49 | I53: 63079148.49 | J53: 66697279 | K53: 71299392 | L53: 76219050
A54: Pension and UIF Contributions | C54: 8633797 | D54: 9340584 | E54: 10137519 | F54: 9941819.14 | G54: 10963921.14 | H54: 10963921.14 | I54: 10963921.14 | J54: 12700717 | K54: 13577067 | L54: 14513885
A55: Medical Aid Contributions | C55: 2774478 | D55: 3230794 | E55: 3723940 | F55: 3788001.87 | G55: 4315789.87 | H55: 4315789.87 | I55: 4315789.87 | J55: 5705868 | K55: 6099573 | L55: 6520444
A56: Overtime | C56: 4264517 | D56: 4619370 | E56: 4557051 | F56: 2767431.78 | G56: 3902753.78 | H56: 3902753.78 | I56: 3902753.78 | J56: 5404937 | K56: 5777877 | L56: 6176551
A57: Performance Bonus | C57: 3001520 | D57: 3092283 | E57: 3589321 | F57: 4651085.81 | G57: 3770739.81 | H57: 3770739.81 | I57: 3770739.81 | J57: 5412000 | K57: 5785428 | L57: 6184623
A58: Motor Vehicle Allowance | C58: 3049722 | D58: 3309934 | E58: 4333619 | F58: 4658216.47 | G58: 5173353.47 | H58: 5173353.47 | I58: 5173353.47 | J58: 6206321 | K58: 6634557 | L58: 7092342
A59: Cellphone Allowance | C59: 0 | D59: 0 | E59: 0 | F59: 0 | G59: 0 | H59: 0 | I59: 0 | J59: 0 | K59: 0 | L59: 0
A60: Housing Allowances | C60: 584944 | D60: 661691 | E60: 419332 | F60: 494732.71 | G60: 717566.71 | H60: 717566.71 | I60: 717566.71 | J60: 745999 | K60: 797473 | L60: 852499
A61: Other benefits and allowances | C61: 374751 | D61: 400323 | E61: 1201410 | F61: =382582.41+25671.73+304149.52+164025.39 -> 876429.05 | G61: 1154988.05 | H61: 1154988.05 | I61: 1154988.05 | J61: =624389+28568+620852+960000 -> 2233809 | K61: =667472+30540+663690+1026240 -> 2387942 | L61: =713528+32647+709485+1097051 -> 2552711
A62: Payments in lieu of leave | C62: 1073848 | D62: 1389476 | E62: 1541100 | F62: 2092783.93 | G62: 2188030.93 | H62: 2188030.93 | I62: 2188030.93 | J62: 2529205 | K62: 2703720 | L62: 2890276
A63: Long service awards | C63: 0 | D63: 0 | E63: 0 | F63: 0 | G63: 0 | H63: 0 | I63: 0 | J63: 0 | K63: 0 | L63: 0
A64: Post-retirement benefit obligations | B64: 4
A65: sub-total | B65: 5 | C65: =SUM(C53:C64) -> 64406539 | D65: =SUM(D53:D64) -> 68377015 | E65: 74714220 | F65: 78303797.25 | G65: 95266292.25 | H65: 95266292.25 | I65: 95266292.25 | J65: 107636135 | K65: 115063029 | L65: 123002381
A66: Less: Employees costs capitalised to PPE
A67: ="Total "&A52 -> Total Employee related costs | B67: 1 | C67: =C65-C66 -> 64406539 | D67: =D65-D66 -> 68377015 | E67: 74714220 | F67: 78303797.25 | G67: 95266292.25 | H67: 95266292.25 | I67: 95266292.25 | J67: 107636135 | K67: 115063029 | L67: 123002381
A69: Contributions recognised - capital
A70: List contributions by contract
A76: ="Total "&A69 -> Total Contributions recognised - capital | C76: =SUM(C70:C75) -> 0 | D76: 0 | E76: 0 | F76: 0 | G76: 0 | H76: 0 | I76: 0 | J76: 0 | K76: 0 | L76: 0
A78: ='A4-FinPerf RE'!A27 -> Depreciation & asset impairment
A79: Depreciation of Property, Plant & Equipment | C79: 21569539 | D79: 31106428 | E79: 28680829 | F79: 5043379.81 | G79: 5942210.81 | H79: 5942210.81 | I79: 5942210.81 | J79: 6251207 | K79: 6588772 | L79: 6944565
A80: Lease amortisation
A81: Capital asset impairment
A82: Depreciation resulting from revaluation of PPE | B82: 10
A83: ="Total "&LEFT(A78,35) -> Total Depreciation & asset impairment | B83: 1 | C83: =SUM(C79:C81)-C82 -> 21569539 | D83: =SUM(D79:D81)-D82 -> 31106428 | E83: 28680829 | F83: 5043379.81 | G83: 5942210.81 | H83: 5942210.81 | I83: 5942210.81 | J83: =SUM(J79:J81)-J82 -> 6251207 | K83: 6588772 | L83: 6944565
A85: ='A4-FinPerf RE'!A29 -> Bulk purchases
A86: Electricity Bulk Purchases | C86: 8728768 | D86: 13029942 | E86: 14679655 | F86: 17096559 | G86: 17096559 | H86: 17096559 | I86: 17096559 | J86: 17985580 | K86: 18956801 | L86: 19980468
A87: Water Bulk Purchases
A88: Total bulk purchases | B88: 1 | C88: =SUM(C86:C87) -> 8728768 | D88: =SUM(D86:D87) -> 13029942 | E88: 14679655 | F88: 17096559 | G88: 17096559 | H88: 17096559 | I88: 17096559 | J88: 17985580 | K88: 18956801 | L88: 19980468
A90: Transfers and grants
A91: Cash transfers and grants | C91: ='SA21'!C32 -> 0 | D91: ='SA21'!D32 -> 0 | E91: ='SA21'!E32 -> 0 | F91: ='SA21'!F32 -> 0 | G91: ='SA21'!G32 -> 0 | H91: ='SA21'!H32 -> 0 | I91: ='SA21'!I32 -> 0 | J91: ='SA21'!J32 -> 0 | K91: ='SA21'!K32 -> 0 | L91: ='SA21'!L32 -> 0
A92: Non-cash transfers and grants | C92: ='SA21'!C63 -> 0 | D92: ='SA21'!D63 -> 0 | E92: ='SA21'!E63 -> 0 | F92: ='SA21'!F63 -> 0 | G92: ='SA21'!G63 -> 0 | H92: ='SA21'!H63 -> 0 | I92: ='SA21'!I63 -> 0 | J92: ='SA21'!J63 -> 0 | K92: ='SA21'!K63 -> 0 | L92: ='SA21'!L63 -> 0
A93: Total transfers and grants | B93: 1 | C93: =SUM(C91:C92) -> 0 | D93: =SUM(D91:D92) -> 0 | E93: 0 | F93: 0 | G93: 0 | H93: 0 | I93: 0 | J93: 0 | K93: 0 | L93: 0
A95: ='A4-FinPerf RE'!A31 -> Contracted services
A96: Security services | D96: 6389496 | F96: 7365025.471 | G96: 11622054.47 | H96: 11622054.47 | I96: 11622054.47 | J96: 8470325 | K96: 8927723 | L96: 9409820
A97: Operating lease | D97: 307381 | F97: 2638500 | G97: 2638500 | H97: 2638500 | I97: 2638500 | J97: 6841629 | K97: 7211077 | L97: 7600475
A98: Meter readings | D98: 50077 | F98: 400000 | G98: 400000 | H98: 400000 | I98: 400000 | J98: 0 | K98: 0 | L98: 0
A99: Refuse removal | D99: 1609327 | F99: 1605011.031 | G99: 1605011.031 | H99: 1605011.031 | I99: 1605011.031 | J99: 605477 | K99: 638173 | L99: 672634
A100: Valuation services | F100: 0 | G100: 0 | H100: 0 | I100: 0 | J100: 0 | K100: 0 | L100: 0
A101: Unbundling of assets | F101: 1500000 | G101: 1500000 | H101: 1500000 | I101: 1500000 | J101: 1500000 | K101: 1581000 | L101: 1666374
A102: Annual Financial Statements | F102: 800000 | G102: 800000 | H102: 800000 | I102: 800000 | J102: 853900 | K102: 900011 | L102: 948611
A103: Banking Services | F103: 105300 | G103: 105300 | H103: 105300 | I103: 105300 | J103: 105300 | K103: 110986 | L103: 116979
A104: Accounts printing services | F104: 250000 | G104: 250000 | H104: 250000 | I104: 250000 | J104: 0 | K104: 0 | L104: 0
A105: Debt collection services | F105: 100000 | G105: 100000 | H105: 100000 | I105: 100000 | J105: 0 | K105: 0 | L105: 0
A106: Easy Pay services | F106: 250000 | G106: 250000 | H106: 250000 | I106: 250000 | J106: 0 | K106: 0 | L106: 0
A107: Temporary Workers | F107: 105300 | G107: 105300 | H107: 105300 | I107: 105300 | J107: 65300 | K107: 68826 | L107: 72543
A108: Other contractors | C108: 9272936 | D108: 4975100 | E108: 13883089 | F108: 0 | G108: 0 | H108: 0 | I108: 0 | J108: 1017695 | K108: 1072653 | L108: 1130574
A109: Specialist services | D109: 72839 | F109: 0 | G109: 0 | H109: 0 | I109: 0 | J109: 0 | K109: 0 | L109: 0
A121: sub-total | B121: 1 | C121: =SUM(C96:C120) -> 9272936 | D121: 13404220 | E121: 13883089 | F121: 15119136.5 | G121: 19376165.5 | H121: 19376165.5 | I121: 19376165.5 | J121: 19459626 | K121: 20510449 | L121: 21618010
A122: Allocations to organs of state:
A123: Electricity
A124: Water
A125: Sanitation
A126: Other
A127: Total contracted services | C127: =SUM(C121:C126) -> 9272936 | D127: =SUM(D121:D126) -> 13404220 | E127: 13883089 | F127: 15119136.5 | G127: 19376165.5 | H127: 19376165.5 | I127: 19376165.5 | J127: 19459626 | K127: 20510449 | L127: 21618010
A129: Other Expenditure By Type
A130: Collection costs
A131: Contributions to 'other' provisions
A132: Consultant fees
A133: Audit fees | F133: 4742067.26 | G133: 4742067.26 | H133: 4742067.26 | I133: 4742067.26
A134: General expenses | B134: 3 | C134: 52526051 | D134: 56929820 | E134: =75634027 -> 75634027 | F134: 52012568.96 | G134: =80891488.96+649 -> 80892137.96 | H134: =80891488.96+649 -> 80892137.96 | I134: 80892137.96 | J134: 107032010 | K134: 99450522 | L134: 104671433
A135: Ward Committee Meetings & Workshops | C135: 0 | D135: 0 | F135: 3910052.25 | G135: 3610052.25 | H135: 3610052.25 | I135: 3610052.25
A136: Bursary Scheme | C136: 0 | D136: 0 | F136: 2234676 | G136: 1634676 | H136: 1634676 | I136: 1634676
A137: Internship Program (Finance) | C137: 0 | D137: 0 | F137: 2145000 | G137: 2145000 | H137: 2145000 | I137: 2145000
A138: Imbizos | C138: 0 | D138: 0 | F138: 400000 | G138: 400000 | H138: 400000 | I138: 400000
A139: Public Participation | C139: 0 | D139: 0 | F139: 500000 | G139: 1452350.7 | H139: 1452350.7 | I139: 1452350.7
A140: Repair and maintenance | C140: 5754017 | D140: 4102201 | F140: 17098649.14 | G140: 17767302.14 | H140: 17767302.14 | I140: 17767302.14 | J140: 24093399 | K140: 21394443 | L140: 22765743
A141: Mayor Excellence Award | C141: 18646 | D141: 98007 | F141: 400000 | G141: 300000 | H141: 300000 | I141: 300000
A157: Total 'Other' Expenditure | B157: 1 | C157: =SUM(C130:C156) -> 58298714 | D157: =SUM(D130:D156) -> 61130028 | E157: 75634027 | F157: 83443013.61 | G157: 112943586.3 | H157: 112943586.3 | I157: 112943586.3 | J157: 131125409 | K157: 120844965 | L157: 127437176
A159: Repairs and Maintenance by Expenditure Item | B159: 8
A160: Employee related costs
A161: Other materials
A162: Contracted Services
A163: Other Expenditure
A164: Total Repairs and Maintenance Expenditure | B164: 9 | C164: =SUM(C160:C163) -> 0 | D164: =SUM(D160:D163) -> 0 | E164: 0 | F164: 0 | G164: 0 | H164: 0 | I164: 0 | J164: 0 | K164: 0 | L164: 0
A166: check | C166: =C164-SA34c!C167 -> -5754016 | D166: =D164-SA34c!D167 -> -4102201 | E166: =E164-SA34c!E167 -> -9246700 | F166: =F164-SA34c!F167 -> -22098649.14 | G166: =G164-SA34c!G167 -> -22767301.14 | H166: =H164-SA34c!H167 -> -22767301.14 | J166: =J164-SA34c!I167 -> -24093599.8 | K166: =K164-SA34c!J167 -> -21394337.98 | L166: =L164-SA34c!K167 -> -22763448.23
A169: =head27a -> References
A170: 1. Must reconcile with 'Budgeted Financial Performance (Revenue and Expenditure)
A171: 2. Must reconcile to supporting documentation on staff salaries
A172: 3. Insert other categories where revenue or expenditure is of a material nature (list separate items until 'General expenses' is not > 10% of Total Expenditure)
A173: 4. Expenditure to meet any 'unfunded obligations'
A174: 5 This sub-total must agree with the total on SA22, but excluding councillor and board member items
A175: 6. Include a note for each revenue item that is affected by 'revenue foregone'
A176: 7. Special consideration may have to be given to including 'goodwill arising' or 'joint venture' budgets where circumstances require this (include separately under relevant notes)
A177: 8. Repairs and Maintenance is not a GRAP item. However to facilitate transparency, municipalities must provide a breakdown of the amounts included in the relevant GRAP items that will be spent on Repairs and Maintenance.
A178: 9. Must reconcile with Repairs and Maintenance by Asset Class (Total Repairs and Maintenance) on Table SA34c.
A179: 10. Only applicable to municipalities that have adopted the 'revaluation method' in GRAP 17. The aim is to prevent overstating 'depreciation and asset impairment'

Sheet SA2
A1: =muni&" - "&TableA2 -> LIM332 Greater Letaba - Supporting Table SA2 Matrix Financial Performance Budget (revenue source/expenditure type and dept.)
